{"text_format":"1","workbook":"xlsx","n_sheets":16,"sheets":["Accueil","liste",".descripteurs",".langue","descripteurs","activites","evaluation",".calc_eva",".init","commentaires","Ecrire","Comprendre","Parler","Lire","Dialoguer","synthese classe"],"not_rendered":{"charts":0,"images":1,"macros":1,"external_links":0,"defined_names":15,"comments":2,"pivot_tables":0},"unopened":[],"bounds":{"document_bytes":16777216,"sheet_cells":100000,"rows_first":2000,"rows_last":500,"rows_between":2000,"halvings":0,"cell_chars":16384,"cell_head_chars":4096},"cells_cut":0,"cells_raw":0,"read":"whole","date_system":"1900"}

{"sheet":"Accueil","index":0,"n_rows":30,"n_cols":1,"rows_kept":30,"cut":false,"hidden":false,"merged":[]}
[]
["EVALUER LE NIVEAU A1"]
["EN LANGUE ETRANGERE"]
[]
["Le cadre de référence"]
["Dans le but d’aider à l’évaluation des connaissances et capacités dans la perspective de la validation des compétences du socle commun, certaines formulations du livret doivent être clarifiées. Ce document, qui concerne la  COMPETENCE 2 du socle commun, à savoir « La maîtrise d’une langue vivante étrangère », est destiné à clarifier le cadre et les procédures d’évaluation des élèves au cours de leur scolarité."]
["Cette compétence regroupe cinq domaines d’activités langagières faisant chacun l’objet d’une fiche : "]
["-          Réagir et dialoguer, "]
["-          Comprendre l’oral, "]
["-          Parler en continu, "]
["-          Lire, "]
["-          Ecrire. "]
["Pour plus de précisions, chaque domaine se décompose en items (17 au total).  Par exemple, le domaine « Réagir et dialoguer » est composé de quatre items – ou capacités – que l’enseignant est censé repérer chez ses élèves :"]
["-          Communiquer, au besoin avec des pauses pour chercher ses mots,"]
["-          Se présenter, présenter quelqu’un, …"]
["-          Répondre à des questions et en poser, …"]
["-          Epeler des mots familiers."]
["Chaque item est illustré par un ensemble non exhaustif de descripteurs ou d’exemples de situations. Pour la capacité  « Communiquer, au besoin, avec des pauses pour chercher ses mots » nous proposons :"]
["-          Parler du temps qu’il fait, …"]
["-          Dire « Merci, s’il vous plait… »"]
["-          …"]
["La présentation du document "]
["Ce document est conçu comme une aide pour l’équipe enseignante : il permet de faire le lien entre les évaluations menées en classe et la validation de la compétence 2 au niveau A1 à inscrire dans le livret personnel de compétences de chaque élève."]
["Vous trouverez des exemples de descripteurs (ou de situations) qui peuvent servir de support à l’évaluation de chaque item (ou capacité). Donnée à titre indicatif, cette liste d’exemples n’est pas exhaustive. Vous pouvez la compléter en fonction de vos projets et situations de communications mis en place pour mener les apprentissages."]
[]
["Les modalités de mise en œuvre"]
["L'acquisition des compétences du socle par les élèves est progressive : les élèves construisent leurs apprentissages  tout au long du parcours scolaire ; d’où la  pertinence d’évaluer leurs acquis en continu, à raison d'un descripteur par semaine."]
["Lorsqu'une connaissance, une capacité ou une attitude -inscrite dans ce livret- est jugée acquise, il suffit d’inscrire la date à laquelle l’évaluation est positive. Les items peuvent être renseignés au fur et à mesure des apprentissages, dès l’année du CE1."]
["La maîtrise d’une connaissance, d’une capacité ou d’une attitude se traduit par sa stabilité : il faut donc qu’elle soit évaluée à plusieurs reprises, dans des contextes différents et selon des niveaux de complexité progressifs. Les séances d’apprentissage comportant des exercices structuraux ne sont pas favorables à l’évaluation : il convient de la mettre en œuvre lors de moments de réactivation des acquis. Le niveau d’exigence, au palier 2, étant celui du A1."]
["(…….) La validation globale de la compétence 2 « Maîtrise d’une langue vivante étrangère » ne peut avoir lieu que si tous les domaines langagiers sont validés (aucun domaine ne peut être compensé par un autre). Elle relève d'une décision de l’équipe pédagogique et reste un acte institutionnel définitif : une compétence validée le reste."]

{"sheet":"liste","index":1,"n_rows":31,"n_cols":3,"rows_kept":31,"cut":false,"hidden":false,"merged":[]}
["NOM et Prénom","langue étudiée","ID"]
["PICASSO Pablo","Espagnol",1]
["FREUD Sigmund","Allemand",2]
["HOLMES Sherlock","Anglais",3]
["CHAHINE Youcef","Arabe",4]
["NOM5","Espagnol",5]
["NOM6","Espagnol",6]
["NOM7","Espagnol",7]
["NOM8","Espagnol",8]
["NOM9","Espagnol",9]
["NOM10","Espagnol",10]
["NOM11","Espagnol",11]
["NOM12","Espagnol",12]
["NOM13","Espagnol",13]
["NOM14","Espagnol",14]
["NOM15","Espagnol",15]
["NOM16","Espagnol",16]
["NOM17","Espagnol",17]
["NOM18","Espagnol",18]
["NOM19","Espagnol",19]
["NOM20","Espagnol",20]
["NOM21","Espagnol",21]
["NOM22","Espagnol",22]
["NOM23","Espagnol",23]
["NOM24","Espagnol",24]
["NOM25","Espagnol",25]
["NOM26","Espagnol",26]
["NOM27","Espagnol",27]
["NOM28","Espagnol",28]
["NOM29","Espagnol",29]
["NOM30","Espagnol",30]

{"sheet":".descripteurs","index":2,"n_rows":263,"n_cols":3,"rows_kept":263,"cut":false,"hidden":true,"merged":[]}
["Domaine","Item","Descripteur"]
["Ecrire","Copier des mots isolés et des textes courts","Copier des textes courts imprimés (des listes : cadeaux, ingrédients, de courses, de menu, de lunch box, de sandwich... un court poème par exemple) "]
["Ecrire","Copier des mots isolés et des textes courts","Recopier des mots à partir d'un modèle (livre, affiche, tableau...)"]
["Ecrire","Copier des mots isolés et des textes courts","Compléter des grilles de mots (fléchés, codés, cachés, croisés...)"]
["Ecrire","Copier des mots isolés et des textes courts","Compléter des phrases à trous à partir d'une liste de mots en désordre"]
["Ecrire","Copier des mots isolés et des textes courts","Compléter des phrases qui permettent de se décrire à l'aide d'une liste de mots en désordre"]
["Ecrire","Copier des mots isolés et des textes courts","Copier des phrases à remettre dans l'ordre d'une histoire"]
["Ecrire","Copier des mots isolés et des textes courts","Compléter une chanson connue avec une liste de mots manquants "]
["Ecrire","Copier des mots isolés et des textes courts","Ecrire une légende ou un titre à une image, en utilisant les outils de la classe"]
["Ecrire","Copier des mots isolés et des textes courts","Transcrire sur l'ordinateur une phrase écrite au tableau par l'enseignant"]
["Ecrire","Copier des mots isolés et des textes courts","En se référant à un modèle, écrire des phrases courtes sur un pays de la langue étudiée"]
["Ecrire","Copier des mots isolés et des textes courts","A l'aide d'indications touristiques, écrire un texte court sur sa visite dans une capitale de la langue étudiée"]
["Ecrire","Copier des mots isolés et des textes courts","Recopier les titres de chansons apprises"]
["Ecrire","Copier des mots isolés et des textes courts","Reconstituer par étiquettes une comptine, poème appris "]
["Ecrire","Copier des mots isolés et des textes courts","Copier des mots pour compléter des descriptions"]
["Ecrire","Copier des mots isolés et des textes courts","Copier les nombres (prix, quantité, opérations, dans une comptine, âge, "]
["Ecrire","Copier des mots isolés et des textes courts","Remettre des mots dans l'ordre pour écrire une phrase simple"]
["Ecrire","Copier des mots isolés et des textes courts","Ecrire des mots et expressions relatifs à l'heure"]
["Ecrire","Copier des mots isolés et des textes courts","Compléter des phrases courtes sur un anniversaire"]
["Ecrire","Copier des mots isolés et des textes courts","desc_1"]
["Ecrire","Copier des mots isolés et des textes courts","desc_2"]
["Ecrire","Ecrire un message électronique simple ou une courte carte postale en référence à des modèles ","Ecrire une courte carte de vœux, d'invitation, de remerciements, de salutations..., "]
["Ecrire","Ecrire un message électronique simple ou une courte carte postale en référence à des modèles ","Répondre à une invitation"]
["Ecrire","Ecrire un message électronique simple ou une courte carte postale en référence à des modèles ","Rédiger une courte carte postale (dire où l'on est, comment on va et signer)"]
["Ecrire","Ecrire un message électronique simple ou une courte carte postale en référence à des modèles ","Donner de ses nouvelles par courriel"]
["Ecrire","Ecrire un message électronique simple ou une courte carte postale en référence à des modèles ","Poser des questions par courriel"]
["Ecrire","Ecrire un message électronique simple ou une courte carte postale en référence à des modèles ","Ecrire un petit dialogue en complétant des bulles de bande dessinée ou d'après des images séquentielles"]
["Ecrire","Ecrire un message électronique simple ou une courte carte postale en référence à des modèles ","Compléter un dialogue par des mots ou des phrases qui manquent"]
["Ecrire","Ecrire un message électronique simple ou une courte carte postale en référence à des modèles ","Compléter les salutations différentes selon le moment de la journée"]
["Ecrire","Ecrire un message électronique simple ou une courte carte postale en référence à des modèles ","Compléter deux phrases courtes pour décrire ce que l'on fait à Noël"]
["Ecrire","Ecrire un message électronique simple ou une courte carte postale en référence à des modèles ","desc_3"]
["Ecrire","Ecrire un message électronique simple ou une courte carte postale en référence à des modèles ","desc_4"]
["Ecrire","Renseigner un questionnaire","Remplir une fiche d'information sur soi : nom, prénom, âge, date et lieu de naissance,  nationalité, sexe, adresse, frères et soeurs, animaux, goûts "]
["Ecrire","Renseigner un questionnaire","Remplir une fiche d'hôtel en indiquant la date d'arrivée, ses noms, prénoms, nationalité, date de départ prévue, "]
["Ecrire","Renseigner un questionnaire","Remplir un tableau lors d'une enquête avec des mots appropriés (les médias des élèves par tranche d'âge)"]
["Ecrire","Renseigner un questionnaire","Compléter un emploi du temps avec les disciplines adéquates"]
["Ecrire","Renseigner un questionnaire","Compléter une enquête de recensement en décrivant sa famille (selon un modèle donné)"]
["Ecrire","Renseigner un questionnaire","Compléter une fiche publicitaire immobilière (décrire son habitation)"]
["Ecrire","Renseigner un questionnaire","Compléter une fiche de renseignements sur ses habitudes alimentaires"]
["Ecrire","Renseigner un questionnaire","Compléter une fiche de renseignements sur ses habitudes sportives"]
["Ecrire","Renseigner un questionnaire","Compléter une enquête liée à ses habitudes horaires"]
["Ecrire","Renseigner un questionnaire","Compléter un tableau relatif aux catégories animales"]
["Ecrire","Renseigner un questionnaire","Catégoriser dans un tableau des personnages d'histoires à partir de leurs qualités physiques ou morales"]
["Ecrire","Renseigner un questionnaire","desc_5"]
["Ecrire","Renseigner un questionnaire","desc_6"]
["Ecrire","Produire de manière autonome quelques phrases","Ecrire des énoncés simples et brefs sur soi-même "]
["Ecrire","Produire de manière autonome quelques phrases","Ecrire des énoncés simples sur son environnement familier"]
["Ecrire","Produire de manière autonome quelques phrases","Ecrire de façon simple sur des personnages imaginaires"]
["Ecrire","Produire de manière autonome quelques phrases","Ecrire son problème de maths d'après un modèle"]
["Ecrire","Produire de manière autonome quelques phrases","Reproduire une comptine connue en modifiant le vocabulaire (en respectant le nombre de syllabes) one banana, two banana …"]
["Ecrire","Produire de manière autonome quelques phrases","Produire une phrase sur ses habitudes sportives"]
["Ecrire","Produire de manière autonome quelques phrases","Ecrire les heures désignées"]
["Ecrire","Produire de manière autonome quelques phrases","Ecrire sa date d'anniversaire"]
["Ecrire","Produire de manière autonome quelques phrases","Produire des phrases courtes sur les animaux"]
["Ecrire","Produire de manière autonome quelques phrases","Produire une devinette amusante (une question et une réponse) sur les aptitudes des animaux"]
["Ecrire","Produire de manière autonome quelques phrases","Produire une phrase relatant si l'on joue d'un instrument ou pas"]
["Ecrire","Produire de manière autonome quelques phrases","Ecrire la date en respectant les majuscules"]
["Ecrire","Produire de manière autonome quelques phrases","desc_7"]
["Ecrire","Produire de manière autonome quelques phrases","desc_8"]
["Ecrire","Ecrire sous la dictée des expressions connues","Ecrire des mots connus dictés par l'enseignant"]
["Ecrire","Ecrire sous la dictée des expressions connues","Ecrire des mots épelés pour constituer une phrase simple (une adresse, un nom, un message, un numéro au téléphone,"]
["Ecrire","Ecrire sous la dictée des expressions connues","Ecrire des listes de menu, de courses, de cadeaux, d'achats pour la classe, "]
["Ecrire","Ecrire sous la dictée des expressions connues","Ecrire des nombres dictés"]
["Ecrire","Ecrire sous la dictée des expressions connues","Ecrire l'heure dictée"]
["Ecrire","Ecrire sous la dictée des expressions connues","desc_9"]
["Ecrire","Ecrire sous la dictée des expressions connues","desc_10"]
["Comprendre à l'oral ","Comprendre les consignes de classe.","Comprendre des consignes courtes et simples et agir en conséquence (s'asseoir, ouvrir le cahier, aller au tableau, se taire, écouter, lever la main , se ranger, se mettre en cercle...)"]
["Comprendre à l'oral ","Comprendre les consignes de classe.","Comprendre une salutation quelque soit le moment de la journée (good morning, see you later, good bye ...)"]
["Comprendre à l'oral ","Comprendre les consignes de classe.","Comprendre une demande de copie, de recopie, de lecture, de découpage, de collage, de coloriage, de dessin ...(cocher, barrer, entourer, effacer, souligner)"]
["Comprendre à l'oral ","Comprendre les consignes de classe.","Comprendre une demande d'activité de classe (jeu, bricolage)"]
["Comprendre à l'oral ","Comprendre les consignes de classe.","Comprendre les mots et expressions liés au matériel scolaire (contenu d'une trousse, d'un cartable)"]
["Comprendre à l'oral ","Comprendre les consignes de classe.","desc_11"]
["Comprendre à l'oral ","Comprendre les consignes de classe.","desc_12"]
["Comprendre à l'oral ","Comprendre des mots familiers et des expressions très courantes","Comprendre des mots familiers ou des expressions courantes sur soi-même si les gens parlent lentement et distinctement "]
["Comprendre à l'oral ","Comprendre des mots familiers et des expressions très courantes","Comprendre des mots familiers ou des expressions courantes sur sa famille si les gens parlent lentement et distinctement "]
["Comprendre à l'oral ","Comprendre des mots familiers et des expressions très courantes","Comprendre des mots familiers ou des expressions courantes sur son environnement concret si les gens parlent lentement et distinctement "]
["Comprendre à l'oral ","Comprendre des mots familiers et des expressions très courantes","Comprendre des informations chiffrées (âge, date, prix, numéro de téléphone…)"]
["Comprendre à l'oral ","Comprendre des mots familiers et des expressions très courantes","Comprendre un problème de maths simple "]
["Comprendre à l'oral ","Comprendre des mots familiers et des expressions très courantes","Comprendre des phrases simples sur le petit déjeuner"]
["Comprendre à l'oral ","Comprendre des mots familiers et des expressions très courantes","Comprendre des informations simples comportant des éléments de situation spatiale "]
["Comprendre à l'oral ","Comprendre des mots familiers et des expressions très courantes","Comprendre les pays anglophones et les nationalités"]
["Comprendre à l'oral ","Comprendre des mots familiers et des expressions très courantes","Comprendre des descriptions de sentiments, de sensations et des descriptions physiques"]
["Comprendre à l'oral ","Comprendre des mots familiers et des expressions très courantes","Comprendre des questions et réponses sur les fêtes calendaires"]
["Comprendre à l'oral ","Comprendre des mots familiers et des expressions très courantes","Comprendre des phrases simples sur les vacances et ce qu'on emporte dans sa valise"]
["Comprendre à l'oral ","Comprendre des mots familiers et des expressions très courantes","Comprendre des expressions utilisées fréquemment quand quelqu'un salue, s'excuse, remercie ou prend congé "]
["Comprendre à l'oral ","Comprendre des mots familiers et des expressions très courantes","Identifier dans une émission télévisée des noms, des indications temporelles et spatiales, ainsi que le sujet général "]
["Comprendre à l'oral ","Comprendre des mots familiers et des expressions très courantes","Comprendre le fil d'une histoire avec des aides appropriées "]
["Comprendre à l'oral ","Comprendre des mots familiers et des expressions très courantes","Comprendre des questions sur son identité (nom, prénom, âge, nationalité, date de naissance, frères et soeurs, adresse)"]
["Comprendre à l'oral ","Comprendre des mots familiers et des expressions très courantes","Comprendre les informations sur l'identité d'autrui (nom, prénom, âge, nationalité, date de naissance, frères et soeurs, adresse)"]
["Comprendre à l'oral ","Comprendre des mots familiers et des expressions très courantes","Comprendre lorsque quelqu'un demande d'épeler son nom"]
["Comprendre à l'oral ","Comprendre des mots familiers et des expressions très courantes","Comprendre une question liée au numéro de téléphone, à un prix, à une quantité, à l'heure"]
["Comprendre à l'oral ","Comprendre des mots familiers et des expressions très courantes","Comprendre un numéro de téléphone, un prix, une quantité, l'heure"]
["Comprendre à l'oral ","Comprendre des mots familiers et des expressions très courantes","Comprendre un dialogue de présentation d'un pays  ou d'une ville de la langue étudiée"]
["Comprendre à l'oral ","Comprendre des mots familiers et des expressions très courantes","Comprendre une indication de prix, quantité, adresse, numéro de téléphone, âge"]
["Comprendre à l'oral ","Comprendre des mots familiers et des expressions très courantes","Comprendre  oui ou non, merci, comment ça va"]
["Comprendre à l'oral ","Comprendre des mots familiers et des expressions très courantes","Comprendre des excuses, des félicitations, des voeux"]
["Comprendre à l'oral ","Comprendre des mots familiers et des expressions très courantes","Comprendre un message court (histoire, dialogue, annonce, comptine, chanson...) à l'aide de d'images, de gestes"]
["Comprendre à l'oral ","Comprendre des mots familiers et des expressions très courantes","Comprendre une annonce publicitaire en définissant le produit"]
["Comprendre à l'oral ","Comprendre des mots familiers et des expressions très courantes","Comprendre si quelqu'un aime ou n'aime pas"]
["Comprendre à l'oral ","Comprendre des mots familiers et des expressions très courantes","Comprendre les actions de personnages"]
["Comprendre à l'oral ","Comprendre des mots familiers et des expressions très courantes","Comprendre des descriptions simples d'animaux"]
["Comprendre à l'oral ","Comprendre des mots familiers et des expressions très courantes","desc_13"]
["Comprendre à l'oral ","Comprendre des mots familiers et des expressions très courantes","desc_14"]
["Comprendre à l'oral ","Suivre des instructions courtes et simples","Pour réaliser une tâche en lien avec un message entendu par l'élève (cocher un dessin, dessiner sous la dictée)"]
["Comprendre à l'oral ","Suivre des instructions courtes et simples","Comprendre une demande d'actions physiques et réagir (lancer un ballon, un dé..."]
["Comprendre à l'oral ","Suivre des instructions courtes et simples","Comprendre une demande pour ranger ses affaires"]
["Comprendre à l'oral ","Suivre des instructions courtes et simples","Comprendre pour ouvrir et fermer la porte"]
["Comprendre à l'oral ","Suivre des instructions courtes et simples","Comprendre pour allumer et éteindre la lumière, l'ordinateur"]
["Comprendre à l'oral ","Suivre des instructions courtes et simples","Comprendre pour jouer aux cartes, les distribuer"]
["Comprendre à l'oral ","Suivre des instructions courtes et simples","Comprendre de parler plus ou moins fort ou lentement"]
["Comprendre à l'oral ","Suivre des instructions courtes et simples","Comprendre une demande de répétition"]
["Comprendre à l'oral ","Suivre des instructions courtes et simples","Comprendre des consignes de bricolage"]
["Comprendre à l'oral ","Suivre des instructions courtes et simples"," Comprendre des opérations simples"]
["Comprendre à l'oral ","Suivre des instructions courtes et simples","Suivre des instructions pour former et dessiner des formes"]
["Comprendre à l'oral ","Suivre des instructions courtes et simples","Comprendre où aller dans une école, une maison,  une ville"]
["Comprendre à l'oral ","Suivre des instructions courtes et simples","Comprendre les injonctions de parents (réveille toi ...)"]
["Comprendre à l'oral ","Suivre des instructions courtes et simples","desc_15"]
["Comprendre à l'oral ","Suivre des instructions courtes et simples","desc_16"]
["Parler en continu","Reproduire un modèle oral","Reproduire des phrases simples fréquemment utilisées "]
["Parler en continu","Reproduire un modèle oral","Réciter un texte mémorisé, une comptine, un poème "]
["Parler en continu","Reproduire un modèle oral","Chanter une chanson "]
["Parler en continu","Reproduire un modèle oral","Epeler des mots familiers ou chanter l'alphabet "]
["Parler en continu","Reproduire un modèle oral","Faire une courte annonce répétée auparavant pour présenter une fête, un personnage, donner une consigne"]
["Parler en continu","Reproduire un modèle oral","Reproduire la comptine numérique jusqu'à 100"]
["Parler en continu","Reproduire un modèle oral","Reproduire quelques tables d'opération"]
["Parler en continu","Reproduire un modèle oral","Réciter l'alphabet"]
["Parler en continu","Reproduire un modèle oral","Reproduire une description de journée (pour une saynète)"]
["Parler en continu","Reproduire un modèle oral","Epeler les jours et les mois"]
["Parler en continu","Reproduire un modèle oral","Présenter la météo"]
["Parler en continu","Reproduire un modèle oral","Décrire un jeu de cartes"]
["Parler en continu","Reproduire un modèle oral","desc_17"]
["Parler en continu","Reproduire un modèle oral","desc_18"]
["Parler en continu","Utiliser des expressions et des phrases proches des modèles rencontrés lors des apprentissages","Utiliser des expressions et phrases simples pour se présenter ou présenter quelqu'un (nom, prénom, âge, adresse, goûts, famille, animaux)"]
["Parler en continu","Utiliser des expressions et des phrases proches des modèles rencontrés lors des apprentissages","Dire ce qu'il fait chaque jour, chaque semaine en termes simples "]
["Parler en continu","Utiliser des expressions et des phrases proches des modèles rencontrés lors des apprentissages","Utiliser des expressions et phrases simples pour  présenter son lieu d'habitation, sa chambre"]
["Parler en continu","Utiliser des expressions et des phrases proches des modèles rencontrés lors des apprentissages","Dire ce que font les personnages, de ce qu'on fait, de ce qu'on a fait, de ce qu'on est en train de faire"]
["Parler en continu","Utiliser des expressions et des phrases proches des modèles rencontrés lors des apprentissages","Décrire des personnes, des animaux ou des objets familiers (avec des adjectifs indiquant la taille, la couleur ou l'âge)"]
["Parler en continu","Utiliser des expressions et des phrases proches des modèles rencontrés lors des apprentissages","Exprimer ce qu'il aime et ce qu'il n'aime pas "]
["Parler en continu","Utiliser des expressions et des phrases proches des modèles rencontrés lors des apprentissages","Exprimer ce qu'il ressent, ses besoins élémentaires (j'ai faim, soif, j'ai froid, je suis malade..) "]
["Parler en continu","Utiliser des expressions et des phrases proches des modèles rencontrés lors des apprentissages","Dire ce qu'il possède ou pas, ce qu'il souhaite "]
["Parler en continu","Utiliser des expressions et des phrases proches des modèles rencontrés lors des apprentissages","Décrire un pays, une ville selon un modèle oral"]
["Parler en continu","Utiliser des expressions et des phrases proches des modèles rencontrés lors des apprentissages","Décrire une peinture en utilisant les phrases connues d'un modèle rencontré"]
["Parler en continu","Utiliser des expressions et des phrases proches des modèles rencontrés lors des apprentissages","Compter, donner l'heure, indiquer des quantités "]
["Parler en continu","Utiliser des expressions et des phrases proches des modèles rencontrés lors des apprentissages","Dire les dates d'anniversaire de sa famille"]
["Parler en continu","Utiliser des expressions et des phrases proches des modèles rencontrés lors des apprentissages","Présenter une famille"]
["Parler en continu","Utiliser des expressions et des phrases proches des modèles rencontrés lors des apprentissages","Utiliser les éléments vus pour parler de ses vacances (transport, contenu de sa valise, destinations, activités)"]
["Parler en continu","Utiliser des expressions et des phrases proches des modèles rencontrés lors des apprentissages","Utiliser les éléments vus pour décrire une maison (scénette de l'agent immobilier)"]
["Parler en continu","Utiliser des expressions et des phrases proches des modèles rencontrés lors des apprentissages","Parler de son emploi du temps et de ses activités préférées à l'école (ou ailleurs)"]
["Parler en continu","Utiliser des expressions et des phrases proches des modèles rencontrés lors des apprentissages","Décrire les expressions mimées par ses camarades"]
["Parler en continu","Utiliser des expressions et des phrases proches des modèles rencontrés lors des apprentissages","Dire l'heure mimée par un camarade"]
["Parler en continu","Utiliser des expressions et des phrases proches des modèles rencontrés lors des apprentissages","Exprimer où l'on a mal"]
["Parler en continu","Utiliser des expressions et des phrases proches des modèles rencontrés lors des apprentissages","Utiliser les éléments vus pour décrire les sports"]
["Parler en continu","Utiliser des expressions et des phrases proches des modèles rencontrés lors des apprentissages","Décrire une image, une photo, un dessin, un cadeau"]
["Parler en continu","Utiliser des expressions et des phrases proches des modèles rencontrés lors des apprentissages","Décrire le contenu d'une trousse et d'un cartable"]
["Parler en continu","Utiliser des expressions et des phrases proches des modèles rencontrés lors des apprentissages","Décrire le contenu d'une lunch box, de son petit déjeuner, de son sandwich"]
["Parler en continu","Utiliser des expressions et des phrases proches des modèles rencontrés lors des apprentissages","Expliquer une information simple (règle de jeu, recette, histoire courte à partir d'images, film, livre ...)"]
["Parler en continu","Utiliser des expressions et des phrases proches des modèles rencontrés lors des apprentissages","desc_19"]
["Parler en continu","Utiliser des expressions et des phrases proches des modèles rencontrés lors des apprentissages","desc_20"]
["Parler en continu","Lire à haute voix et de manière expressive un texte bref après répétition","Lire à haute voix un court poème, un bref extrait de conte ou de théâtre "]
["Parler en continu","Lire à haute voix et de manière expressive un texte bref après répétition","Lire à haute voix un emploi du temps pour faire repérer des disciplines étudiées"]
["Parler en continu","Lire à haute voix et de manière expressive un texte bref après répétition","Lire les paroles d'un karaoké "]
["Parler en continu","Lire à haute voix et de manière expressive un texte bref après répétition","Lire un compte rendu médical"]
["Parler en continu","Lire à haute voix et de manière expressive un texte bref après répétition","Raconter une histoire courte exploitée en classe en s'aidant d'images "]
["Parler en continu","Lire à haute voix et de manière expressive un texte bref après répétition","desc_21"]
["Parler en continu","Lire à haute voix et de manière expressive un texte bref après répétition","desc_22"]
["Lire","Comprendre des textes courts et simples en s'appuyant sur des éléments connus (indications, informations)","Relever des noms, des mots familiers et des expressions élémentaires dans un texte "]
["Lire","Comprendre des textes courts et simples en s'appuyant sur des éléments connus (indications, informations)","Comprendre une lettre très simple, une carte postale ou une invitation simple et brève, un courriel "]
["Lire","Comprendre des textes courts et simples en s'appuyant sur des éléments connus (indications, informations)","Comprendre des mots et des phrases très simples dans des annonces, des affiches, des catalogues, des programmes de télévision "]
["Lire","Comprendre des textes courts et simples en s'appuyant sur des éléments connus (indications, informations)","Comprendre un questionnaire : date, nom, prénom, âge, domicile "]
["Lire","Comprendre des textes courts et simples en s'appuyant sur des éléments connus (indications, informations)","Comprendre une description de famille, de personne "]
["Lire","Comprendre des textes courts et simples en s'appuyant sur des éléments connus (indications, informations)","Comprendre un bulletin météorologique"]
["Lire","Comprendre des textes courts et simples en s'appuyant sur des éléments connus (indications, informations)","Relever des noms propres ou communs dans un texte et les relier à des personnes, lieux, événements"]
["Lire","Comprendre des textes courts et simples en s'appuyant sur des éléments connus (indications, informations)","Repérer des chiffres et des nombres et les associer à des horaires, dates, quantités, opérations"]
["Lire","Comprendre des textes courts et simples en s'appuyant sur des éléments connus (indications, informations)","Comprendre un simple problème de maths "]
["Lire","Comprendre des textes courts et simples en s'appuyant sur des éléments connus (indications, informations)","Comprendre les ingrédients essentiels d'une recette, d'un sandwich, d'un petit déjeuner"]
["Lire","Comprendre des textes courts et simples en s'appuyant sur des éléments connus (indications, informations)","Comprendre une légende, un plan de ville, des panneaux d'indication  pour retrouver des rues ou des bâtiments principaux (bibliothèque, piscine, musée...)"]
["Lire","Comprendre des textes courts et simples en s'appuyant sur des éléments connus (indications, informations)","Retrouver des mots connus dans une grille de mots cachés, fléchés ..."]
["Lire","Comprendre des textes courts et simples en s'appuyant sur des éléments connus (indications, informations)","Reconnaître des mots sur des emballages alimentaires"]
["Lire","Comprendre des textes courts et simples en s'appuyant sur des éléments connus (indications, informations)","Comprendre des consignes simples (relier, entourer, surligner, barrer, cocher)"]
["Lire","Comprendre des textes courts et simples en s'appuyant sur des éléments connus (indications, informations)","Comprendre les consignes dans une règle de jeu "]
["Lire","Comprendre des textes courts et simples en s'appuyant sur des éléments connus (indications, informations)","Comprendre les noms des sports "]
["Lire","Comprendre des textes courts et simples en s'appuyant sur des éléments connus (indications, informations)","Comprendre des phrases courtes sur un anniversaire"]
["Lire","Comprendre des textes courts et simples en s'appuyant sur des éléments connus (indications, informations)","Comprendre le texte d'une chanson"]
["Lire","Comprendre des textes courts et simples en s'appuyant sur des éléments connus (indications, informations)","Chercher et trouver un mot dans un dictionnaire"]
["Lire","Comprendre des textes courts et simples en s'appuyant sur des éléments connus (indications, informations)","Comprendre des phrases sur l'école"]
["Lire","Comprendre des textes courts et simples en s'appuyant sur des éléments connus (indications, informations)","Comprendre un emploi du temps"]
["Lire","Comprendre des textes courts et simples en s'appuyant sur des éléments connus (indications, informations)","desc_23"]
["Lire","Comprendre des textes courts et simples en s'appuyant sur des éléments connus (indications, informations)","desc_24"]
["Lire","Se faire une idée du contenu d'un texte informatif simple, accompagné éventuellement d'un document visuel ","Comprendre un menu, une recette, une liste de courses"]
["Lire","Se faire une idée du contenu d'un texte informatif simple, accompagné éventuellement d'un document visuel ","Comprendre une enquête, un tableau à double entrée"]
["Lire","Se faire une idée du contenu d'un texte informatif simple, accompagné éventuellement d'un document visuel ","Comprendre une carte, un plan, des panneaux"]
["Lire","Se faire une idée du contenu d'un texte informatif simple, accompagné éventuellement d'un document visuel ","Comprendre une description physique d'un animal, d'une personne"]
["Lire","Se faire une idée du contenu d'un texte informatif simple, accompagné éventuellement d'un document visuel ","Comprendre un bulletin météorologique"]
["Lire","Se faire une idée du contenu d'un texte informatif simple, accompagné éventuellement d'un document visuel ","Comprendre un programme de voyage, de séjour (réel ou virtuel)"]
["Lire","Se faire une idée du contenu d'un texte informatif simple, accompagné éventuellement d'un document visuel ","Comprendre des horaires, des tarifs sur une brochure, un site web"]
["Lire","Se faire une idée du contenu d'un texte informatif simple, accompagné éventuellement d'un document visuel ","Comprendre un mode d'emploi"]
["Lire","Se faire une idée du contenu d'un texte informatif simple, accompagné éventuellement d'un document visuel ","Cocher un choix de  petit déjeuner (continental ou English, d'un sandwich, d'une lunch box, d'un lunch, d'un dinner"]
["Lire","Se faire une idée du contenu d'un texte informatif simple, accompagné éventuellement d'un document visuel ","Catégoriser des mots selon le sens (couleurs, parties du corps, vêtements)"]
["Lire","Se faire une idée du contenu d'un texte informatif simple, accompagné éventuellement d'un document visuel ","Compléter une enquête de satisfaction "]
["Lire","Se faire une idée du contenu d'un texte informatif simple, accompagné éventuellement d'un document visuel ","Comprendre le sens global d'une histoire drôle, d'un album, d'un texte documentaire, d'un dialogue"]
["Lire","Se faire une idée du contenu d'un texte informatif simple, accompagné éventuellement d'un document visuel ","Comprendre les bulles d'une bande dessinée à l'aide des mots connus, des images"]
["Lire","Se faire une idée du contenu d'un texte informatif simple, accompagné éventuellement d'un document visuel ","Connaître les onomatopées"]
["Lire","Se faire une idée du contenu d'un texte informatif simple, accompagné éventuellement d'un document visuel ","Comprendre le texte  d'une comptine"]
["Lire","Se faire une idée du contenu d'un texte informatif simple, accompagné éventuellement d'un document visuel ","desc_25"]
["Lire","Se faire une idée du contenu d'un texte informatif simple, accompagné éventuellement d'un document visuel ","desc_26"]
["Réagir et dialoguer (interaction orale)","Communiquer, au besoin avec des pauses pour chercher ses mots","Parler du temps qu'il fait "]
["Réagir et dialoguer (interaction orale)","Communiquer, au besoin avec des pauses pour chercher ses mots","Dire : \" Merci, s'il vous plaît, excusez-moi \" "]
["Réagir et dialoguer (interaction orale)","Communiquer, au besoin avec des pauses pour chercher ses mots","Poser des questions sur des nombres, des quantités, le prix et l'heure et y répondre"]
["Réagir et dialoguer (interaction orale)","Communiquer, au besoin avec des pauses pour chercher ses mots","Exprimer ses goûts et réagir à l'expression des goûts d'autrui "]
["Réagir et dialoguer (interaction orale)","Communiquer, au besoin avec des pauses pour chercher ses mots","Exprimer son accord et son désaccord "]
["Réagir et dialoguer (interaction orale)","Communiquer, au besoin avec des pauses pour chercher ses mots","Parler du temps avec des expressions telles que : la semaine dernière, vendredi prochain, en Novembre, à 3 heures "]
["Réagir et dialoguer (interaction orale)","Communiquer, au besoin avec des pauses pour chercher ses mots","Demander son chemin et répéter les instructions pour vérifier qu'il a bien compris "]
["Réagir et dialoguer (interaction orale)","Communiquer, au besoin avec des pauses pour chercher ses mots","Répondre et poser des questions sur la localisation, les couleurs, les formes "]
["Réagir et dialoguer (interaction orale)","Communiquer, au besoin avec des pauses pour chercher ses mots","Se décrire et poser des questions sur la description d'autrui, ses vêtements"]
["Réagir et dialoguer (interaction orale)","Communiquer, au besoin avec des pauses pour chercher ses mots","Répondre et poser des questions sur les disciplines scolaires"]
["Réagir et dialoguer (interaction orale)","Communiquer, au besoin avec des pauses pour chercher ses mots","Dire son incompréhension ou son ignorance"]
["Réagir et dialoguer (interaction orale)","Communiquer, au besoin avec des pauses pour chercher ses mots","Demander de répéter, d'expliquer sans traduire"]
["Réagir et dialoguer (interaction orale)","Communiquer, au besoin avec des pauses pour chercher ses mots","Répondre et questionner sur ses vacances"]
["Réagir et dialoguer (interaction orale)","Communiquer, au besoin avec des pauses pour chercher ses mots","Etre capable de parler plus lentement, de paraphraser ou de mimer pour être compris"]
["Réagir et dialoguer (interaction orale)","Communiquer, au besoin avec des pauses pour chercher ses mots","Répondre et questionner pour jouer aux cartes"]
["Réagir et dialoguer (interaction orale)","Communiquer, au besoin avec des pauses pour chercher ses mots","Demander à son interlocuteur de parler moins vite, plus fort ..."]
["Réagir et dialoguer (interaction orale)","Communiquer, au besoin avec des pauses pour chercher ses mots","desc_27"]
["Réagir et dialoguer (interaction orale)","Communiquer, au besoin avec des pauses pour chercher ses mots","desc_28"]
["Réagir et dialoguer (interaction orale)","Se présenter, présenter quelqu'un, demander à quelqu'un de ses nouvelles en utilisant les formes de politesse les plus élémentaires, accueil et prise de congé","Saluer quelqu'un à plusieurs périodes dans la journée "]
["Réagir et dialoguer (interaction orale)","Se présenter, présenter quelqu'un, demander à quelqu'un de ses nouvelles en utilisant les formes de politesse les plus élémentaires, accueil et prise de congé","Demander des nouvelles de quelqu'un et y réagir "]
["Réagir et dialoguer (interaction orale)","Se présenter, présenter quelqu'un, demander à quelqu'un de ses nouvelles en utilisant les formes de politesse les plus élémentaires, accueil et prise de congé","Prendre congé "]
["Réagir et dialoguer (interaction orale)","Se présenter, présenter quelqu'un, demander à quelqu'un de ses nouvelles en utilisant les formes de politesse les plus élémentaires, accueil et prise de congé","Se présenter en répondant à des questions simples sur son identité "]
["Réagir et dialoguer (interaction orale)","Se présenter, présenter quelqu'un, demander à quelqu'un de ses nouvelles en utilisant les formes de politesse les plus élémentaires, accueil et prise de congé","Présenter quelqu'un et réagir de façon appropriée quand on lui présente quelqu'un "]
["Réagir et dialoguer (interaction orale)","Se présenter, présenter quelqu'un, demander à quelqu'un de ses nouvelles en utilisant les formes de politesse les plus élémentaires, accueil et prise de congé","Indiquer un itinéraire simple à quelqu'un, avec des supports appropriés (carte, plan, …)"]
["Réagir et dialoguer (interaction orale)","Se présenter, présenter quelqu'un, demander à quelqu'un de ses nouvelles en utilisant les formes de politesse les plus élémentaires, accueil et prise de congé","Remercier et répondre \" pas de quoi \""]
["Réagir et dialoguer (interaction orale)","Se présenter, présenter quelqu'un, demander à quelqu'un de ses nouvelles en utilisant les formes de politesse les plus élémentaires, accueil et prise de congé","Demander poliment une permission"]
["Réagir et dialoguer (interaction orale)","Se présenter, présenter quelqu'un, demander à quelqu'un de ses nouvelles en utilisant les formes de politesse les plus élémentaires, accueil et prise de congé","Présenter des excuses"]
["Réagir et dialoguer (interaction orale)","Se présenter, présenter quelqu'un, demander à quelqu'un de ses nouvelles en utilisant les formes de politesse les plus élémentaires, accueil et prise de congé","Féliciter quelqu'un"]
["Réagir et dialoguer (interaction orale)","Se présenter, présenter quelqu'un, demander à quelqu'un de ses nouvelles en utilisant les formes de politesse les plus élémentaires, accueil et prise de congé","Souhaiter bon anniversaire, une fête..."]
["Réagir et dialoguer (interaction orale)","Se présenter, présenter quelqu'un, demander à quelqu'un de ses nouvelles en utilisant les formes de politesse les plus élémentaires, accueil et prise de congé","desc_29"]
["Réagir et dialoguer (interaction orale)","Se présenter, présenter quelqu'un, demander à quelqu'un de ses nouvelles en utilisant les formes de politesse les plus élémentaires, accueil et prise de congé","desc_30"]
["Réagir et dialoguer (interaction orale)","Répondre à des questions et en poser (sujets familiers ou besoins immédiats)","Demander des objets à autrui et lui en donner "]
["Réagir et dialoguer (interaction orale)","Répondre à des questions et en poser (sujets familiers ou besoins immédiats)","Réagir à des questions simples qui lui sont adressées "]
["Réagir et dialoguer (interaction orale)","Répondre à des questions et en poser (sujets familiers ou besoins immédiats)","Proposer quelque chose et réagir à une proposition "]
["Réagir et dialoguer (interaction orale)","Répondre à des questions et en poser (sujets familiers ou besoins immédiats)","Réagir à des instructions simples et brèves, énoncées lentement"]
["Réagir et dialoguer (interaction orale)","Répondre à des questions et en poser (sujets familiers ou besoins immédiats)","Demander à son interlocuteur de répéter ses propos, en s'aidant éventuellement de gestes ou de mimiques"]
["Réagir et dialoguer (interaction orale)","Répondre à des questions et en poser (sujets familiers ou besoins immédiats)","Répondre à des questions concernant ses nom, prénom, âge, adresse, nationalité, famille, animaux, numéro de téléphone, humeur/sentiment, date d'anniversaire..."]
["Réagir et dialoguer (interaction orale)","Répondre à des questions et en poser (sujets familiers ou besoins immédiats)","Poser des questions concernant l'identité et l'entourage d'un interlocuteur"]
["Réagir et dialoguer (interaction orale)","Répondre à des questions et en poser (sujets familiers ou besoins immédiats)","Demander et donner des informations sur une tierce personne"]
["Réagir et dialoguer (interaction orale)","Répondre à des questions et en poser (sujets familiers ou besoins immédiats)","Répondre et questionner sur les descriptions et activités animales"]
["Réagir et dialoguer (interaction orale)","Répondre à des questions et en poser (sujets familiers ou besoins immédiats)","Répondre et poser des questions sur les pièces d'une habitation"]
["Réagir et dialoguer (interaction orale)","Répondre à des questions et en poser (sujets familiers ou besoins immédiats)","Répondre et poser des questions sur ce que l'on prend ou pas aux trois repas"]
["Réagir et dialoguer (interaction orale)","Répondre à des questions et en poser (sujets familiers ou besoins immédiats)","Proposer et refuser des aliments"]
["Réagir et dialoguer (interaction orale)","Répondre à des questions et en poser (sujets familiers ou besoins immédiats)","Exprimer sa faim, sa soif"]
["Réagir et dialoguer (interaction orale)","Répondre à des questions et en poser (sujets familiers ou besoins immédiats)","Demander un objet à quelqu'un"]
["Réagir et dialoguer (interaction orale)","Répondre à des questions et en poser (sujets familiers ou besoins immédiats)","Dire et demander à son interlocuteur ce qu'il aime ou pas : manger, boire, faire"]
["Réagir et dialoguer (interaction orale)","Répondre à des questions et en poser (sujets familiers ou besoins immédiats)","Demander et donner une date, heure, lieu de rendez-vous"]
["Réagir et dialoguer (interaction orale)","Répondre à des questions et en poser (sujets familiers ou besoins immédiats)","Indiquer et demander le temps qu'il fait "]
["Réagir et dialoguer (interaction orale)","Répondre à des questions et en poser (sujets familiers ou besoins immédiats)","Exprimer et comprendre une envie, un besoin"]
["Réagir et dialoguer (interaction orale)","Répondre à des questions et en poser (sujets familiers ou besoins immédiats)","Indiquer et demander une quantité "]
["Réagir et dialoguer (interaction orale)","Répondre à des questions et en poser (sujets familiers ou besoins immédiats)","Questionner et répondre à la description d'un paysage"]
["Réagir et dialoguer (interaction orale)","Répondre à des questions et en poser (sujets familiers ou besoins immédiats)","Interroger et répondre au sujet des pratiques sportives"]
["Réagir et dialoguer (interaction orale)","Répondre à des questions et en poser (sujets familiers ou besoins immédiats)","desc_31"]
["Réagir et dialoguer (interaction orale)","Répondre à des questions et en poser (sujets familiers ou besoins immédiats)","desc_32"]
["Réagir et dialoguer (interaction orale)","Epeler des mots familiers","En situation de communication dans le cadre d'un jeu de rôle par exemple, épeler son nom, son prénom, sa nationalité, son adresse, numéro de téléphone…"]
["Réagir et dialoguer (interaction orale)","Epeler des mots familiers","Demander d'épeler et comprendre la réponse"]
["Réagir et dialoguer (interaction orale)","Epeler des mots familiers","desc_33"]
["Réagir et dialoguer (interaction orale)","Epeler des mots familiers","desc_34"]

{"sheet":".langue","index":3,"n_rows":4,"n_cols":1,"rows_kept":4,"cut":false,"hidden":true,"merged":[]}
["Anglais"]
["Allemand"]
["Espagnol"]
["Arabe"]

{"sheet":"descripteurs","index":4,"n_rows":35,"n_cols":3,"rows_kept":35,"cut":false,"hidden":true,"merged":[]}
["Domaine","Item","Descripteur"]
["Ecrire","Copier des mots isolés et des textes courts"]
["Ecrire","Copier des mots isolés et des textes courts"]
["Ecrire","Ecrire un message électronique simple ou une courte carte postale en référence à des modèles "]
["Ecrire","Ecrire un message électronique simple ou une courte carte postale en référence à des modèles "]
["Ecrire","Renseigner un questionnaire"]
["Ecrire","Renseigner un questionnaire"]
["Ecrire","Produire de manière autonome quelques phrases"]
["Ecrire","Produire de manière autonome quelques phrases"]
["Ecrire","Ecrire sous la dictée des expressions connues"]
["Ecrire","Ecrire sous la dictée des expressions connues"]
["Comprendre à l'oral ","Comprendre les consignes de classe."]
["Comprendre à l'oral ","Comprendre les consignes de classe."]
["Comprendre à l'oral ","Comprendre des mots familiers et des expressions très courantes"]
["Comprendre à l'oral ","Comprendre des mots familiers et des expressions très courantes"]
["Comprendre à l'oral ","Suivre des instructions courtes et simples"]
["Comprendre à l'oral ","Suivre des instructions courtes et simples"]
["Parler en continu","Reproduire un modèle oral"]
["Parler en continu","Reproduire un modèle oral"]
["Parler en continu","Utiliser des expressions et des phrases proches des modèles rencontrés lors des apprentissages"]
["Parler en continu","Utiliser des expressions et des phrases proches des modèles rencontrés lors des apprentissages"]
["Parler en continu","Lire à haute voix et de manière expressive un texte bref après répétition"]
["Parler en continu","Lire à haute voix et de manière expressive un texte bref après répétition"]
["Lire","Comprendre des textes courts et simples en s'appuyant sur des éléments connus (indications, informations)"]
["Lire","Comprendre des textes courts et simples en s'appuyant sur des éléments connus (indications, informations)"]
["Lire","Se faire une idée du contenu d'un texte informatif simple, accompagné éventuellement d'un document visuel "]
["Lire","Se faire une idée du contenu d'un texte informatif simple, accompagné éventuellement d'un document visuel "]
["Réagir et dialoguer (interaction orale)","Communiquer, au besoin avec des pauses pour chercher ses mots"]
["Réagir et dialoguer (interaction orale)","Communiquer, au besoin avec des pauses pour chercher ses mots"]
["Réagir et dialoguer (interaction orale)","Se présenter, présenter quelqu'un, demander à quelqu'un de ses nouvelles en utilisant les formes de politesse les plus élémentaires, accueil et prise de congé"]
["Réagir et dialoguer (interaction orale)","Se présenter, présenter quelqu'un, demander à quelqu'un de ses nouvelles en utilisant les formes de politesse les plus élémentaires, accueil et prise de congé"]
["Réagir et dialoguer (interaction orale)","Répondre à des questions et en poser (sujets familiers ou besoins immédiats)"]
["Réagir et dialoguer (interaction orale)","Répondre à des questions et en poser (sujets familiers ou besoins immédiats)"]
["Réagir et dialoguer (interaction orale)","Epeler des mots familiers"]
["Réagir et dialoguer (interaction orale)","Epeler des mots familiers"]

{"sheet":"activites","index":5,"n_rows":349,"n_cols":4,"rows_kept":349,"cut":false,"hidden":false,"merged":[]}
["Domaine","Item","Descripteur","Tâches communicatives"]
[{"$f":"IF('.descripteurs'!$A2='.descripteurs'!A1,\"\",'.descripteurs'!$A2)","v":"Ecrire"},{"$f":"IF('.descripteurs'!$B2='.descripteurs'!B1,\"\",'.descripteurs'!$B2)","v":"Copier des mots isolés et des textes courts"},{"$f":"'.descripteurs'!$C2","v":"Copier des textes courts imprimés (des listes : cadeaux, ingrédients, de courses, de menu, de lunch box, de sandwich... un court poème par exemple) "},"E1-1 : Préparation d’un événement festif à l’école : liste d’ingrédients, liste de courses,  ou  saynète : commande au père Noel, fabrication d’un livre sur les sentiments, les petits riens …"]
[{"$f":"IF('.descripteurs'!$A3='.descripteurs'!A2,\"\",'.descripteurs'!$A3)","v":""},{"$f":"IF('.descripteurs'!$B3='.descripteurs'!B2,\"\",'.descripteurs'!$B3)","v":""},{"$f":"'.descripteurs'!$C3","v":"Recopier des mots à partir d'un modèle (livre, affiche, tableau...)"},"E1-2 : Elaboration d’une exposition, d’un carnet de lectures (compilation  de morceaux choisis), d’un diaporama, d’une carte mentale."]
[{"$f":"IF('.descripteurs'!$A4='.descripteurs'!A3,\"\",'.descripteurs'!$A4)","v":""},{"$f":"IF('.descripteurs'!$B4='.descripteurs'!B3,\"\",'.descripteurs'!$B4)","v":""},{"$f":"'.descripteurs'!$C4","v":"Compléter des grilles de mots (fléchés, codés, cachés, croisés...)"},"E1-3 : Fabriquer des grilles et se les envoyer entre classes ou correspondants."]
[{"$f":"IF('.descripteurs'!$A5='.descripteurs'!A4,\"\",'.descripteurs'!$A5)","v":""},{"$f":"IF('.descripteurs'!$B5='.descripteurs'!B4,\"\",'.descripteurs'!$B5)","v":""},{"$f":"'.descripteurs'!$C5","v":"Compléter des phrases à trous à partir d'une liste de mots en désordre"},"E1-4 : représente une tâche intermédiaire, pour acquérir le lexique qui permettra de réaliser E1-1 par exemple."]
[{"$f":"IF('.descripteurs'!$A6='.descripteurs'!A5,\"\",'.descripteurs'!$A6)","v":""},{"$f":"IF('.descripteurs'!$B6='.descripteurs'!B5,\"\",'.descripteurs'!$B6)","v":""},{"$f":"'.descripteurs'!$C6","v":"Compléter des phrases qui permettent de se décrire à l'aide d'une liste de mots en désordre"},"E1-5 : Dans le cadre d’une lettre aux correspondants,  d’une exposition , pour se présenter (préférable à l’envoi d’une photo)."]
[{"$f":"IF('.descripteurs'!$A7='.descripteurs'!A6,\"\",'.descripteurs'!$A7)","v":""},{"$f":"IF('.descripteurs'!$B7='.descripteurs'!B6,\"\",'.descripteurs'!$B7)","v":""},{"$f":"'.descripteurs'!$C7","v":"Copier des phrases à remettre dans l'ordre d'une histoire"},"E1- 6 : pour préparer le détournement d’un album avec didapage."]
[{"$f":"IF('.descripteurs'!$A8='.descripteurs'!A7,\"\",'.descripteurs'!$A8)","v":""},{"$f":"IF('.descripteurs'!$B8='.descripteurs'!B7,\"\",'.descripteurs'!$B8)","v":""},{"$f":"'.descripteurs'!$C8","v":"Compléter une chanson connue avec une liste de mots manquants "},"E1-7 : quizz interclasses ou inter-écoles sur la culture anglophone ou  saynète (jeu télévisé)"]
[{"$f":"IF('.descripteurs'!$A9='.descripteurs'!A8,\"\",'.descripteurs'!$A9)","v":""},{"$f":"IF('.descripteurs'!$B9='.descripteurs'!B8,\"\",'.descripteurs'!$B9)","v":""},{"$f":"'.descripteurs'!$C9","v":"Ecrire une légende ou un titre à une image, en utilisant les outils de la classe"},"E1-8 : S’échanger des images à commenter avec les correspondants."]
[{"$f":"IF('.descripteurs'!$A10='.descripteurs'!A9,\"\",'.descripteurs'!$A10)","v":""},{"$f":"IF('.descripteurs'!$B10='.descripteurs'!B9,\"\",'.descripteurs'!$B10)","v":""},{"$f":"'.descripteurs'!$C10","v":"Transcrire sur l'ordinateur une phrase écrite au tableau par l'enseignant"},"E1-9 : Pour confectionner un diaporama."]
[{"$f":"IF('.descripteurs'!$A11='.descripteurs'!A10,\"\",'.descripteurs'!$A11)","v":""},{"$f":"IF('.descripteurs'!$B11='.descripteurs'!B10,\"\",'.descripteurs'!$B11)","v":""},{"$f":"'.descripteurs'!$C11","v":"En se référant à un modèle, écrire des phrases courtes sur un pays de la langue étudiée"},"E1-10 : Pour une exposition ou un livre type : « Familles du monde entier » de Uwe Ommer."]
[{"$f":"IF('.descripteurs'!$A12='.descripteurs'!A11,\"\",'.descripteurs'!$A12)","v":""},{"$f":"IF('.descripteurs'!$B12='.descripteurs'!B11,\"\",'.descripteurs'!$B12)","v":""},{"$f":"'.descripteurs'!$C12","v":"A l'aide d'indications touristiques, écrire un texte court sur sa visite dans une capitale de la langue étudiée"},"E1-11 : Suite à la lecture d’un livre ou la visite virtuelle d’une capitale ou ville découverte, pour une exposition ou une saynète (à l’office de tourisme)."]
[{"$f":"IF('.descripteurs'!$A13='.descripteurs'!A12,\"\",'.descripteurs'!$A13)","v":""},{"$f":"IF('.descripteurs'!$B13='.descripteurs'!B12,\"\",'.descripteurs'!$B13)","v":""},{"$f":"'.descripteurs'!$C13","v":"Recopier les titres de chansons apprises"},"E1-12 : Pour procéder à une auto-évaluation dans son portfolio des langues, ou écrire à son correspondant."]
[{"$f":"IF('.descripteurs'!$A14='.descripteurs'!A13,\"\",'.descripteurs'!$A14)","v":""},{"$f":"IF('.descripteurs'!$B14='.descripteurs'!B13,\"\",'.descripteurs'!$B14)","v":""},{"$f":"'.descripteurs'!$C14","v":"Reconstituer par étiquettes une comptine, poème appris "},"E1-13 : dans le cadre d’un jeu intra-classe entre équipes"]
[{"$f":"IF('.descripteurs'!$A15='.descripteurs'!A14,\"\",'.descripteurs'!$A15)","v":""},{"$f":"IF('.descripteurs'!$B15='.descripteurs'!B14,\"\",'.descripteurs'!$B15)","v":""},{"$f":"'.descripteurs'!$C15","v":"Copier des mots pour compléter des descriptions"},"E1-14 : communiquer par écrit autour de personnages de contes ou de romans connus (exposition , correspondance, diaporama, note aux familles, carnet de lecture, confection d’un livre personnel, de classe, d’école, en lien avec la littérature française…)"]
[{"$f":"IF('.descripteurs'!$A16='.descripteurs'!A15,\"\",'.descripteurs'!$A16)","v":""},{"$f":"IF('.descripteurs'!$B16='.descripteurs'!B15,\"\",'.descripteurs'!$B16)","v":""},{"$f":"'.descripteurs'!$C16","v":"Copier les nombres (prix, quantité, opérations, dans une comptine, âge, "},"E1-15 : saynètes : sur le marché, leçon de maths, commande fictive sur un site de vente…"]
[{"$f":"IF('.descripteurs'!$A17='.descripteurs'!A16,\"\",'.descripteurs'!$A17)","v":""},{"$f":"IF('.descripteurs'!$B17='.descripteurs'!B16,\"\",'.descripteurs'!$B17)","v":""},{"$f":"'.descripteurs'!$C17","v":"Remettre des mots dans l'ordre pour écrire une phrase simple"},"E1-16 : représente une tâche intermédiaire pour  acquérir une structure langagière à l’écrit pour aboutir à la réalisation d’une tâche finale, E1-11 par ex."]
[{"$f":"IF('.descripteurs'!$A18='.descripteurs'!A17,\"\",'.descripteurs'!$A18)","v":""},{"$f":"IF('.descripteurs'!$B18='.descripteurs'!B17,\"\",'.descripteurs'!$B18)","v":""},{"$f":"'.descripteurs'!$C18","v":"Ecrire des mots et expressions relatifs à l'heure"},"E1-17 : saynète : dialogue au téléphone : prendre un rdv chez le médecin, ou autre profession…"]
[{"$f":"IF('.descripteurs'!$A19='.descripteurs'!A18,\"\",'.descripteurs'!$A19)","v":""},{"$f":"IF('.descripteurs'!$B19='.descripteurs'!B18,\"\",'.descripteurs'!$B19)","v":""},{"$f":"'.descripteurs'!$C19","v":"Compléter des phrases courtes sur un anniversaire"},"E1-18 : préparer une carte d’anniversaire à l’intention du correspondant, d’un élève, d’un personnage fictif ou de roman  (pour une compilation humoristique ?)"]
[{"$f":"IF('.descripteurs'!$A20='.descripteurs'!A19,\"\",'.descripteurs'!$A20)","v":""},{"$f":"IF('.descripteurs'!$B20='.descripteurs'!B19,\"\",'.descripteurs'!$B20)","v":""},{"$f":"'.descripteurs'!$C20","v":"desc_1"}]
[{"$f":"IF('.descripteurs'!$A21='.descripteurs'!A20,\"\",'.descripteurs'!$A21)","v":""},{"$f":"IF('.descripteurs'!$B21='.descripteurs'!B20,\"\",'.descripteurs'!$B21)","v":""},{"$f":"'.descripteurs'!$C21","v":"desc_2"}]
[{"$f":"IF('.descripteurs'!$A22='.descripteurs'!A21,\"\",'.descripteurs'!$A22)","v":""},{"$f":"IF('.descripteurs'!$B22='.descripteurs'!B21,\"\",'.descripteurs'!$B22)","v":"Ecrire un message électronique simple ou une courte carte postale en référence à des modèles "},{"$f":"'.descripteurs'!$C22","v":"Ecrire une courte carte de vœux, d'invitation, de remerciements, de salutations..., "},"E2-1 : A l’intention des familles pour un événement festif à l’école, d’un locuteur natif, des correspondants…."]
[{"$f":"IF('.descripteurs'!$A23='.descripteurs'!A22,\"\",'.descripteurs'!$A23)","v":""},{"$f":"IF('.descripteurs'!$B23='.descripteurs'!B22,\"\",'.descripteurs'!$B23)","v":""},{"$f":"'.descripteurs'!$C23","v":"Répondre à une invitation"},"E2-2 : pour une rencontre interclasses, inter-écoles."]
[{"$f":"IF('.descripteurs'!$A24='.descripteurs'!A23,\"\",'.descripteurs'!$A24)","v":""},{"$f":"IF('.descripteurs'!$B24='.descripteurs'!B23,\"\",'.descripteurs'!$B24)","v":""},{"$f":"'.descripteurs'!$C24","v":"Rédiger une courte carte postale (dire où l'on est, comment on va et signer)"},"E2-3 : à l’intention des correspondants, pour un carnet de voyages collectif imaginaire (ou réel)."]
[{"$f":"IF('.descripteurs'!$A25='.descripteurs'!A24,\"\",'.descripteurs'!$A25)","v":""},{"$f":"IF('.descripteurs'!$B25='.descripteurs'!B24,\"\",'.descripteurs'!$B25)","v":""},{"$f":"'.descripteurs'!$C25","v":"Donner de ses nouvelles par courriel"},"E2-4 : aux correspondants, à son enseignant, à un locuteur natif parti , à un globe-trotter…"]
[{"$f":"IF('.descripteurs'!$A26='.descripteurs'!A25,\"\",'.descripteurs'!$A26)","v":""},{"$f":"IF('.descripteurs'!$B26='.descripteurs'!B25,\"\",'.descripteurs'!$B26)","v":""},{"$f":"'.descripteurs'!$C26","v":"Poser des questions par courriel"},"E2-5 : aux correspondants, à un locuteur natif parti, à un globe trotter locuteur, à son enseignant…"]
[{"$f":"IF('.descripteurs'!$A27='.descripteurs'!A26,\"\",'.descripteurs'!$A27)","v":""},{"$f":"IF('.descripteurs'!$B27='.descripteurs'!B26,\"\",'.descripteurs'!$B27)","v":""},{"$f":"'.descripteurs'!$C27","v":"Ecrire un petit dialogue en complétant des bulles de bande dessinée ou d'après des images séquentielles"},"E2-6 : écrit destiné à une parution collective ou une compilation personnelle à partir d’une bande dessinée étrangère."]
[{"$f":"IF('.descripteurs'!$A28='.descripteurs'!A27,\"\",'.descripteurs'!$A28)","v":""},{"$f":"IF('.descripteurs'!$B28='.descripteurs'!B27,\"\",'.descripteurs'!$B28)","v":""},{"$f":"'.descripteurs'!$C28","v":"Compléter un dialogue par des mots ou des phrases qui manquent"},"E2-7 : il s’agit d’une tâche intermédiaire pour  composer une future saynète."]
[{"$f":"IF('.descripteurs'!$A29='.descripteurs'!A28,\"\",'.descripteurs'!$A29)","v":""},{"$f":"IF('.descripteurs'!$B29='.descripteurs'!B28,\"\",'.descripteurs'!$B29)","v":""},{"$f":"'.descripteurs'!$C29","v":"Compléter les salutations différentes selon le moment de la journée"},"E2-8 : dans le cadre d’une description des routines quotidiennes et culturelles (ethnographie du quotidien)"]
[{"$f":"IF('.descripteurs'!$A30='.descripteurs'!A29,\"\",'.descripteurs'!$A30)","v":""},{"$f":"IF('.descripteurs'!$B30='.descripteurs'!B29,\"\",'.descripteurs'!$B30)","v":""},{"$f":"'.descripteurs'!$C30","v":"Compléter deux phrases courtes pour décrire ce que l'on fait à Noël"},"E2-9 : pour un échange culturel avec les correspondants"]
[{"$f":"IF('.descripteurs'!$A31='.descripteurs'!A30,\"\",'.descripteurs'!$A31)","v":""},{"$f":"IF('.descripteurs'!$B31='.descripteurs'!B30,\"\",'.descripteurs'!$B31)","v":""},{"$f":"'.descripteurs'!$C31","v":"desc_3"}]
[{"$f":"IF('.descripteurs'!$A32='.descripteurs'!A31,\"\",'.descripteurs'!$A32)","v":""},{"$f":"IF('.descripteurs'!$B32='.descripteurs'!B31,\"\",'.descripteurs'!$B32)","v":""},{"$f":"'.descripteurs'!$C32","v":"desc_4"}]
[{"$f":"IF('.descripteurs'!$A33='.descripteurs'!A32,\"\",'.descripteurs'!$A33)","v":""},{"$f":"IF('.descripteurs'!$B33='.descripteurs'!B32,\"\",'.descripteurs'!$B33)","v":"Renseigner un questionnaire"},{"$f":"'.descripteurs'!$C33","v":"Remplir une fiche d'information sur soi : nom, prénom, âge, date et lieu de naissance,  nationalité, sexe, adresse, frères et soeurs, animaux, goûts "},"E3-1 : Saynète : inscription dans une nouvelle école fictive et bizarre."]
[{"$f":"IF('.descripteurs'!$A34='.descripteurs'!A33,\"\",'.descripteurs'!$A34)","v":""},{"$f":"IF('.descripteurs'!$B34='.descripteurs'!B33,\"\",'.descripteurs'!$B34)","v":""},{"$f":"'.descripteurs'!$C34","v":"Remplir une fiche d'hôtel en indiquant la date d'arrivée, ses noms, prénoms, nationalité, date de départ prévue, "},"E3-2 : saynète : arrivée d’un personnage de roman ou de conte : les lecteurs doivent deviner son identité."]
[{"$f":"IF('.descripteurs'!$A35='.descripteurs'!A34,\"\",'.descripteurs'!$A35)","v":""},{"$f":"IF('.descripteurs'!$B35='.descripteurs'!B34,\"\",'.descripteurs'!$B35)","v":""},{"$f":"'.descripteurs'!$C35","v":"Remplir un tableau lors d'une enquête avec des mots appropriés (les médias des élèves par tranche d'âge)"},"E3-3 : sur les habitudes télévisées,  sur le héros préféré, sur la nourriture …(choisir un thème commun avec les correspondants)."]
[{"$f":"IF('.descripteurs'!$A36='.descripteurs'!A35,\"\",'.descripteurs'!$A36)","v":""},{"$f":"IF('.descripteurs'!$B36='.descripteurs'!B35,\"\",'.descripteurs'!$B36)","v":""},{"$f":"'.descripteurs'!$C36","v":"Compléter un emploi du temps avec les disciplines adéquates"},"E3-4 : écrit fictif dans une nouvelle école bizarre ou écrit réel pour les correspondants."]
[{"$f":"IF('.descripteurs'!$A37='.descripteurs'!A36,\"\",'.descripteurs'!$A37)","v":""},{"$f":"IF('.descripteurs'!$B37='.descripteurs'!B36,\"\",'.descripteurs'!$B37)","v":""},{"$f":"'.descripteurs'!$C37","v":"Compléter une enquête de recensement en décrivant sa famille (selon un modèle donné)"},"E3-5 : dans le cadre d’un recensement fictif  et bizarre ou pour répondre aux correspondants."]
[{"$f":"IF('.descripteurs'!$A38='.descripteurs'!A37,\"\",'.descripteurs'!$A38)","v":""},{"$f":"IF('.descripteurs'!$B38='.descripteurs'!B37,\"\",'.descripteurs'!$B38)","v":""},{"$f":"'.descripteurs'!$C38","v":"Compléter une fiche publicitaire immobilière (décrire son habitation)"},"E3-6 : pour une agence immobilière fictive ou pour répondre aux correspondants (enquête ethnographique)"]
[{"$f":"IF('.descripteurs'!$A39='.descripteurs'!A38,\"\",'.descripteurs'!$A39)","v":""},{"$f":"IF('.descripteurs'!$B39='.descripteurs'!B38,\"\",'.descripteurs'!$B39)","v":""},{"$f":"'.descripteurs'!$C39","v":"Compléter une fiche de renseignements sur ses habitudes alimentaires"},"E3-7 : pour répondre à une enquête aérospatiale, ou une enquête ethnographique des correspondants."]
[{"$f":"IF('.descripteurs'!$A40='.descripteurs'!A39,\"\",'.descripteurs'!$A40)","v":""},{"$f":"IF('.descripteurs'!$B40='.descripteurs'!B39,\"\",'.descripteurs'!$B40)","v":""},{"$f":"'.descripteurs'!$C40","v":"Compléter une fiche de renseignements sur ses habitudes sportives"},"E3-8 : à renseigner pour un médecin (saynète) ou pour les correspondants."]
[{"$f":"IF('.descripteurs'!$A41='.descripteurs'!A40,\"\",'.descripteurs'!$A41)","v":""},{"$f":"IF('.descripteurs'!$B41='.descripteurs'!B40,\"\",'.descripteurs'!$B41)","v":""},{"$f":"'.descripteurs'!$C41","v":"Compléter une enquête liée à ses habitudes horaires"},"E3-9 : en imaginant la vie d’un héros ou personnage ou réellement pour les correspondants."]
[{"$f":"IF('.descripteurs'!$A42='.descripteurs'!A41,\"\",'.descripteurs'!$A42)","v":""},{"$f":"IF('.descripteurs'!$B42='.descripteurs'!B41,\"\",'.descripteurs'!$B42)","v":""},{"$f":"'.descripteurs'!$C42","v":"Compléter un tableau relatif aux catégories animales"},"E3-10 : pour commenter un bestiaire illustré par des élèves de cycle 1 ou 2, pour un projet transversal aux sciences (animaux et habitat), pour le planning d’un vétérinaire…"]
[{"$f":"IF('.descripteurs'!$A43='.descripteurs'!A42,\"\",'.descripteurs'!$A43)","v":""},{"$f":"IF('.descripteurs'!$B43='.descripteurs'!B42,\"\",'.descripteurs'!$B43)","v":""},{"$f":"'.descripteurs'!$C43","v":"Catégoriser dans un tableau des personnages d'histoires à partir de leurs qualités physiques ou morales"},"E3-11 : pour une exposition littéraire, culturelle sur les contes, pour un carnet personnel de lectures."]
[{"$f":"IF('.descripteurs'!$A44='.descripteurs'!A43,\"\",'.descripteurs'!$A44)","v":""},{"$f":"IF('.descripteurs'!$B44='.descripteurs'!B43,\"\",'.descripteurs'!$B44)","v":""},{"$f":"'.descripteurs'!$C44","v":"desc_5"}]
[{"$f":"IF('.descripteurs'!$A45='.descripteurs'!A44,\"\",'.descripteurs'!$A45)","v":""},{"$f":"IF('.descripteurs'!$B45='.descripteurs'!B44,\"\",'.descripteurs'!$B45)","v":""},{"$f":"'.descripteurs'!$C45","v":"desc_6"}]
[{"$f":"IF('.descripteurs'!$A46='.descripteurs'!A45,\"\",'.descripteurs'!$A46)","v":""},{"$f":"IF('.descripteurs'!$B46='.descripteurs'!B45,\"\",'.descripteurs'!$B46)","v":"Produire de manière autonome quelques phrases"},{"$f":"'.descripteurs'!$C46","v":"Ecrire des énoncés simples et brefs sur soi-même "},"E4-1 : pour la préface du carnet de lectures, pour un écrit aux correspondants, à un locuteur natif invité."]
[{"$f":"IF('.descripteurs'!$A47='.descripteurs'!A46,\"\",'.descripteurs'!$A47)","v":""},{"$f":"IF('.descripteurs'!$B47='.descripteurs'!B46,\"\",'.descripteurs'!$B47)","v":""},{"$f":"'.descripteurs'!$C47","v":"Ecrire des énoncés simples sur son environnement familier"},"E4-2 : à destination du correspondant, ou fictivement pour un album d’élèves de la classe."]
[{"$f":"IF('.descripteurs'!$A48='.descripteurs'!A47,\"\",'.descripteurs'!$A48)","v":""},{"$f":"IF('.descripteurs'!$B48='.descripteurs'!B47,\"\",'.descripteurs'!$B48)","v":""},{"$f":"'.descripteurs'!$C48","v":"Ecrire de façon simple sur des personnages imaginaires"},"E4-3 : pour une exposition relative aux albums de jeunesse découverts en littérature française, pour présenter un film."]
[{"$f":"IF('.descripteurs'!$A49='.descripteurs'!A48,\"\",'.descripteurs'!$A49)","v":""},{"$f":"IF('.descripteurs'!$B49='.descripteurs'!B48,\"\",'.descripteurs'!$B49)","v":""},{"$f":"'.descripteurs'!$C49","v":"Ecrire son problème de maths d'après un modèle"},"E4-4 : saynète d’une leçon à jouer (et à filmer ?) dans la classe."]
[{"$f":"IF('.descripteurs'!$A50='.descripteurs'!A49,\"\",'.descripteurs'!$A50)","v":""},{"$f":"IF('.descripteurs'!$B50='.descripteurs'!B49,\"\",'.descripteurs'!$B50)","v":""},{"$f":"'.descripteurs'!$C50","v":"Reproduire une comptine connue en modifiant le vocabulaire (en respectant le nombre de syllabes) one banana, two banana …"},"E4-5 : pour l’envoyer aux correspondants dans un quizz, pour en faire une compilation de classe à base phonologique, ou un détournement humoristique , en copie à la médiathèque de l’école."]
[{"$f":"IF('.descripteurs'!$A51='.descripteurs'!A50,\"\",'.descripteurs'!$A51)","v":""},{"$f":"IF('.descripteurs'!$B51='.descripteurs'!B50,\"\",'.descripteurs'!$B51)","v":""},{"$f":"'.descripteurs'!$C51","v":"Produire une phrase sur ses habitudes sportives"},"E4-6 : réelle ou fictive pour un press book."]
[{"$f":"IF('.descripteurs'!$A52='.descripteurs'!A51,\"\",'.descripteurs'!$A52)","v":""},{"$f":"IF('.descripteurs'!$B52='.descripteurs'!B51,\"\",'.descripteurs'!$B52)","v":""},{"$f":"'.descripteurs'!$C52","v":"Ecrire les heures désignées"},"E4-7 : en lien avec la description des activités quotidiennes."]
[{"$f":"IF('.descripteurs'!$A53='.descripteurs'!A52,\"\",'.descripteurs'!$A53)","v":""},{"$f":"IF('.descripteurs'!$B53='.descripteurs'!B52,\"\",'.descripteurs'!$B53)","v":""},{"$f":"'.descripteurs'!$C53","v":"Ecrire sa date d'anniversaire"},"E4-8 : sur la préface de son press book, aux correspondants, sur un panneau exposé"]
[{"$f":"IF('.descripteurs'!$A54='.descripteurs'!A53,\"\",'.descripteurs'!$A54)","v":""},{"$f":"IF('.descripteurs'!$B54='.descripteurs'!B53,\"\",'.descripteurs'!$B54)","v":""},{"$f":"'.descripteurs'!$C54","v":"Produire des phrases courtes sur les animaux"},"E4-9 : pour décrire son animal préféré aux correspondants, pour légender un bestiaire illustré par des plus petits, pour le compte rendu d’un vétérinaire."]
[{"$f":"IF('.descripteurs'!$A55='.descripteurs'!A54,\"\",'.descripteurs'!$A55)","v":""},{"$f":"IF('.descripteurs'!$B55='.descripteurs'!B54,\"\",'.descripteurs'!$B55)","v":""},{"$f":"'.descripteurs'!$C55","v":"Produire une devinette amusante (une question et une réponse) sur les aptitudes des animaux"},"E4-10 : Pour un quizz lors des rituels, chaque élève prépare une fiche que l’enseignant (ou un autre élève lira)."]
[{"$f":"IF('.descripteurs'!$A56='.descripteurs'!A55,\"\",'.descripteurs'!$A56)","v":""},{"$f":"IF('.descripteurs'!$B56='.descripteurs'!B55,\"\",'.descripteurs'!$B56)","v":""},{"$f":"'.descripteurs'!$C56","v":"Produire une phrase relatant si l'on joue d'un instrument ou pas"},"E4-11 : lettre aux correspondants ou press book ou album des élèves présenté à un locuteur."]
[{"$f":"IF('.descripteurs'!$A57='.descripteurs'!A56,\"\",'.descripteurs'!$A57)","v":""},{"$f":"IF('.descripteurs'!$B57='.descripteurs'!B56,\"\",'.descripteurs'!$B57)","v":""},{"$f":"'.descripteurs'!$C57","v":"Ecrire la date en respectant les majuscules"},"E4-12 : Lors des rituels sur le tableau et sur le cahier."]
[{"$f":"IF('.descripteurs'!$A58='.descripteurs'!A57,\"\",'.descripteurs'!$A58)","v":""},{"$f":"IF('.descripteurs'!$B58='.descripteurs'!B57,\"\",'.descripteurs'!$B58)","v":""},{"$f":"'.descripteurs'!$C58","v":"desc_7"}]
[{"$f":"IF('.descripteurs'!$A59='.descripteurs'!A58,\"\",'.descripteurs'!$A59)","v":""},{"$f":"IF('.descripteurs'!$B59='.descripteurs'!B58,\"\",'.descripteurs'!$B59)","v":""},{"$f":"'.descripteurs'!$C59","v":"desc_8"}]
[{"$f":"IF('.descripteurs'!$A60='.descripteurs'!A59,\"\",'.descripteurs'!$A60)","v":""},{"$f":"IF('.descripteurs'!$B60='.descripteurs'!B59,\"\",'.descripteurs'!$B60)","v":"Ecrire sous la dictée des expressions connues"},{"$f":"'.descripteurs'!$C60","v":"Ecrire des mots connus dictés par l'enseignant"},"E5-1 : lors des  rituels, pour deviner le repas du midi. (blanc ou Inde pour riz, etc…)"]
[{"$f":"IF('.descripteurs'!$A61='.descripteurs'!A60,\"\",'.descripteurs'!$A61)","v":""},{"$f":"IF('.descripteurs'!$B61='.descripteurs'!B60,\"\",'.descripteurs'!$B61)","v":""},{"$f":"'.descripteurs'!$C61","v":"Ecrire des mots épelés pour constituer une phrase simple (une adresse, un nom, un message, un numéro au téléphone,"},"E5-2 : saynète entre 2 personnes au téléphone."]
[{"$f":"IF('.descripteurs'!$A62='.descripteurs'!A61,\"\",'.descripteurs'!$A62)","v":""},{"$f":"IF('.descripteurs'!$B62='.descripteurs'!B61,\"\",'.descripteurs'!$B62)","v":""},{"$f":"'.descripteurs'!$C62","v":"Ecrire des listes de menu, de courses, de cadeaux, d'achats pour la classe, "},"E5-3 : à lier à la vie de classe ou dans une saynète"]
[{"$f":"IF('.descripteurs'!$A63='.descripteurs'!A62,\"\",'.descripteurs'!$A63)","v":""},{"$f":"IF('.descripteurs'!$B63='.descripteurs'!B62,\"\",'.descripteurs'!$B63)","v":""},{"$f":"'.descripteurs'!$C63","v":"Ecrire des nombres dictés"},"E5-4 : demander aux élèves d’inventer et de jouer une situation qui impose de dicter des nombres au téléphone."]
[{"$f":"IF('.descripteurs'!$A64='.descripteurs'!A63,\"\",'.descripteurs'!$A64)","v":""},{"$f":"IF('.descripteurs'!$B64='.descripteurs'!B63,\"\",'.descripteurs'!$B64)","v":""},{"$f":"'.descripteurs'!$C64","v":"Ecrire l'heure dictée"},"E5-5 : demander aux élèves d’inventer et de jouer une situation qui impose de dicter l’heure  au téléphone."]
[{"$f":"IF('.descripteurs'!$A65='.descripteurs'!A64,\"\",'.descripteurs'!$A65)","v":""},{"$f":"IF('.descripteurs'!$B65='.descripteurs'!B64,\"\",'.descripteurs'!$B65)","v":""},{"$f":"'.descripteurs'!$C65","v":"desc_9"}]
[{"$f":"IF('.descripteurs'!$A66='.descripteurs'!A65,\"\",'.descripteurs'!$A66)","v":""},{"$f":"IF('.descripteurs'!$B66='.descripteurs'!B65,\"\",'.descripteurs'!$B66)","v":""},{"$f":"'.descripteurs'!$C66","v":"desc_10"}]
[{"$f":"IF('.descripteurs'!$A67='.descripteurs'!A66,\"\",'.descripteurs'!$A67)","v":"Comprendre à l'oral "},{"$f":"IF('.descripteurs'!$B67='.descripteurs'!B66,\"\",'.descripteurs'!$B67)","v":"Comprendre les consignes de classe."},{"$f":"'.descripteurs'!$C67","v":"Comprendre des consignes courtes et simples et agir en conséquence (s'asseoir, ouvrir le cahier, aller au tableau, se taire, écouter, lever la main , se ranger, se mettre en cercle...)"},"CO1-1- Role play : « Jouer une scène de classe à 3 é en échangeant les rôles E/é. Evaluer les rôles des é."]
[{"$f":"IF('.descripteurs'!$A68='.descripteurs'!A67,\"\",'.descripteurs'!$A68)","v":""},{"$f":"IF('.descripteurs'!$B68='.descripteurs'!B67,\"\",'.descripteurs'!$B68)","v":""},{"$f":"'.descripteurs'!$C68","v":"Comprendre une salutation quelque soit le moment de la journée (good morning, see you later, good bye ...)"},"CO1-2- Vérifier la réaction de l’é en se trompant volontairement : « Bonne nuit » le matin."]
[{"$f":"IF('.descripteurs'!$A69='.descripteurs'!A68,\"\",'.descripteurs'!$A69)","v":""},{"$f":"IF('.descripteurs'!$B69='.descripteurs'!B68,\"\",'.descripteurs'!$B69)","v":""},{"$f":"'.descripteurs'!$C69","v":"Comprendre une demande de copie, de recopie, de lecture, de découpage, de collage, de coloriage, de dessin ...(cocher, barrer, entourer, effacer, souligner)"},"CO1-3- A vérifier à l’écrit, tout au long de l’année selon les activités demandées."]
[{"$f":"IF('.descripteurs'!$A70='.descripteurs'!A69,\"\",'.descripteurs'!$A70)","v":""},{"$f":"IF('.descripteurs'!$B70='.descripteurs'!B69,\"\",'.descripteurs'!$B70)","v":""},{"$f":"'.descripteurs'!$C70","v":"Comprendre une demande d'activité de classe (jeu, bricolage)"},"CO1-4- A vérifier par petits groupes, ponctuellement."]
[{"$f":"IF('.descripteurs'!$A71='.descripteurs'!A70,\"\",'.descripteurs'!$A71)","v":""},{"$f":"IF('.descripteurs'!$B71='.descripteurs'!B70,\"\",'.descripteurs'!$B71)","v":""},{"$f":"'.descripteurs'!$C71","v":"Comprendre les mots et expressions liés au matériel scolaire (contenu d'une trousse, d'un cartable)"},"CO1-5- Faire l’inventaire de sa trousse, de son cartable."]
[{"$f":"IF('.descripteurs'!$A72='.descripteurs'!A71,\"\",'.descripteurs'!$A72)","v":""},{"$f":"IF('.descripteurs'!$B72='.descripteurs'!B71,\"\",'.descripteurs'!$B72)","v":""},{"$f":"'.descripteurs'!$C72","v":"desc_11"}]
[{"$f":"IF('.descripteurs'!$A73='.descripteurs'!A72,\"\",'.descripteurs'!$A73)","v":""},{"$f":"IF('.descripteurs'!$B73='.descripteurs'!B72,\"\",'.descripteurs'!$B73)","v":""},{"$f":"'.descripteurs'!$C73","v":"desc_12"}]
[{"$f":"IF('.descripteurs'!$A74='.descripteurs'!A73,\"\",'.descripteurs'!$A74)","v":""},{"$f":"IF('.descripteurs'!$B74='.descripteurs'!B73,\"\",'.descripteurs'!$B74)","v":"Comprendre des mots familiers et des expressions très courantes"},{"$f":"'.descripteurs'!$C74","v":"Comprendre des mots familiers ou des expressions courantes sur soi-même si les gens parlent lentement et distinctement "},"CO2-1- Description audio d’un personnage de conte. L’é doit le reconnaître."]
[{"$f":"IF('.descripteurs'!$A75='.descripteurs'!A74,\"\",'.descripteurs'!$A75)","v":""},{"$f":"IF('.descripteurs'!$B75='.descripteurs'!B74,\"\",'.descripteurs'!$B75)","v":""},{"$f":"'.descripteurs'!$C75","v":"Comprendre des mots familiers ou des expressions courantes sur sa famille si les gens parlent lentement et distinctement "},"CO2-2- L’E décrit la famille d’un personnage de roman connu des élèves qui doivent le reconnaître."]
[{"$f":"IF('.descripteurs'!$A76='.descripteurs'!A75,\"\",'.descripteurs'!$A76)","v":""},{"$f":"IF('.descripteurs'!$B76='.descripteurs'!B75,\"\",'.descripteurs'!$B76)","v":""},{"$f":"'.descripteurs'!$C76","v":"Comprendre des mots familiers ou des expressions courantes sur son environnement concret si les gens parlent lentement et distinctement "},"CO2-3- L’E décrit l’environnement d’un personnage de roman ou de conte que l’é doit reconnaître."]
[{"$f":"IF('.descripteurs'!$A77='.descripteurs'!A76,\"\",'.descripteurs'!$A77)","v":""},{"$f":"IF('.descripteurs'!$B77='.descripteurs'!B76,\"\",'.descripteurs'!$B77)","v":""},{"$f":"'.descripteurs'!$C77","v":"Comprendre des informations chiffrées (âge, date, prix, numéro de téléphone…)"},"CO2-4- L’é doit noter l’âge d’un visiteur ou le prix d’un jouet (en livres) ou le numéro de téléphone de l’école du correspondant…"]
[{"$f":"IF('.descripteurs'!$A78='.descripteurs'!A77,\"\",'.descripteurs'!$A78)","v":""},{"$f":"IF('.descripteurs'!$B78='.descripteurs'!B77,\"\",'.descripteurs'!$B78)","v":""},{"$f":"'.descripteurs'!$C78","v":"Comprendre un problème de maths simple "},"CO2-5- Lier le problème proposé au contexte de la classe"]
[{"$f":"IF('.descripteurs'!$A79='.descripteurs'!A78,\"\",'.descripteurs'!$A79)","v":""},{"$f":"IF('.descripteurs'!$B79='.descripteurs'!B78,\"\",'.descripteurs'!$B79)","v":""},{"$f":"'.descripteurs'!$C79","v":"Comprendre des phrases simples sur le petit déjeuner"},"CO2-6- L’E décrit son petit déjeuner. L’é entoure."]
[{"$f":"IF('.descripteurs'!$A80='.descripteurs'!A79,\"\",'.descripteurs'!$A80)","v":""},{"$f":"IF('.descripteurs'!$B80='.descripteurs'!B79,\"\",'.descripteurs'!$B80)","v":""},{"$f":"'.descripteurs'!$C80","v":"Comprendre des informations simples comportant des éléments de situation spatiale "},"CO2-7- L’é cherche un objet caché ou déambule selon un circuit dicté."]
[{"$f":"IF('.descripteurs'!$A81='.descripteurs'!A80,\"\",'.descripteurs'!$A81)","v":""},{"$f":"IF('.descripteurs'!$B81='.descripteurs'!B80,\"\",'.descripteurs'!$B81)","v":""},{"$f":"'.descripteurs'!$C81","v":"Comprendre les pays anglophones et les nationalités"},"CO2-8- A l’occasion de rencontres sportives internationales."]
[{"$f":"IF('.descripteurs'!$A82='.descripteurs'!A81,\"\",'.descripteurs'!$A82)","v":""},{"$f":"IF('.descripteurs'!$B82='.descripteurs'!B81,\"\",'.descripteurs'!$B82)","v":""},{"$f":"'.descripteurs'!$C82","v":"Comprendre des descriptions de sentiments, de sensations et des descriptions physiques"},"CO2-9- A relier avec la découverte d’un personnage de roman ou de conte ou de film."]
[{"$f":"IF('.descripteurs'!$A83='.descripteurs'!A82,\"\",'.descripteurs'!$A83)","v":""},{"$f":"IF('.descripteurs'!$B83='.descripteurs'!B82,\"\",'.descripteurs'!$B83)","v":""},{"$f":"'.descripteurs'!$C83","v":"Comprendre des questions et réponses sur les fêtes calendaires"},"CO2-10- Un quizz sur la date relié à l’événement (jeu télévisé)."]
[{"$f":"IF('.descripteurs'!$A84='.descripteurs'!A83,\"\",'.descripteurs'!$A84)","v":""},{"$f":"IF('.descripteurs'!$B84='.descripteurs'!B83,\"\",'.descripteurs'!$B84)","v":""},{"$f":"'.descripteurs'!$C84","v":"Comprendre des phrases simples sur les vacances et ce qu'on emporte dans sa valise"},"CO2-11- A l’occasion d’une sortie scolaire : inventaire du sac."]
[{"$f":"IF('.descripteurs'!$A85='.descripteurs'!A84,\"\",'.descripteurs'!$A85)","v":""},{"$f":"IF('.descripteurs'!$B85='.descripteurs'!B84,\"\",'.descripteurs'!$B85)","v":""},{"$f":"'.descripteurs'!$C85","v":"Comprendre des expressions utilisées fréquemment quand quelqu'un salue, s'excuse, remercie ou prend congé "},"CO2-12- A employer au quotidien"]
[{"$f":"IF('.descripteurs'!$A86='.descripteurs'!A85,\"\",'.descripteurs'!$A86)","v":""},{"$f":"IF('.descripteurs'!$B86='.descripteurs'!B85,\"\",'.descripteurs'!$B86)","v":""},{"$f":"'.descripteurs'!$C86","v":"Identifier dans une émission télévisée des noms, des indications temporelles et spatiales, ainsi que le sujet général "},"CO2-13- Chercher sur youtube un jeu télévisé pour la jeunesse."]
[{"$f":"IF('.descripteurs'!$A87='.descripteurs'!A86,\"\",'.descripteurs'!$A87)","v":""},{"$f":"IF('.descripteurs'!$B87='.descripteurs'!B86,\"\",'.descripteurs'!$B87)","v":""},{"$f":"'.descripteurs'!$C87","v":"Comprendre le fil d'une histoire avec des aides appropriées "},"CO2-14- A l’aide de la vidéo par ex. L’é réagit en français."]
[{"$f":"IF('.descripteurs'!$A88='.descripteurs'!A87,\"\",'.descripteurs'!$A88)","v":""},{"$f":"IF('.descripteurs'!$B88='.descripteurs'!B87,\"\",'.descripteurs'!$B88)","v":""},{"$f":"'.descripteurs'!$C88","v":"Comprendre des questions sur son identité (nom, prénom, âge, nationalité, date de naissance, frères et soeurs, adresse)"},"CO2-15- Saynète : à l’aéroport, au commissariat, le passage à la douane."]
[{"$f":"IF('.descripteurs'!$A89='.descripteurs'!A88,\"\",'.descripteurs'!$A89)","v":""},{"$f":"IF('.descripteurs'!$B89='.descripteurs'!B88,\"\",'.descripteurs'!$B89)","v":""},{"$f":"'.descripteurs'!$C89","v":"Comprendre les informations sur l'identité d'autrui (nom, prénom, âge, nationalité, date de naissance, frères et soeurs, adresse)"},"CO2-16- Un locuteur natif se présente dans la classe."]
[{"$f":"IF('.descripteurs'!$A90='.descripteurs'!A89,\"\",'.descripteurs'!$A90)","v":""},{"$f":"IF('.descripteurs'!$B90='.descripteurs'!B89,\"\",'.descripteurs'!$B90)","v":""},{"$f":"'.descripteurs'!$C90","v":"Comprendre lorsque quelqu'un demande d'épeler son nom"},"CO2-17- Saynète : vous êtes perdu à Londres et un policier vous demande d’épeler votre nom."]
[{"$f":"IF('.descripteurs'!$A91='.descripteurs'!A90,\"\",'.descripteurs'!$A91)","v":""},{"$f":"IF('.descripteurs'!$B91='.descripteurs'!B90,\"\",'.descripteurs'!$B91)","v":""},{"$f":"'.descripteurs'!$C91","v":"Comprendre une question liée au numéro de téléphone, à un prix, à une quantité, à l'heure"},"CO2-18- Saynète : à l’étranger, dans un bureau, dans un magasin, dans une école…"]
[{"$f":"IF('.descripteurs'!$A92='.descripteurs'!A91,\"\",'.descripteurs'!$A92)","v":""},{"$f":"IF('.descripteurs'!$B92='.descripteurs'!B91,\"\",'.descripteurs'!$B92)","v":""},{"$f":"'.descripteurs'!$C92","v":"Comprendre un numéro de téléphone, un prix, une quantité, l'heure"},"CO2-19- Saynète : à l’étranger, dans un bureau, dans un magasin, dans une école…"]
[{"$f":"IF('.descripteurs'!$A93='.descripteurs'!A92,\"\",'.descripteurs'!$A93)","v":""},{"$f":"IF('.descripteurs'!$B93='.descripteurs'!B92,\"\",'.descripteurs'!$B93)","v":""},{"$f":"'.descripteurs'!$C93","v":"Comprendre un dialogue de présentation d'un pays  ou d'une ville de la langue étudiée"},"CO2-21- Quizz enregistré : jeu entre équipes."]
[{"$f":"IF('.descripteurs'!$A94='.descripteurs'!A93,\"\",'.descripteurs'!$A94)","v":""},{"$f":"IF('.descripteurs'!$B94='.descripteurs'!B93,\"\",'.descripteurs'!$B94)","v":""},{"$f":"'.descripteurs'!$C94","v":"Comprendre une indication de prix, quantité, adresse, numéro de téléphone, âge"},"CO2-20- Saynète : à l’étranger, dans un bureau, dans un magasin, dans une école…"]
[{"$f":"IF('.descripteurs'!$A95='.descripteurs'!A94,\"\",'.descripteurs'!$A95)","v":""},{"$f":"IF('.descripteurs'!$B95='.descripteurs'!B94,\"\",'.descripteurs'!$B95)","v":""},{"$f":"'.descripteurs'!$C95","v":"Comprendre  oui ou non, merci, comment ça va"},"CO2-22- A vérifier au quotidien"]
[{"$f":"IF('.descripteurs'!$A96='.descripteurs'!A95,\"\",'.descripteurs'!$A96)","v":""},{"$f":"IF('.descripteurs'!$B96='.descripteurs'!B95,\"\",'.descripteurs'!$B96)","v":""},{"$f":"'.descripteurs'!$C96","v":"Comprendre des excuses, des félicitations, des voeux"},"CO2-23- A vérfier au quotidien."]
[{"$f":"IF('.descripteurs'!$A97='.descripteurs'!A96,\"\",'.descripteurs'!$A97)","v":""},{"$f":"IF('.descripteurs'!$B97='.descripteurs'!B96,\"\",'.descripteurs'!$B97)","v":""},{"$f":"'.descripteurs'!$C97","v":"Comprendre un message court (histoire, dialogue, annonce, comptine, chanson...) à l'aide de d'images, de gestes"},"CO2-24- A l’aide de marottes ; l’é réagit en français."]
[{"$f":"IF('.descripteurs'!$A98='.descripteurs'!A97,\"\",'.descripteurs'!$A98)","v":""},{"$f":"IF('.descripteurs'!$B98='.descripteurs'!B97,\"\",'.descripteurs'!$B98)","v":""},{"$f":"'.descripteurs'!$C98","v":"Comprendre une annonce publicitaire en définissant le produit"},"CO2-25-  sous la forme d’une vidéo  pour le cycle 2 (réservez le document audio pour le cycle 3)"]
[{"$f":"IF('.descripteurs'!$A99='.descripteurs'!A98,\"\",'.descripteurs'!$A99)","v":""},{"$f":"IF('.descripteurs'!$B99='.descripteurs'!B98,\"\",'.descripteurs'!$B99)","v":""},{"$f":"'.descripteurs'!$C99","v":"Comprendre si quelqu'un aime ou n'aime pas"},"CO2-26- l’E parle de ses goûts ; ou les correspondants envoient une vidéo où chaque élève parle de ses goûts."]
[{"$f":"IF('.descripteurs'!$A100='.descripteurs'!A99,\"\",'.descripteurs'!$A100)","v":""},{"$f":"IF('.descripteurs'!$B100='.descripteurs'!B99,\"\",'.descripteurs'!$B100)","v":""},{"$f":"'.descripteurs'!$C100","v":"Comprendre les actions de personnages"},"CO2-27- A l’aide d’images fixes ou animées : l’é reformule en français."]
[{"$f":"IF('.descripteurs'!$A101='.descripteurs'!A100,\"\",'.descripteurs'!$A101)","v":""},{"$f":"IF('.descripteurs'!$B101='.descripteurs'!B100,\"\",'.descripteurs'!$B101)","v":""},{"$f":"'.descripteurs'!$C101","v":"Comprendre des descriptions simples d'animaux"},"CO2-28- A l’aide d’images fixes et animées, l’é reformule en français."]
[{"$f":"IF('.descripteurs'!$A102='.descripteurs'!A101,\"\",'.descripteurs'!$A102)","v":""},{"$f":"IF('.descripteurs'!$B102='.descripteurs'!B101,\"\",'.descripteurs'!$B102)","v":""},{"$f":"'.descripteurs'!$C102","v":"desc_13"}]
[{"$f":"IF('.descripteurs'!$A103='.descripteurs'!A102,\"\",'.descripteurs'!$A103)","v":""},{"$f":"IF('.descripteurs'!$B103='.descripteurs'!B102,\"\",'.descripteurs'!$B103)","v":""},{"$f":"'.descripteurs'!$C103","v":"desc_14"}]
[{"$f":"IF('.descripteurs'!$A104='.descripteurs'!A103,\"\",'.descripteurs'!$A104)","v":""},{"$f":"IF('.descripteurs'!$B104='.descripteurs'!B103,\"\",'.descripteurs'!$B104)","v":"Suivre des instructions courtes et simples"},{"$f":"'.descripteurs'!$C104","v":"Pour réaliser une tâche en lien avec un message entendu par l'élève (cocher un dessin, dessiner sous la dictée)"},"CO3-5- L’E décrit un tableau affiché dans la classe."]
[{"$f":"IF('.descripteurs'!$A105='.descripteurs'!A104,\"\",'.descripteurs'!$A105)","v":""},{"$f":"IF('.descripteurs'!$B105='.descripteurs'!B104,\"\",'.descripteurs'!$B105)","v":""},{"$f":"'.descripteurs'!$C105","v":"Comprendre une demande d'actions physiques et réagir (lancer un ballon, un dé..."},"CO3-2- Consignes données lors des séances d’EPS."]
[{"$f":"IF('.descripteurs'!$A106='.descripteurs'!A105,\"\",'.descripteurs'!$A106)","v":""},{"$f":"IF('.descripteurs'!$B106='.descripteurs'!B105,\"\",'.descripteurs'!$B106)","v":""},{"$f":"'.descripteurs'!$C106","v":"Comprendre une demande pour ranger ses affaires"},"CO3-6- En fin de journée, l’E énonce les objets à ranger dans le cartable. (CE2)"]
[{"$f":"IF('.descripteurs'!$A107='.descripteurs'!A106,\"\",'.descripteurs'!$A107)","v":""},{"$f":"IF('.descripteurs'!$B107='.descripteurs'!B106,\"\",'.descripteurs'!$B107)","v":""},{"$f":"'.descripteurs'!$C107","v":"Comprendre pour ouvrir et fermer la porte"},"CO3-3- Au quotidien"]
[{"$f":"IF('.descripteurs'!$A108='.descripteurs'!A107,\"\",'.descripteurs'!$A108)","v":""},{"$f":"IF('.descripteurs'!$B108='.descripteurs'!B107,\"\",'.descripteurs'!$B108)","v":""},{"$f":"'.descripteurs'!$C108","v":"Comprendre pour allumer et éteindre la lumière, l'ordinateur"},"CO3-4- Au quotidien"]
[{"$f":"IF('.descripteurs'!$A109='.descripteurs'!A108,\"\",'.descripteurs'!$A109)","v":""},{"$f":"IF('.descripteurs'!$B109='.descripteurs'!B108,\"\",'.descripteurs'!$B109)","v":""},{"$f":"'.descripteurs'!$C109","v":"Comprendre pour jouer aux cartes, les distribuer"},"CO3-7- Happy families, ou snap !"]
[{"$f":"IF('.descripteurs'!$A110='.descripteurs'!A109,\"\",'.descripteurs'!$A110)","v":""},{"$f":"IF('.descripteurs'!$B110='.descripteurs'!B109,\"\",'.descripteurs'!$B110)","v":""},{"$f":"'.descripteurs'!$C110","v":"Comprendre de parler plus ou moins fort ou lentement"},"CO3-8- Au quotidien"]
[{"$f":"IF('.descripteurs'!$A111='.descripteurs'!A110,\"\",'.descripteurs'!$A111)","v":""},{"$f":"IF('.descripteurs'!$B111='.descripteurs'!B110,\"\",'.descripteurs'!$B111)","v":""},{"$f":"'.descripteurs'!$C111","v":"Comprendre une demande de répétition"}]
[{"$f":"IF('.descripteurs'!$A112='.descripteurs'!A111,\"\",'.descripteurs'!$A112)","v":""},{"$f":"IF('.descripteurs'!$B112='.descripteurs'!B111,\"\",'.descripteurs'!$B112)","v":""},{"$f":"'.descripteurs'!$C112","v":"Comprendre des consignes de bricolage"},"CO3-9- Lors des séances d’arts plastiques"]
[{"$f":"IF('.descripteurs'!$A113='.descripteurs'!A112,\"\",'.descripteurs'!$A113)","v":""},{"$f":"IF('.descripteurs'!$B113='.descripteurs'!B112,\"\",'.descripteurs'!$B113)","v":""},{"$f":"'.descripteurs'!$C113","v":" Comprendre des opérations simples"},"CO3-10- En warm up du cours de langue : calcul mental"]
[{"$f":"IF('.descripteurs'!$A114='.descripteurs'!A113,\"\",'.descripteurs'!$A114)","v":""},{"$f":"IF('.descripteurs'!$B114='.descripteurs'!B113,\"\",'.descripteurs'!$B114)","v":""},{"$f":"'.descripteurs'!$C114","v":"Suivre des instructions pour former et dessiner des formes"},"CO3-11- A utiliser en géométrie selon le thème."]
[{"$f":"IF('.descripteurs'!$A115='.descripteurs'!A114,\"\",'.descripteurs'!$A115)","v":""},{"$f":"IF('.descripteurs'!$B115='.descripteurs'!B114,\"\",'.descripteurs'!$B115)","v":""},{"$f":"'.descripteurs'!$C115","v":"Comprendre où aller dans une école, une maison,  une ville"},"CO3-12- Saynète avec un bobby, le correspondant à l’école ou à la maison (avec de vrais plans)"]
[{"$f":"IF('.descripteurs'!$A116='.descripteurs'!A115,\"\",'.descripteurs'!$A116)","v":""},{"$f":"IF('.descripteurs'!$B116='.descripteurs'!B115,\"\",'.descripteurs'!$B116)","v":""},{"$f":"'.descripteurs'!$C116","v":"Comprendre les injonctions de parents (réveille toi ...)"},"CO3-13- Saynète : vie d’une famille réelle ou fictive"]
[{"$f":"IF('.descripteurs'!$A117='.descripteurs'!A116,\"\",'.descripteurs'!$A117)","v":""},{"$f":"IF('.descripteurs'!$B117='.descripteurs'!B116,\"\",'.descripteurs'!$B117)","v":""},{"$f":"'.descripteurs'!$C117","v":"desc_15"}]
[{"$f":"IF('.descripteurs'!$A118='.descripteurs'!A117,\"\",'.descripteurs'!$A118)","v":""},{"$f":"IF('.descripteurs'!$B118='.descripteurs'!B117,\"\",'.descripteurs'!$B118)","v":""},{"$f":"'.descripteurs'!$C118","v":"desc_16"}]
[{"$f":"IF('.descripteurs'!$A119='.descripteurs'!A118,\"\",'.descripteurs'!$A119)","v":"Parler en continu"},{"$f":"IF('.descripteurs'!$B119='.descripteurs'!B118,\"\",'.descripteurs'!$B119)","v":"Reproduire un modèle oral"},{"$f":"'.descripteurs'!$C119","v":"Reproduire des phrases simples fréquemment utilisées "},"EOC1-1 : Lors des rituels quotidiens : un é est assistant-professeur."]
[{"$f":"IF('.descripteurs'!$A120='.descripteurs'!A119,\"\",'.descripteurs'!$A120)","v":""},{"$f":"IF('.descripteurs'!$B120='.descripteurs'!B119,\"\",'.descripteurs'!$B120)","v":""},{"$f":"'.descripteurs'!$C120","v":"Réciter un texte mémorisé, une comptine, un poème "},"EOC1-2 : communiquer avec des natifs à l’aide de textes traditionnels (vidéo possible)."]
[{"$f":"IF('.descripteurs'!$A121='.descripteurs'!A120,\"\",'.descripteurs'!$A121)","v":""},{"$f":"IF('.descripteurs'!$B121='.descripteurs'!B120,\"\",'.descripteurs'!$B121)","v":""},{"$f":"'.descripteurs'!$C121","v":"Chanter une chanson "},"EOC1-3 : accueillir un natif avec une chanson traditionnelle (ou vidéo aux correspondants)."]
[{"$f":"IF('.descripteurs'!$A122='.descripteurs'!A121,\"\",'.descripteurs'!$A122)","v":""},{"$f":"IF('.descripteurs'!$B122='.descripteurs'!B121,\"\",'.descripteurs'!$B122)","v":""},{"$f":"'.descripteurs'!$C122","v":"Epeler des mots familiers ou chanter l'alphabet "},"EOC1-4 : comme une chanson ou une comptine, lors de rituels ou activités de transition, à chorégraphier également en groupes."]
[{"$f":"IF('.descripteurs'!$A123='.descripteurs'!A122,\"\",'.descripteurs'!$A123)","v":""},{"$f":"IF('.descripteurs'!$B123='.descripteurs'!B122,\"\",'.descripteurs'!$B123)","v":""},{"$f":"'.descripteurs'!$C123","v":"Faire une courte annonce répétée auparavant pour présenter une fête, un personnage, donner une consigne"},"EOC1-5 : au quotidien lors des rituels."]
[{"$f":"IF('.descripteurs'!$A124='.descripteurs'!A123,\"\",'.descripteurs'!$A124)","v":""},{"$f":"IF('.descripteurs'!$B124='.descripteurs'!B123,\"\",'.descripteurs'!$B124)","v":""},{"$f":"'.descripteurs'!$C124","v":"Reproduire la comptine numérique jusqu'à 100"},"EOC1-6 : épeler au téléphone un nom de médicament ou de rue ou  jouer à l’oculiste qui vérifie la vision."]
[{"$f":"IF('.descripteurs'!$A125='.descripteurs'!A124,\"\",'.descripteurs'!$A125)","v":""},{"$f":"IF('.descripteurs'!$B125='.descripteurs'!B124,\"\",'.descripteurs'!$B125)","v":""},{"$f":"'.descripteurs'!$C125","v":"Reproduire quelques tables d'opération"},"EOC1-7 : présenter sa saynète ou donner une consigne (au quotidien)."]
[{"$f":"IF('.descripteurs'!$A126='.descripteurs'!A125,\"\",'.descripteurs'!$A126)","v":""},{"$f":"IF('.descripteurs'!$B126='.descripteurs'!B125,\"\",'.descripteurs'!$B126)","v":""},{"$f":"'.descripteurs'!$C126","v":"Réciter l'alphabet"},"EOC1-8 : faire une ola mexicaine ou jouer à ni 0 ni 5."]
[{"$f":"IF('.descripteurs'!$A127='.descripteurs'!A126,\"\",'.descripteurs'!$A127)","v":""},{"$f":"IF('.descripteurs'!$B127='.descripteurs'!B126,\"\",'.descripteurs'!$B127)","v":""},{"$f":"'.descripteurs'!$C127","v":"Reproduire une description de journée (pour une saynète)"},"EOC1-9 : lors de saynètes de leçon de calcul ou de marché."]
[{"$f":"IF('.descripteurs'!$A128='.descripteurs'!A127,\"\",'.descripteurs'!$A128)","v":""},{"$f":"IF('.descripteurs'!$B128='.descripteurs'!B127,\"\",'.descripteurs'!$B128)","v":""},{"$f":"'.descripteurs'!$C128","v":"Epeler les jours et les mois"},"EOC1-10 : décrire sa journée (vidéo ou fichier audio pour le correspondant) ou la journée d’un personnage (pour deviner) ou parler de  son correspondant pour une présentation publique."]
[{"$f":"IF('.descripteurs'!$A129='.descripteurs'!A128,\"\",'.descripteurs'!$A129)","v":""},{"$f":"IF('.descripteurs'!$B129='.descripteurs'!B128,\"\",'.descripteurs'!$B129)","v":""},{"$f":"'.descripteurs'!$C129","v":"Présenter la météo"},"EOC1-11 : rituel quotidien par un é assistant ; pour donner la date de son anniversaire ; pour un quizz sur les événements calendaires."]
[{"$f":"IF('.descripteurs'!$A130='.descripteurs'!A129,\"\",'.descripteurs'!$A130)","v":""},{"$f":"IF('.descripteurs'!$B130='.descripteurs'!B129,\"\",'.descripteurs'!$B130)","v":""},{"$f":"'.descripteurs'!$C130","v":"Décrire un jeu de cartes"},"EOC1-12 : lors d’une rencontre inter-classes ; lors d’une visio conférence avec une classe étrangère ; lors d’une présentation culturelle aux familles ; lors d’un challenge intraclasse sur les jeux étrangers."]
[{"$f":"IF('.descripteurs'!$A131='.descripteurs'!A130,\"\",'.descripteurs'!$A131)","v":""},{"$f":"IF('.descripteurs'!$B131='.descripteurs'!B130,\"\",'.descripteurs'!$B131)","v":""},{"$f":"'.descripteurs'!$C131","v":"desc_17"}]
[{"$f":"IF('.descripteurs'!$A132='.descripteurs'!A131,\"\",'.descripteurs'!$A132)","v":""},{"$f":"IF('.descripteurs'!$B132='.descripteurs'!B131,\"\",'.descripteurs'!$B132)","v":""},{"$f":"'.descripteurs'!$C132","v":"desc_18"}]
[{"$f":"IF('.descripteurs'!$A133='.descripteurs'!A132,\"\",'.descripteurs'!$A133)","v":""},{"$f":"IF('.descripteurs'!$B133='.descripteurs'!B132,\"\",'.descripteurs'!$B133)","v":"Utiliser des expressions et des phrases proches des modèles rencontrés lors des apprentissages"},{"$f":"'.descripteurs'!$C133","v":"Utiliser des expressions et phrases simples pour se présenter ou présenter quelqu'un (nom, prénom, âge, adresse, goûts, famille, animaux)"},"EOC2-1 : vidéo de chaque é et interview, Se présenter ou présenter un camarade pour une vidéo aux correspondants. Interview filmée."]
[{"$f":"IF('.descripteurs'!$A134='.descripteurs'!A133,\"\",'.descripteurs'!$A134)","v":""},{"$f":"IF('.descripteurs'!$B134='.descripteurs'!B133,\"\",'.descripteurs'!$B134)","v":""},{"$f":"'.descripteurs'!$C134","v":"Dire ce qu'il fait chaque jour, chaque semaine en termes simples "},"EOC2-2 : Présenter un diaporama d'aliments ou d'activités et laisser chaque é s'exprimer."]
[{"$f":"IF('.descripteurs'!$A135='.descripteurs'!A134,\"\",'.descripteurs'!$A135)","v":""},{"$f":"IF('.descripteurs'!$B135='.descripteurs'!B134,\"\",'.descripteurs'!$B135)","v":""},{"$f":"'.descripteurs'!$C135","v":"Utiliser des expressions et phrases simples pour  présenter son lieu d'habitation, sa chambre"},"EOC2-3 : Au quotidien, lors des rituels."]
[{"$f":"IF('.descripteurs'!$A136='.descripteurs'!A135,\"\",'.descripteurs'!$A136)","v":""},{"$f":"IF('.descripteurs'!$B136='.descripteurs'!B135,\"\",'.descripteurs'!$B136)","v":""},{"$f":"'.descripteurs'!$C136","v":"Dire ce que font les personnages, de ce qu'on fait, de ce qu'on a fait, de ce qu'on est en train de faire"},"EOC2-4 : Lors des rituels, un é choisit une famille totem et la présente à ses camarades en la décrivant."]
[{"$f":"IF('.descripteurs'!$A137='.descripteurs'!A136,\"\",'.descripteurs'!$A137)","v":""},{"$f":"IF('.descripteurs'!$B137='.descripteurs'!B136,\"\",'.descripteurs'!$B137)","v":""},{"$f":"'.descripteurs'!$C137","v":"Décrire des personnes, des animaux ou des objets familiers (avec des adjectifs indiquant la taille, la couleur ou l'âge)"},"EOC2-5 : En situation de séance de maths, pour l'heure et pour dénombrer, Compter les élèves présents lors de rituels, en situation pour l'heure, pour dénombrer les crayons, les élèves de l'école …."]
[{"$f":"IF('.descripteurs'!$A138='.descripteurs'!A137,\"\",'.descripteurs'!$A138)","v":""},{"$f":"IF('.descripteurs'!$B138='.descripteurs'!B137,\"\",'.descripteurs'!$B138)","v":""},{"$f":"'.descripteurs'!$C138","v":"Exprimer ce qu'il aime et ce qu'il n'aime pas "},"EOC2-6 : Lors des rituels, réellement pour le petit déjeuner, d'après des photos ou fictivement, pour répondre à une enquête alimentaire, pour préparer un repas typique."]
[{"$f":"IF('.descripteurs'!$A139='.descripteurs'!A138,\"\",'.descripteurs'!$A139)","v":""},{"$f":"IF('.descripteurs'!$B139='.descripteurs'!B138,\"\",'.descripteurs'!$B139)","v":""},{"$f":"'.descripteurs'!$C139","v":"Exprimer ce qu'il ressent, ses besoins élémentaires (j'ai faim, soif, j'ai froid, je suis malade..) "},"EOC2-7 : Répondre à une interview sur ses routines journalières et envoyer la vidéo aux correspondants."]
[{"$f":"IF('.descripteurs'!$A140='.descripteurs'!A139,\"\",'.descripteurs'!$A140)","v":""},{"$f":"IF('.descripteurs'!$B140='.descripteurs'!B139,\"\",'.descripteurs'!$B140)","v":""},{"$f":"'.descripteurs'!$C140","v":"Dire ce qu'il possède ou pas, ce qu'il souhaite "},"EOC2-8 :Renseigner une enquête de type ethnographique pour comparer d'autres habitats, Pour répondre à une enquête ethnographique du quotidien. répondre à une enquête ethnographique du quotidien sur ses routines afin de comparer avec les vies d'enfants de pays différents."]
[{"$f":"IF('.descripteurs'!$A141='.descripteurs'!A140,\"\",'.descripteurs'!$A141)","v":""},{"$f":"IF('.descripteurs'!$B141='.descripteurs'!B140,\"\",'.descripteurs'!$B141)","v":""},{"$f":"'.descripteurs'!$C141","v":"Décrire un pays, une ville selon un modèle oral"},"EOC2-9 : Rituels : Commenter des photos de soi prises par un camarade à l'école sur la vie de classe, lors des rituels, Commenter les mimes d'une saynète jouée par les camarades et commenter ses propres actions , actuelles et passées lors d'une saynète."]
[{"$f":"IF('.descripteurs'!$A142='.descripteurs'!A141,\"\",'.descripteurs'!$A142)","v":""},{"$f":"IF('.descripteurs'!$B142='.descripteurs'!B141,\"\",'.descripteurs'!$B142)","v":""},{"$f":"'.descripteurs'!$C142","v":"Décrire une peinture en utilisant les phrases connues d'un modèle rencontré"},"EOC2-10 : Rituels : Présenter sa famille, des amis, des animaux fictifs (après avoir établi un diaporama personnel), Commenter la saynète jouée d'un album, d'un conte."]
[{"$f":"IF('.descripteurs'!$A143='.descripteurs'!A142,\"\",'.descripteurs'!$A143)","v":""},{"$f":"IF('.descripteurs'!$B143='.descripteurs'!B142,\"\",'.descripteurs'!$B143)","v":""},{"$f":"'.descripteurs'!$C143","v":"Compter, donner l'heure, indiquer des quantités "},"EOC2- 11 : Rituels : Inventer des possessions inexistantes, voire improbables et en souhaiter d'autres, Enumérer des possessions réelles ou fictives et émettre des souhaits de possession lors d'une saynète sur un héros à deviner."]
[{"$f":"IF('.descripteurs'!$A144='.descripteurs'!A143,\"\",'.descripteurs'!$A144)","v":""},{"$f":"IF('.descripteurs'!$B144='.descripteurs'!B143,\"\",'.descripteurs'!$B144)","v":""},{"$f":"'.descripteurs'!$C144","v":"Dire les dates d'anniversaire de sa famille"},"EOC2-12 : Rituels :Un élève prépare un quizz où il faudra deviner le pays ou la ville décrits, Jouer le rôle d'un agent de voyage."]
[{"$f":"IF('.descripteurs'!$A145='.descripteurs'!A144,\"\",'.descripteurs'!$A145)","v":""},{"$f":"IF('.descripteurs'!$B145='.descripteurs'!B144,\"\",'.descripteurs'!$B145)","v":""},{"$f":"'.descripteurs'!$C145","v":"Présenter une famille"},"EOC2-13 : Rituels : un élève a choisi une peinture parmi plusieurs proposées, et les autres doivent la reconnaître; Jouer le rôle d'un commissaire d'exposition."]
[{"$f":"IF('.descripteurs'!$A146='.descripteurs'!A145,\"\",'.descripteurs'!$A146)","v":""},{"$f":"IF('.descripteurs'!$B146='.descripteurs'!B145,\"\",'.descripteurs'!$B146)","v":""},{"$f":"'.descripteurs'!$C146","v":"Utiliser les éléments vus pour parler de ses vacances (transport, contenu de sa valise, destinations, activités)"},"EOC2-14 : Commenter l'arbre généalogique dune famille célèbre."]
[{"$f":"IF('.descripteurs'!$A147='.descripteurs'!A146,\"\",'.descripteurs'!$A147)","v":""},{"$f":"IF('.descripteurs'!$B147='.descripteurs'!B146,\"\",'.descripteurs'!$B147)","v":""},{"$f":"'.descripteurs'!$C147","v":"Utiliser les éléments vus pour décrire une maison (scénette de l'agent immobilier)"},"EOC2-15 : décrire des vacances fictives pour faire deviner la destination."]
[{"$f":"IF('.descripteurs'!$A148='.descripteurs'!A147,\"\",'.descripteurs'!$A148)","v":""},{"$f":"IF('.descripteurs'!$B148='.descripteurs'!B147,\"\",'.descripteurs'!$B148)","v":""},{"$f":"'.descripteurs'!$C148","v":"Parler de son emploi du temps et de ses activités préférées à l'école (ou ailleurs)"},"EOC2-16 :Jouer le rôle d'un agent immobilier."]
[{"$f":"IF('.descripteurs'!$A149='.descripteurs'!A148,\"\",'.descripteurs'!$A149)","v":""},{"$f":"IF('.descripteurs'!$B149='.descripteurs'!B148,\"\",'.descripteurs'!$B149)","v":""},{"$f":"'.descripteurs'!$C149","v":"Décrire les expressions mimées par ses camarades"},"EOC2-17 : commenter son emploi du temps et présenter ses matières préférées en vidéo à envoyer aux correspondants."]
[{"$f":"IF('.descripteurs'!$A150='.descripteurs'!A149,\"\",'.descripteurs'!$A150)","v":""},{"$f":"IF('.descripteurs'!$B150='.descripteurs'!B149,\"\",'.descripteurs'!$B150)","v":""},{"$f":"'.descripteurs'!$C150","v":"Dire l'heure mimée par un camarade"},"EOC2- 18 : Lors de rituels ludiques."]
[{"$f":"IF('.descripteurs'!$A151='.descripteurs'!A150,\"\",'.descripteurs'!$A151)","v":""},{"$f":"IF('.descripteurs'!$B151='.descripteurs'!B150,\"\",'.descripteurs'!$B151)","v":""},{"$f":"'.descripteurs'!$C151","v":"Exprimer où l'on a mal"},"EOC2-19 : Lors de rituels ludiques."]
[{"$f":"IF('.descripteurs'!$A152='.descripteurs'!A151,\"\",'.descripteurs'!$A152)","v":""},{"$f":"IF('.descripteurs'!$B152='.descripteurs'!B151,\"\",'.descripteurs'!$B152)","v":""},{"$f":"'.descripteurs'!$C152","v":"Utiliser les éléments vus pour décrire les sports"},"EOC2-20 : Lors d'une saynète exposant une visite chez le médecin."]
[{"$f":"IF('.descripteurs'!$A153='.descripteurs'!A152,\"\",'.descripteurs'!$A153)","v":""},{"$f":"IF('.descripteurs'!$B153='.descripteurs'!B152,\"\",'.descripteurs'!$B153)","v":""},{"$f":"'.descripteurs'!$C153","v":"Décrire une image, une photo, un dessin, un cadeau"},"EOC2-21 :Rituels : par paire, un élève mime une action sportive et l'autres est le journaliste sportif."]
[{"$f":"IF('.descripteurs'!$A154='.descripteurs'!A153,\"\",'.descripteurs'!$A154)","v":""},{"$f":"IF('.descripteurs'!$B154='.descripteurs'!B153,\"\",'.descripteurs'!$B154)","v":""},{"$f":"'.descripteurs'!$C154","v":"Décrire le contenu d'une trousse et d'un cartable"},"EOC2-22 : commenter et critiquer une affiche publicitaire"]
[{"$f":"IF('.descripteurs'!$A155='.descripteurs'!A154,\"\",'.descripteurs'!$A155)","v":""},{"$f":"IF('.descripteurs'!$B155='.descripteurs'!B154,\"\",'.descripteurs'!$B155)","v":""},{"$f":"'.descripteurs'!$C155","v":"Décrire le contenu d'une lunch box, de son petit déjeuner, de son sandwich"},"EOC2-23 : jouer la saynète d'un parent la veille de la rentrée.."]
[{"$f":"IF('.descripteurs'!$A156='.descripteurs'!A155,\"\",'.descripteurs'!$A156)","v":""},{"$f":"IF('.descripteurs'!$B156='.descripteurs'!B155,\"\",'.descripteurs'!$B156)","v":""},{"$f":"'.descripteurs'!$C156","v":"Expliquer une information simple (règle de jeu, recette, histoire courte à partir d'images, film, livre ...)"},"EOC2-24 : et envoyer la vidéo aux correspondants"]
[{"$f":"IF('.descripteurs'!$A157='.descripteurs'!A156,\"\",'.descripteurs'!$A157)","v":""},{"$f":"IF('.descripteurs'!$B157='.descripteurs'!B156,\"\",'.descripteurs'!$B157)","v":""},{"$f":"'.descripteurs'!$C157","v":"desc_19"}]
[{"$f":"IF('.descripteurs'!$A158='.descripteurs'!A157,\"\",'.descripteurs'!$A158)","v":""},{"$f":"IF('.descripteurs'!$B158='.descripteurs'!B157,\"\",'.descripteurs'!$B158)","v":""},{"$f":"'.descripteurs'!$C158","v":"desc_20"}]
[{"$f":"IF('.descripteurs'!$A159='.descripteurs'!A158,\"\",'.descripteurs'!$A159)","v":""},{"$f":"IF('.descripteurs'!$B159='.descripteurs'!B158,\"\",'.descripteurs'!$B159)","v":"Lire à haute voix et de manière expressive un texte bref après répétition"},{"$f":"'.descripteurs'!$C159","v":"Lire à haute voix un court poème, un bref extrait de conte ou de théâtre "},"EOC3-1 : pour un spectacle final devant les autres classes ou familles, ou individuellement ou en groupe lors de rituels pour publier un carnet de lectures collectif ou personnel"]
[{"$f":"IF('.descripteurs'!$A160='.descripteurs'!A159,\"\",'.descripteurs'!$A160)","v":""},{"$f":"IF('.descripteurs'!$B160='.descripteurs'!B159,\"\",'.descripteurs'!$B160)","v":""},{"$f":"'.descripteurs'!$C160","v":"Lire à haute voix un emploi du temps pour faire repérer des disciplines étudiées"},"EOC3 -2 : saynète : accueil par un directeur d’école des nouveaux élèves (sur le modèle d’Harry Potter à Poudlard"]
[{"$f":"IF('.descripteurs'!$A161='.descripteurs'!A160,\"\",'.descripteurs'!$A161)","v":""},{"$f":"IF('.descripteurs'!$B161='.descripteurs'!B160,\"\",'.descripteurs'!$B161)","v":""},{"$f":"'.descripteurs'!$C161","v":"Lire les paroles d'un karaoké "},"EOC3-3 : enregistré sur youtube ou daily motion"]
[{"$f":"IF('.descripteurs'!$A162='.descripteurs'!A161,\"\",'.descripteurs'!$A162)","v":""},{"$f":"IF('.descripteurs'!$B162='.descripteurs'!B161,\"\",'.descripteurs'!$B162)","v":""},{"$f":"'.descripteurs'!$C162","v":"Lire un compte rendu médical"},"EOC3-4 : saynète ; le docteur ou le vétérinaire lit le dossier du malade, avant ou après la consultation"]
[{"$f":"IF('.descripteurs'!$A163='.descripteurs'!A162,\"\",'.descripteurs'!$A163)","v":""},{"$f":"IF('.descripteurs'!$B163='.descripteurs'!B162,\"\",'.descripteurs'!$B163)","v":""},{"$f":"'.descripteurs'!$C163","v":"Raconter une histoire courte exploitée en classe en s'aidant d'images "},"EOC3-5 : Lire un didapages ou un powerpoint effectué à partir de photos ou dessins (détournement d’un album de jeunesse : Une histoire sombre, Willy the dreamer …)"]
[{"$f":"IF('.descripteurs'!$A164='.descripteurs'!A163,\"\",'.descripteurs'!$A164)","v":""},{"$f":"IF('.descripteurs'!$B164='.descripteurs'!B163,\"\",'.descripteurs'!$B164)","v":""},{"$f":"'.descripteurs'!$C164","v":"desc_21"}]
[{"$f":"IF('.descripteurs'!$A165='.descripteurs'!A164,\"\",'.descripteurs'!$A165)","v":""},{"$f":"IF('.descripteurs'!$B165='.descripteurs'!B164,\"\",'.descripteurs'!$B165)","v":""},{"$f":"'.descripteurs'!$C165","v":"desc_22"}]
[{"$f":"IF('.descripteurs'!$A166='.descripteurs'!A165,\"\",'.descripteurs'!$A166)","v":"Lire"},{"$f":"IF('.descripteurs'!$B166='.descripteurs'!B165,\"\",'.descripteurs'!$B166)","v":"Comprendre des textes courts et simples en s'appuyant sur des éléments connus (indications, informations)"},{"$f":"'.descripteurs'!$C166","v":"Relever des noms, des mots familiers et des expressions élémentaires dans un texte "},"L1-1 : dans le texte d'une comptine, d'une chanson : relever un prénom. Dans une lettre d'un correspondant, relever les formules de politesse ; dans un journal, la date, le titre, le temps qu'il fait."]
[{"$f":"IF('.descripteurs'!$A167='.descripteurs'!A166,\"\",'.descripteurs'!$A167)","v":""},{"$f":"IF('.descripteurs'!$B167='.descripteurs'!B166,\"\",'.descripteurs'!$B167)","v":""},{"$f":"'.descripteurs'!$C167","v":"Comprendre une lettre très simple, une carte postale ou une invitation simple et brève, un courriel "},"L1-5 : Les cartes envoyées par les correspondants ; un courriel individualisé envoyé par l'enseignant, par un locuteur."]
[{"$f":"IF('.descripteurs'!$A168='.descripteurs'!A167,\"\",'.descripteurs'!$A168)","v":""},{"$f":"IF('.descripteurs'!$B168='.descripteurs'!B167,\"\",'.descripteurs'!$B168)","v":""},{"$f":"'.descripteurs'!$C168","v":"Comprendre des mots et des phrases très simples dans des annonces, des affiches, des catalogues, des programmes de télévision "},"L1-2 : dans des annonces, des affiches, des catalogues, des programmes de télévision, des publicités, des dessins humoristiques, des cartes de voeux."]
[{"$f":"IF('.descripteurs'!$A169='.descripteurs'!A168,\"\",'.descripteurs'!$A169)","v":""},{"$f":"IF('.descripteurs'!$B169='.descripteurs'!B168,\"\",'.descripteurs'!$B169)","v":""},{"$f":"'.descripteurs'!$C169","v":"Comprendre un questionnaire : date, nom, prénom, âge, domicile "},"L1-6 : pour une demande de passeport."]
[{"$f":"IF('.descripteurs'!$A170='.descripteurs'!A169,\"\",'.descripteurs'!$A170)","v":""},{"$f":"IF('.descripteurs'!$B170='.descripteurs'!B169,\"\",'.descripteurs'!$B170)","v":""},{"$f":"'.descripteurs'!$C170","v":"Comprendre une description de famille, de personne "},"L1-7 : Lire la lettre d'un correspondant  ; lire un album."]
[{"$f":"IF('.descripteurs'!$A171='.descripteurs'!A170,\"\",'.descripteurs'!$A171)","v":""},{"$f":"IF('.descripteurs'!$B171='.descripteurs'!B170,\"\",'.descripteurs'!$B171)","v":""},{"$f":"'.descripteurs'!$C171","v":"Comprendre un bulletin météorologique"},"L1-8 : diffusé sur internet ou dans un journal."]
[{"$f":"IF('.descripteurs'!$A172='.descripteurs'!A171,\"\",'.descripteurs'!$A172)","v":""},{"$f":"IF('.descripteurs'!$B172='.descripteurs'!B171,\"\",'.descripteurs'!$B172)","v":""},{"$f":"'.descripteurs'!$C172","v":"Relever des noms propres ou communs dans un texte et les relier à des personnes, lieux, événements"},"L1-9 : sur des événements culturels historiques."]
[{"$f":"IF('.descripteurs'!$A173='.descripteurs'!A172,\"\",'.descripteurs'!$A173)","v":""},{"$f":"IF('.descripteurs'!$B173='.descripteurs'!B172,\"\",'.descripteurs'!$B173)","v":""},{"$f":"'.descripteurs'!$C173","v":"Repérer des chiffres et des nombres et les associer à des horaires, dates, quantités, opérations"},"L1-10 : Comparer les trajets France _GB par bateau, par avion, par eurostar"]
[{"$f":"IF('.descripteurs'!$A174='.descripteurs'!A173,\"\",'.descripteurs'!$A174)","v":""},{"$f":"IF('.descripteurs'!$B174='.descripteurs'!B173,\"\",'.descripteurs'!$B174)","v":""},{"$f":"'.descripteurs'!$C174","v":"Comprendre un simple problème de maths "},"L1-11 : Echanger des problèmes inventés par les é avec les correspondants"]
[{"$f":"IF('.descripteurs'!$A175='.descripteurs'!A174,\"\",'.descripteurs'!$A175)","v":""},{"$f":"IF('.descripteurs'!$B175='.descripteurs'!B174,\"\",'.descripteurs'!$B175)","v":""},{"$f":"'.descripteurs'!$C175","v":"Comprendre les ingrédients essentiels d'une recette, d'un sandwich, d'un petit déjeuner"},"L1-12 : sur les sites d'une chaîne hôtelière"]
[{"$f":"IF('.descripteurs'!$A176='.descripteurs'!A175,\"\",'.descripteurs'!$A176)","v":""},{"$f":"IF('.descripteurs'!$B176='.descripteurs'!B175,\"\",'.descripteurs'!$B176)","v":""},{"$f":"'.descripteurs'!$C176","v":"Comprendre une légende, un plan de ville, des panneaux d'indication  pour retrouver des rues ou des bâtiments principaux (bibliothèque, piscine, musée...)"},"L1-13 : Vérifier l'emplacement de l'école des correspondants et des lieux sportifs, culturels alentour  pour une présentation aux familles ou aux autres classes"]
[{"$f":"IF('.descripteurs'!$A177='.descripteurs'!A176,\"\",'.descripteurs'!$A177)","v":""},{"$f":"IF('.descripteurs'!$B177='.descripteurs'!B176,\"\",'.descripteurs'!$B177)","v":""},{"$f":"'.descripteurs'!$C177","v":"Retrouver des mots connus dans une grille de mots cachés, fléchés ..."},"L1-14 : Echange de grilles constituées pr les é eux-mêmes d'après un champ lexical défini"]
[{"$f":"IF('.descripteurs'!$A178='.descripteurs'!A177,\"\",'.descripteurs'!$A178)","v":""},{"$f":"IF('.descripteurs'!$B178='.descripteurs'!B177,\"\",'.descripteurs'!$B178)","v":""},{"$f":"'.descripteurs'!$C178","v":"Reconnaître des mots sur des emballages alimentaires"},"L1-15 : Consulter le site de magasins de grande distribution pour opérer une commande fictive"]
[{"$f":"IF('.descripteurs'!$A179='.descripteurs'!A178,\"\",'.descripteurs'!$A179)","v":""},{"$f":"IF('.descripteurs'!$B179='.descripteurs'!B178,\"\",'.descripteurs'!$B179)","v":""},{"$f":"'.descripteurs'!$C179","v":"Comprendre des consignes simples (relier, entourer, surligner, barrer, cocher)"},"L1-3 : relier, entourer, surligner, barrer, cocher"]
[{"$f":"IF('.descripteurs'!$A180='.descripteurs'!A179,\"\",'.descripteurs'!$A180)","v":""},{"$f":"IF('.descripteurs'!$B180='.descripteurs'!B179,\"\",'.descripteurs'!$B180)","v":""},{"$f":"'.descripteurs'!$C180","v":"Comprendre les consignes dans une règle de jeu "},"L1-16 : pour organiser une journée spéciale consacrée à la langue étrangère"]
[{"$f":"IF('.descripteurs'!$A181='.descripteurs'!A180,\"\",'.descripteurs'!$A181)","v":""},{"$f":"IF('.descripteurs'!$B181='.descripteurs'!B180,\"\",'.descripteurs'!$B181)","v":""},{"$f":"'.descripteurs'!$C181","v":"Comprendre les noms des sports "},"L1-17 : liés à un pays en particulier pour une exposition"]
[{"$f":"IF('.descripteurs'!$A182='.descripteurs'!A181,\"\",'.descripteurs'!$A182)","v":""},{"$f":"IF('.descripteurs'!$B182='.descripteurs'!B181,\"\",'.descripteurs'!$B182)","v":""},{"$f":"'.descripteurs'!$C182","v":"Comprendre des phrases courtes sur un anniversaire"},"L1-4 : Repérer les cartes d'anniversaire parmi des e-cartes."]
[{"$f":"IF('.descripteurs'!$A183='.descripteurs'!A182,\"\",'.descripteurs'!$A183)","v":""},{"$f":"IF('.descripteurs'!$B183='.descripteurs'!B182,\"\",'.descripteurs'!$B183)","v":""},{"$f":"'.descripteurs'!$C183","v":"Comprendre le texte d'une chanson"},"L1-18 : Relier la chanson à une fête calendaire (pour un exposé)"]
[{"$f":"IF('.descripteurs'!$A184='.descripteurs'!A183,\"\",'.descripteurs'!$A184)","v":""},{"$f":"IF('.descripteurs'!$B184='.descripteurs'!B183,\"\",'.descripteurs'!$B184)","v":""},{"$f":"'.descripteurs'!$C184","v":"Chercher et trouver un mot dans un dictionnaire"},"L1-19 : pour comprendre la lettre du coorespondant, pour préparer des mots fléchés"]
[{"$f":"IF('.descripteurs'!$A185='.descripteurs'!A184,\"\",'.descripteurs'!$A185)","v":""},{"$f":"IF('.descripteurs'!$B185='.descripteurs'!B184,\"\",'.descripteurs'!$B185)","v":""},{"$f":"'.descripteurs'!$C185","v":"Comprendre des phrases sur l'école"},"L1-20 : Présenter une école étrangère d'après son site internet"]
[{"$f":"IF('.descripteurs'!$A186='.descripteurs'!A185,\"\",'.descripteurs'!$A186)","v":""},{"$f":"IF('.descripteurs'!$B186='.descripteurs'!B185,\"\",'.descripteurs'!$B186)","v":""},{"$f":"'.descripteurs'!$C186","v":"Comprendre un emploi du temps"},"L1-21 : Pour préparer une saynète : directeur d'école / famille"]
[{"$f":"IF('.descripteurs'!$A187='.descripteurs'!A186,\"\",'.descripteurs'!$A187)","v":""},{"$f":"IF('.descripteurs'!$B187='.descripteurs'!B186,\"\",'.descripteurs'!$B187)","v":""},{"$f":"'.descripteurs'!$C187","v":"desc_23"}]
[{"$f":"IF('.descripteurs'!$A188='.descripteurs'!A187,\"\",'.descripteurs'!$A188)","v":""},{"$f":"IF('.descripteurs'!$B188='.descripteurs'!B187,\"\",'.descripteurs'!$B188)","v":""},{"$f":"'.descripteurs'!$C188","v":"desc_24"}]
[{"$f":"IF('.descripteurs'!$A189='.descripteurs'!A188,\"\",'.descripteurs'!$A189)","v":""},{"$f":"IF('.descripteurs'!$B189='.descripteurs'!B188,\"\",'.descripteurs'!$B189)","v":"Se faire une idée du contenu d'un texte informatif simple, accompagné éventuellement d'un document visuel "},{"$f":"'.descripteurs'!$C189","v":"Comprendre un menu, une recette, une liste de courses"},"L2-2 : saynète : au restaurant, dans une cuisine, dans un magasin"]
[{"$f":"IF('.descripteurs'!$A190='.descripteurs'!A189,\"\",'.descripteurs'!$A190)","v":""},{"$f":"IF('.descripteurs'!$B190='.descripteurs'!B189,\"\",'.descripteurs'!$B190)","v":""},{"$f":"'.descripteurs'!$C190","v":"Comprendre une enquête, un tableau à double entrée"},"L2-3 : Enquête établie par les correspondants sur leurs habitudes de vie (transport, tv, sports ...)"]
[{"$f":"IF('.descripteurs'!$A191='.descripteurs'!A190,\"\",'.descripteurs'!$A191)","v":""},{"$f":"IF('.descripteurs'!$B191='.descripteurs'!B190,\"\",'.descripteurs'!$B191)","v":""},{"$f":"'.descripteurs'!$C191","v":"Comprendre une carte, un plan, des panneaux"},"L2-4 : saynète : un policier renseigne un touriste perdu"]
[{"$f":"IF('.descripteurs'!$A192='.descripteurs'!A191,\"\",'.descripteurs'!$A192)","v":""},{"$f":"IF('.descripteurs'!$B192='.descripteurs'!B191,\"\",'.descripteurs'!$B192)","v":""},{"$f":"'.descripteurs'!$C192","v":"Comprendre une description physique d'un animal, d'une personne"},"L2-5 : Quizz : d'après un extrait de roman : de quel personnage s'agit-il ?"]
[{"$f":"IF('.descripteurs'!$A193='.descripteurs'!A192,\"\",'.descripteurs'!$A193)","v":""},{"$f":"IF('.descripteurs'!$B193='.descripteurs'!B192,\"\",'.descripteurs'!$B193)","v":""},{"$f":"'.descripteurs'!$C193","v":"Comprendre un bulletin météorologique"},"L2-1 : Rituels : pour présenter la météo du jour"]
[{"$f":"IF('.descripteurs'!$A194='.descripteurs'!A193,\"\",'.descripteurs'!$A194)","v":""},{"$f":"IF('.descripteurs'!$B194='.descripteurs'!B193,\"\",'.descripteurs'!$B194)","v":""},{"$f":"'.descripteurs'!$C194","v":"Comprendre un programme de voyage, de séjour (réel ou virtuel)"},"L2-6 : Saynète : dans une agence de voyage"]
[{"$f":"IF('.descripteurs'!$A195='.descripteurs'!A194,\"\",'.descripteurs'!$A195)","v":""},{"$f":"IF('.descripteurs'!$B195='.descripteurs'!B194,\"\",'.descripteurs'!$B195)","v":""},{"$f":"'.descripteurs'!$C195","v":"Comprendre des horaires, des tarifs sur une brochure, un site web"},"L2-7 : Saynète : dans une agence de voyage"]
[{"$f":"IF('.descripteurs'!$A196='.descripteurs'!A195,\"\",'.descripteurs'!$A196)","v":""},{"$f":"IF('.descripteurs'!$B196='.descripteurs'!B195,\"\",'.descripteurs'!$B196)","v":""},{"$f":"'.descripteurs'!$C196","v":"Comprendre un mode d'emploi"},"L2-8 : Pour pratiquer un jeu de société simple"]
[{"$f":"IF('.descripteurs'!$A197='.descripteurs'!A196,\"\",'.descripteurs'!$A197)","v":""},{"$f":"IF('.descripteurs'!$B197='.descripteurs'!B196,\"\",'.descripteurs'!$B197)","v":""},{"$f":"'.descripteurs'!$C197","v":"Cocher un choix de  petit déjeuner (continental ou English, d'un sandwich, d'une lunch box, d'un lunch, d'un dinner"},"L2-9 : Saynète : au restaurant"]
[{"$f":"IF('.descripteurs'!$A198='.descripteurs'!A197,\"\",'.descripteurs'!$A198)","v":""},{"$f":"IF('.descripteurs'!$B198='.descripteurs'!B197,\"\",'.descripteurs'!$B198)","v":""},{"$f":"'.descripteurs'!$C198","v":"Catégoriser des mots selon le sens (couleurs, parties du corps, vêtements)"},"L2-10 : Pour écrire un poème, ou construire des mots fléchés ou barrés à s'échanger ou pour un diaporama, avec une carte heuristique"]
[{"$f":"IF('.descripteurs'!$A199='.descripteurs'!A198,\"\",'.descripteurs'!$A199)","v":""},{"$f":"IF('.descripteurs'!$B199='.descripteurs'!B198,\"\",'.descripteurs'!$B199)","v":""},{"$f":"'.descripteurs'!$C199","v":"Compléter une enquête de satisfaction "},"L2-11 : Enquête menée par les é  sur les menus de la cantine"]
[{"$f":"IF('.descripteurs'!$A200='.descripteurs'!A199,\"\",'.descripteurs'!$A200)","v":""},{"$f":"IF('.descripteurs'!$B200='.descripteurs'!B199,\"\",'.descripteurs'!$B200)","v":""},{"$f":"'.descripteurs'!$C200","v":"Comprendre le sens global d'une histoire drôle, d'un album, d'un texte documentaire, d'un dialogue"},"L2-12 : Rituels : pour présenter un document à la classe en français (club lecture)"]
[{"$f":"IF('.descripteurs'!$A201='.descripteurs'!A200,\"\",'.descripteurs'!$A201)","v":""},{"$f":"IF('.descripteurs'!$B201='.descripteurs'!B200,\"\",'.descripteurs'!$B201)","v":""},{"$f":"'.descripteurs'!$C201","v":"Comprendre les bulles d'une bande dessinée à l'aide des mots connus, des images"},"L2-13 : Saynète : pour jouer un extrait ensuite"]
[{"$f":"IF('.descripteurs'!$A202='.descripteurs'!A201,\"\",'.descripteurs'!$A202)","v":""},{"$f":"IF('.descripteurs'!$B202='.descripteurs'!B201,\"\",'.descripteurs'!$B202)","v":""},{"$f":"'.descripteurs'!$C202","v":"Connaître les onomatopées"},"L2-14 : Rituels : à préparer par les é pour les présenter en quizz à la classe"]
[{"$f":"IF('.descripteurs'!$A203='.descripteurs'!A202,\"\",'.descripteurs'!$A203)","v":""},{"$f":"IF('.descripteurs'!$B203='.descripteurs'!B202,\"\",'.descripteurs'!$B203)","v":""},{"$f":"'.descripteurs'!$C203","v":"Comprendre le texte  d'une comptine"},"L2-15 : Pour la dire et chorégraphier ensuite (spectacle)"]
[{"$f":"IF('.descripteurs'!$A204='.descripteurs'!A203,\"\",'.descripteurs'!$A204)","v":""},{"$f":"IF('.descripteurs'!$B204='.descripteurs'!B203,\"\",'.descripteurs'!$B204)","v":""},{"$f":"'.descripteurs'!$C204","v":"desc_25"}]
[{"$f":"IF('.descripteurs'!$A205='.descripteurs'!A204,\"\",'.descripteurs'!$A205)","v":""},{"$f":"IF('.descripteurs'!$B205='.descripteurs'!B204,\"\",'.descripteurs'!$B205)","v":""},{"$f":"'.descripteurs'!$C205","v":"desc_26"}]
[{"$f":"IF('.descripteurs'!$A206='.descripteurs'!A205,\"\",'.descripteurs'!$A206)","v":"Réagir et dialoguer (interaction orale)"},{"$f":"IF('.descripteurs'!$B206='.descripteurs'!B205,\"\",'.descripteurs'!$B206)","v":"Communiquer, au besoin avec des pauses pour chercher ses mots"},{"$f":"'.descripteurs'!$C206","v":"Parler du temps qu'il fait "},"RD1-1 : Lors des rituels, chaque matin, en prévision pour la journée."]
[{"$f":"IF('.descripteurs'!$A207='.descripteurs'!A206,\"\",'.descripteurs'!$A207)","v":""},{"$f":"IF('.descripteurs'!$B207='.descripteurs'!B206,\"\",'.descripteurs'!$B207)","v":""},{"$f":"'.descripteurs'!$C207","v":"Dire : \" Merci, s'il vous plaît, excusez-moi \" "},"RD1-2 : A utiliser en contexte de la vie de classe."]
[{"$f":"IF('.descripteurs'!$A208='.descripteurs'!A207,\"\",'.descripteurs'!$A208)","v":""},{"$f":"IF('.descripteurs'!$B208='.descripteurs'!B207,\"\",'.descripteurs'!$B208)","v":""},{"$f":"'.descripteurs'!$C208","v":"Poser des questions sur des nombres, des quantités, le prix et l'heure et y répondre"},"RD1-3 : Lors des rituels, C2, à l'écoute du menu de la cantine, inviter les é à s'exprimer sur leurs goûts. C3 : dialogue entre les 2 présentateurs du -3 : menu du jour."]
[{"$f":"IF('.descripteurs'!$A209='.descripteurs'!A208,\"\",'.descripteurs'!$A209)","v":""},{"$f":"IF('.descripteurs'!$B209='.descripteurs'!B208,\"\",'.descripteurs'!$B209)","v":""},{"$f":"'.descripteurs'!$C209","v":"Exprimer ses goûts et réagir à l'expression des goûts d'autrui "},"RD1-4 : En contexte de vie de classe, également hors séance de langue."]
[{"$f":"IF('.descripteurs'!$A210='.descripteurs'!A209,\"\",'.descripteurs'!$A210)","v":""},{"$f":"IF('.descripteurs'!$B210='.descripteurs'!B209,\"\",'.descripteurs'!$B210)","v":""},{"$f":"'.descripteurs'!$C210","v":"Exprimer son accord et son désaccord "},"RD1-5 : En contexte de vie de classe, également hors séance de langue."]
[{"$f":"IF('.descripteurs'!$A211='.descripteurs'!A210,\"\",'.descripteurs'!$A211)","v":""},{"$f":"IF('.descripteurs'!$B211='.descripteurs'!B210,\"\",'.descripteurs'!$B211)","v":""},{"$f":"'.descripteurs'!$C211","v":"Parler du temps avec des expressions telles que : la semaine dernière, vendredi prochain, en Novembre, à 3 heures "},"RD1-6 : En contexte de vie de classe pour l'heure. En saynète marchande pour nombre, quantités et prix."]
[{"$f":"IF('.descripteurs'!$A212='.descripteurs'!A211,\"\",'.descripteurs'!$A212)","v":""},{"$f":"IF('.descripteurs'!$B212='.descripteurs'!B211,\"\",'.descripteurs'!$B212)","v":""},{"$f":"'.descripteurs'!$C212","v":"Demander son chemin et répéter les instructions pour vérifier qu'il a bien compris "},"RD1-7 : Pour les décisions prises au conseil de vie de classe (expliquer le parallèle avec une situation de travail commune à plusieurs collègues d'origine étrangère travaillant sur le même projet)."]
[{"$f":"IF('.descripteurs'!$A213='.descripteurs'!A212,\"\",'.descripteurs'!$A213)","v":""},{"$f":"IF('.descripteurs'!$B213='.descripteurs'!B212,\"\",'.descripteurs'!$B213)","v":""},{"$f":"'.descripteurs'!$C213","v":"Répondre et poser des questions sur la localisation, les couleurs, les formes "},"RD1-8 : Lors des rituels, sur une mappemonde en improvisation ou d'après internet en informations données le jour même."]
[{"$f":"IF('.descripteurs'!$A214='.descripteurs'!A213,\"\",'.descripteurs'!$A214)","v":""},{"$f":"IF('.descripteurs'!$B214='.descripteurs'!B213,\"\",'.descripteurs'!$B214)","v":""},{"$f":"'.descripteurs'!$C214","v":"Se décrire et poser des questions sur la description d'autrui, ses vêtements"},"RD1-9 : Saynète : un policier et un touriste égaré à Londres."]
[{"$f":"IF('.descripteurs'!$A215='.descripteurs'!A214,\"\",'.descripteurs'!$A215)","v":""},{"$f":"IF('.descripteurs'!$B215='.descripteurs'!B214,\"\",'.descripteurs'!$B215)","v":""},{"$f":"'.descripteurs'!$C215","v":"Répondre et poser des questions sur les disciplines scolaires"},"RD1-10 : Saynète : Effectuer une commande téléphonique à un designer pour un objet improbable à faire deviner aux autres é."]
[{"$f":"IF('.descripteurs'!$A216='.descripteurs'!A215,\"\",'.descripteurs'!$A216)","v":""},{"$f":"IF('.descripteurs'!$B216='.descripteurs'!B215,\"\",'.descripteurs'!$B216)","v":""},{"$f":"'.descripteurs'!$C216","v":"Dire son incompréhension ou son ignorance"},"RD1-11 : Saynète : interview d'un journaliste et d'un habitant de la terre (s'inspirer de l'album : la famille totem) ou d'une autre planète."]
[{"$f":"IF('.descripteurs'!$A217='.descripteurs'!A216,\"\",'.descripteurs'!$A217)","v":""},{"$f":"IF('.descripteurs'!$B217='.descripteurs'!B216,\"\",'.descripteurs'!$B217)","v":""},{"$f":"'.descripteurs'!$C217","v":"Demander de répéter, d'expliquer sans traduire"},"RD1-12 : Saynète : des parents inscrivent leur enfant dans dans une nouvelle école ; échange avec le directeur (trice)."]
[{"$f":"IF('.descripteurs'!$A218='.descripteurs'!A217,\"\",'.descripteurs'!$A218)","v":""},{"$f":"IF('.descripteurs'!$B218='.descripteurs'!B217,\"\",'.descripteurs'!$B218)","v":""},{"$f":"'.descripteurs'!$C218","v":"Répondre et questionner sur ses vacances"},"RD1-13 : Saynète : rencontre de deux amis  pendant les vacances."]
[{"$f":"IF('.descripteurs'!$A219='.descripteurs'!A218,\"\",'.descripteurs'!$A219)","v":""},{"$f":"IF('.descripteurs'!$B219='.descripteurs'!B218,\"\",'.descripteurs'!$B219)","v":""},{"$f":"'.descripteurs'!$C219","v":"Etre capable de parler plus lentement, de paraphraser ou de mimer pour être compris"},"RD1-14 : Saynète : rencontre entre un habitant natif monolingue et un touriste étranger"]
[{"$f":"IF('.descripteurs'!$A220='.descripteurs'!A219,\"\",'.descripteurs'!$A220)","v":""},{"$f":"IF('.descripteurs'!$B220='.descripteurs'!B219,\"\",'.descripteurs'!$B220)","v":""},{"$f":"'.descripteurs'!$C220","v":"Répondre et questionner pour jouer aux cartes"},"RD1-15 : En situation pour jouer au jeu de sept familles ou à la bataille"]
[{"$f":"IF('.descripteurs'!$A221='.descripteurs'!A220,\"\",'.descripteurs'!$A221)","v":""},{"$f":"IF('.descripteurs'!$B221='.descripteurs'!B220,\"\",'.descripteurs'!$B221)","v":""},{"$f":"'.descripteurs'!$C221","v":"Demander à son interlocuteur de parler moins vite, plus fort ..."},"RD1-16 : Lors des rituels, entre les é présentateurs et le reste de la classe."]
[{"$f":"IF('.descripteurs'!$A222='.descripteurs'!A221,\"\",'.descripteurs'!$A222)","v":""},{"$f":"IF('.descripteurs'!$B222='.descripteurs'!B221,\"\",'.descripteurs'!$B222)","v":""},{"$f":"'.descripteurs'!$C222","v":"desc_27"}]
[{"$f":"IF('.descripteurs'!$A223='.descripteurs'!A222,\"\",'.descripteurs'!$A223)","v":""},{"$f":"IF('.descripteurs'!$B223='.descripteurs'!B222,\"\",'.descripteurs'!$B223)","v":""},{"$f":"'.descripteurs'!$C223","v":"desc_28"}]
[{"$f":"IF('.descripteurs'!$A224='.descripteurs'!A223,\"\",'.descripteurs'!$A224)","v":""},{"$f":"IF('.descripteurs'!$B224='.descripteurs'!B223,\"\",'.descripteurs'!$B224)","v":"Se présenter, présenter quelqu'un, demander à quelqu'un de ses nouvelles en utilisant les formes de politesse les plus élémentaires, accueil et prise de congé"},{"$f":"'.descripteurs'!$C224","v":"Saluer quelqu'un à plusieurs périodes dans la journée "},"RD2-1 : En situation de vie de classe."]
[{"$f":"IF('.descripteurs'!$A225='.descripteurs'!A224,\"\",'.descripteurs'!$A225)","v":""},{"$f":"IF('.descripteurs'!$B225='.descripteurs'!B224,\"\",'.descripteurs'!$B225)","v":""},{"$f":"'.descripteurs'!$C225","v":"Demander des nouvelles de quelqu'un et y réagir "},"RD2-2 : En situation de vie de classe."]
[{"$f":"IF('.descripteurs'!$A226='.descripteurs'!A225,\"\",'.descripteurs'!$A226)","v":""},{"$f":"IF('.descripteurs'!$B226='.descripteurs'!B225,\"\",'.descripteurs'!$B226)","v":""},{"$f":"'.descripteurs'!$C226","v":"Prendre congé "},"RD2-3 : Et envoi de la vidéo aux correspondants."]
[{"$f":"IF('.descripteurs'!$A227='.descripteurs'!A226,\"\",'.descripteurs'!$A227)","v":""},{"$f":"IF('.descripteurs'!$B227='.descripteurs'!B226,\"\",'.descripteurs'!$B227)","v":""},{"$f":"'.descripteurs'!$C227","v":"Se présenter en répondant à des questions simples sur son identité "},"RD2-4 : Lors des rituels, par les é présentateurs."]
[{"$f":"IF('.descripteurs'!$A228='.descripteurs'!A227,\"\",'.descripteurs'!$A228)","v":""},{"$f":"IF('.descripteurs'!$B228='.descripteurs'!B227,\"\",'.descripteurs'!$B228)","v":""},{"$f":"'.descripteurs'!$C228","v":"Présenter quelqu'un et réagir de façon appropriée quand on lui présente quelqu'un "},"RD2-5 : Lors des rituels par les é présentateurs."]
[{"$f":"IF('.descripteurs'!$A229='.descripteurs'!A228,\"\",'.descripteurs'!$A229)","v":""},{"$f":"IF('.descripteurs'!$B229='.descripteurs'!B228,\"\",'.descripteurs'!$B229)","v":""},{"$f":"'.descripteurs'!$C229","v":"Indiquer un itinéraire simple à quelqu'un, avec des supports appropriés (carte, plan, …)"},"RD2-6 : Saynète : rencontre inopinée de 3 personnages de conte, fim, roman…"]
[{"$f":"IF('.descripteurs'!$A230='.descripteurs'!A229,\"\",'.descripteurs'!$A230)","v":""},{"$f":"IF('.descripteurs'!$B230='.descripteurs'!B229,\"\",'.descripteurs'!$B230)","v":""},{"$f":"'.descripteurs'!$C230","v":"Remercier et répondre \" pas de quoi \""},"RD2-7 : Saynète : un policier renseigne un touriste."]
[{"$f":"IF('.descripteurs'!$A231='.descripteurs'!A230,\"\",'.descripteurs'!$A231)","v":""},{"$f":"IF('.descripteurs'!$B231='.descripteurs'!B230,\"\",'.descripteurs'!$B231)","v":""},{"$f":"'.descripteurs'!$C231","v":"Demander poliment une permission"},"RD2-8 : En situation de vie de classe."]
[{"$f":"IF('.descripteurs'!$A232='.descripteurs'!A231,\"\",'.descripteurs'!$A232)","v":""},{"$f":"IF('.descripteurs'!$B232='.descripteurs'!B231,\"\",'.descripteurs'!$B232)","v":""},{"$f":"'.descripteurs'!$C232","v":"Présenter des excuses"},"RD2-9 : En situation de vie de classe."]
[{"$f":"IF('.descripteurs'!$A233='.descripteurs'!A232,\"\",'.descripteurs'!$A233)","v":""},{"$f":"IF('.descripteurs'!$B233='.descripteurs'!B232,\"\",'.descripteurs'!$B233)","v":""},{"$f":"'.descripteurs'!$C233","v":"Féliciter quelqu'un"},"RD2-10 : En situation de vie de classe."]
[{"$f":"IF('.descripteurs'!$A234='.descripteurs'!A233,\"\",'.descripteurs'!$A234)","v":""},{"$f":"IF('.descripteurs'!$B234='.descripteurs'!B233,\"\",'.descripteurs'!$B234)","v":""},{"$f":"'.descripteurs'!$C234","v":"Souhaiter bon anniversaire, une fête..."},"RD2-11 : En situation de vie de classe pour congratuler son voisin qui réussit. (Eloge de la gentillesse)"]
[{"$f":"IF('.descripteurs'!$A235='.descripteurs'!A234,\"\",'.descripteurs'!$A235)","v":""},{"$f":"IF('.descripteurs'!$B235='.descripteurs'!B234,\"\",'.descripteurs'!$B235)","v":""},{"$f":"'.descripteurs'!$C235","v":"desc_29"}]
[{"$f":"IF('.descripteurs'!$A236='.descripteurs'!A235,\"\",'.descripteurs'!$A236)","v":""},{"$f":"IF('.descripteurs'!$B236='.descripteurs'!B235,\"\",'.descripteurs'!$B236)","v":""},{"$f":"'.descripteurs'!$C236","v":"desc_30"}]
[{"$f":"IF('.descripteurs'!$A237='.descripteurs'!A236,\"\",'.descripteurs'!$A237)","v":""},{"$f":"IF('.descripteurs'!$B237='.descripteurs'!B236,\"\",'.descripteurs'!$B237)","v":"Répondre à des questions et en poser (sujets familiers ou besoins immédiats)"},{"$f":"'.descripteurs'!$C237","v":"Demander des objets à autrui et lui en donner "},"RD3-1 : A instituer par l'E tout au long de la journée."]
[{"$f":"IF('.descripteurs'!$A238='.descripteurs'!A237,\"\",'.descripteurs'!$A238)","v":""},{"$f":"IF('.descripteurs'!$B238='.descripteurs'!B237,\"\",'.descripteurs'!$B238)","v":""},{"$f":"'.descripteurs'!$C238","v":"Réagir à des questions simples qui lui sont adressées "},"RD3-2 : En situation de vie de classe."]
[{"$f":"IF('.descripteurs'!$A239='.descripteurs'!A238,\"\",'.descripteurs'!$A239)","v":""},{"$f":"IF('.descripteurs'!$B239='.descripteurs'!B238,\"\",'.descripteurs'!$B239)","v":""},{"$f":"'.descripteurs'!$C239","v":"Proposer quelque chose et réagir à une proposition "},"RD3-3 : Vidéo pour envoi ou saynète : passage à la douane, ou inscription dans une école."]
[{"$f":"IF('.descripteurs'!$A240='.descripteurs'!A239,\"\",'.descripteurs'!$A240)","v":""},{"$f":"IF('.descripteurs'!$B240='.descripteurs'!B239,\"\",'.descripteurs'!$B240)","v":""},{"$f":"'.descripteurs'!$C240","v":"Réagir à des instructions simples et brèves, énoncées lentement"},"RD3-4 : Lors des rituels : quizz au sujet de personnages d'album, de conte, de films..."]
[{"$f":"IF('.descripteurs'!$A241='.descripteurs'!A240,\"\",'.descripteurs'!$A241)","v":""},{"$f":"IF('.descripteurs'!$B241='.descripteurs'!B240,\"\",'.descripteurs'!$B241)","v":""},{"$f":"'.descripteurs'!$C241","v":"Demander à son interlocuteur de répéter ses propos, en s'aidant éventuellement de gestes ou de mimiques"},"RD3-5 : En situation de vie de classe."]
[{"$f":"IF('.descripteurs'!$A242='.descripteurs'!A241,\"\",'.descripteurs'!$A242)","v":""},{"$f":"IF('.descripteurs'!$B242='.descripteurs'!B241,\"\",'.descripteurs'!$B242)","v":""},{"$f":"'.descripteurs'!$C242","v":"Répondre à des questions concernant ses nom, prénom, âge, adresse, nationalité, famille, animaux, numéro de téléphone, humeur/sentiment, date d'anniversaire..."},"RD3-6 : Lors des rituels par les é présentateurs au sujet du menu du jour."]
[{"$f":"IF('.descripteurs'!$A243='.descripteurs'!A242,\"\",'.descripteurs'!$A243)","v":""},{"$f":"IF('.descripteurs'!$B243='.descripteurs'!B242,\"\",'.descripteurs'!$B243)","v":""},{"$f":"'.descripteurs'!$C243","v":"Poser des questions concernant l'identité et l'entourage d'un interlocuteur"},"RD3-7 : Lors des rituels par les é présentateurs."]
[{"$f":"IF('.descripteurs'!$A244='.descripteurs'!A243,\"\",'.descripteurs'!$A244)","v":""},{"$f":"IF('.descripteurs'!$B244='.descripteurs'!B243,\"\",'.descripteurs'!$B244)","v":""},{"$f":"'.descripteurs'!$C244","v":"Demander et donner des informations sur une tierce personne"},"RD3-8 : Saynète : dialogue entre un adulte et un enfant au sujet de (vrais) jouets."]
[{"$f":"IF('.descripteurs'!$A245='.descripteurs'!A244,\"\",'.descripteurs'!$A245)","v":""},{"$f":"IF('.descripteurs'!$B245='.descripteurs'!B244,\"\",'.descripteurs'!$B245)","v":""},{"$f":"'.descripteurs'!$C245","v":"Répondre et questionner sur les descriptions et activités animales"},"RD3-9 : Saynète d'un marché."]
[{"$f":"IF('.descripteurs'!$A246='.descripteurs'!A245,\"\",'.descripteurs'!$A246)","v":""},{"$f":"IF('.descripteurs'!$B246='.descripteurs'!B245,\"\",'.descripteurs'!$B246)","v":""},{"$f":"'.descripteurs'!$C246","v":"Répondre et poser des questions sur les pièces d'une habitation"},"RD3-10 : Saynète : vous êtes l'hôte d'une famille native mais vous ne comprenez pas ce qu'elle vous dit."]
[{"$f":"IF('.descripteurs'!$A247='.descripteurs'!A246,\"\",'.descripteurs'!$A247)","v":""},{"$f":"IF('.descripteurs'!$B247='.descripteurs'!B246,\"\",'.descripteurs'!$B247)","v":""},{"$f":"'.descripteurs'!$C247","v":"Répondre et poser des questions sur ce que l'on prend ou pas aux trois repas"},"RD3-11 : Saynète : vous êtes le témoin d'un vol improbable et êtes interrogé par la police qui dessine un portrait-robot."]
[{"$f":"IF('.descripteurs'!$A248='.descripteurs'!A247,\"\",'.descripteurs'!$A248)","v":""},{"$f":"IF('.descripteurs'!$B248='.descripteurs'!B247,\"\",'.descripteurs'!$B248)","v":""},{"$f":"'.descripteurs'!$C248","v":"Proposer et refuser des aliments"},"RD3-12 : saynète : interview d'un vétérianire de zoo."]
[{"$f":"IF('.descripteurs'!$A249='.descripteurs'!A248,\"\",'.descripteurs'!$A249)","v":""},{"$f":"IF('.descripteurs'!$B249='.descripteurs'!B248,\"\",'.descripteurs'!$B249)","v":""},{"$f":"'.descripteurs'!$C249","v":"Exprimer sa faim, sa soif"},"RD3-13 : Saynète : RDV dans une agence immobilière."]
[{"$f":"IF('.descripteurs'!$A250='.descripteurs'!A249,\"\",'.descripteurs'!$A250)","v":""},{"$f":"IF('.descripteurs'!$B250='.descripteurs'!B249,\"\",'.descripteurs'!$B250)","v":""},{"$f":"'.descripteurs'!$C250","v":"Demander un objet à quelqu'un"},"RD3-14 : Saynète : vous êtes l'hôte d'une famille native ; dialogue sur vos préférences alimentaires)"]
[{"$f":"IF('.descripteurs'!$A251='.descripteurs'!A250,\"\",'.descripteurs'!$A251)","v":""},{"$f":"IF('.descripteurs'!$B251='.descripteurs'!B250,\"\",'.descripteurs'!$B251)","v":""},{"$f":"'.descripteurs'!$C251","v":"Dire et demander à son interlocuteur ce qu'il aime ou pas : manger, boire, faire"},"RD3-15 : saynète de la vie familiale au moment du repas"]
[{"$f":"IF('.descripteurs'!$A252='.descripteurs'!A251,\"\",'.descripteurs'!$A252)","v":""},{"$f":"IF('.descripteurs'!$B252='.descripteurs'!B251,\"\",'.descripteurs'!$B252)","v":""},{"$f":"'.descripteurs'!$C252","v":"Demander et donner une date, heure, lieu de rendez-vous"},"RD3-16 :  En situation de vie de classe."]
[{"$f":"IF('.descripteurs'!$A253='.descripteurs'!A252,\"\",'.descripteurs'!$A253)","v":""},{"$f":"IF('.descripteurs'!$B253='.descripteurs'!B252,\"\",'.descripteurs'!$B253)","v":""},{"$f":"'.descripteurs'!$C253","v":"Indiquer et demander le temps qu'il fait "},"RD3-17 : Lors des rituels, quizz sur un événement historique."]
[{"$f":"IF('.descripteurs'!$A254='.descripteurs'!A253,\"\",'.descripteurs'!$A254)","v":""},{"$f":"IF('.descripteurs'!$B254='.descripteurs'!B253,\"\",'.descripteurs'!$B254)","v":""},{"$f":"'.descripteurs'!$C254","v":"Exprimer et comprendre une envie, un besoin"},"RD3-18 : En situation de vie de classe."]
[{"$f":"IF('.descripteurs'!$A255='.descripteurs'!A254,\"\",'.descripteurs'!$A255)","v":""},{"$f":"IF('.descripteurs'!$B255='.descripteurs'!B254,\"\",'.descripteurs'!$B255)","v":""},{"$f":"'.descripteurs'!$C255","v":"Indiquer et demander une quantité "},"RD3-19 : Saynète d'un marché."]
[{"$f":"IF('.descripteurs'!$A256='.descripteurs'!A255,\"\",'.descripteurs'!$A256)","v":""},{"$f":"IF('.descripteurs'!$B256='.descripteurs'!B255,\"\",'.descripteurs'!$B256)","v":""},{"$f":"'.descripteurs'!$C256","v":"Questionner et répondre à la description d'un paysage"},"RD3-20 : Lors des rituels, quizz géographique sur les pays."]
[{"$f":"IF('.descripteurs'!$A257='.descripteurs'!A256,\"\",'.descripteurs'!$A257)","v":""},{"$f":"IF('.descripteurs'!$B257='.descripteurs'!B256,\"\",'.descripteurs'!$B257)","v":""},{"$f":"'.descripteurs'!$C257","v":"Interroger et répondre au sujet des pratiques sportives"},"RD3-21 : Lors des rituels, quizz sur les sports."]
[{"$f":"IF('.descripteurs'!$A258='.descripteurs'!A257,\"\",'.descripteurs'!$A258)","v":""},{"$f":"IF('.descripteurs'!$B258='.descripteurs'!B257,\"\",'.descripteurs'!$B258)","v":""},{"$f":"'.descripteurs'!$C258","v":"desc_31"}]
[{"$f":"IF('.descripteurs'!$A259='.descripteurs'!A258,\"\",'.descripteurs'!$A259)","v":""},{"$f":"IF('.descripteurs'!$B259='.descripteurs'!B258,\"\",'.descripteurs'!$B259)","v":""},{"$f":"'.descripteurs'!$C259","v":"desc_32"}]
[{"$f":"IF('.descripteurs'!$A260='.descripteurs'!A259,\"\",'.descripteurs'!$A260)","v":""},{"$f":"IF('.descripteurs'!$B260='.descripteurs'!B259,\"\",'.descripteurs'!$B260)","v":"Epeler des mots familiers"},{"$f":"'.descripteurs'!$C260","v":"En situation de communication dans le cadre d'un jeu de rôle par exemple, épeler son nom, son prénom, sa nationalité, son adresse, numéro de téléphone…"},"RD4-1 : Saynète : à la douane, pour une inscription dans une école, chacun épèle ses coordonnées. Rituels : quizz : le présentateur épèle le nom, la nationalité et la ville d'un personnage célèbre."]
[{"$f":"IF('.descripteurs'!$A261='.descripteurs'!A260,\"\",'.descripteurs'!$A261)","v":""},{"$f":"IF('.descripteurs'!$B261='.descripteurs'!B260,\"\",'.descripteurs'!$B261)","v":""},{"$f":"'.descripteurs'!$C261","v":"Demander d'épeler et comprendre la réponse"},"RD4-2 : Rituels : le présentateur énonce un mot et demande à ses camarades d'épeler."]
[{"$f":"IF('.descripteurs'!$A262='.descripteurs'!A261,\"\",'.descripteurs'!$A262)","v":""},{"$f":"IF('.descripteurs'!$B262='.descripteurs'!B261,\"\",'.descripteurs'!$B262)","v":""},{"$f":"'.descripteurs'!$C262","v":"desc_33"}]
[{"$f":"IF('.descripteurs'!$A263='.descripteurs'!A262,\"\",'.descripteurs'!$A263)","v":""},{"$f":"IF('.descripteurs'!$B263='.descripteurs'!B262,\"\",'.descripteurs'!$B263)","v":""},{"$f":"'.descripteurs'!$C263","v":"desc_34"}]
[]
[]
[]
[]
[]
[]
[]
[]
[]
[]
[]
[]
[]
[]
[]
[]
[]
[]
[]
[]
[]
[]
[]
[]
[]
[]
[]
[]
[]
[]
[]
[]
[]
[]
[]
[]
[]
[]
[]
[]
[]
[]
[]
[]
[]
[]
[]
[]
[]
[]
[]
[]
[]
[]
[]
[]
[]
[]
[]
[]
[]
[]
[]
[]
[]
[]
[]
[]
[]
[]
[]
[]
[{"$f":"IF('.descripteurs'!$A368='.descripteurs'!A367,\"\",'.descripteurs'!$A368)","v":""}]
[{"$f":"IF('.descripteurs'!$A369='.descripteurs'!A368,\"\",'.descripteurs'!$A369)","v":""}]
[{"$f":"IF('.descripteurs'!$A370='.descripteurs'!A369,\"\",'.descripteurs'!$A370)","v":""}]
[{"$f":"IF('.descripteurs'!$A371='.descripteurs'!A370,\"\",'.descripteurs'!$A371)","v":""}]
[{"$f":"IF('.descripteurs'!$A372='.descripteurs'!A371,\"\",'.descripteurs'!$A372)","v":""}]
[{"$f":"IF('.descripteurs'!$A373='.descripteurs'!A372,\"\",'.descripteurs'!$A373)","v":""}]
[{"$f":"IF('.descripteurs'!$A374='.descripteurs'!A373,\"\",'.descripteurs'!$A374)","v":""}]
[{"$f":"IF('.descripteurs'!$A375='.descripteurs'!A374,\"\",'.descripteurs'!$A375)","v":""}]
[{"$f":"IF('.descripteurs'!$A376='.descripteurs'!A375,\"\",'.descripteurs'!$A376)","v":""}]
[{"$f":"IF('.descripteurs'!$A377='.descripteurs'!A376,\"\",'.descripteurs'!$A377)","v":""}]
[{"$f":"IF('.descripteurs'!$A378='.descripteurs'!A377,\"\",'.descripteurs'!$A378)","v":""}]
[{"$f":"IF('.descripteurs'!$A379='.descripteurs'!A378,\"\",'.descripteurs'!$A379)","v":""}]
[{"$f":"IF('.descripteurs'!$A380='.descripteurs'!A379,\"\",'.descripteurs'!$A380)","v":""}]
[{"$f":"IF('.descripteurs'!$A381='.descripteurs'!A380,\"\",'.descripteurs'!$A381)","v":""}]

{"sheet":"evaluation","index":6,"n_rows":349,"n_cols":34,"rows_kept":349,"cut":false,"hidden":false,"merged":[]}
["Domaine","Item","Descripteur","Validation collective",{"$f":"INDIRECT(\"liste!\"&ADDRESS(COLUMN(liste!A2)+1,ROW(liste!A2)-1))","v":"PICASSO Pablo"},{"$f":"INDIRECT(\"liste!\"&ADDRESS(COLUMN(liste!B2)+1,ROW(liste!B2)-1))","v":"FREUD Sigmund"},{"$f":"INDIRECT(\"liste!\"&ADDRESS(COLUMN(liste!C2)+1,ROW(liste!C2)-1))","v":"HOLMES Sherlock"},{"$f":"INDIRECT(\"liste!\"&ADDRESS(COLUMN(liste!D2)+1,ROW(liste!D2)-1))","v":"CHAHINE Youcef"},{"$f":"INDIRECT(\"liste!\"&ADDRESS(COLUMN(liste!E2)+1,ROW(liste!E2)-1))","v":"NOM5"},{"$f":"INDIRECT(\"liste!\"&ADDRESS(COLUMN(liste!F2)+1,ROW(liste!F2)-1))","v":"NOM6"},{"$f":"INDIRECT(\"liste!\"&ADDRESS(COLUMN(liste!G2)+1,ROW(liste!G2)-1))","v":"NOM7"},{"$f":"INDIRECT(\"liste!\"&ADDRESS(COLUMN(liste!H2)+1,ROW(liste!H2)-1))","v":"NOM8"},{"$f":"INDIRECT(\"liste!\"&ADDRESS(COLUMN(liste!I2)+1,ROW(liste!I2)-1))","v":"NOM9"},{"$f":"INDIRECT(\"liste!\"&ADDRESS(COLUMN(liste!J2)+1,ROW(liste!J2)-1))","v":"NOM10"},{"$f":"INDIRECT(\"liste!\"&ADDRESS(COLUMN(liste!K2)+1,ROW(liste!K2)-1))","v":"NOM11"},{"$f":"INDIRECT(\"liste!\"&ADDRESS(COLUMN(liste!L2)+1,ROW(liste!L2)-1))","v":"NOM12"},{"$f":"INDIRECT(\"liste!\"&ADDRESS(COLUMN(liste!M2)+1,ROW(liste!M2)-1))","v":"NOM13"},{"$f":"INDIRECT(\"liste!\"&ADDRESS(COLUMN(liste!N2)+1,ROW(liste!N2)-1))","v":"NOM14"},{"$f":"INDIRECT(\"liste!\"&ADDRESS(COLUMN(liste!O2)+1,ROW(liste!O2)-1))","v":"NOM15"},{"$f":"INDIRECT(\"liste!\"&ADDRESS(COLUMN(liste!P2)+1,ROW(liste!P2)-1))","v":"NOM16"},{"$f":"INDIRECT(\"liste!\"&ADDRESS(COLUMN(liste!Q2)+1,ROW(liste!Q2)-1))","v":"NOM17"},{"$f":"INDIRECT(\"liste!\"&ADDRESS(COLUMN(liste!R2)+1,ROW(liste!R2)-1))","v":"NOM18"},{"$f":"INDIRECT(\"liste!\"&ADDRESS(COLUMN(liste!S2)+1,ROW(liste!S2)-1))","v":"NOM19"},{"$f":"INDIRECT(\"liste!\"&ADDRESS(COLUMN(liste!T2)+1,ROW(liste!T2)-1))","v":"NOM20"},{"$f":"INDIRECT(\"liste!\"&ADDRESS(COLUMN(liste!U2)+1,ROW(liste!U2)-1))","v":"NOM21"},{"$f":"INDIRECT(\"liste!\"&ADDRESS(COLUMN(liste!V2)+1,ROW(liste!V2)-1))","v":"NOM22"},{"$f":"INDIRECT(\"liste!\"&ADDRESS(COLUMN(liste!W2)+1,ROW(liste!W2)-1))","v":"NOM23"},{"$f":"INDIRECT(\"liste!\"&ADDRESS(COLUMN(liste!X2)+1,ROW(liste!X2)-1))","v":"NOM24"},{"$f":"INDIRECT(\"liste!\"&ADDRESS(COLUMN(liste!Y2)+1,ROW(liste!Y2)-1))","v":"NOM25"},{"$f":"INDIRECT(\"liste!\"&ADDRESS(COLUMN(liste!Z2)+1,ROW(liste!Z2)-1))","v":"NOM26"},{"$f":"INDIRECT(\"liste!\"&ADDRESS(COLUMN(liste!AA2)+1,ROW(liste!AA2)-1))","v":"NOM27"},{"$f":"INDIRECT(\"liste!\"&ADDRESS(COLUMN(liste!AB2)+1,ROW(liste!AB2)-1))","v":"NOM28"},{"$f":"INDIRECT(\"liste!\"&ADDRESS(COLUMN(liste!AC2)+1,ROW(liste!AC2)-1))","v":"NOM29"},{"$f":"INDIRECT(\"liste!\"&ADDRESS(COLUMN(liste!AD2)+1,ROW(liste!AD2)-1))","v":"NOM30"}]
[{"$f":"IF('.descripteurs'!$A2='.descripteurs'!A1,\"\",'.descripteurs'!$A2)","v":"Ecrire"},{"$f":"IF('.descripteurs'!$B2='.descripteurs'!B1,\"\",'.descripteurs'!$B2)","v":"Copier des mots isolés et des textes courts"},{"$f":"'.descripteurs'!$C2","v":"Copier des textes courts imprimés (des listes : cadeaux, ingrédients, de courses, de menu, de lunch box, de sandwich... un court poème par exemple) "},null,{"$f":"IF($D2=0,\"\",$D2)","v":""},{"$f":"IF($D2=0,\"\",$D2)","v":""},"","","","","","","","","","","","","","","","","","","","","","","","","","","",""]
[{"$f":"IF('.descripteurs'!$A3='.descripteurs'!A2,\"\",'.descripteurs'!$A3)","v":""},{"$f":"IF('.descripteurs'!$B3='.descripteurs'!B2,\"\",'.descripteurs'!$B3)","v":""},{"$f":"'.descripteurs'!$C3","v":"Recopier des mots à partir d'un modèle (livre, affiche, tableau...)"},null,{"$f":"IF($D3=0,\"\",$D3)","v":""},"","","","","","","","","","","","","","","","","","","","","","","","","","","","",""]
[{"$f":"IF('.descripteurs'!$A4='.descripteurs'!A3,\"\",'.descripteurs'!$A4)","v":""},{"$f":"IF('.descripteurs'!$B4='.descripteurs'!B3,\"\",'.descripteurs'!$B4)","v":""},{"$f":"'.descripteurs'!$C4","v":"Compléter des grilles de mots (fléchés, codés, cachés, croisés...)"},null,{"$f":"IF($D4=0,\"\",$D4)","v":""},"","","","","","","","","","","","","","","","","","","","","","","","","","","","",""]
[{"$f":"IF('.descripteurs'!$A5='.descripteurs'!A4,\"\",'.descripteurs'!$A5)","v":""},{"$f":"IF('.descripteurs'!$B5='.descripteurs'!B4,\"\",'.descripteurs'!$B5)","v":""},{"$f":"'.descripteurs'!$C5","v":"Compléter des phrases à trous à partir d'une liste de mots en désordre"},null,{"$f":"IF($D5=0,\"\",$D5)","v":""},"","","","","","","","","","","","","","","","","","","","","","","","","","","","",""]
[{"$f":"IF('.descripteurs'!$A6='.descripteurs'!A5,\"\",'.descripteurs'!$A6)","v":""},{"$f":"IF('.descripteurs'!$B6='.descripteurs'!B5,\"\",'.descripteurs'!$B6)","v":""},{"$f":"'.descripteurs'!$C6","v":"Compléter des phrases qui permettent de se décrire à l'aide d'une liste de mots en désordre"},null,{"$f":"IF($D6=0,\"\",$D6)","v":""},"","","","","","","","","","","","","","","","","","","","","","","","","","","","",""]
[{"$f":"IF('.descripteurs'!$A7='.descripteurs'!A6,\"\",'.descripteurs'!$A7)","v":""},{"$f":"IF('.descripteurs'!$B7='.descripteurs'!B6,\"\",'.descripteurs'!$B7)","v":""},{"$f":"'.descripteurs'!$C7","v":"Copier des phrases à remettre dans l'ordre d'une histoire"},null,"","","","","","","","","","","","","","","","","","","","","","","","","","","","","",""]
[{"$f":"IF('.descripteurs'!$A8='.descripteurs'!A7,\"\",'.descripteurs'!$A8)","v":""},{"$f":"IF('.descripteurs'!$B8='.descripteurs'!B7,\"\",'.descripteurs'!$B8)","v":""},{"$f":"'.descripteurs'!$C8","v":"Compléter une chanson connue avec une liste de mots manquants "},null,"","","","","","","","","","","","","","","","","","","","","","","","","","","","","",""]
[{"$f":"IF('.descripteurs'!$A9='.descripteurs'!A8,\"\",'.descripteurs'!$A9)","v":""},{"$f":"IF('.descripteurs'!$B9='.descripteurs'!B8,\"\",'.descripteurs'!$B9)","v":""},{"$f":"'.descripteurs'!$C9","v":"Ecrire une légende ou un titre à une image, en utilisant les outils de la classe"},null,"","","","","","","","","","","","","","","","","","","","","","","","","","","","","",""]
[{"$f":"IF('.descripteurs'!$A10='.descripteurs'!A9,\"\",'.descripteurs'!$A10)","v":""},{"$f":"IF('.descripteurs'!$B10='.descripteurs'!B9,\"\",'.descripteurs'!$B10)","v":""},{"$f":"'.descripteurs'!$C10","v":"Transcrire sur l'ordinateur une phrase écrite au tableau par l'enseignant"},null,"","","","","","","","","","","","","","","","","","","","","","","","","",{"$f":"IF($D10=0,\"\",$D10)","v":""},{"$f":"IF($D10=0,\"\",$D10)","v":""},{"$f":"IF($D10=0,\"\",$D10)","v":""},{"$f":"IF($D10=0,\"\",$D10)","v":""},{"$f":"IF($D10=0,\"\",$D10)","v":""}]
[{"$f":"IF('.descripteurs'!$A11='.descripteurs'!A10,\"\",'.descripteurs'!$A11)","v":""},{"$f":"IF('.descripteurs'!$B11='.descripteurs'!B10,\"\",'.descripteurs'!$B11)","v":""},{"$f":"'.descripteurs'!$C11","v":"En se référant à un modèle, écrire des phrases courtes sur un pays de la langue étudiée"},null,"","",{"$f":"IF($D11=0,\"\",$D11)","v":""},"","","","","","","","","","","","","","","",{"$f":"IF($D11=0,\"\",$D11)","v":""},"","","","","","","","","","",""]
[{"$f":"IF('.descripteurs'!$A12='.descripteurs'!A11,\"\",'.descripteurs'!$A12)","v":""},{"$f":"IF('.descripteurs'!$B12='.descripteurs'!B11,\"\",'.descripteurs'!$B12)","v":""},{"$f":"'.descripteurs'!$C12","v":"A l'aide d'indications touristiques, écrire un texte court sur sa visite dans une capitale de la langue étudiée"},null,"","","","","","","","","","","","","","","","","","","","","","","","","","","","","",""]
[{"$f":"IF('.descripteurs'!$A13='.descripteurs'!A12,\"\",'.descripteurs'!$A13)","v":""},{"$f":"IF('.descripteurs'!$B13='.descripteurs'!B12,\"\",'.descripteurs'!$B13)","v":""},{"$f":"'.descripteurs'!$C13","v":"Recopier les titres de chansons apprises"},null,"","","","","","","","","","","","","","","","","","","","","","","","","","","","","",""]
[{"$f":"IF('.descripteurs'!$A14='.descripteurs'!A13,\"\",'.descripteurs'!$A14)","v":""},{"$f":"IF('.descripteurs'!$B14='.descripteurs'!B13,\"\",'.descripteurs'!$B14)","v":""},{"$f":"'.descripteurs'!$C14","v":"Reconstituer par étiquettes une comptine, poème appris "},null,"","","","","","","","","","","","","","","","","","","","","","","","","","","","","",""]
[{"$f":"IF('.descripteurs'!$A15='.descripteurs'!A14,\"\",'.descripteurs'!$A15)","v":""},{"$f":"IF('.descripteurs'!$B15='.descripteurs'!B14,\"\",'.descripteurs'!$B15)","v":""},{"$f":"'.descripteurs'!$C15","v":"Copier des mots pour compléter des descriptions"},null,"","","","","","","","","","","","","","","","","","","","","","","","","","","","","",""]
[{"$f":"IF('.descripteurs'!$A16='.descripteurs'!A15,\"\",'.descripteurs'!$A16)","v":""},{"$f":"IF('.descripteurs'!$B16='.descripteurs'!B15,\"\",'.descripteurs'!$B16)","v":""},{"$f":"'.descripteurs'!$C16","v":"Copier les nombres (prix, quantité, opérations, dans une comptine, âge, "},null,"","","","","","","","","","","","","","","","","","","","","","","","","","","","","",""]
[{"$f":"IF('.descripteurs'!$A17='.descripteurs'!A16,\"\",'.descripteurs'!$A17)","v":""},{"$f":"IF('.descripteurs'!$B17='.descripteurs'!B16,\"\",'.descripteurs'!$B17)","v":""},{"$f":"'.descripteurs'!$C17","v":"Remettre des mots dans l'ordre pour écrire une phrase simple"},null,"","","","","","","","","","","","","","","","","","","","","","","","","","","","","",""]
[{"$f":"IF('.descripteurs'!$A18='.descripteurs'!A17,\"\",'.descripteurs'!$A18)","v":""},{"$f":"IF('.descripteurs'!$B18='.descripteurs'!B17,\"\",'.descripteurs'!$B18)","v":""},{"$f":"'.descripteurs'!$C18","v":"Ecrire des mots et expressions relatifs à l'heure"},null,"","","","","","","","","","","","","","","","","","","","","","","","","","","","","",""]
[{"$f":"IF('.descripteurs'!$A19='.descripteurs'!A18,\"\",'.descripteurs'!$A19)","v":""},{"$f":"IF('.descripteurs'!$B19='.descripteurs'!B18,\"\",'.descripteurs'!$B19)","v":""},{"$f":"'.descripteurs'!$C19","v":"Compléter des phrases courtes sur un anniversaire"},null,"","","","","","","","","","","","","","","","","","","","","","","","","","","","","",""]
[{"$f":"IF('.descripteurs'!$A20='.descripteurs'!A19,\"\",'.descripteurs'!$A20)","v":""},{"$f":"IF('.descripteurs'!$B20='.descripteurs'!B19,\"\",'.descripteurs'!$B20)","v":""},{"$f":"'.descripteurs'!$C20","v":"desc_1"},null,"","","","","","","","","","","","","","","","","","","","","","","","","","","","","",""]
[{"$f":"IF('.descripteurs'!$A21='.descripteurs'!A20,\"\",'.descripteurs'!$A21)","v":""},{"$f":"IF('.descripteurs'!$B21='.descripteurs'!B20,\"\",'.descripteurs'!$B21)","v":""},{"$f":"'.descripteurs'!$C21","v":"desc_2"},null,"","","","","","","","","","","","","","","","","","","","","","","","","","","","","",""]
[{"$f":"IF('.descripteurs'!$A22='.descripteurs'!A21,\"\",'.descripteurs'!$A22)","v":""},{"$f":"IF('.descripteurs'!$B22='.descripteurs'!B21,\"\",'.descripteurs'!$B22)","v":"Ecrire un message électronique simple ou une courte carte postale en référence à des modèles "},{"$f":"'.descripteurs'!$C22","v":"Ecrire une courte carte de vœux, d'invitation, de remerciements, de salutations..., "},null,"","","","","","","","","","","","","","","","","","","","","","","","","","","","","",""]
[{"$f":"IF('.descripteurs'!$A23='.descripteurs'!A22,\"\",'.descripteurs'!$A23)","v":""},{"$f":"IF('.descripteurs'!$B23='.descripteurs'!B22,\"\",'.descripteurs'!$B23)","v":""},{"$f":"'.descripteurs'!$C23","v":"Répondre à une invitation"},null,{"$f":"IF($D23=0,\"\",$D23)","v":""},"","","","","","","","","","","","","","","","","","","","","","","","","","","","",""]
[{"$f":"IF('.descripteurs'!$A24='.descripteurs'!A23,\"\",'.descripteurs'!$A24)","v":""},{"$f":"IF('.descripteurs'!$B24='.descripteurs'!B23,\"\",'.descripteurs'!$B24)","v":""},{"$f":"'.descripteurs'!$C24","v":"Rédiger une courte carte postale (dire où l'on est, comment on va et signer)"},null,"","","","","","","","","","","","","","","","","","","","","","","","","","","","","",""]
[{"$f":"IF('.descripteurs'!$A25='.descripteurs'!A24,\"\",'.descripteurs'!$A25)","v":""},{"$f":"IF('.descripteurs'!$B25='.descripteurs'!B24,\"\",'.descripteurs'!$B25)","v":""},{"$f":"'.descripteurs'!$C25","v":"Donner de ses nouvelles par courriel"},null,"","","","","","","","","","","","","","","","","","","","","","","","","","","","","",""]
[{"$f":"IF('.descripteurs'!$A26='.descripteurs'!A25,\"\",'.descripteurs'!$A26)","v":""},{"$f":"IF('.descripteurs'!$B26='.descripteurs'!B25,\"\",'.descripteurs'!$B26)","v":""},{"$f":"'.descripteurs'!$C26","v":"Poser des questions par courriel"},null,"","","","","","","","","","","","","","","","","","","","","","","","","","","","","",""]
[{"$f":"IF('.descripteurs'!$A27='.descripteurs'!A26,\"\",'.descripteurs'!$A27)","v":""},{"$f":"IF('.descripteurs'!$B27='.descripteurs'!B26,\"\",'.descripteurs'!$B27)","v":""},{"$f":"'.descripteurs'!$C27","v":"Ecrire un petit dialogue en complétant des bulles de bande dessinée ou d'après des images séquentielles"},null,"","","","","","","","","","","","","","","","",{"$f":"IF($D27=0,\"\",$D27)","v":""},"","","","","","","","","","","","",""]
[{"$f":"IF('.descripteurs'!$A28='.descripteurs'!A27,\"\",'.descripteurs'!$A28)","v":""},{"$f":"IF('.descripteurs'!$B28='.descripteurs'!B27,\"\",'.descripteurs'!$B28)","v":""},{"$f":"'.descripteurs'!$C28","v":"Compléter un dialogue par des mots ou des phrases qui manquent"},null,"","","","","","","","","","","","","","","","","","","","","","","","","","","","","",""]
[{"$f":"IF('.descripteurs'!$A29='.descripteurs'!A28,\"\",'.descripteurs'!$A29)","v":""},{"$f":"IF('.descripteurs'!$B29='.descripteurs'!B28,\"\",'.descripteurs'!$B29)","v":""},{"$f":"'.descripteurs'!$C29","v":"Compléter les salutations différentes selon le moment de la journée"},null,"","","","","","","","","","","","","","","","","","","","","","","","","","","","","",""]
[{"$f":"IF('.descripteurs'!$A30='.descripteurs'!A29,\"\",'.descripteurs'!$A30)","v":""},{"$f":"IF('.descripteurs'!$B30='.descripteurs'!B29,\"\",'.descripteurs'!$B30)","v":""},{"$f":"'.descripteurs'!$C30","v":"Compléter deux phrases courtes pour décrire ce que l'on fait à Noël"},null,"","","","","","","","","","","","","","","","","","","","","","","","","","","","","",""]
[{"$f":"IF('.descripteurs'!$A31='.descripteurs'!A30,\"\",'.descripteurs'!$A31)","v":""},{"$f":"IF('.descripteurs'!$B31='.descripteurs'!B30,\"\",'.descripteurs'!$B31)","v":""},{"$f":"'.descripteurs'!$C31","v":"desc_3"},null,"","","","","","","","","","","","","","","","","","","","","","","","","","","","","",""]
[{"$f":"IF('.descripteurs'!$A32='.descripteurs'!A31,\"\",'.descripteurs'!$A32)","v":""},{"$f":"IF('.descripteurs'!$B32='.descripteurs'!B31,\"\",'.descripteurs'!$B32)","v":""},{"$f":"'.descripteurs'!$C32","v":"desc_4"},null,"","","","","","","","","","","","","","","","","","","","","","","","","","","","","",""]
[{"$f":"IF('.descripteurs'!$A33='.descripteurs'!A32,\"\",'.descripteurs'!$A33)","v":""},{"$f":"IF('.descripteurs'!$B33='.descripteurs'!B32,\"\",'.descripteurs'!$B33)","v":"Renseigner un questionnaire"},{"$f":"'.descripteurs'!$C33","v":"Remplir une fiche d'information sur soi : nom, prénom, âge, date et lieu de naissance,  nationalité, sexe, adresse, frères et soeurs, animaux, goûts "},null,{"$f":"IF($D33=0,\"\",$D33)","v":""},"","","","","","","","","","","","","","","","","","","","","","","","","","","","",""]
[{"$f":"IF('.descripteurs'!$A34='.descripteurs'!A33,\"\",'.descripteurs'!$A34)","v":""},{"$f":"IF('.descripteurs'!$B34='.descripteurs'!B33,\"\",'.descripteurs'!$B34)","v":""},{"$f":"'.descripteurs'!$C34","v":"Remplir une fiche d'hôtel en indiquant la date d'arrivée, ses noms, prénoms, nationalité, date de départ prévue, "},null,"","","","","","","","","","","","","","","","","","","","","","","","","","","","","",""]
[{"$f":"IF('.descripteurs'!$A35='.descripteurs'!A34,\"\",'.descripteurs'!$A35)","v":""},{"$f":"IF('.descripteurs'!$B35='.descripteurs'!B34,\"\",'.descripteurs'!$B35)","v":""},{"$f":"'.descripteurs'!$C35","v":"Remplir un tableau lors d'une enquête avec des mots appropriés (les médias des élèves par tranche d'âge)"},null,"","","","","","","","","","","","","","","","","","","","","","","","","","","","","",""]
[{"$f":"IF('.descripteurs'!$A36='.descripteurs'!A35,\"\",'.descripteurs'!$A36)","v":""},{"$f":"IF('.descripteurs'!$B36='.descripteurs'!B35,\"\",'.descripteurs'!$B36)","v":""},{"$f":"'.descripteurs'!$C36","v":"Compléter un emploi du temps avec les disciplines adéquates"},null,"","","","","","","","","","","","","","","","","","","","","","","","","","","","","",""]
[{"$f":"IF('.descripteurs'!$A37='.descripteurs'!A36,\"\",'.descripteurs'!$A37)","v":""},{"$f":"IF('.descripteurs'!$B37='.descripteurs'!B36,\"\",'.descripteurs'!$B37)","v":""},{"$f":"'.descripteurs'!$C37","v":"Compléter une enquête de recensement en décrivant sa famille (selon un modèle donné)"},null,"","","","","","","","","","","","","","","","","","","","","","","","","","","","","",""]
[{"$f":"IF('.descripteurs'!$A38='.descripteurs'!A37,\"\",'.descripteurs'!$A38)","v":""},{"$f":"IF('.descripteurs'!$B38='.descripteurs'!B37,\"\",'.descripteurs'!$B38)","v":""},{"$f":"'.descripteurs'!$C38","v":"Compléter une fiche publicitaire immobilière (décrire son habitation)"},null,"","","","","","","","","","","","","","","","","","","","","","","","","","","","","",""]
[{"$f":"IF('.descripteurs'!$A39='.descripteurs'!A38,\"\",'.descripteurs'!$A39)","v":""},{"$f":"IF('.descripteurs'!$B39='.descripteurs'!B38,\"\",'.descripteurs'!$B39)","v":""},{"$f":"'.descripteurs'!$C39","v":"Compléter une fiche de renseignements sur ses habitudes alimentaires"},null,"","","","","","","","","","","","","","","","","","","","","","","","","","","","","",""]
[{"$f":"IF('.descripteurs'!$A40='.descripteurs'!A39,\"\",'.descripteurs'!$A40)","v":""},{"$f":"IF('.descripteurs'!$B40='.descripteurs'!B39,\"\",'.descripteurs'!$B40)","v":""},{"$f":"'.descripteurs'!$C40","v":"Compléter une fiche de renseignements sur ses habitudes sportives"},null,"","","","","","","","","","","","","","","","","","","","","","","","","","","","","",""]
[{"$f":"IF('.descripteurs'!$A41='.descripteurs'!A40,\"\",'.descripteurs'!$A41)","v":""},{"$f":"IF('.descripteurs'!$B41='.descripteurs'!B40,\"\",'.descripteurs'!$B41)","v":""},{"$f":"'.descripteurs'!$C41","v":"Compléter une enquête liée à ses habitudes horaires"},null,"","","","","","","","","","","","","","","","","","","","","","","","","","","","","",""]
[{"$f":"IF('.descripteurs'!$A42='.descripteurs'!A41,\"\",'.descripteurs'!$A42)","v":""},{"$f":"IF('.descripteurs'!$B42='.descripteurs'!B41,\"\",'.descripteurs'!$B42)","v":""},{"$f":"'.descripteurs'!$C42","v":"Compléter un tableau relatif aux catégories animales"},null,"","","","","","","","","","","","","","","","","","","","","","","","","","","","","",""]
[{"$f":"IF('.descripteurs'!$A43='.descripteurs'!A42,\"\",'.descripteurs'!$A43)","v":""},{"$f":"IF('.descripteurs'!$B43='.descripteurs'!B42,\"\",'.descripteurs'!$B43)","v":""},{"$f":"'.descripteurs'!$C43","v":"Catégoriser dans un tableau des personnages d'histoires à partir de leurs qualités physiques ou morales"},null,{"$f":"IF($D43=0,\"\",$D43)","v":""},"","","","","","","","","","","","","","","",{"$f":"IF($D43=0,\"\",$D43)","v":""},"","","","","","","","","","","","",""]
[{"$f":"IF('.descripteurs'!$A44='.descripteurs'!A43,\"\",'.descripteurs'!$A44)","v":""},{"$f":"IF('.descripteurs'!$B44='.descripteurs'!B43,\"\",'.descripteurs'!$B44)","v":""},{"$f":"'.descripteurs'!$C44","v":"desc_5"},null,"","","","","","","","","","","","","","","","","","","","","","","","","","","","","",""]
[{"$f":"IF('.descripteurs'!$A45='.descripteurs'!A44,\"\",'.descripteurs'!$A45)","v":""},{"$f":"IF('.descripteurs'!$B45='.descripteurs'!B44,\"\",'.descripteurs'!$B45)","v":""},{"$f":"'.descripteurs'!$C45","v":"desc_6"},null,"","","","","","","","","","","","","","","","","","","","","","","","","","","","","",""]
[{"$f":"IF('.descripteurs'!$A46='.descripteurs'!A45,\"\",'.descripteurs'!$A46)","v":""},{"$f":"IF('.descripteurs'!$B46='.descripteurs'!B45,\"\",'.descripteurs'!$B46)","v":"Produire de manière autonome quelques phrases"},{"$f":"'.descripteurs'!$C46","v":"Ecrire des énoncés simples et brefs sur soi-même "},null,"","","","","","","","","","","","","","","","","","","","","","","","","","","","","",""]
[{"$f":"IF('.descripteurs'!$A47='.descripteurs'!A46,\"\",'.descripteurs'!$A47)","v":""},{"$f":"IF('.descripteurs'!$B47='.descripteurs'!B46,\"\",'.descripteurs'!$B47)","v":""},{"$f":"'.descripteurs'!$C47","v":"Ecrire des énoncés simples sur son environnement familier"},null,"","","","","","","","","","","","","","","","","","","","","","","","","","","","","",""]
[{"$f":"IF('.descripteurs'!$A48='.descripteurs'!A47,\"\",'.descripteurs'!$A48)","v":""},{"$f":"IF('.descripteurs'!$B48='.descripteurs'!B47,\"\",'.descripteurs'!$B48)","v":""},{"$f":"'.descripteurs'!$C48","v":"Ecrire de façon simple sur des personnages imaginaires"},null,"","","","","","","","","","","","","","","","","","","","","","","","","","","","","",""]
[{"$f":"IF('.descripteurs'!$A49='.descripteurs'!A48,\"\",'.descripteurs'!$A49)","v":""},{"$f":"IF('.descripteurs'!$B49='.descripteurs'!B48,\"\",'.descripteurs'!$B49)","v":""},{"$f":"'.descripteurs'!$C49","v":"Ecrire son problème de maths d'après un modèle"},null,"","","","","","","","","","","","","","","","","","","","","","","","","","","","","",""]
[{"$f":"IF('.descripteurs'!$A50='.descripteurs'!A49,\"\",'.descripteurs'!$A50)","v":""},{"$f":"IF('.descripteurs'!$B50='.descripteurs'!B49,\"\",'.descripteurs'!$B50)","v":""},{"$f":"'.descripteurs'!$C50","v":"Reproduire une comptine connue en modifiant le vocabulaire (en respectant le nombre de syllabes) one banana, two banana …"},null,"","","","","","","","","","","","","","","","","","","","","","","","","","","","","",""]
[{"$f":"IF('.descripteurs'!$A51='.descripteurs'!A50,\"\",'.descripteurs'!$A51)","v":""},{"$f":"IF('.descripteurs'!$B51='.descripteurs'!B50,\"\",'.descripteurs'!$B51)","v":""},{"$f":"'.descripteurs'!$C51","v":"Produire une phrase sur ses habitudes sportives"},null,"","","","","","","","","","","","","","","","","","","","","","","","","","","","","",""]
[{"$f":"IF('.descripteurs'!$A52='.descripteurs'!A51,\"\",'.descripteurs'!$A52)","v":""},{"$f":"IF('.descripteurs'!$B52='.descripteurs'!B51,\"\",'.descripteurs'!$B52)","v":""},{"$f":"'.descripteurs'!$C52","v":"Ecrire les heures désignées"},null,"","","","","","","","","","","","","","","","","","","","","","","","","","","","","",""]
[{"$f":"IF('.descripteurs'!$A53='.descripteurs'!A52,\"\",'.descripteurs'!$A53)","v":""},{"$f":"IF('.descripteurs'!$B53='.descripteurs'!B52,\"\",'.descripteurs'!$B53)","v":""},{"$f":"'.descripteurs'!$C53","v":"Ecrire sa date d'anniversaire"},null,{"$f":"IF($D53=0,\"\",$D53)","v":""},"","","","","","","","","","","","","","","","","","","","","","","","","","","","",""]
[{"$f":"IF('.descripteurs'!$A54='.descripteurs'!A53,\"\",'.descripteurs'!$A54)","v":""},{"$f":"IF('.descripteurs'!$B54='.descripteurs'!B53,\"\",'.descripteurs'!$B54)","v":""},{"$f":"'.descripteurs'!$C54","v":"Produire des phrases courtes sur les animaux"},null,"","","","","","","","","","","","","","","","","","","","","","","","","","","","","",""]
[{"$f":"IF('.descripteurs'!$A55='.descripteurs'!A54,\"\",'.descripteurs'!$A55)","v":""},{"$f":"IF('.descripteurs'!$B55='.descripteurs'!B54,\"\",'.descripteurs'!$B55)","v":""},{"$f":"'.descripteurs'!$C55","v":"Produire une devinette amusante (une question et une réponse) sur les aptitudes des animaux"},null,"","","","","","","","","","","","","","","","","","","","","","","","","","","","","",""]
[{"$f":"IF('.descripteurs'!$A56='.descripteurs'!A55,\"\",'.descripteurs'!$A56)","v":""},{"$f":"IF('.descripteurs'!$B56='.descripteurs'!B55,\"\",'.descripteurs'!$B56)","v":""},{"$f":"'.descripteurs'!$C56","v":"Produire une phrase relatant si l'on joue d'un instrument ou pas"},null,"","","","","","","","","","","","","","","","",{"$f":"IF($D56=0,\"\",$D56)","v":""},"","","","","","","","","","","","",""]
[{"$f":"IF('.descripteurs'!$A57='.descripteurs'!A56,\"\",'.descripteurs'!$A57)","v":""},{"$f":"IF('.descripteurs'!$B57='.descripteurs'!B56,\"\",'.descripteurs'!$B57)","v":""},{"$f":"'.descripteurs'!$C57","v":"Ecrire la date en respectant les majuscules"},null,"","","","","","","","","","","","","","","","","","","","","","","","","","","","","",""]
[{"$f":"IF('.descripteurs'!$A58='.descripteurs'!A57,\"\",'.descripteurs'!$A58)","v":""},{"$f":"IF('.descripteurs'!$B58='.descripteurs'!B57,\"\",'.descripteurs'!$B58)","v":""},{"$f":"'.descripteurs'!$C58","v":"desc_7"},null,"","","","","","","","","","","","","","","","","","","","","","","","","","","","","",""]
[{"$f":"IF('.descripteurs'!$A59='.descripteurs'!A58,\"\",'.descripteurs'!$A59)","v":""},{"$f":"IF('.descripteurs'!$B59='.descripteurs'!B58,\"\",'.descripteurs'!$B59)","v":""},{"$f":"'.descripteurs'!$C59","v":"desc_8"},null,"","","","","","","","","","","","","","","","",{"$f":"IF($D59=0,\"\",$D59)","v":""},"","","","","","","","","","","","",{"$f":"IF($D59=0,\"\",$D59)","v":""}]
[{"$f":"IF('.descripteurs'!$A60='.descripteurs'!A59,\"\",'.descripteurs'!$A60)","v":""},{"$f":"IF('.descripteurs'!$B60='.descripteurs'!B59,\"\",'.descripteurs'!$B60)","v":"Ecrire sous la dictée des expressions connues"},{"$f":"'.descripteurs'!$C60","v":"Ecrire des mots connus dictés par l'enseignant"},null,"","","","","","","","","","","","","","","","","","","","","","","","","","","","","",""]
[{"$f":"IF('.descripteurs'!$A61='.descripteurs'!A60,\"\",'.descripteurs'!$A61)","v":""},{"$f":"IF('.descripteurs'!$B61='.descripteurs'!B60,\"\",'.descripteurs'!$B61)","v":""},{"$f":"'.descripteurs'!$C61","v":"Ecrire des mots épelés pour constituer une phrase simple (une adresse, un nom, un message, un numéro au téléphone,"},null,"","","","","","","","","","","","","","","","","","","","","","","","","","","","","",""]
[{"$f":"IF('.descripteurs'!$A62='.descripteurs'!A61,\"\",'.descripteurs'!$A62)","v":""},{"$f":"IF('.descripteurs'!$B62='.descripteurs'!B61,\"\",'.descripteurs'!$B62)","v":""},{"$f":"'.descripteurs'!$C62","v":"Ecrire des listes de menu, de courses, de cadeaux, d'achats pour la classe, "},null,"","","","","","","","","","","","","","","","","","","","","","","","","","","","","",""]
[{"$f":"IF('.descripteurs'!$A63='.descripteurs'!A62,\"\",'.descripteurs'!$A63)","v":""},{"$f":"IF('.descripteurs'!$B63='.descripteurs'!B62,\"\",'.descripteurs'!$B63)","v":""},{"$f":"'.descripteurs'!$C63","v":"Ecrire des nombres dictés"},null,{"$f":"IF($D63=0,\"\",$D63)","v":""},"","","","","","","","","","","","","","","","","","","","","","","","","","","","",""]
[{"$f":"IF('.descripteurs'!$A64='.descripteurs'!A63,\"\",'.descripteurs'!$A64)","v":""},{"$f":"IF('.descripteurs'!$B64='.descripteurs'!B63,\"\",'.descripteurs'!$B64)","v":""},{"$f":"'.descripteurs'!$C64","v":"Ecrire l'heure dictée"},null,"","","","","","","","","","","","","","","","","","","","","","","","","","","","","",""]
[{"$f":"IF('.descripteurs'!$A65='.descripteurs'!A64,\"\",'.descripteurs'!$A65)","v":""},{"$f":"IF('.descripteurs'!$B65='.descripteurs'!B64,\"\",'.descripteurs'!$B65)","v":""},{"$f":"'.descripteurs'!$C65","v":"desc_9"},null,"","","","","","","","","","","","","","","","","","","","","","","","","","","","","",""]
[{"$f":"IF('.descripteurs'!$A66='.descripteurs'!A65,\"\",'.descripteurs'!$A66)","v":""},{"$f":"IF('.descripteurs'!$B66='.descripteurs'!B65,\"\",'.descripteurs'!$B66)","v":""},{"$f":"'.descripteurs'!$C66","v":"desc_10"},null,"","","","","","","","","","","","","","","","","","","","","","","","","","","","","",""]
[{"$f":"IF('.descripteurs'!$A67='.descripteurs'!A66,\"\",'.descripteurs'!$A67)","v":"Comprendre à l'oral "},{"$f":"IF('.descripteurs'!$B67='.descripteurs'!B66,\"\",'.descripteurs'!$B67)","v":"Comprendre les consignes de classe."},{"$f":"'.descripteurs'!$C67","v":"Comprendre des consignes courtes et simples et agir en conséquence (s'asseoir, ouvrir le cahier, aller au tableau, se taire, écouter, lever la main , se ranger, se mettre en cercle...)"},null,"","","","","","","","","","","","","","","","","","","","","","","","","","","","","",""]
[{"$f":"IF('.descripteurs'!$A68='.descripteurs'!A67,\"\",'.descripteurs'!$A68)","v":""},{"$f":"IF('.descripteurs'!$B68='.descripteurs'!B67,\"\",'.descripteurs'!$B68)","v":""},{"$f":"'.descripteurs'!$C68","v":"Comprendre une salutation quelque soit le moment de la journée (good morning, see you later, good bye ...)"},null,"","","","","","","","","","","","","","","","","","","","","","","","","","","","","",""]
[{"$f":"IF('.descripteurs'!$A69='.descripteurs'!A68,\"\",'.descripteurs'!$A69)","v":""},{"$f":"IF('.descripteurs'!$B69='.descripteurs'!B68,\"\",'.descripteurs'!$B69)","v":""},{"$f":"'.descripteurs'!$C69","v":"Comprendre une demande de copie, de recopie, de lecture, de découpage, de collage, de coloriage, de dessin ...(cocher, barrer, entourer, effacer, souligner)"},null,"","","","","","","","","","","","","","","","","","","","","","","","","","","","","",""]
[{"$f":"IF('.descripteurs'!$A70='.descripteurs'!A69,\"\",'.descripteurs'!$A70)","v":""},{"$f":"IF('.descripteurs'!$B70='.descripteurs'!B69,\"\",'.descripteurs'!$B70)","v":""},{"$f":"'.descripteurs'!$C70","v":"Comprendre une demande d'activité de classe (jeu, bricolage)"},null,"","","","","","","","","","","","","","","","","","","","","","","","","","","","","",""]
[{"$f":"IF('.descripteurs'!$A71='.descripteurs'!A70,\"\",'.descripteurs'!$A71)","v":""},{"$f":"IF('.descripteurs'!$B71='.descripteurs'!B70,\"\",'.descripteurs'!$B71)","v":""},{"$f":"'.descripteurs'!$C71","v":"Comprendre les mots et expressions liés au matériel scolaire (contenu d'une trousse, d'un cartable)"},null,"","","","","","","","","","","","","","","","","","","","","","","","","","","","","",""]
[{"$f":"IF('.descripteurs'!$A72='.descripteurs'!A71,\"\",'.descripteurs'!$A72)","v":""},{"$f":"IF('.descripteurs'!$B72='.descripteurs'!B71,\"\",'.descripteurs'!$B72)","v":""},{"$f":"'.descripteurs'!$C72","v":"desc_11"},null,"","","","","","","","","","","","","","","","","","","","","","","","","","","","","",""]
[{"$f":"IF('.descripteurs'!$A73='.descripteurs'!A72,\"\",'.descripteurs'!$A73)","v":""},{"$f":"IF('.descripteurs'!$B73='.descripteurs'!B72,\"\",'.descripteurs'!$B73)","v":""},{"$f":"'.descripteurs'!$C73","v":"desc_12"},null,{"$f":"IF($D73=0,\"\",$D73)","v":""},"","","","","","","","","","","","","","","","","","","","","","","","","","","","",""]
[{"$f":"IF('.descripteurs'!$A74='.descripteurs'!A73,\"\",'.descripteurs'!$A74)","v":""},{"$f":"IF('.descripteurs'!$B74='.descripteurs'!B73,\"\",'.descripteurs'!$B74)","v":"Comprendre des mots familiers et des expressions très courantes"},{"$f":"'.descripteurs'!$C74","v":"Comprendre des mots familiers ou des expressions courantes sur soi-même si les gens parlent lentement et distinctement "},null,"","","","","","","","","","","","","","","","","","","","","","","","","","","","","",""]
[{"$f":"IF('.descripteurs'!$A75='.descripteurs'!A74,\"\",'.descripteurs'!$A75)","v":""},{"$f":"IF('.descripteurs'!$B75='.descripteurs'!B74,\"\",'.descripteurs'!$B75)","v":""},{"$f":"'.descripteurs'!$C75","v":"Comprendre des mots familiers ou des expressions courantes sur sa famille si les gens parlent lentement et distinctement "},null,"","","","","","","","","","","","","","","","",{"$f":"IF($D75=0,\"\",$D75)","v":""},"","","","","","","","","","","",{"$f":"IF($D75=0,\"\",$D75)","v":""},""]
[{"$f":"IF('.descripteurs'!$A76='.descripteurs'!A75,\"\",'.descripteurs'!$A76)","v":""},{"$f":"IF('.descripteurs'!$B76='.descripteurs'!B75,\"\",'.descripteurs'!$B76)","v":""},{"$f":"'.descripteurs'!$C76","v":"Comprendre des mots familiers ou des expressions courantes sur son environnement concret si les gens parlent lentement et distinctement "},null,"","","","","","","","","","","","","","","","","","","","","","","","","","","","","",""]
[{"$f":"IF('.descripteurs'!$A77='.descripteurs'!A76,\"\",'.descripteurs'!$A77)","v":""},{"$f":"IF('.descripteurs'!$B77='.descripteurs'!B76,\"\",'.descripteurs'!$B77)","v":""},{"$f":"'.descripteurs'!$C77","v":"Comprendre des informations chiffrées (âge, date, prix, numéro de téléphone…)"},null,"","","","","","","","","","","","","","","","","","","","","","","","","","","","","",""]
[{"$f":"IF('.descripteurs'!$A78='.descripteurs'!A77,\"\",'.descripteurs'!$A78)","v":""},{"$f":"IF('.descripteurs'!$B78='.descripteurs'!B77,\"\",'.descripteurs'!$B78)","v":""},{"$f":"'.descripteurs'!$C78","v":"Comprendre un problème de maths simple "},null,"","","","","","","","","","","","","","","","","","","","","","","","","","","","","",""]
[{"$f":"IF('.descripteurs'!$A79='.descripteurs'!A78,\"\",'.descripteurs'!$A79)","v":""},{"$f":"IF('.descripteurs'!$B79='.descripteurs'!B78,\"\",'.descripteurs'!$B79)","v":""},{"$f":"'.descripteurs'!$C79","v":"Comprendre des phrases simples sur le petit déjeuner"},null,"","","","","","","","","","","","","","","","","","","","","","","","","","","","","",""]
[{"$f":"IF('.descripteurs'!$A80='.descripteurs'!A79,\"\",'.descripteurs'!$A80)","v":""},{"$f":"IF('.descripteurs'!$B80='.descripteurs'!B79,\"\",'.descripteurs'!$B80)","v":""},{"$f":"'.descripteurs'!$C80","v":"Comprendre des informations simples comportant des éléments de situation spatiale "},null,"","","","","","","","","","","","","","","","","","","","","","","","","","","","","",""]
[{"$f":"IF('.descripteurs'!$A81='.descripteurs'!A80,\"\",'.descripteurs'!$A81)","v":""},{"$f":"IF('.descripteurs'!$B81='.descripteurs'!B80,\"\",'.descripteurs'!$B81)","v":""},{"$f":"'.descripteurs'!$C81","v":"Comprendre les pays anglophones et les nationalités"},null,"","","","","","","","","","","","","","","","","","","","","","","","","","","","","",""]
[{"$f":"IF('.descripteurs'!$A82='.descripteurs'!A81,\"\",'.descripteurs'!$A82)","v":""},{"$f":"IF('.descripteurs'!$B82='.descripteurs'!B81,\"\",'.descripteurs'!$B82)","v":""},{"$f":"'.descripteurs'!$C82","v":"Comprendre des descriptions de sentiments, de sensations et des descriptions physiques"},null,"","","","","","","","","","","","","","","","","","","","","","","","","","","","","",""]
[{"$f":"IF('.descripteurs'!$A83='.descripteurs'!A82,\"\",'.descripteurs'!$A83)","v":""},{"$f":"IF('.descripteurs'!$B83='.descripteurs'!B82,\"\",'.descripteurs'!$B83)","v":""},{"$f":"'.descripteurs'!$C83","v":"Comprendre des questions et réponses sur les fêtes calendaires"},null,{"$f":"IF($D83=0,\"\",$D83)","v":""},"","","","","","","","","","","","","","","","","","","","","","","","","","","","",""]
[{"$f":"IF('.descripteurs'!$A84='.descripteurs'!A83,\"\",'.descripteurs'!$A84)","v":""},{"$f":"IF('.descripteurs'!$B84='.descripteurs'!B83,\"\",'.descripteurs'!$B84)","v":""},{"$f":"'.descripteurs'!$C84","v":"Comprendre des phrases simples sur les vacances et ce qu'on emporte dans sa valise"},null,"","","","","","","","","","","","","","","","","","","","","","","","","","","","","",""]
[{"$f":"IF('.descripteurs'!$A85='.descripteurs'!A84,\"\",'.descripteurs'!$A85)","v":""},{"$f":"IF('.descripteurs'!$B85='.descripteurs'!B84,\"\",'.descripteurs'!$B85)","v":""},{"$f":"'.descripteurs'!$C85","v":"Comprendre des expressions utilisées fréquemment quand quelqu'un salue, s'excuse, remercie ou prend congé "},null,"","","","","","","","","","","","","","","","","","","","","","","","","","","","","",""]
[{"$f":"IF('.descripteurs'!$A86='.descripteurs'!A85,\"\",'.descripteurs'!$A86)","v":""},{"$f":"IF('.descripteurs'!$B86='.descripteurs'!B85,\"\",'.descripteurs'!$B86)","v":""},{"$f":"'.descripteurs'!$C86","v":"Identifier dans une émission télévisée des noms, des indications temporelles et spatiales, ainsi que le sujet général "},null,"","","","","","","","","","","","","","","","","","","","","","","","","","","","","",""]
[{"$f":"IF('.descripteurs'!$A87='.descripteurs'!A86,\"\",'.descripteurs'!$A87)","v":""},{"$f":"IF('.descripteurs'!$B87='.descripteurs'!B86,\"\",'.descripteurs'!$B87)","v":""},{"$f":"'.descripteurs'!$C87","v":"Comprendre le fil d'une histoire avec des aides appropriées "},null,"","","","","","","","","","","","","","","","","","","","","","","","","","","","","",""]
[{"$f":"IF('.descripteurs'!$A88='.descripteurs'!A87,\"\",'.descripteurs'!$A88)","v":""},{"$f":"IF('.descripteurs'!$B88='.descripteurs'!B87,\"\",'.descripteurs'!$B88)","v":""},{"$f":"'.descripteurs'!$C88","v":"Comprendre des questions sur son identité (nom, prénom, âge, nationalité, date de naissance, frères et soeurs, adresse)"},null,"","","","","","","","","","","","","","","","",{"$f":"IF($D88=0,\"\",$D88)","v":""},"","","","","","","","","","","","",""]
[{"$f":"IF('.descripteurs'!$A89='.descripteurs'!A88,\"\",'.descripteurs'!$A89)","v":""},{"$f":"IF('.descripteurs'!$B89='.descripteurs'!B88,\"\",'.descripteurs'!$B89)","v":""},{"$f":"'.descripteurs'!$C89","v":"Comprendre les informations sur l'identité d'autrui (nom, prénom, âge, nationalité, date de naissance, frères et soeurs, adresse)"},null,"","","","","","","","","","","","","","","","","","","","","","","","","","","","","",""]
[{"$f":"IF('.descripteurs'!$A90='.descripteurs'!A89,\"\",'.descripteurs'!$A90)","v":""},{"$f":"IF('.descripteurs'!$B90='.descripteurs'!B89,\"\",'.descripteurs'!$B90)","v":""},{"$f":"'.descripteurs'!$C90","v":"Comprendre lorsque quelqu'un demande d'épeler son nom"},null,"","","","","","","","","","","","","","","","","","","","","","","","","","","","","",""]
[{"$f":"IF('.descripteurs'!$A91='.descripteurs'!A90,\"\",'.descripteurs'!$A91)","v":""},{"$f":"IF('.descripteurs'!$B91='.descripteurs'!B90,\"\",'.descripteurs'!$B91)","v":""},{"$f":"'.descripteurs'!$C91","v":"Comprendre une question liée au numéro de téléphone, à un prix, à une quantité, à l'heure"},null,"","","","","","","","","","","","","","","","",{"$f":"IF($D91=0,\"\",$D91)","v":""},"","","","","","","","","","","","",""]
[{"$f":"IF('.descripteurs'!$A92='.descripteurs'!A91,\"\",'.descripteurs'!$A92)","v":""},{"$f":"IF('.descripteurs'!$B92='.descripteurs'!B91,\"\",'.descripteurs'!$B92)","v":""},{"$f":"'.descripteurs'!$C92","v":"Comprendre un numéro de téléphone, un prix, une quantité, l'heure"},null,"","","","","","","","","","","","","","","","","","","","","","","","","","","","","",""]
[{"$f":"IF('.descripteurs'!$A93='.descripteurs'!A92,\"\",'.descripteurs'!$A93)","v":""},{"$f":"IF('.descripteurs'!$B93='.descripteurs'!B92,\"\",'.descripteurs'!$B93)","v":""},{"$f":"'.descripteurs'!$C93","v":"Comprendre un dialogue de présentation d'un pays  ou d'une ville de la langue étudiée"},null,{"$f":"IF($D93=0,\"\",$D93)","v":""},"","","","","","","","","","","","","","","","","","","","","","","","","","","","",""]
[{"$f":"IF('.descripteurs'!$A94='.descripteurs'!A93,\"\",'.descripteurs'!$A94)","v":""},{"$f":"IF('.descripteurs'!$B94='.descripteurs'!B93,\"\",'.descripteurs'!$B94)","v":""},{"$f":"'.descripteurs'!$C94","v":"Comprendre une indication de prix, quantité, adresse, numéro de téléphone, âge"},null,"","","","","","","","","","","","","","","","","","","","","","","","","","","","","",""]
[{"$f":"IF('.descripteurs'!$A95='.descripteurs'!A94,\"\",'.descripteurs'!$A95)","v":""},{"$f":"IF('.descripteurs'!$B95='.descripteurs'!B94,\"\",'.descripteurs'!$B95)","v":""},{"$f":"'.descripteurs'!$C95","v":"Comprendre  oui ou non, merci, comment ça va"},null,"","","","","","","","","","","","","","","","","","","","","","","","","","","","","",""]
[{"$f":"IF('.descripteurs'!$A96='.descripteurs'!A95,\"\",'.descripteurs'!$A96)","v":""},{"$f":"IF('.descripteurs'!$B96='.descripteurs'!B95,\"\",'.descripteurs'!$B96)","v":""},{"$f":"'.descripteurs'!$C96","v":"Comprendre des excuses, des félicitations, des voeux"},null,"","","","","","","","","","","","","","","","","","","","","","","","","","","","","",""]
[{"$f":"IF('.descripteurs'!$A97='.descripteurs'!A96,\"\",'.descripteurs'!$A97)","v":""},{"$f":"IF('.descripteurs'!$B97='.descripteurs'!B96,\"\",'.descripteurs'!$B97)","v":""},{"$f":"'.descripteurs'!$C97","v":"Comprendre un message court (histoire, dialogue, annonce, comptine, chanson...) à l'aide de d'images, de gestes"},null,"","","","","","","","","","","","","","","","","","","","","","","","","","","","","",""]
[{"$f":"IF('.descripteurs'!$A98='.descripteurs'!A97,\"\",'.descripteurs'!$A98)","v":""},{"$f":"IF('.descripteurs'!$B98='.descripteurs'!B97,\"\",'.descripteurs'!$B98)","v":""},{"$f":"'.descripteurs'!$C98","v":"Comprendre une annonce publicitaire en définissant le produit"},null,"","","","","","","","","","","","","","","","","","","","","","","","","","","","","",""]
[{"$f":"IF('.descripteurs'!$A99='.descripteurs'!A98,\"\",'.descripteurs'!$A99)","v":""},{"$f":"IF('.descripteurs'!$B99='.descripteurs'!B98,\"\",'.descripteurs'!$B99)","v":""},{"$f":"'.descripteurs'!$C99","v":"Comprendre si quelqu'un aime ou n'aime pas"},null,"","","","","","","","","","","","","","","","","","","","","","","","","","","","","",""]
[{"$f":"IF('.descripteurs'!$A100='.descripteurs'!A99,\"\",'.descripteurs'!$A100)","v":""},{"$f":"IF('.descripteurs'!$B100='.descripteurs'!B99,\"\",'.descripteurs'!$B100)","v":""},{"$f":"'.descripteurs'!$C100","v":"Comprendre les actions de personnages"},null,"","","","","","","","","","","","","","","","","","","","","","","","","","","","","",""]
[{"$f":"IF('.descripteurs'!$A101='.descripteurs'!A100,\"\",'.descripteurs'!$A101)","v":""},{"$f":"IF('.descripteurs'!$B101='.descripteurs'!B100,\"\",'.descripteurs'!$B101)","v":""},{"$f":"'.descripteurs'!$C101","v":"Comprendre des descriptions simples d'animaux"},null,"","","","","","","","","","","","","","","","","","","","","","","","","","","","","",""]
[{"$f":"IF('.descripteurs'!$A102='.descripteurs'!A101,\"\",'.descripteurs'!$A102)","v":""},{"$f":"IF('.descripteurs'!$B102='.descripteurs'!B101,\"\",'.descripteurs'!$B102)","v":""},{"$f":"'.descripteurs'!$C102","v":"desc_13"},null,"","","","","","","","","","","","","","","","","","","","","","","","","","","","","",""]
[{"$f":"IF('.descripteurs'!$A103='.descripteurs'!A102,\"\",'.descripteurs'!$A103)","v":""},{"$f":"IF('.descripteurs'!$B103='.descripteurs'!B102,\"\",'.descripteurs'!$B103)","v":""},{"$f":"'.descripteurs'!$C103","v":"desc_14"},null,{"$f":"IF($D103=0,\"\",$D103)","v":""},"","","","","","","","","","","","","","","","","","","","","","","","","","","","",""]
[{"$f":"IF('.descripteurs'!$A104='.descripteurs'!A103,\"\",'.descripteurs'!$A104)","v":""},{"$f":"IF('.descripteurs'!$B104='.descripteurs'!B103,\"\",'.descripteurs'!$B104)","v":"Suivre des instructions courtes et simples"},{"$f":"'.descripteurs'!$C104","v":"Pour réaliser une tâche en lien avec un message entendu par l'élève (cocher un dessin, dessiner sous la dictée)"},null,"","","","","","","","","","","","","","","","",{"$f":"IF($D104=0,\"\",$D104)","v":""},"","","","","","","","","","","","",""]
[{"$f":"IF('.descripteurs'!$A105='.descripteurs'!A104,\"\",'.descripteurs'!$A105)","v":""},{"$f":"IF('.descripteurs'!$B105='.descripteurs'!B104,\"\",'.descripteurs'!$B105)","v":""},{"$f":"'.descripteurs'!$C105","v":"Comprendre une demande d'actions physiques et réagir (lancer un ballon, un dé..."},null,"","","","","","","","","","","","","","","","","","","","","","","","","","","","","",""]
[{"$f":"IF('.descripteurs'!$A106='.descripteurs'!A105,\"\",'.descripteurs'!$A106)","v":""},{"$f":"IF('.descripteurs'!$B106='.descripteurs'!B105,\"\",'.descripteurs'!$B106)","v":""},{"$f":"'.descripteurs'!$C106","v":"Comprendre une demande pour ranger ses affaires"},null,"","","","","","","","","","","","","","","","","","","","","","","","","","","","","",""]
[{"$f":"IF('.descripteurs'!$A107='.descripteurs'!A106,\"\",'.descripteurs'!$A107)","v":""},{"$f":"IF('.descripteurs'!$B107='.descripteurs'!B106,\"\",'.descripteurs'!$B107)","v":""},{"$f":"'.descripteurs'!$C107","v":"Comprendre pour ouvrir et fermer la porte"},null,"","","","","","","","","","","","","","","","",{"$f":"IF($D107=0,\"\",$D107)","v":""},"","","","","","","","","","","",{"$f":"IF($D107=0,\"\",$D107)","v":""},""]
[{"$f":"IF('.descripteurs'!$A108='.descripteurs'!A107,\"\",'.descripteurs'!$A108)","v":""},{"$f":"IF('.descripteurs'!$B108='.descripteurs'!B107,\"\",'.descripteurs'!$B108)","v":""},{"$f":"'.descripteurs'!$C108","v":"Comprendre pour allumer et éteindre la lumière, l'ordinateur"},null,"","","","","","","","","","","","","","","","","","","","","","","","","","","","","",""]
[{"$f":"IF('.descripteurs'!$A109='.descripteurs'!A108,\"\",'.descripteurs'!$A109)","v":""},{"$f":"IF('.descripteurs'!$B109='.descripteurs'!B108,\"\",'.descripteurs'!$B109)","v":""},{"$f":"'.descripteurs'!$C109","v":"Comprendre pour jouer aux cartes, les distribuer"},null,"","","","","","","","","","","","","","","","","","","","","","","","","","","","","",""]
[{"$f":"IF('.descripteurs'!$A110='.descripteurs'!A109,\"\",'.descripteurs'!$A110)","v":""},{"$f":"IF('.descripteurs'!$B110='.descripteurs'!B109,\"\",'.descripteurs'!$B110)","v":""},{"$f":"'.descripteurs'!$C110","v":"Comprendre de parler plus ou moins fort ou lentement"},null,"","","","","","","","","","","","","","","","","","","","","","","","","","","","","",""]
[{"$f":"IF('.descripteurs'!$A111='.descripteurs'!A110,\"\",'.descripteurs'!$A111)","v":""},{"$f":"IF('.descripteurs'!$B111='.descripteurs'!B110,\"\",'.descripteurs'!$B111)","v":""},{"$f":"'.descripteurs'!$C111","v":"Comprendre une demande de répétition"},null,"","","","","","","","","","","","","","","","","","","","","","","","","","","","","",""]
[{"$f":"IF('.descripteurs'!$A112='.descripteurs'!A111,\"\",'.descripteurs'!$A112)","v":""},{"$f":"IF('.descripteurs'!$B112='.descripteurs'!B111,\"\",'.descripteurs'!$B112)","v":""},{"$f":"'.descripteurs'!$C112","v":"Comprendre des consignes de bricolage"},null,"","","","","","","","","","","","","","","","","","","","","","","","","","","","","",""]
[{"$f":"IF('.descripteurs'!$A113='.descripteurs'!A112,\"\",'.descripteurs'!$A113)","v":""},{"$f":"IF('.descripteurs'!$B113='.descripteurs'!B112,\"\",'.descripteurs'!$B113)","v":""},{"$f":"'.descripteurs'!$C113","v":" Comprendre des opérations simples"},null,{"$f":"IF($D113=0,\"\",$D113)","v":""},"","","","","","","","","","","","","","","","","","","","","","","","","","","","",""]
[{"$f":"IF('.descripteurs'!$A114='.descripteurs'!A113,\"\",'.descripteurs'!$A114)","v":""},{"$f":"IF('.descripteurs'!$B114='.descripteurs'!B113,\"\",'.descripteurs'!$B114)","v":""},{"$f":"'.descripteurs'!$C114","v":"Suivre des instructions pour former et dessiner des formes"},null,"","","","","","","","","","","","","","","","","","","","","","","","","","","","","",""]
[{"$f":"IF('.descripteurs'!$A115='.descripteurs'!A114,\"\",'.descripteurs'!$A115)","v":""},{"$f":"IF('.descripteurs'!$B115='.descripteurs'!B114,\"\",'.descripteurs'!$B115)","v":""},{"$f":"'.descripteurs'!$C115","v":"Comprendre où aller dans une école, une maison,  une ville"},null,"","","","","","","","","","","","","","","","","","","","","","","","","","","","","",""]
[{"$f":"IF('.descripteurs'!$A116='.descripteurs'!A115,\"\",'.descripteurs'!$A116)","v":""},{"$f":"IF('.descripteurs'!$B116='.descripteurs'!B115,\"\",'.descripteurs'!$B116)","v":""},{"$f":"'.descripteurs'!$C116","v":"Comprendre les injonctions de parents (réveille toi ...)"},null,"","","","","","","","","","","","","","","","","","","","","","","","","","","","","",""]
[{"$f":"IF('.descripteurs'!$A117='.descripteurs'!A116,\"\",'.descripteurs'!$A117)","v":""},{"$f":"IF('.descripteurs'!$B117='.descripteurs'!B116,\"\",'.descripteurs'!$B117)","v":""},{"$f":"'.descripteurs'!$C117","v":"desc_15"},null,"","","","","","","","","","","","","","","","","","","","","","","","","","","","","",""]
[{"$f":"IF('.descripteurs'!$A118='.descripteurs'!A117,\"\",'.descripteurs'!$A118)","v":""},{"$f":"IF('.descripteurs'!$B118='.descripteurs'!B117,\"\",'.descripteurs'!$B118)","v":""},{"$f":"'.descripteurs'!$C118","v":"desc_16"},null,"","","","","","","","","","","","","","","","","","","","","","","","","","","","","",""]
[{"$f":"IF('.descripteurs'!$A119='.descripteurs'!A118,\"\",'.descripteurs'!$A119)","v":"Parler en continu"},{"$f":"IF('.descripteurs'!$B119='.descripteurs'!B118,\"\",'.descripteurs'!$B119)","v":"Reproduire un modèle oral"},{"$f":"'.descripteurs'!$C119","v":"Reproduire des phrases simples fréquemment utilisées "},null,"","","","","","","","","","","","","","","","","","","","","","","","","","","","","",""]
[{"$f":"IF('.descripteurs'!$A120='.descripteurs'!A119,\"\",'.descripteurs'!$A120)","v":""},{"$f":"IF('.descripteurs'!$B120='.descripteurs'!B119,\"\",'.descripteurs'!$B120)","v":""},{"$f":"'.descripteurs'!$C120","v":"Réciter un texte mémorisé, une comptine, un poème "},null,"","","","","","","","","","","","","","","","",{"$f":"IF($D120=0,\"\",$D120)","v":""},"","","","","","","","","","","","",""]
[{"$f":"IF('.descripteurs'!$A121='.descripteurs'!A120,\"\",'.descripteurs'!$A121)","v":""},{"$f":"IF('.descripteurs'!$B121='.descripteurs'!B120,\"\",'.descripteurs'!$B121)","v":""},{"$f":"'.descripteurs'!$C121","v":"Chanter une chanson "},null,"","","","","","","","","","","","","","","","","","","","","","","","","","","","","",""]
[{"$f":"IF('.descripteurs'!$A122='.descripteurs'!A121,\"\",'.descripteurs'!$A122)","v":""},{"$f":"IF('.descripteurs'!$B122='.descripteurs'!B121,\"\",'.descripteurs'!$B122)","v":""},{"$f":"'.descripteurs'!$C122","v":"Epeler des mots familiers ou chanter l'alphabet "},null,"","","","","","","","","","","","","","","","","","","","","","","","","","","","","",""]
[{"$f":"IF('.descripteurs'!$A123='.descripteurs'!A122,\"\",'.descripteurs'!$A123)","v":""},{"$f":"IF('.descripteurs'!$B123='.descripteurs'!B122,\"\",'.descripteurs'!$B123)","v":""},{"$f":"'.descripteurs'!$C123","v":"Faire une courte annonce répétée auparavant pour présenter une fête, un personnage, donner une consigne"},null,{"$f":"IF($D123=0,\"\",$D123)","v":""},"","","","","","","","","","","","","","","",{"$f":"IF($D123=0,\"\",$D123)","v":""},"","","","","","","","","","","",{"$f":"IF($D123=0,\"\",$D123)","v":""},""]
[{"$f":"IF('.descripteurs'!$A124='.descripteurs'!A123,\"\",'.descripteurs'!$A124)","v":""},{"$f":"IF('.descripteurs'!$B124='.descripteurs'!B123,\"\",'.descripteurs'!$B124)","v":""},{"$f":"'.descripteurs'!$C124","v":"Reproduire la comptine numérique jusqu'à 100"},null,"","","","","","","","","","","","","","","","","","","","","","","","","","","","","",""]
[{"$f":"IF('.descripteurs'!$A125='.descripteurs'!A124,\"\",'.descripteurs'!$A125)","v":""},{"$f":"IF('.descripteurs'!$B125='.descripteurs'!B124,\"\",'.descripteurs'!$B125)","v":""},{"$f":"'.descripteurs'!$C125","v":"Reproduire quelques tables d'opération"},null,"","","","","","","","","","","","","","","","","","","","","","","","","","","","","",""]
[{"$f":"IF('.descripteurs'!$A126='.descripteurs'!A125,\"\",'.descripteurs'!$A126)","v":""},{"$f":"IF('.descripteurs'!$B126='.descripteurs'!B125,\"\",'.descripteurs'!$B126)","v":""},{"$f":"'.descripteurs'!$C126","v":"Réciter l'alphabet"},null,"","","","","","","","","","","","","","","","","","","","","","","","","","","","","",""]
[{"$f":"IF('.descripteurs'!$A127='.descripteurs'!A126,\"\",'.descripteurs'!$A127)","v":""},{"$f":"IF('.descripteurs'!$B127='.descripteurs'!B126,\"\",'.descripteurs'!$B127)","v":""},{"$f":"'.descripteurs'!$C127","v":"Reproduire une description de journée (pour une saynète)"},null,"","","","","","","","","","","","","","","","","","","","","","","","","","","","","",""]
[{"$f":"IF('.descripteurs'!$A128='.descripteurs'!A127,\"\",'.descripteurs'!$A128)","v":""},{"$f":"IF('.descripteurs'!$B128='.descripteurs'!B127,\"\",'.descripteurs'!$B128)","v":""},{"$f":"'.descripteurs'!$C128","v":"Epeler les jours et les mois"},null,"","","","","","","","","","","","","","","","","","","","","","","","","","","","","",""]
[{"$f":"IF('.descripteurs'!$A129='.descripteurs'!A128,\"\",'.descripteurs'!$A129)","v":""},{"$f":"IF('.descripteurs'!$B129='.descripteurs'!B128,\"\",'.descripteurs'!$B129)","v":""},{"$f":"'.descripteurs'!$C129","v":"Présenter la météo"},null,"","","","","","","","","","","","","","","","","","","","","","","","","","","","","",""]
[{"$f":"IF('.descripteurs'!$A130='.descripteurs'!A129,\"\",'.descripteurs'!$A130)","v":""},{"$f":"IF('.descripteurs'!$B130='.descripteurs'!B129,\"\",'.descripteurs'!$B130)","v":""},{"$f":"'.descripteurs'!$C130","v":"Décrire un jeu de cartes"},null,"","","","","","","","","","","","","","","","","","","","","","","","","","","","","",""]
[{"$f":"IF('.descripteurs'!$A131='.descripteurs'!A130,\"\",'.descripteurs'!$A131)","v":""},{"$f":"IF('.descripteurs'!$B131='.descripteurs'!B130,\"\",'.descripteurs'!$B131)","v":""},{"$f":"'.descripteurs'!$C131","v":"desc_17"},null,"","","","","","","","","","","","","","","","","","","","","","","","","","","","","",""]
[{"$f":"IF('.descripteurs'!$A132='.descripteurs'!A131,\"\",'.descripteurs'!$A132)","v":""},{"$f":"IF('.descripteurs'!$B132='.descripteurs'!B131,\"\",'.descripteurs'!$B132)","v":""},{"$f":"'.descripteurs'!$C132","v":"desc_18"},null,"","","","","","","","","","","","","","","","","","","","","","","","","","","","","",""]
[{"$f":"IF('.descripteurs'!$A133='.descripteurs'!A132,\"\",'.descripteurs'!$A133)","v":""},{"$f":"IF('.descripteurs'!$B133='.descripteurs'!B132,\"\",'.descripteurs'!$B133)","v":"Utiliser des expressions et des phrases proches des modèles rencontrés lors des apprentissages"},{"$f":"'.descripteurs'!$C133","v":"Utiliser des expressions et phrases simples pour se présenter ou présenter quelqu'un (nom, prénom, âge, adresse, goûts, famille, animaux)"},null,{"$f":"IF($D133=0,\"\",$D133)","v":""},"","","","","","","","","","","","","","","","","","","","","","","","","","","","",""]
[{"$f":"IF('.descripteurs'!$A134='.descripteurs'!A133,\"\",'.descripteurs'!$A134)","v":""},{"$f":"IF('.descripteurs'!$B134='.descripteurs'!B133,\"\",'.descripteurs'!$B134)","v":""},{"$f":"'.descripteurs'!$C134","v":"Dire ce qu'il fait chaque jour, chaque semaine en termes simples "},null,"","","","","","","","","","","","","","","","","","","","","","","","","","","","","",""]
[{"$f":"IF('.descripteurs'!$A135='.descripteurs'!A134,\"\",'.descripteurs'!$A135)","v":""},{"$f":"IF('.descripteurs'!$B135='.descripteurs'!B134,\"\",'.descripteurs'!$B135)","v":""},{"$f":"'.descripteurs'!$C135","v":"Utiliser des expressions et phrases simples pour  présenter son lieu d'habitation, sa chambre"},null,"","","","","","","","","","","","","","","","","","","","","","","","","","","","","",""]
[{"$f":"IF('.descripteurs'!$A136='.descripteurs'!A135,\"\",'.descripteurs'!$A136)","v":""},{"$f":"IF('.descripteurs'!$B136='.descripteurs'!B135,\"\",'.descripteurs'!$B136)","v":""},{"$f":"'.descripteurs'!$C136","v":"Dire ce que font les personnages, de ce qu'on fait, de ce qu'on a fait, de ce qu'on est en train de faire"},null,"","","","","","","","","","","","","","","","",{"$f":"IF($D136=0,\"\",$D136)","v":""},"","","","","","","","","","","","",""]
[{"$f":"IF('.descripteurs'!$A137='.descripteurs'!A136,\"\",'.descripteurs'!$A137)","v":""},{"$f":"IF('.descripteurs'!$B137='.descripteurs'!B136,\"\",'.descripteurs'!$B137)","v":""},{"$f":"'.descripteurs'!$C137","v":"Décrire des personnes, des animaux ou des objets familiers (avec des adjectifs indiquant la taille, la couleur ou l'âge)"},null,"","","","","","","","","","","","","","","","","","","","","","","","","","","","","",""]
[{"$f":"IF('.descripteurs'!$A138='.descripteurs'!A137,\"\",'.descripteurs'!$A138)","v":""},{"$f":"IF('.descripteurs'!$B138='.descripteurs'!B137,\"\",'.descripteurs'!$B138)","v":""},{"$f":"'.descripteurs'!$C138","v":"Exprimer ce qu'il aime et ce qu'il n'aime pas "},null,"","","","","","","","","","","","","","","","","","","","","","","","","","","","","",""]
[{"$f":"IF('.descripteurs'!$A139='.descripteurs'!A138,\"\",'.descripteurs'!$A139)","v":""},{"$f":"IF('.descripteurs'!$B139='.descripteurs'!B138,\"\",'.descripteurs'!$B139)","v":""},{"$f":"'.descripteurs'!$C139","v":"Exprimer ce qu'il ressent, ses besoins élémentaires (j'ai faim, soif, j'ai froid, je suis malade..) "},null,"","","","","","","","","","","","","","","","",{"$f":"IF($D139=0,\"\",$D139)","v":""},"","","","","","","","","","","",{"$f":"IF($D139=0,\"\",$D139)","v":""},""]
[{"$f":"IF('.descripteurs'!$A140='.descripteurs'!A139,\"\",'.descripteurs'!$A140)","v":""},{"$f":"IF('.descripteurs'!$B140='.descripteurs'!B139,\"\",'.descripteurs'!$B140)","v":""},{"$f":"'.descripteurs'!$C140","v":"Dire ce qu'il possède ou pas, ce qu'il souhaite "},null,"","","","","","","","","","","","","","","","","","","","","","","","","","","","","",""]
[{"$f":"IF('.descripteurs'!$A141='.descripteurs'!A140,\"\",'.descripteurs'!$A141)","v":""},{"$f":"IF('.descripteurs'!$B141='.descripteurs'!B140,\"\",'.descripteurs'!$B141)","v":""},{"$f":"'.descripteurs'!$C141","v":"Décrire un pays, une ville selon un modèle oral"},null,"","","","","","","","","","","","","","","","","","","","","","","","","","","","","",""]
[{"$f":"IF('.descripteurs'!$A142='.descripteurs'!A141,\"\",'.descripteurs'!$A142)","v":""},{"$f":"IF('.descripteurs'!$B142='.descripteurs'!B141,\"\",'.descripteurs'!$B142)","v":""},{"$f":"'.descripteurs'!$C142","v":"Décrire une peinture en utilisant les phrases connues d'un modèle rencontré"},null,"","","","","","","","","","","","","","","","","","","","","","","","","","","","","",""]
[{"$f":"IF('.descripteurs'!$A143='.descripteurs'!A142,\"\",'.descripteurs'!$A143)","v":""},{"$f":"IF('.descripteurs'!$B143='.descripteurs'!B142,\"\",'.descripteurs'!$B143)","v":""},{"$f":"'.descripteurs'!$C143","v":"Compter, donner l'heure, indiquer des quantités "},null,{"$f":"IF($D143=0,\"\",$D143)","v":""},"","","","","","","","","","","","","","","","","","","","","","","","","","","","",""]
[{"$f":"IF('.descripteurs'!$A144='.descripteurs'!A143,\"\",'.descripteurs'!$A144)","v":""},{"$f":"IF('.descripteurs'!$B144='.descripteurs'!B143,\"\",'.descripteurs'!$B144)","v":""},{"$f":"'.descripteurs'!$C144","v":"Dire les dates d'anniversaire de sa famille"},null,"","","","","","","","","","","","","","","","","","","","","","","","","","","","","",""]
[{"$f":"IF('.descripteurs'!$A145='.descripteurs'!A144,\"\",'.descripteurs'!$A145)","v":""},{"$f":"IF('.descripteurs'!$B145='.descripteurs'!B144,\"\",'.descripteurs'!$B145)","v":""},{"$f":"'.descripteurs'!$C145","v":"Présenter une famille"},null,"","","","","","","","","","","","","","","","","","","","","","","","","","","","","",""]
[{"$f":"IF('.descripteurs'!$A146='.descripteurs'!A145,\"\",'.descripteurs'!$A146)","v":""},{"$f":"IF('.descripteurs'!$B146='.descripteurs'!B145,\"\",'.descripteurs'!$B146)","v":""},{"$f":"'.descripteurs'!$C146","v":"Utiliser les éléments vus pour parler de ses vacances (transport, contenu de sa valise, destinations, activités)"},null,"","","","","","","","","","","","","","","","","","","","","","","","","","","","","",""]
[{"$f":"IF('.descripteurs'!$A147='.descripteurs'!A146,\"\",'.descripteurs'!$A147)","v":""},{"$f":"IF('.descripteurs'!$B147='.descripteurs'!B146,\"\",'.descripteurs'!$B147)","v":""},{"$f":"'.descripteurs'!$C147","v":"Utiliser les éléments vus pour décrire une maison (scénette de l'agent immobilier)"},null,"","","","","","","","","","","","","","","","","","","","","","","","","","","","","",""]
[{"$f":"IF('.descripteurs'!$A148='.descripteurs'!A147,\"\",'.descripteurs'!$A148)","v":""},{"$f":"IF('.descripteurs'!$B148='.descripteurs'!B147,\"\",'.descripteurs'!$B148)","v":""},{"$f":"'.descripteurs'!$C148","v":"Parler de son emploi du temps et de ses activités préférées à l'école (ou ailleurs)"},null,"","","","","","","","","","","","","","","","","","","","","","","","","","","","","",""]
[{"$f":"IF('.descripteurs'!$A149='.descripteurs'!A148,\"\",'.descripteurs'!$A149)","v":""},{"$f":"IF('.descripteurs'!$B149='.descripteurs'!B148,\"\",'.descripteurs'!$B149)","v":""},{"$f":"'.descripteurs'!$C149","v":"Décrire les expressions mimées par ses camarades"},null,"","","","","","","","","","","","","","","","","","","","","","","","","","","","","",""]
[{"$f":"IF('.descripteurs'!$A150='.descripteurs'!A149,\"\",'.descripteurs'!$A150)","v":""},{"$f":"IF('.descripteurs'!$B150='.descripteurs'!B149,\"\",'.descripteurs'!$B150)","v":""},{"$f":"'.descripteurs'!$C150","v":"Dire l'heure mimée par un camarade"},null,"","","","","","","","","","","","","","","","","","","","","","","","","","","","","",""]
[{"$f":"IF('.descripteurs'!$A151='.descripteurs'!A150,\"\",'.descripteurs'!$A151)","v":""},{"$f":"IF('.descripteurs'!$B151='.descripteurs'!B150,\"\",'.descripteurs'!$B151)","v":""},{"$f":"'.descripteurs'!$C151","v":"Exprimer où l'on a mal"},null,"","","","","","","","","","","","","","","","","","","","","","","","","","","","","",""]
[{"$f":"IF('.descripteurs'!$A152='.descripteurs'!A151,\"\",'.descripteurs'!$A152)","v":""},{"$f":"IF('.descripteurs'!$B152='.descripteurs'!B151,\"\",'.descripteurs'!$B152)","v":""},{"$f":"'.descripteurs'!$C152","v":"Utiliser les éléments vus pour décrire les sports"},null,"","","","","","","","","","","","","","","","",{"$f":"IF($D152=0,\"\",$D152)","v":""},"","","","","","","","","","","","",""]
[{"$f":"IF('.descripteurs'!$A153='.descripteurs'!A152,\"\",'.descripteurs'!$A153)","v":""},{"$f":"IF('.descripteurs'!$B153='.descripteurs'!B152,\"\",'.descripteurs'!$B153)","v":""},{"$f":"'.descripteurs'!$C153","v":"Décrire une image, une photo, un dessin, un cadeau"},null,{"$f":"IF($D153=0,\"\",$D153)","v":""},"","","","","","","","","","","","","","","","","","","","","","","","","","","","",""]
[{"$f":"IF('.descripteurs'!$A154='.descripteurs'!A153,\"\",'.descripteurs'!$A154)","v":""},{"$f":"IF('.descripteurs'!$B154='.descripteurs'!B153,\"\",'.descripteurs'!$B154)","v":""},{"$f":"'.descripteurs'!$C154","v":"Décrire le contenu d'une trousse et d'un cartable"},null,"","","","","","","","","","","","","","","","","","","","","","","","","","","","","",""]
[{"$f":"IF('.descripteurs'!$A155='.descripteurs'!A154,\"\",'.descripteurs'!$A155)","v":""},{"$f":"IF('.descripteurs'!$B155='.descripteurs'!B154,\"\",'.descripteurs'!$B155)","v":""},{"$f":"'.descripteurs'!$C155","v":"Décrire le contenu d'une lunch box, de son petit déjeuner, de son sandwich"},null,"","","","","","","","","","","","","","","","",{"$f":"IF($D155=0,\"\",$D155)","v":""},"","","","","","","","","","","",{"$f":"IF($D155=0,\"\",$D155)","v":""},""]
[{"$f":"IF('.descripteurs'!$A156='.descripteurs'!A155,\"\",'.descripteurs'!$A156)","v":""},{"$f":"IF('.descripteurs'!$B156='.descripteurs'!B155,\"\",'.descripteurs'!$B156)","v":""},{"$f":"'.descripteurs'!$C156","v":"Expliquer une information simple (règle de jeu, recette, histoire courte à partir d'images, film, livre ...)"},null,"","","","","","","","","","","","","","","","","","","","","","","","","","","","","",""]
[{"$f":"IF('.descripteurs'!$A157='.descripteurs'!A156,\"\",'.descripteurs'!$A157)","v":""},{"$f":"IF('.descripteurs'!$B157='.descripteurs'!B156,\"\",'.descripteurs'!$B157)","v":""},{"$f":"'.descripteurs'!$C157","v":"desc_19"},null,"","","","","","","","","","","","","","","","","","","","","","","","","","","","","",""]
[{"$f":"IF('.descripteurs'!$A158='.descripteurs'!A157,\"\",'.descripteurs'!$A158)","v":""},{"$f":"IF('.descripteurs'!$B158='.descripteurs'!B157,\"\",'.descripteurs'!$B158)","v":""},{"$f":"'.descripteurs'!$C158","v":"desc_20"},null,"","","","","","","","","","","","","","","","","","","","","","","","","","","","","",""]
[{"$f":"IF('.descripteurs'!$A159='.descripteurs'!A158,\"\",'.descripteurs'!$A159)","v":""},{"$f":"IF('.descripteurs'!$B159='.descripteurs'!B158,\"\",'.descripteurs'!$B159)","v":"Lire à haute voix et de manière expressive un texte bref après répétition"},{"$f":"'.descripteurs'!$C159","v":"Lire à haute voix un court poème, un bref extrait de conte ou de théâtre "},null,"","","","","","","","","","","","","","","","","","","","","","","","","","","","","",""]
[{"$f":"IF('.descripteurs'!$A160='.descripteurs'!A159,\"\",'.descripteurs'!$A160)","v":""},{"$f":"IF('.descripteurs'!$B160='.descripteurs'!B159,\"\",'.descripteurs'!$B160)","v":""},{"$f":"'.descripteurs'!$C160","v":"Lire à haute voix un emploi du temps pour faire repérer des disciplines étudiées"},null,"","","","","","","","","","","","","","","","","","","","","","","","","","","","","",""]
[{"$f":"IF('.descripteurs'!$A161='.descripteurs'!A160,\"\",'.descripteurs'!$A161)","v":""},{"$f":"IF('.descripteurs'!$B161='.descripteurs'!B160,\"\",'.descripteurs'!$B161)","v":""},{"$f":"'.descripteurs'!$C161","v":"Lire les paroles d'un karaoké "},null,"","","","","","","","","","","","","","","","","","","","","","","","","","","","","",""]
[{"$f":"IF('.descripteurs'!$A162='.descripteurs'!A161,\"\",'.descripteurs'!$A162)","v":""},{"$f":"IF('.descripteurs'!$B162='.descripteurs'!B161,\"\",'.descripteurs'!$B162)","v":""},{"$f":"'.descripteurs'!$C162","v":"Lire un compte rendu médical"},null,"","","","","","","","","","","","","","","","","","","","","","","","","","","","","",""]
[{"$f":"IF('.descripteurs'!$A163='.descripteurs'!A162,\"\",'.descripteurs'!$A163)","v":""},{"$f":"IF('.descripteurs'!$B163='.descripteurs'!B162,\"\",'.descripteurs'!$B163)","v":""},{"$f":"'.descripteurs'!$C163","v":"Raconter une histoire courte exploitée en classe en s'aidant d'images "},null,{"$f":"IF($D163=0,\"\",$D163)","v":""},"","","","","","","","","","","","","","","","","","","","","","","","","","","","",""]
[{"$f":"IF('.descripteurs'!$A164='.descripteurs'!A163,\"\",'.descripteurs'!$A164)","v":""},{"$f":"IF('.descripteurs'!$B164='.descripteurs'!B163,\"\",'.descripteurs'!$B164)","v":""},{"$f":"'.descripteurs'!$C164","v":"desc_21"},null,"","","","","","","","","","","","","","","","","","","","","","","","","","","","","",""]
[{"$f":"IF('.descripteurs'!$A165='.descripteurs'!A164,\"\",'.descripteurs'!$A165)","v":""},{"$f":"IF('.descripteurs'!$B165='.descripteurs'!B164,\"\",'.descripteurs'!$B165)","v":""},{"$f":"'.descripteurs'!$C165","v":"desc_22"},null,"","","","","","","","","","","","","","","","","","","","","","","","","","","","","",""]
[{"$f":"IF('.descripteurs'!$A166='.descripteurs'!A165,\"\",'.descripteurs'!$A166)","v":"Lire"},{"$f":"IF('.descripteurs'!$B166='.descripteurs'!B165,\"\",'.descripteurs'!$B166)","v":"Comprendre des textes courts et simples en s'appuyant sur des éléments connus (indications, informations)"},{"$f":"'.descripteurs'!$C166","v":"Relever des noms, des mots familiers et des expressions élémentaires dans un texte "},null,"","","","","","","","","","","","","","","","","","","","","","","","","","","","","",""]
[{"$f":"IF('.descripteurs'!$A167='.descripteurs'!A166,\"\",'.descripteurs'!$A167)","v":""},{"$f":"IF('.descripteurs'!$B167='.descripteurs'!B166,\"\",'.descripteurs'!$B167)","v":""},{"$f":"'.descripteurs'!$C167","v":"Comprendre une lettre très simple, une carte postale ou une invitation simple et brève, un courriel "},null,"","","","","","","","","","","","","","","","","","","","","","","","","","","","","",""]
[{"$f":"IF('.descripteurs'!$A168='.descripteurs'!A167,\"\",'.descripteurs'!$A168)","v":""},{"$f":"IF('.descripteurs'!$B168='.descripteurs'!B167,\"\",'.descripteurs'!$B168)","v":""},{"$f":"'.descripteurs'!$C168","v":"Comprendre des mots et des phrases très simples dans des annonces, des affiches, des catalogues, des programmes de télévision "},null,"","","","","","","","","","","","","","","","",{"$f":"IF($D168=0,\"\",$D168)","v":""},"","","","","","","","","","","","",""]
[{"$f":"IF('.descripteurs'!$A169='.descripteurs'!A168,\"\",'.descripteurs'!$A169)","v":""},{"$f":"IF('.descripteurs'!$B169='.descripteurs'!B168,\"\",'.descripteurs'!$B169)","v":""},{"$f":"'.descripteurs'!$C169","v":"Comprendre un questionnaire : date, nom, prénom, âge, domicile "},null,"","","","","","","","","","","","","","","","","","","","","","","","","","","","","",""]
[{"$f":"IF('.descripteurs'!$A170='.descripteurs'!A169,\"\",'.descripteurs'!$A170)","v":""},{"$f":"IF('.descripteurs'!$B170='.descripteurs'!B169,\"\",'.descripteurs'!$B170)","v":""},{"$f":"'.descripteurs'!$C170","v":"Comprendre une description de famille, de personne "},null,"","","","","","","","","","","","","","","","","","","","","","","","","","","","","",""]
[{"$f":"IF('.descripteurs'!$A171='.descripteurs'!A170,\"\",'.descripteurs'!$A171)","v":""},{"$f":"IF('.descripteurs'!$B171='.descripteurs'!B170,\"\",'.descripteurs'!$B171)","v":""},{"$f":"'.descripteurs'!$C171","v":"Comprendre un bulletin météorologique"},null,"","","","","","","","","","","","","","","","",{"$f":"IF($D171=0,\"\",$D171)","v":""},"","","","","","","","","","","",{"$f":"IF($D171=0,\"\",$D171)","v":""},""]
[{"$f":"IF('.descripteurs'!$A172='.descripteurs'!A171,\"\",'.descripteurs'!$A172)","v":""},{"$f":"IF('.descripteurs'!$B172='.descripteurs'!B171,\"\",'.descripteurs'!$B172)","v":""},{"$f":"'.descripteurs'!$C172","v":"Relever des noms propres ou communs dans un texte et les relier à des personnes, lieux, événements"},null,"","","","","","","","","","","","","","","","","","","","","","","","","","","","","",""]
[{"$f":"IF('.descripteurs'!$A173='.descripteurs'!A172,\"\",'.descripteurs'!$A173)","v":""},{"$f":"IF('.descripteurs'!$B173='.descripteurs'!B172,\"\",'.descripteurs'!$B173)","v":""},{"$f":"'.descripteurs'!$C173","v":"Repérer des chiffres et des nombres et les associer à des horaires, dates, quantités, opérations"},null,{"$f":"IF($D173=0,\"\",$D173)","v":""},"","","","","","","","","","","","","","","","","","","","","","","","","","","","",""]
[{"$f":"IF('.descripteurs'!$A174='.descripteurs'!A173,\"\",'.descripteurs'!$A174)","v":""},{"$f":"IF('.descripteurs'!$B174='.descripteurs'!B173,\"\",'.descripteurs'!$B174)","v":""},{"$f":"'.descripteurs'!$C174","v":"Comprendre un simple problème de maths "},null,"","","","","","","","","","","","","","","","","","","","","","","","","","","","","",""]
[{"$f":"IF('.descripteurs'!$A175='.descripteurs'!A174,\"\",'.descripteurs'!$A175)","v":""},{"$f":"IF('.descripteurs'!$B175='.descripteurs'!B174,\"\",'.descripteurs'!$B175)","v":""},{"$f":"'.descripteurs'!$C175","v":"Comprendre les ingrédients essentiels d'une recette, d'un sandwich, d'un petit déjeuner"},null,"","","","","","","","","","","","","","","","","","","","","","","","","","","","","",""]
[{"$f":"IF('.descripteurs'!$A176='.descripteurs'!A175,\"\",'.descripteurs'!$A176)","v":""},{"$f":"IF('.descripteurs'!$B176='.descripteurs'!B175,\"\",'.descripteurs'!$B176)","v":""},{"$f":"'.descripteurs'!$C176","v":"Comprendre une légende, un plan de ville, des panneaux d'indication  pour retrouver des rues ou des bâtiments principaux (bibliothèque, piscine, musée...)"},null,"","","","","","","","","","","","","","","","","","","","","","","","","","","","","",""]
[{"$f":"IF('.descripteurs'!$A177='.descripteurs'!A176,\"\",'.descripteurs'!$A177)","v":""},{"$f":"IF('.descripteurs'!$B177='.descripteurs'!B176,\"\",'.descripteurs'!$B177)","v":""},{"$f":"'.descripteurs'!$C177","v":"Retrouver des mots connus dans une grille de mots cachés, fléchés ..."},null,"","","","","","","","","","","","","","","","","","","","","","","","","","","","","",""]
[{"$f":"IF('.descripteurs'!$A178='.descripteurs'!A177,\"\",'.descripteurs'!$A178)","v":""},{"$f":"IF('.descripteurs'!$B178='.descripteurs'!B177,\"\",'.descripteurs'!$B178)","v":""},{"$f":"'.descripteurs'!$C178","v":"Reconnaître des mots sur des emballages alimentaires"},null,"","","","","","","","","","","","","","","","","","","","","","","","","","","","","",""]
[{"$f":"IF('.descripteurs'!$A179='.descripteurs'!A178,\"\",'.descripteurs'!$A179)","v":""},{"$f":"IF('.descripteurs'!$B179='.descripteurs'!B178,\"\",'.descripteurs'!$B179)","v":""},{"$f":"'.descripteurs'!$C179","v":"Comprendre des consignes simples (relier, entourer, surligner, barrer, cocher)"},null,"","","","","","","","","","","","","","","","","","","","","","","","","","","","","",""]
[{"$f":"IF('.descripteurs'!$A180='.descripteurs'!A179,\"\",'.descripteurs'!$A180)","v":""},{"$f":"IF('.descripteurs'!$B180='.descripteurs'!B179,\"\",'.descripteurs'!$B180)","v":""},{"$f":"'.descripteurs'!$C180","v":"Comprendre les consignes dans une règle de jeu "},null,"","","","","","","","","","","","","","","","","","","","","","","","","","","","","",""]
[{"$f":"IF('.descripteurs'!$A181='.descripteurs'!A180,\"\",'.descripteurs'!$A181)","v":""},{"$f":"IF('.descripteurs'!$B181='.descripteurs'!B180,\"\",'.descripteurs'!$B181)","v":""},{"$f":"'.descripteurs'!$C181","v":"Comprendre les noms des sports "},null,"","","","","","","","","","","","","","","","","","","","","","","","","","","","","",""]
[{"$f":"IF('.descripteurs'!$A182='.descripteurs'!A181,\"\",'.descripteurs'!$A182)","v":""},{"$f":"IF('.descripteurs'!$B182='.descripteurs'!B181,\"\",'.descripteurs'!$B182)","v":""},{"$f":"'.descripteurs'!$C182","v":"Comprendre des phrases courtes sur un anniversaire"},null,"","","","","","","","","","","","","","","","","","","","","","","","","","","","","",""]
[{"$f":"IF('.descripteurs'!$A183='.descripteurs'!A182,\"\",'.descripteurs'!$A183)","v":""},{"$f":"IF('.descripteurs'!$B183='.descripteurs'!B182,\"\",'.descripteurs'!$B183)","v":""},{"$f":"'.descripteurs'!$C183","v":"Comprendre le texte d'une chanson"},null,{"$f":"IF($D183=0,\"\",$D183)","v":""},"","","","","","","","","","","","","","","","","","","","","","","","","","","","",""]
[{"$f":"IF('.descripteurs'!$A184='.descripteurs'!A183,\"\",'.descripteurs'!$A184)","v":""},{"$f":"IF('.descripteurs'!$B184='.descripteurs'!B183,\"\",'.descripteurs'!$B184)","v":""},{"$f":"'.descripteurs'!$C184","v":"Chercher et trouver un mot dans un dictionnaire"},null,"","","","","","","","","","","","","","","","","","","","","","","","","","","","","",""]
[{"$f":"IF('.descripteurs'!$A185='.descripteurs'!A184,\"\",'.descripteurs'!$A185)","v":""},{"$f":"IF('.descripteurs'!$B185='.descripteurs'!B184,\"\",'.descripteurs'!$B185)","v":""},{"$f":"'.descripteurs'!$C185","v":"Comprendre des phrases sur l'école"},null,"","","","","","","","","","","","","","","","","","","","","","","","","","","","","",""]
[{"$f":"IF('.descripteurs'!$A186='.descripteurs'!A185,\"\",'.descripteurs'!$A186)","v":""},{"$f":"IF('.descripteurs'!$B186='.descripteurs'!B185,\"\",'.descripteurs'!$B186)","v":""},{"$f":"'.descripteurs'!$C186","v":"Comprendre un emploi du temps"},null,"","","","","","","","","","","","","","","","","","","","","","","","","","","","","",""]
[{"$f":"IF('.descripteurs'!$A187='.descripteurs'!A186,\"\",'.descripteurs'!$A187)","v":""},{"$f":"IF('.descripteurs'!$B187='.descripteurs'!B186,\"\",'.descripteurs'!$B187)","v":""},{"$f":"'.descripteurs'!$C187","v":"desc_23"},null,"","","","","","","","","","","","","","","","",{"$f":"IF($D187=0,\"\",$D187)","v":""},"","","","","","","","","","","",{"$f":"IF($D187=0,\"\",$D187)","v":""},""]
[{"$f":"IF('.descripteurs'!$A188='.descripteurs'!A187,\"\",'.descripteurs'!$A188)","v":""},{"$f":"IF('.descripteurs'!$B188='.descripteurs'!B187,\"\",'.descripteurs'!$B188)","v":""},{"$f":"'.descripteurs'!$C188","v":"desc_24"},null,"","","","","","","","","","","","","","","","","","","","","","","","","","","","","",""]
[{"$f":"IF('.descripteurs'!$A189='.descripteurs'!A188,\"\",'.descripteurs'!$A189)","v":""},{"$f":"IF('.descripteurs'!$B189='.descripteurs'!B188,\"\",'.descripteurs'!$B189)","v":"Se faire une idée du contenu d'un texte informatif simple, accompagné éventuellement d'un document visuel "},{"$f":"'.descripteurs'!$C189","v":"Comprendre un menu, une recette, une liste de courses"},null,"","","","","","","","","","","","","","","","","","","","","","","","","","","","","",""]
[{"$f":"IF('.descripteurs'!$A190='.descripteurs'!A189,\"\",'.descripteurs'!$A190)","v":""},{"$f":"IF('.descripteurs'!$B190='.descripteurs'!B189,\"\",'.descripteurs'!$B190)","v":""},{"$f":"'.descripteurs'!$C190","v":"Comprendre une enquête, un tableau à double entrée"},null,"","","","","","","","","","","","","","","","","","","","","","","","","","","","","",""]
[{"$f":"IF('.descripteurs'!$A191='.descripteurs'!A190,\"\",'.descripteurs'!$A191)","v":""},{"$f":"IF('.descripteurs'!$B191='.descripteurs'!B190,\"\",'.descripteurs'!$B191)","v":""},{"$f":"'.descripteurs'!$C191","v":"Comprendre une carte, un plan, des panneaux"},null,"","","","","","","","","","","","","","","","","","","","","","","","","","","","","",""]
[{"$f":"IF('.descripteurs'!$A192='.descripteurs'!A191,\"\",'.descripteurs'!$A192)","v":""},{"$f":"IF('.descripteurs'!$B192='.descripteurs'!B191,\"\",'.descripteurs'!$B192)","v":""},{"$f":"'.descripteurs'!$C192","v":"Comprendre une description physique d'un animal, d'une personne"},null,"","","","","","","","","","","","","","","","","","","","","","","","","","","","","",""]
[{"$f":"IF('.descripteurs'!$A193='.descripteurs'!A192,\"\",'.descripteurs'!$A193)","v":""},{"$f":"IF('.descripteurs'!$B193='.descripteurs'!B192,\"\",'.descripteurs'!$B193)","v":""},{"$f":"'.descripteurs'!$C193","v":"Comprendre un bulletin météorologique"},null,{"$f":"IF($D193=0,\"\",$D193)","v":""},"","","","","","","","","","","","","","","","","","","","","","","","","","","","",""]
[{"$f":"IF('.descripteurs'!$A194='.descripteurs'!A193,\"\",'.descripteurs'!$A194)","v":""},{"$f":"IF('.descripteurs'!$B194='.descripteurs'!B193,\"\",'.descripteurs'!$B194)","v":""},{"$f":"'.descripteurs'!$C194","v":"Comprendre un programme de voyage, de séjour (réel ou virtuel)"},null,"","","","","","","","","","","","","","","","","","","","","","","","","","","","","",""]
[{"$f":"IF('.descripteurs'!$A195='.descripteurs'!A194,\"\",'.descripteurs'!$A195)","v":""},{"$f":"IF('.descripteurs'!$B195='.descripteurs'!B194,\"\",'.descripteurs'!$B195)","v":""},{"$f":"'.descripteurs'!$C195","v":"Comprendre des horaires, des tarifs sur une brochure, un site web"},null,"","","","","","","","","","","","","","","","","","","","","","","","","","","","","",""]
[{"$f":"IF('.descripteurs'!$A196='.descripteurs'!A195,\"\",'.descripteurs'!$A196)","v":""},{"$f":"IF('.descripteurs'!$B196='.descripteurs'!B195,\"\",'.descripteurs'!$B196)","v":""},{"$f":"'.descripteurs'!$C196","v":"Comprendre un mode d'emploi"},null,"","","","","","","","","","","","","","","","","","","","","","","","","","","","","",""]
[{"$f":"IF('.descripteurs'!$A197='.descripteurs'!A196,\"\",'.descripteurs'!$A197)","v":""},{"$f":"IF('.descripteurs'!$B197='.descripteurs'!B196,\"\",'.descripteurs'!$B197)","v":""},{"$f":"'.descripteurs'!$C197","v":"Cocher un choix de  petit déjeuner (continental ou English, d'un sandwich, d'une lunch box, d'un lunch, d'un dinner"},null,"","","","","","","","","","","","","","","","","","","","","","","","","","","","","",""]
[{"$f":"IF('.descripteurs'!$A198='.descripteurs'!A197,\"\",'.descripteurs'!$A198)","v":""},{"$f":"IF('.descripteurs'!$B198='.descripteurs'!B197,\"\",'.descripteurs'!$B198)","v":""},{"$f":"'.descripteurs'!$C198","v":"Catégoriser des mots selon le sens (couleurs, parties du corps, vêtements)"},null,"","","","","","","","","","","","","","","","","","","","","","","","","","","","","",""]
[{"$f":"IF('.descripteurs'!$A199='.descripteurs'!A198,\"\",'.descripteurs'!$A199)","v":""},{"$f":"IF('.descripteurs'!$B199='.descripteurs'!B198,\"\",'.descripteurs'!$B199)","v":""},{"$f":"'.descripteurs'!$C199","v":"Compléter une enquête de satisfaction "},null,"","","","","","","","","","","","","","","","","","","","","","","","","","","","","",""]
[{"$f":"IF('.descripteurs'!$A200='.descripteurs'!A199,\"\",'.descripteurs'!$A200)","v":""},{"$f":"IF('.descripteurs'!$B200='.descripteurs'!B199,\"\",'.descripteurs'!$B200)","v":""},{"$f":"'.descripteurs'!$C200","v":"Comprendre le sens global d'une histoire drôle, d'un album, d'un texte documentaire, d'un dialogue"},null,"","","","","","","","","","","","","","","","",{"$f":"IF($D200=0,\"\",$D200)","v":""},"","","","","","","","","","","","",""]
[{"$f":"IF('.descripteurs'!$A201='.descripteurs'!A200,\"\",'.descripteurs'!$A201)","v":""},{"$f":"IF('.descripteurs'!$B201='.descripteurs'!B200,\"\",'.descripteurs'!$B201)","v":""},{"$f":"'.descripteurs'!$C201","v":"Comprendre les bulles d'une bande dessinée à l'aide des mots connus, des images"},null,"","","","","","","","","","","","","","","","","","","","","","","","","","","","","",""]
[{"$f":"IF('.descripteurs'!$A202='.descripteurs'!A201,\"\",'.descripteurs'!$A202)","v":""},{"$f":"IF('.descripteurs'!$B202='.descripteurs'!B201,\"\",'.descripteurs'!$B202)","v":""},{"$f":"'.descripteurs'!$C202","v":"Connaître les onomatopées"},null,"","","","","","","","","","","","","","","","","","","","","","","","","","","","","",""]
[{"$f":"IF('.descripteurs'!$A203='.descripteurs'!A202,\"\",'.descripteurs'!$A203)","v":""},{"$f":"IF('.descripteurs'!$B203='.descripteurs'!B202,\"\",'.descripteurs'!$B203)","v":""},{"$f":"'.descripteurs'!$C203","v":"Comprendre le texte  d'une comptine"},null,{"$f":"IF($D203=0,\"\",$D203)","v":""},"","","","","","","","","","","","","","","",{"$f":"IF($D203=0,\"\",$D203)","v":""},"","","","","","","","","","","","",""]
[{"$f":"IF('.descripteurs'!$A204='.descripteurs'!A203,\"\",'.descripteurs'!$A204)","v":""},{"$f":"IF('.descripteurs'!$B204='.descripteurs'!B203,\"\",'.descripteurs'!$B204)","v":""},{"$f":"'.descripteurs'!$C204","v":"desc_25"},null,"","","","","","","","","","","","","","","","","","","","","","","","","","","","","",""]
[{"$f":"IF('.descripteurs'!$A205='.descripteurs'!A204,\"\",'.descripteurs'!$A205)","v":""},{"$f":"IF('.descripteurs'!$B205='.descripteurs'!B204,\"\",'.descripteurs'!$B205)","v":""},{"$f":"'.descripteurs'!$C205","v":"desc_26"},null,"","","","","","","","","","","","","","","","","","","","","","","","","","","","","",""]
[{"$f":"IF('.descripteurs'!$A206='.descripteurs'!A205,\"\",'.descripteurs'!$A206)","v":"Réagir et dialoguer (interaction orale)"},{"$f":"IF('.descripteurs'!$B206='.descripteurs'!B205,\"\",'.descripteurs'!$B206)","v":"Communiquer, au besoin avec des pauses pour chercher ses mots"},{"$f":"'.descripteurs'!$C206","v":"Parler du temps qu'il fait "},null,"","","","","","","","","","","","","","","","","","","","","","","","","","","","","",""]
[{"$f":"IF('.descripteurs'!$A207='.descripteurs'!A206,\"\",'.descripteurs'!$A207)","v":""},{"$f":"IF('.descripteurs'!$B207='.descripteurs'!B206,\"\",'.descripteurs'!$B207)","v":""},{"$f":"'.descripteurs'!$C207","v":"Dire : \" Merci, s'il vous plaît, excusez-moi \" "},null,"","","","","","","","","","","","","","","","","","","","","","","","","","","","","",""]
[{"$f":"IF('.descripteurs'!$A208='.descripteurs'!A207,\"\",'.descripteurs'!$A208)","v":""},{"$f":"IF('.descripteurs'!$B208='.descripteurs'!B207,\"\",'.descripteurs'!$B208)","v":""},{"$f":"'.descripteurs'!$C208","v":"Poser des questions sur des nombres, des quantités, le prix et l'heure et y répondre"},null,"","","","","","","","","","","","","","","","","","","","","","","","","","","","","",""]
[{"$f":"IF('.descripteurs'!$A209='.descripteurs'!A208,\"\",'.descripteurs'!$A209)","v":""},{"$f":"IF('.descripteurs'!$B209='.descripteurs'!B208,\"\",'.descripteurs'!$B209)","v":""},{"$f":"'.descripteurs'!$C209","v":"Exprimer ses goûts et réagir à l'expression des goûts d'autrui "},null,"","","","","","","","","","","","","","","","","","","","","","","","","","","","","",""]
[{"$f":"IF('.descripteurs'!$A210='.descripteurs'!A209,\"\",'.descripteurs'!$A210)","v":""},{"$f":"IF('.descripteurs'!$B210='.descripteurs'!B209,\"\",'.descripteurs'!$B210)","v":""},{"$f":"'.descripteurs'!$C210","v":"Exprimer son accord et son désaccord "},null,"","","","","","","","","","","","","","","","","","","","","","","","","","","","","",""]
[{"$f":"IF('.descripteurs'!$A211='.descripteurs'!A210,\"\",'.descripteurs'!$A211)","v":""},{"$f":"IF('.descripteurs'!$B211='.descripteurs'!B210,\"\",'.descripteurs'!$B211)","v":""},{"$f":"'.descripteurs'!$C211","v":"Parler du temps avec des expressions telles que : la semaine dernière, vendredi prochain, en Novembre, à 3 heures "},null,"","","","","","","","","","","","","","","","","","","","","","","","","","","","","",""]
[{"$f":"IF('.descripteurs'!$A212='.descripteurs'!A211,\"\",'.descripteurs'!$A212)","v":""},{"$f":"IF('.descripteurs'!$B212='.descripteurs'!B211,\"\",'.descripteurs'!$B212)","v":""},{"$f":"'.descripteurs'!$C212","v":"Demander son chemin et répéter les instructions pour vérifier qu'il a bien compris "},null,"","","","","","","","","","","","","","","","","","","","","","","","","","","","","",""]
[{"$f":"IF('.descripteurs'!$A213='.descripteurs'!A212,\"\",'.descripteurs'!$A213)","v":""},{"$f":"IF('.descripteurs'!$B213='.descripteurs'!B212,\"\",'.descripteurs'!$B213)","v":""},{"$f":"'.descripteurs'!$C213","v":"Répondre et poser des questions sur la localisation, les couleurs, les formes "},null,{"$f":"IF($D213=0,\"\",$D213)","v":""},"","","","","","","","","","","","","","","","","","","","","","","","","","","","",""]
[{"$f":"IF('.descripteurs'!$A214='.descripteurs'!A213,\"\",'.descripteurs'!$A214)","v":""},{"$f":"IF('.descripteurs'!$B214='.descripteurs'!B213,\"\",'.descripteurs'!$B214)","v":""},{"$f":"'.descripteurs'!$C214","v":"Se décrire et poser des questions sur la description d'autrui, ses vêtements"},null,"","","","","","","","","","","","","","","","","","","","","","","","","","","","","",""]
[{"$f":"IF('.descripteurs'!$A215='.descripteurs'!A214,\"\",'.descripteurs'!$A215)","v":""},{"$f":"IF('.descripteurs'!$B215='.descripteurs'!B214,\"\",'.descripteurs'!$B215)","v":""},{"$f":"'.descripteurs'!$C215","v":"Répondre et poser des questions sur les disciplines scolaires"},null,"","","","","","","","","","","","","","","","","","","","","","","","","","","","","",""]
[{"$f":"IF('.descripteurs'!$A216='.descripteurs'!A215,\"\",'.descripteurs'!$A216)","v":""},{"$f":"IF('.descripteurs'!$B216='.descripteurs'!B215,\"\",'.descripteurs'!$B216)","v":""},{"$f":"'.descripteurs'!$C216","v":"Dire son incompréhension ou son ignorance"},null,"","","","","","","","","","","","","","","","",{"$f":"IF($D216=0,\"\",$D216)","v":""},"","","","","","","","","","","","",""]
[{"$f":"IF('.descripteurs'!$A217='.descripteurs'!A216,\"\",'.descripteurs'!$A217)","v":""},{"$f":"IF('.descripteurs'!$B217='.descripteurs'!B216,\"\",'.descripteurs'!$B217)","v":""},{"$f":"'.descripteurs'!$C217","v":"Demander de répéter, d'expliquer sans traduire"},null,"","","","","","","","","","","","","","","","","","","","","","","","","","","","","",""]
[{"$f":"IF('.descripteurs'!$A218='.descripteurs'!A217,\"\",'.descripteurs'!$A218)","v":""},{"$f":"IF('.descripteurs'!$B218='.descripteurs'!B217,\"\",'.descripteurs'!$B218)","v":""},{"$f":"'.descripteurs'!$C218","v":"Répondre et questionner sur ses vacances"},null,"","","","","","","","","","","","","","","","","","","","","","","","","","","","","",""]
[{"$f":"IF('.descripteurs'!$A219='.descripteurs'!A218,\"\",'.descripteurs'!$A219)","v":""},{"$f":"IF('.descripteurs'!$B219='.descripteurs'!B218,\"\",'.descripteurs'!$B219)","v":""},{"$f":"'.descripteurs'!$C219","v":"Etre capable de parler plus lentement, de paraphraser ou de mimer pour être compris"},null,"","","","","","","","","","","","","","","","",{"$f":"IF($D219=0,\"\",$D219)","v":""},"","","","","","","","","","","",{"$f":"IF($D219=0,\"\",$D219)","v":""},""]
[{"$f":"IF('.descripteurs'!$A220='.descripteurs'!A219,\"\",'.descripteurs'!$A220)","v":""},{"$f":"IF('.descripteurs'!$B220='.descripteurs'!B219,\"\",'.descripteurs'!$B220)","v":""},{"$f":"'.descripteurs'!$C220","v":"Répondre et questionner pour jouer aux cartes"},null,"","","","","","","","","","","","","","","","","","","","","","","","","","","","","",""]
[{"$f":"IF('.descripteurs'!$A221='.descripteurs'!A220,\"\",'.descripteurs'!$A221)","v":""},{"$f":"IF('.descripteurs'!$B221='.descripteurs'!B220,\"\",'.descripteurs'!$B221)","v":""},{"$f":"'.descripteurs'!$C221","v":"Demander à son interlocuteur de parler moins vite, plus fort ..."},null,"","","","","","","","","","","","","","","","","","","","","","","","","","","","","",""]
[{"$f":"IF('.descripteurs'!$A222='.descripteurs'!A221,\"\",'.descripteurs'!$A222)","v":""},{"$f":"IF('.descripteurs'!$B222='.descripteurs'!B221,\"\",'.descripteurs'!$B222)","v":""},{"$f":"'.descripteurs'!$C222","v":"desc_27"},null,"","","","","","","","","","","","","","","","","","","","","","","","","","","","","",""]
[{"$f":"IF('.descripteurs'!$A223='.descripteurs'!A222,\"\",'.descripteurs'!$A223)","v":""},{"$f":"IF('.descripteurs'!$B223='.descripteurs'!B222,\"\",'.descripteurs'!$B223)","v":""},{"$f":"'.descripteurs'!$C223","v":"desc_28"},null,"","","","","","","","","","","","","","","","","","","","","","","","","","","","","",""]
[{"$f":"IF('.descripteurs'!$A224='.descripteurs'!A223,\"\",'.descripteurs'!$A224)","v":""},{"$f":"IF('.descripteurs'!$B224='.descripteurs'!B223,\"\",'.descripteurs'!$B224)","v":"Se présenter, présenter quelqu'un, demander à quelqu'un de ses nouvelles en utilisant les formes de politesse les plus élémentaires, accueil et prise de congé"},{"$f":"'.descripteurs'!$C224","v":"Saluer quelqu'un à plusieurs périodes dans la journée "},null,"","","","","","","","","","","","","","","","","","","","","","","","","","","","","",""]
[{"$f":"IF('.descripteurs'!$A225='.descripteurs'!A224,\"\",'.descripteurs'!$A225)","v":""},{"$f":"IF('.descripteurs'!$B225='.descripteurs'!B224,\"\",'.descripteurs'!$B225)","v":""},{"$f":"'.descripteurs'!$C225","v":"Demander des nouvelles de quelqu'un et y réagir "},null,"","","","","","","","","","","","","","","","","","","","","","","","","","","","","",""]
[{"$f":"IF('.descripteurs'!$A226='.descripteurs'!A225,\"\",'.descripteurs'!$A226)","v":""},{"$f":"IF('.descripteurs'!$B226='.descripteurs'!B225,\"\",'.descripteurs'!$B226)","v":""},{"$f":"'.descripteurs'!$C226","v":"Prendre congé "},null,{"$f":"IF($D226=0,\"\",$D226)","v":""},"","","","","","","","","","","","",{"$f":"IF($D226=0,\"\",$D226)","v":""},"","","","","","","","","","","","","","","",""]
[{"$f":"IF('.descripteurs'!$A227='.descripteurs'!A226,\"\",'.descripteurs'!$A227)","v":""},{"$f":"IF('.descripteurs'!$B227='.descripteurs'!B226,\"\",'.descripteurs'!$B227)","v":""},{"$f":"'.descripteurs'!$C227","v":"Se présenter en répondant à des questions simples sur son identité "},null,"","","","","","","","","","","","","","","","","","","","","","","","","","","","","",""]
[{"$f":"IF('.descripteurs'!$A228='.descripteurs'!A227,\"\",'.descripteurs'!$A228)","v":""},{"$f":"IF('.descripteurs'!$B228='.descripteurs'!B227,\"\",'.descripteurs'!$B228)","v":""},{"$f":"'.descripteurs'!$C228","v":"Présenter quelqu'un et réagir de façon appropriée quand on lui présente quelqu'un "},null,"","","","","","","","","","","","","","","","","","","","","","","","","","","","","",""]
[{"$f":"IF('.descripteurs'!$A229='.descripteurs'!A228,\"\",'.descripteurs'!$A229)","v":""},{"$f":"IF('.descripteurs'!$B229='.descripteurs'!B228,\"\",'.descripteurs'!$B229)","v":""},{"$f":"'.descripteurs'!$C229","v":"Indiquer un itinéraire simple à quelqu'un, avec des supports appropriés (carte, plan, …)"},null,"","","","","","","","","","","","","","","","","","","","","","","","","","","","","",""]
[{"$f":"IF('.descripteurs'!$A230='.descripteurs'!A229,\"\",'.descripteurs'!$A230)","v":""},{"$f":"IF('.descripteurs'!$B230='.descripteurs'!B229,\"\",'.descripteurs'!$B230)","v":""},{"$f":"'.descripteurs'!$C230","v":"Remercier et répondre \" pas de quoi \""},null,"","","","","","","","","","","","","","","","","","","","","","","","","","","","","",""]
[{"$f":"IF('.descripteurs'!$A231='.descripteurs'!A230,\"\",'.descripteurs'!$A231)","v":""},{"$f":"IF('.descripteurs'!$B231='.descripteurs'!B230,\"\",'.descripteurs'!$B231)","v":""},{"$f":"'.descripteurs'!$C231","v":"Demander poliment une permission"},null,"","","","","","","","","","","","","","","","","","","","","","","","","","","","","",""]
[{"$f":"IF('.descripteurs'!$A232='.descripteurs'!A231,\"\",'.descripteurs'!$A232)","v":""},{"$f":"IF('.descripteurs'!$B232='.descripteurs'!B231,\"\",'.descripteurs'!$B232)","v":""},{"$f":"'.descripteurs'!$C232","v":"Présenter des excuses"},null,"","","","","","","","","","","","","","","","",{"$f":"IF($D232=0,\"\",$D232)","v":""},"","","","","","","","","","","","",""]
[{"$f":"IF('.descripteurs'!$A233='.descripteurs'!A232,\"\",'.descripteurs'!$A233)","v":""},{"$f":"IF('.descripteurs'!$B233='.descripteurs'!B232,\"\",'.descripteurs'!$B233)","v":""},{"$f":"'.descripteurs'!$C233","v":"Féliciter quelqu'un"},null,"","","","","","","","","","","","","","","","","","","","","","","","","","","","","",""]
[{"$f":"IF('.descripteurs'!$A234='.descripteurs'!A233,\"\",'.descripteurs'!$A234)","v":""},{"$f":"IF('.descripteurs'!$B234='.descripteurs'!B233,\"\",'.descripteurs'!$B234)","v":""},{"$f":"'.descripteurs'!$C234","v":"Souhaiter bon anniversaire, une fête..."},null,"","","","","","","","","","","","","","","","","","","","","","","","","","","","","",""]
[{"$f":"IF('.descripteurs'!$A235='.descripteurs'!A234,\"\",'.descripteurs'!$A235)","v":""},{"$f":"IF('.descripteurs'!$B235='.descripteurs'!B234,\"\",'.descripteurs'!$B235)","v":""},{"$f":"'.descripteurs'!$C235","v":"desc_29"},null,"","","","","","","","","","","","","","","","",{"$f":"IF($D235=0,\"\",$D235)","v":""},"","","","","","","","","","","","",""]
[{"$f":"IF('.descripteurs'!$A236='.descripteurs'!A235,\"\",'.descripteurs'!$A236)","v":""},{"$f":"IF('.descripteurs'!$B236='.descripteurs'!B235,\"\",'.descripteurs'!$B236)","v":""},{"$f":"'.descripteurs'!$C236","v":"desc_30"},null,"","","","","","","","","","","","","","","","","","","","","","","","","","","","","",""]
[{"$f":"IF('.descripteurs'!$A237='.descripteurs'!A236,\"\",'.descripteurs'!$A237)","v":""},{"$f":"IF('.descripteurs'!$B237='.descripteurs'!B236,\"\",'.descripteurs'!$B237)","v":"Répondre à des questions et en poser (sujets familiers ou besoins immédiats)"},{"$f":"'.descripteurs'!$C237","v":"Demander des objets à autrui et lui en donner "},null,"","","","","","","","","","","","","","","","","","","","","","","","","","","","","",""]
[{"$f":"IF('.descripteurs'!$A238='.descripteurs'!A237,\"\",'.descripteurs'!$A238)","v":""},{"$f":"IF('.descripteurs'!$B238='.descripteurs'!B237,\"\",'.descripteurs'!$B238)","v":""},{"$f":"'.descripteurs'!$C238","v":"Réagir à des questions simples qui lui sont adressées "},null,"","","","","","","","","","","","","","","","","","","","","","","","","","","","","",""]
[{"$f":"IF('.descripteurs'!$A239='.descripteurs'!A238,\"\",'.descripteurs'!$A239)","v":""},{"$f":"IF('.descripteurs'!$B239='.descripteurs'!B238,\"\",'.descripteurs'!$B239)","v":""},{"$f":"'.descripteurs'!$C239","v":"Proposer quelque chose et réagir à une proposition "},null,"","","","","","","","","","","","","","","","","","","","","","","","","","","","","",""]
[{"$f":"IF('.descripteurs'!$A240='.descripteurs'!A239,\"\",'.descripteurs'!$A240)","v":""},{"$f":"IF('.descripteurs'!$B240='.descripteurs'!B239,\"\",'.descripteurs'!$B240)","v":""},{"$f":"'.descripteurs'!$C240","v":"Réagir à des instructions simples et brèves, énoncées lentement"},null,"","","","","","","","","","","","","","","","","","","","","","","","","","","","","",""]
[{"$f":"IF('.descripteurs'!$A241='.descripteurs'!A240,\"\",'.descripteurs'!$A241)","v":""},{"$f":"IF('.descripteurs'!$B241='.descripteurs'!B240,\"\",'.descripteurs'!$B241)","v":""},{"$f":"'.descripteurs'!$C241","v":"Demander à son interlocuteur de répéter ses propos, en s'aidant éventuellement de gestes ou de mimiques"},null,"","","","","","","","","","","","","","","","","","","","","","","","","","","","","",""]
[{"$f":"IF('.descripteurs'!$A242='.descripteurs'!A241,\"\",'.descripteurs'!$A242)","v":""},{"$f":"IF('.descripteurs'!$B242='.descripteurs'!B241,\"\",'.descripteurs'!$B242)","v":""},{"$f":"'.descripteurs'!$C242","v":"Répondre à des questions concernant ses nom, prénom, âge, adresse, nationalité, famille, animaux, numéro de téléphone, humeur/sentiment, date d'anniversaire..."},null,"","","","","","","","","","","","","","","","","","","","","","","","","","","","","",""]
[{"$f":"IF('.descripteurs'!$A243='.descripteurs'!A242,\"\",'.descripteurs'!$A243)","v":""},{"$f":"IF('.descripteurs'!$B243='.descripteurs'!B242,\"\",'.descripteurs'!$B243)","v":""},{"$f":"'.descripteurs'!$C243","v":"Poser des questions concernant l'identité et l'entourage d'un interlocuteur"},null,"","","","",{"$f":"IF($D243=0,\"\",$D243)","v":""},"","","","","","","","","","","","","","","","","","","","","","","","",""]
[{"$f":"IF('.descripteurs'!$A244='.descripteurs'!A243,\"\",'.descripteurs'!$A244)","v":""},{"$f":"IF('.descripteurs'!$B244='.descripteurs'!B243,\"\",'.descripteurs'!$B244)","v":""},{"$f":"'.descripteurs'!$C244","v":"Demander et donner des informations sur une tierce personne"},null,{"$f":"IF($D244=0,\"\",$D244)","v":""},"","","","","","","","","","","","","","","","","","","","","","","","","","","","",""]
[{"$f":"IF('.descripteurs'!$A245='.descripteurs'!A244,\"\",'.descripteurs'!$A245)","v":""},{"$f":"IF('.descripteurs'!$B245='.descripteurs'!B244,\"\",'.descripteurs'!$B245)","v":""},{"$f":"'.descripteurs'!$C245","v":"Répondre et questionner sur les descriptions et activités animales"},null,"","","","","","","","","","","","","","","","","","","","","","","","","","","","","",""]
[{"$f":"IF('.descripteurs'!$A246='.descripteurs'!A245,\"\",'.descripteurs'!$A246)","v":""},{"$f":"IF('.descripteurs'!$B246='.descripteurs'!B245,\"\",'.descripteurs'!$B246)","v":""},{"$f":"'.descripteurs'!$C246","v":"Répondre et poser des questions sur les pièces d'une habitation"},null,"","","","","","","","","","","","","","","","","","","","","","","","","","","","","",""]
[{"$f":"IF('.descripteurs'!$A247='.descripteurs'!A246,\"\",'.descripteurs'!$A247)","v":""},{"$f":"IF('.descripteurs'!$B247='.descripteurs'!B246,\"\",'.descripteurs'!$B247)","v":""},{"$f":"'.descripteurs'!$C247","v":"Répondre et poser des questions sur ce que l'on prend ou pas aux trois repas"},null,"","","","","","","","","","","","","","","","","","","","","","","","","","","","","",""]
[{"$f":"IF('.descripteurs'!$A248='.descripteurs'!A247,\"\",'.descripteurs'!$A248)","v":""},{"$f":"IF('.descripteurs'!$B248='.descripteurs'!B247,\"\",'.descripteurs'!$B248)","v":""},{"$f":"'.descripteurs'!$C248","v":"Proposer et refuser des aliments"},null,"","","","","","","","","","","","","","","","","","","","","","","","","","","","","",""]
[{"$f":"IF('.descripteurs'!$A249='.descripteurs'!A248,\"\",'.descripteurs'!$A249)","v":""},{"$f":"IF('.descripteurs'!$B249='.descripteurs'!B248,\"\",'.descripteurs'!$B249)","v":""},{"$f":"'.descripteurs'!$C249","v":"Exprimer sa faim, sa soif"},null,"","","","","","","","","","","","","","","","","","","","","","","","","","","","","",""]
[{"$f":"IF('.descripteurs'!$A250='.descripteurs'!A249,\"\",'.descripteurs'!$A250)","v":""},{"$f":"IF('.descripteurs'!$B250='.descripteurs'!B249,\"\",'.descripteurs'!$B250)","v":""},{"$f":"'.descripteurs'!$C250","v":"Demander un objet à quelqu'un"},null,"","","","","","","","","","","","","","","","","","","","","","","","","","","","","",""]
[{"$f":"IF('.descripteurs'!$A251='.descripteurs'!A250,\"\",'.descripteurs'!$A251)","v":""},{"$f":"IF('.descripteurs'!$B251='.descripteurs'!B250,\"\",'.descripteurs'!$B251)","v":""},{"$f":"'.descripteurs'!$C251","v":"Dire et demander à son interlocuteur ce qu'il aime ou pas : manger, boire, faire"},null,"","","","","","","","","","","","","","","","",{"$f":"IF($D251=0,\"\",$D251)","v":""},"","","","","","","","","","","","",""]
[{"$f":"IF('.descripteurs'!$A252='.descripteurs'!A251,\"\",'.descripteurs'!$A252)","v":""},{"$f":"IF('.descripteurs'!$B252='.descripteurs'!B251,\"\",'.descripteurs'!$B252)","v":""},{"$f":"'.descripteurs'!$C252","v":"Demander et donner une date, heure, lieu de rendez-vous"},null,"","","","","","","","","","","","","","","","","","","","","","","","","","","","","",""]
[{"$f":"IF('.descripteurs'!$A253='.descripteurs'!A252,\"\",'.descripteurs'!$A253)","v":""},{"$f":"IF('.descripteurs'!$B253='.descripteurs'!B252,\"\",'.descripteurs'!$B253)","v":""},{"$f":"'.descripteurs'!$C253","v":"Indiquer et demander le temps qu'il fait "},null,"","","","","","","","","","","","","","","","","","","","","","","","","","","","","",""]
[{"$f":"IF('.descripteurs'!$A254='.descripteurs'!A253,\"\",'.descripteurs'!$A254)","v":""},{"$f":"IF('.descripteurs'!$B254='.descripteurs'!B253,\"\",'.descripteurs'!$B254)","v":""},{"$f":"'.descripteurs'!$C254","v":"Exprimer et comprendre une envie, un besoin"},null,"","","","","","","","","","","","","","","","","","","","","","","","","","","","","",""]
[{"$f":"IF('.descripteurs'!$A255='.descripteurs'!A254,\"\",'.descripteurs'!$A255)","v":""},{"$f":"IF('.descripteurs'!$B255='.descripteurs'!B254,\"\",'.descripteurs'!$B255)","v":""},{"$f":"'.descripteurs'!$C255","v":"Indiquer et demander une quantité "},null,"","","","","","","","","","","","","","","","","","","","","","","","","","","","","",""]
[{"$f":"IF('.descripteurs'!$A256='.descripteurs'!A255,\"\",'.descripteurs'!$A256)","v":""},{"$f":"IF('.descripteurs'!$B256='.descripteurs'!B255,\"\",'.descripteurs'!$B256)","v":""},{"$f":"'.descripteurs'!$C256","v":"Questionner et répondre à la description d'un paysage"},null,"","","","","","","","","","","","","","","","","","","","","","","","","","","","","",""]
[{"$f":"IF('.descripteurs'!$A257='.descripteurs'!A256,\"\",'.descripteurs'!$A257)","v":""},{"$f":"IF('.descripteurs'!$B257='.descripteurs'!B256,\"\",'.descripteurs'!$B257)","v":""},{"$f":"'.descripteurs'!$C257","v":"Interroger et répondre au sujet des pratiques sportives"},null,"","","","","","","","","","","","","","","","","","","","","","","","","","","","","",""]
[{"$f":"IF('.descripteurs'!$A258='.descripteurs'!A257,\"\",'.descripteurs'!$A258)","v":""},{"$f":"IF('.descripteurs'!$B258='.descripteurs'!B257,\"\",'.descripteurs'!$B258)","v":""},{"$f":"'.descripteurs'!$C258","v":"desc_31"},null,"","","","","","","","","","","","","","","","","","","","","","","","","","","","","",""]
[{"$f":"IF('.descripteurs'!$A259='.descripteurs'!A258,\"\",'.descripteurs'!$A259)","v":""},{"$f":"IF('.descripteurs'!$B259='.descripteurs'!B258,\"\",'.descripteurs'!$B259)","v":""},{"$f":"'.descripteurs'!$C259","v":"desc_32"},null,"","","","","","","","","","","","","","","",{"$f":"IF($D259=0,\"\",$D259)","v":""},"","","","","","","","","","","","","",""]
[{"$f":"IF('.descripteurs'!$A260='.descripteurs'!A259,\"\",'.descripteurs'!$A260)","v":""},{"$f":"IF('.descripteurs'!$B260='.descripteurs'!B259,\"\",'.descripteurs'!$B260)","v":"Epeler des mots familiers"},{"$f":"'.descripteurs'!$C260","v":"En situation de communication dans le cadre d'un jeu de rôle par exemple, épeler son nom, son prénom, sa nationalité, son adresse, numéro de téléphone…"},null,{"$f":"IF($D260=0,\"\",$D260)","v":""},"","","","","","","","","","","","","","","","","","","","","","","","","","","","",""]
[{"$f":"IF('.descripteurs'!$A261='.descripteurs'!A260,\"\",'.descripteurs'!$A261)","v":""},{"$f":"IF('.descripteurs'!$B261='.descripteurs'!B260,\"\",'.descripteurs'!$B261)","v":""},{"$f":"'.descripteurs'!$C261","v":"Demander d'épeler et comprendre la réponse"},null,"","","","","","","","","","","","","","","","","","","","","","","","","","","","","",""]
[{"$f":"IF('.descripteurs'!$A262='.descripteurs'!A261,\"\",'.descripteurs'!$A262)","v":""},{"$f":"IF('.descripteurs'!$B262='.descripteurs'!B261,\"\",'.descripteurs'!$B262)","v":""},{"$f":"'.descripteurs'!$C262","v":"desc_33"},null,"","","","","","","","","","","","","","","","","","","","","","","","","","","","","",""]
[{"$f":"IF('.descripteurs'!$A263='.descripteurs'!A262,\"\",'.descripteurs'!$A263)","v":""},{"$f":"IF('.descripteurs'!$B263='.descripteurs'!B262,\"\",'.descripteurs'!$B263)","v":""},{"$f":"'.descripteurs'!$C263","v":"desc_34"},null,"","","","","","","","","","","","","","","","","","","","","","","","","","","","","",""]
[]
[]
[]
[]
[]
[]
[]
[]
[]
[]
[]
[]
[]
[]
[]
[]
[]
[]
[]
[]
[]
[]
[]
[]
[]
[]
[]
[]
[]
[]
[]
[]
[]
[]
[]
[]
[]
[]
[]
[]
[]
[]
[]
[]
[]
[]
[]
[]
[]
[]
[]
[]
[]
[]
[]
[]
[]
[]
[]
[]
[]
[]
[]
[]
[]
[]
[]
[]
[]
[]
[]
[]
[{"$f":"IF('.descripteurs'!$A368='.descripteurs'!A367,\"\",'.descripteurs'!$A368)","v":""}]
[{"$f":"IF('.descripteurs'!$A369='.descripteurs'!A368,\"\",'.descripteurs'!$A369)","v":""}]
[{"$f":"IF('.descripteurs'!$A370='.descripteurs'!A369,\"\",'.descripteurs'!$A370)","v":""}]
[{"$f":"IF('.descripteurs'!$A371='.descripteurs'!A370,\"\",'.descripteurs'!$A371)","v":""}]
[{"$f":"IF('.descripteurs'!$A372='.descripteurs'!A371,\"\",'.descripteurs'!$A372)","v":""}]
[{"$f":"IF('.descripteurs'!$A373='.descripteurs'!A372,\"\",'.descripteurs'!$A373)","v":""}]
[{"$f":"IF('.descripteurs'!$A374='.descripteurs'!A373,\"\",'.descripteurs'!$A374)","v":""}]
[{"$f":"IF('.descripteurs'!$A375='.descripteurs'!A374,\"\",'.descripteurs'!$A375)","v":""}]
[{"$f":"IF('.descripteurs'!$A376='.descripteurs'!A375,\"\",'.descripteurs'!$A376)","v":""}]
[{"$f":"IF('.descripteurs'!$A377='.descripteurs'!A376,\"\",'.descripteurs'!$A377)","v":""}]
[{"$f":"IF('.descripteurs'!$A378='.descripteurs'!A377,\"\",'.descripteurs'!$A378)","v":""}]
[{"$f":"IF('.descripteurs'!$A379='.descripteurs'!A378,\"\",'.descripteurs'!$A379)","v":""}]
[{"$f":"IF('.descripteurs'!$A380='.descripteurs'!A379,\"\",'.descripteurs'!$A380)","v":""}]
[{"$f":"IF('.descripteurs'!$A381='.descripteurs'!A380,\"\",'.descripteurs'!$A381)","v":""}]

{"sheet":".calc_eva","index":7,"n_rows":263,"n_cols":5,"rows_kept":263,"cut":false,"hidden":true,"merged":[]}
[{"$f":"evaluation!A1","v":"Domaine"},{"$f":"evaluation!B1","v":"Item"},{"$f":"evaluation!C1","v":"Descripteur"},null,{"$f":"qui","v":"PICASSO Pablo"}]
[{"$f":"evaluation!A2","v":"Ecrire"},{"$f":"evaluation!B2","v":"Copier des mots isolés et des textes courts"},{"$f":"evaluation!C2","v":"Copier des textes courts imprimés (des listes : cadeaux, ingrédients, de courses, de menu, de lunch box, de sandwich... un court poème par exemple) "},{"$f":"IF($E2>0,C2,\"\")","v":"Copier des textes courts imprimés (des listes : cadeaux, ingrédients, de courses, de menu, de lunch box, de sandwich... un court poème par exemple) "},{"$f":"INDIRECT(\"evaluation!\"&ADDRESS(ROW(),4+VLOOKUP(qui,liste!$A$2:$C$31,3,FALSE)))","v":""}]
[{"$f":"evaluation!A3","v":""},{"$f":"evaluation!B3","v":""},{"$f":"evaluation!C3","v":"Recopier des mots à partir d'un modèle (livre, affiche, tableau...)"},"Recopier des mots à partir d'un modèle (livre, affiche, tableau...)",{"$f":"INDIRECT(\"evaluation!\"&ADDRESS(ROW(),4+VLOOKUP(qui,liste!$A$2:$C$31,3,FALSE)))","v":""}]
[{"$f":"evaluation!A4","v":""},{"$f":"evaluation!B4","v":""},{"$f":"evaluation!C4","v":"Compléter des grilles de mots (fléchés, codés, cachés, croisés...)"},"Compléter des grilles de mots (fléchés, codés, cachés, croisés...)",{"$f":"INDIRECT(\"evaluation!\"&ADDRESS(ROW(),4+VLOOKUP(qui,liste!$A$2:$C$31,3,FALSE)))","v":""}]
[{"$f":"evaluation!A5","v":""},{"$f":"evaluation!B5","v":""},{"$f":"evaluation!C5","v":"Compléter des phrases à trous à partir d'une liste de mots en désordre"},"Compléter des phrases à trous à partir d'une liste de mots en désordre",{"$f":"INDIRECT(\"evaluation!\"&ADDRESS(ROW(),4+VLOOKUP(qui,liste!$A$2:$C$31,3,FALSE)))","v":""}]
[{"$f":"evaluation!A6","v":""},{"$f":"evaluation!B6","v":""},{"$f":"evaluation!C6","v":"Compléter des phrases qui permettent de se décrire à l'aide d'une liste de mots en désordre"},"Compléter des phrases qui permettent de se décrire à l'aide d'une liste de mots en désordre",{"$f":"INDIRECT(\"evaluation!\"&ADDRESS(ROW(),4+VLOOKUP(qui,liste!$A$2:$C$31,3,FALSE)))","v":""}]
[{"$f":"evaluation!A7","v":""},{"$f":"evaluation!B7","v":""},{"$f":"evaluation!C7","v":"Copier des phrases à remettre dans l'ordre d'une histoire"},"Copier des phrases à remettre dans l'ordre d'une histoire",{"$f":"INDIRECT(\"evaluation!\"&ADDRESS(ROW(),4+VLOOKUP(qui,liste!$A$2:$C$31,3,FALSE)))","v":""}]
[{"$f":"evaluation!A8","v":""},{"$f":"evaluation!B8","v":""},{"$f":"evaluation!C8","v":"Compléter une chanson connue avec une liste de mots manquants "},"Compléter une chanson connue avec une liste de mots manquants ",{"$f":"INDIRECT(\"evaluation!\"&ADDRESS(ROW(),4+VLOOKUP(qui,liste!$A$2:$C$31,3,FALSE)))","v":""}]
[{"$f":"evaluation!A9","v":""},{"$f":"evaluation!B9","v":""},{"$f":"evaluation!C9","v":"Ecrire une légende ou un titre à une image, en utilisant les outils de la classe"},"Ecrire une légende ou un titre à une image, en utilisant les outils de la classe",{"$f":"INDIRECT(\"evaluation!\"&ADDRESS(ROW(),4+VLOOKUP(qui,liste!$A$2:$C$31,3,FALSE)))","v":""}]
[{"$f":"evaluation!A10","v":""},{"$f":"evaluation!B10","v":""},{"$f":"evaluation!C10","v":"Transcrire sur l'ordinateur une phrase écrite au tableau par l'enseignant"},"Transcrire sur l'ordinateur une phrase écrite au tableau par l'enseignant",{"$f":"INDIRECT(\"evaluation!\"&ADDRESS(ROW(),4+VLOOKUP(qui,liste!$A$2:$C$31,3,FALSE)))","v":""}]
[{"$f":"evaluation!A11","v":""},{"$f":"evaluation!B11","v":""},{"$f":"evaluation!C11","v":"En se référant à un modèle, écrire des phrases courtes sur un pays de la langue étudiée"},"En se référant à un modèle, écrire des phrases courtes sur un pays de la langue étudiée",{"$f":"INDIRECT(\"evaluation!\"&ADDRESS(ROW(),4+VLOOKUP(qui,liste!$A$2:$C$31,3,FALSE)))","v":""}]
[{"$f":"evaluation!A12","v":""},{"$f":"evaluation!B12","v":""},{"$f":"evaluation!C12","v":"A l'aide d'indications touristiques, écrire un texte court sur sa visite dans une capitale de la langue étudiée"},"A l'aide d'indications touristiques, écrire un texte court sur sa visite dans une capitale de la langue étudiée",{"$f":"INDIRECT(\"evaluation!\"&ADDRESS(ROW(),4+VLOOKUP(qui,liste!$A$2:$C$31,3,FALSE)))","v":""}]
[{"$f":"evaluation!A13","v":""},{"$f":"evaluation!B13","v":""},{"$f":"evaluation!C13","v":"Recopier les titres de chansons apprises"},"Recopier les titres de chansons apprises",{"$f":"INDIRECT(\"evaluation!\"&ADDRESS(ROW(),4+VLOOKUP(qui,liste!$A$2:$C$31,3,FALSE)))","v":""}]
[{"$f":"evaluation!A14","v":""},{"$f":"evaluation!B14","v":""},{"$f":"evaluation!C14","v":"Reconstituer par étiquettes une comptine, poème appris "},"Reconstituer par étiquettes une comptine, poème appris ",{"$f":"INDIRECT(\"evaluation!\"&ADDRESS(ROW(),4+VLOOKUP(qui,liste!$A$2:$C$31,3,FALSE)))","v":""}]
[{"$f":"evaluation!A15","v":""},{"$f":"evaluation!B15","v":""},{"$f":"evaluation!C15","v":"Copier des mots pour compléter des descriptions"},"Copier des mots pour compléter des descriptions",{"$f":"INDIRECT(\"evaluation!\"&ADDRESS(ROW(),4+VLOOKUP(qui,liste!$A$2:$C$31,3,FALSE)))","v":""}]
[{"$f":"evaluation!A16","v":""},{"$f":"evaluation!B16","v":""},{"$f":"evaluation!C16","v":"Copier les nombres (prix, quantité, opérations, dans une comptine, âge, "},"Copier les nombres (prix, quantité, opérations, dans une comptine, âge, ",{"$f":"INDIRECT(\"evaluation!\"&ADDRESS(ROW(),4+VLOOKUP(qui,liste!$A$2:$C$31,3,FALSE)))","v":""}]
[{"$f":"evaluation!A17","v":""},{"$f":"evaluation!B17","v":""},{"$f":"evaluation!C17","v":"Remettre des mots dans l'ordre pour écrire une phrase simple"},"Remettre des mots dans l'ordre pour écrire une phrase simple",{"$f":"INDIRECT(\"evaluation!\"&ADDRESS(ROW(),4+VLOOKUP(qui,liste!$A$2:$C$31,3,FALSE)))","v":""}]
[{"$f":"evaluation!A18","v":""},{"$f":"evaluation!B18","v":""},{"$f":"evaluation!C18","v":"Ecrire des mots et expressions relatifs à l'heure"},"Ecrire des mots et expressions relatifs à l'heure",{"$f":"INDIRECT(\"evaluation!\"&ADDRESS(ROW(),4+VLOOKUP(qui,liste!$A$2:$C$31,3,FALSE)))","v":""}]
[{"$f":"evaluation!A19","v":""},{"$f":"evaluation!B19","v":""},{"$f":"evaluation!C19","v":"Compléter des phrases courtes sur un anniversaire"},"Compléter des phrases courtes sur un anniversaire",{"$f":"INDIRECT(\"evaluation!\"&ADDRESS(ROW(),4+VLOOKUP(qui,liste!$A$2:$C$31,3,FALSE)))","v":""}]
[{"$f":"evaluation!A20","v":""},{"$f":"evaluation!B20","v":""},{"$f":"evaluation!C20","v":"desc_1"},"desc_1",{"$f":"INDIRECT(\"evaluation!\"&ADDRESS(ROW(),4+VLOOKUP(qui,liste!$A$2:$C$31,3,FALSE)))","v":""}]
[{"$f":"evaluation!A21","v":""},{"$f":"evaluation!B21","v":""},{"$f":"evaluation!C21","v":"desc_2"},"desc_2",{"$f":"INDIRECT(\"evaluation!\"&ADDRESS(ROW(),4+VLOOKUP(qui,liste!$A$2:$C$31,3,FALSE)))","v":""}]
[{"$f":"evaluation!A22","v":""},{"$f":"evaluation!B22","v":"Ecrire un message électronique simple ou une courte carte postale en référence à des modèles "},{"$f":"evaluation!C22","v":"Ecrire une courte carte de vœux, d'invitation, de remerciements, de salutations..., "},"Ecrire une courte carte de vœux, d'invitation, de remerciements, de salutations..., ",{"$f":"INDIRECT(\"evaluation!\"&ADDRESS(ROW(),4+VLOOKUP(qui,liste!$A$2:$C$31,3,FALSE)))","v":""}]
[{"$f":"evaluation!A23","v":""},{"$f":"evaluation!B23","v":""},{"$f":"evaluation!C23","v":"Répondre à une invitation"},"Répondre à une invitation",{"$f":"INDIRECT(\"evaluation!\"&ADDRESS(ROW(),4+VLOOKUP(qui,liste!$A$2:$C$31,3,FALSE)))","v":""}]
[{"$f":"evaluation!A24","v":""},{"$f":"evaluation!B24","v":""},{"$f":"evaluation!C24","v":"Rédiger une courte carte postale (dire où l'on est, comment on va et signer)"},"Rédiger une courte carte postale (dire où l'on est, comment on va et signer)",{"$f":"INDIRECT(\"evaluation!\"&ADDRESS(ROW(),4+VLOOKUP(qui,liste!$A$2:$C$31,3,FALSE)))","v":""}]
[{"$f":"evaluation!A25","v":""},{"$f":"evaluation!B25","v":""},{"$f":"evaluation!C25","v":"Donner de ses nouvelles par courriel"},"Donner de ses nouvelles par courriel",{"$f":"INDIRECT(\"evaluation!\"&ADDRESS(ROW(),4+VLOOKUP(qui,liste!$A$2:$C$31,3,FALSE)))","v":""}]
[{"$f":"evaluation!A26","v":""},{"$f":"evaluation!B26","v":""},{"$f":"evaluation!C26","v":"Poser des questions par courriel"},"Poser des questions par courriel",{"$f":"INDIRECT(\"evaluation!\"&ADDRESS(ROW(),4+VLOOKUP(qui,liste!$A$2:$C$31,3,FALSE)))","v":""}]
[{"$f":"evaluation!A27","v":""},{"$f":"evaluation!B27","v":""},{"$f":"evaluation!C27","v":"Ecrire un petit dialogue en complétant des bulles de bande dessinée ou d'après des images séquentielles"},"Ecrire un petit dialogue en complétant des bulles de bande dessinée ou d'après des images séquentielles",{"$f":"INDIRECT(\"evaluation!\"&ADDRESS(ROW(),4+VLOOKUP(qui,liste!$A$2:$C$31,3,FALSE)))","v":""}]
[{"$f":"evaluation!A28","v":""},{"$f":"evaluation!B28","v":""},{"$f":"evaluation!C28","v":"Compléter un dialogue par des mots ou des phrases qui manquent"},"Compléter un dialogue par des mots ou des phrases qui manquent",{"$f":"INDIRECT(\"evaluation!\"&ADDRESS(ROW(),4+VLOOKUP(qui,liste!$A$2:$C$31,3,FALSE)))","v":""}]
[{"$f":"evaluation!A29","v":""},{"$f":"evaluation!B29","v":""},{"$f":"evaluation!C29","v":"Compléter les salutations différentes selon le moment de la journée"},"Compléter les salutations différentes selon le moment de la journée",{"$f":"INDIRECT(\"evaluation!\"&ADDRESS(ROW(),4+VLOOKUP(qui,liste!$A$2:$C$31,3,FALSE)))","v":""}]
[{"$f":"evaluation!A30","v":""},{"$f":"evaluation!B30","v":""},{"$f":"evaluation!C30","v":"Compléter deux phrases courtes pour décrire ce que l'on fait à Noël"},"Compléter deux phrases courtes pour décrire ce que l'on fait à Noël",{"$f":"INDIRECT(\"evaluation!\"&ADDRESS(ROW(),4+VLOOKUP(qui,liste!$A$2:$C$31,3,FALSE)))","v":""}]
[{"$f":"evaluation!A31","v":""},{"$f":"evaluation!B31","v":""},{"$f":"evaluation!C31","v":"desc_3"},"desc_3",{"$f":"INDIRECT(\"evaluation!\"&ADDRESS(ROW(),4+VLOOKUP(qui,liste!$A$2:$C$31,3,FALSE)))","v":""}]
[{"$f":"evaluation!A32","v":""},{"$f":"evaluation!B32","v":""},{"$f":"evaluation!C32","v":"desc_4"},"desc_4",{"$f":"INDIRECT(\"evaluation!\"&ADDRESS(ROW(),4+VLOOKUP(qui,liste!$A$2:$C$31,3,FALSE)))","v":""}]
[{"$f":"evaluation!A33","v":""},{"$f":"evaluation!B33","v":"Renseigner un questionnaire"},{"$f":"evaluation!C33","v":"Remplir une fiche d'information sur soi : nom, prénom, âge, date et lieu de naissance,  nationalité, sexe, adresse, frères et soeurs, animaux, goûts "},"Remplir une fiche d'information sur soi : nom, prénom, âge, date et lieu de naissance,  nationalité, sexe, adresse, frères et soeurs, animaux, goûts ",{"$f":"INDIRECT(\"evaluation!\"&ADDRESS(ROW(),4+VLOOKUP(qui,liste!$A$2:$C$31,3,FALSE)))","v":""}]
[{"$f":"evaluation!A34","v":""},{"$f":"evaluation!B34","v":""},{"$f":"evaluation!C34","v":"Remplir une fiche d'hôtel en indiquant la date d'arrivée, ses noms, prénoms, nationalité, date de départ prévue, "},"Remplir une fiche d'hôtel en indiquant la date d'arrivée, ses noms, prénoms, nationalité, date de départ prévue, ",{"$f":"INDIRECT(\"evaluation!\"&ADDRESS(ROW(),4+VLOOKUP(qui,liste!$A$2:$C$31,3,FALSE)))","v":""}]
[{"$f":"evaluation!A35","v":""},{"$f":"evaluation!B35","v":""},{"$f":"evaluation!C35","v":"Remplir un tableau lors d'une enquête avec des mots appropriés (les médias des élèves par tranche d'âge)"},"Remplir un tableau lors d'une enquête avec des mots appropriés (les médias des élèves par tranche d'âge)",{"$f":"INDIRECT(\"evaluation!\"&ADDRESS(ROW(),4+VLOOKUP(qui,liste!$A$2:$C$31,3,FALSE)))","v":""}]
[{"$f":"evaluation!A36","v":""},{"$f":"evaluation!B36","v":""},{"$f":"evaluation!C36","v":"Compléter un emploi du temps avec les disciplines adéquates"},"Compléter un emploi du temps avec les disciplines adéquates",{"$f":"INDIRECT(\"evaluation!\"&ADDRESS(ROW(),4+VLOOKUP(qui,liste!$A$2:$C$31,3,FALSE)))","v":""}]
[{"$f":"evaluation!A37","v":""},{"$f":"evaluation!B37","v":""},{"$f":"evaluation!C37","v":"Compléter une enquête de recensement en décrivant sa famille (selon un modèle donné)"},"Compléter une enquête de recensement en décrivant sa famille (selon un modèle donné)",{"$f":"INDIRECT(\"evaluation!\"&ADDRESS(ROW(),4+VLOOKUP(qui,liste!$A$2:$C$31,3,FALSE)))","v":""}]
[{"$f":"evaluation!A38","v":""},{"$f":"evaluation!B38","v":""},{"$f":"evaluation!C38","v":"Compléter une fiche publicitaire immobilière (décrire son habitation)"},"Compléter une fiche publicitaire immobilière (décrire son habitation)",{"$f":"INDIRECT(\"evaluation!\"&ADDRESS(ROW(),4+VLOOKUP(qui,liste!$A$2:$C$31,3,FALSE)))","v":""}]
[{"$f":"evaluation!A39","v":""},{"$f":"evaluation!B39","v":""},{"$f":"evaluation!C39","v":"Compléter une fiche de renseignements sur ses habitudes alimentaires"},"Compléter une fiche de renseignements sur ses habitudes alimentaires",{"$f":"INDIRECT(\"evaluation!\"&ADDRESS(ROW(),4+VLOOKUP(qui,liste!$A$2:$C$31,3,FALSE)))","v":""}]
[{"$f":"evaluation!A40","v":""},{"$f":"evaluation!B40","v":""},{"$f":"evaluation!C40","v":"Compléter une fiche de renseignements sur ses habitudes sportives"},"Compléter une fiche de renseignements sur ses habitudes sportives",{"$f":"INDIRECT(\"evaluation!\"&ADDRESS(ROW(),4+VLOOKUP(qui,liste!$A$2:$C$31,3,FALSE)))","v":""}]
[{"$f":"evaluation!A41","v":""},{"$f":"evaluation!B41","v":""},{"$f":"evaluation!C41","v":"Compléter une enquête liée à ses habitudes horaires"},"Compléter une enquête liée à ses habitudes horaires",{"$f":"INDIRECT(\"evaluation!\"&ADDRESS(ROW(),4+VLOOKUP(qui,liste!$A$2:$C$31,3,FALSE)))","v":""}]
[{"$f":"evaluation!A42","v":""},{"$f":"evaluation!B42","v":""},{"$f":"evaluation!C42","v":"Compléter un tableau relatif aux catégories animales"},"Compléter un tableau relatif aux catégories animales",{"$f":"INDIRECT(\"evaluation!\"&ADDRESS(ROW(),4+VLOOKUP(qui,liste!$A$2:$C$31,3,FALSE)))","v":""}]
[{"$f":"evaluation!A43","v":""},{"$f":"evaluation!B43","v":""},{"$f":"evaluation!C43","v":"Catégoriser dans un tableau des personnages d'histoires à partir de leurs qualités physiques ou morales"},"Catégoriser dans un tableau des personnages d'histoires à partir de leurs qualités physiques ou morales",{"$f":"INDIRECT(\"evaluation!\"&ADDRESS(ROW(),4+VLOOKUP(qui,liste!$A$2:$C$31,3,FALSE)))","v":""}]
[{"$f":"evaluation!A44","v":""},{"$f":"evaluation!B44","v":""},{"$f":"evaluation!C44","v":"desc_5"},"desc_5",{"$f":"INDIRECT(\"evaluation!\"&ADDRESS(ROW(),4+VLOOKUP(qui,liste!$A$2:$C$31,3,FALSE)))","v":""}]
[{"$f":"evaluation!A45","v":""},{"$f":"evaluation!B45","v":""},{"$f":"evaluation!C45","v":"desc_6"},"desc_6",{"$f":"INDIRECT(\"evaluation!\"&ADDRESS(ROW(),4+VLOOKUP(qui,liste!$A$2:$C$31,3,FALSE)))","v":""}]
[{"$f":"evaluation!A46","v":""},{"$f":"evaluation!B46","v":"Produire de manière autonome quelques phrases"},{"$f":"evaluation!C46","v":"Ecrire des énoncés simples et brefs sur soi-même "},"Ecrire des énoncés simples et brefs sur soi-même ",{"$f":"INDIRECT(\"evaluation!\"&ADDRESS(ROW(),4+VLOOKUP(qui,liste!$A$2:$C$31,3,FALSE)))","v":""}]
[{"$f":"evaluation!A47","v":""},{"$f":"evaluation!B47","v":""},{"$f":"evaluation!C47","v":"Ecrire des énoncés simples sur son environnement familier"},"Ecrire des énoncés simples sur son environnement familier",{"$f":"INDIRECT(\"evaluation!\"&ADDRESS(ROW(),4+VLOOKUP(qui,liste!$A$2:$C$31,3,FALSE)))","v":""}]
[{"$f":"evaluation!A48","v":""},{"$f":"evaluation!B48","v":""},{"$f":"evaluation!C48","v":"Ecrire de façon simple sur des personnages imaginaires"},"Ecrire de façon simple sur des personnages imaginaires",{"$f":"INDIRECT(\"evaluation!\"&ADDRESS(ROW(),4+VLOOKUP(qui,liste!$A$2:$C$31,3,FALSE)))","v":""}]
[{"$f":"evaluation!A49","v":""},{"$f":"evaluation!B49","v":""},{"$f":"evaluation!C49","v":"Ecrire son problème de maths d'après un modèle"},"Ecrire son problème de maths d'après un modèle",{"$f":"INDIRECT(\"evaluation!\"&ADDRESS(ROW(),4+VLOOKUP(qui,liste!$A$2:$C$31,3,FALSE)))","v":""}]
[{"$f":"evaluation!A50","v":""},{"$f":"evaluation!B50","v":""},{"$f":"evaluation!C50","v":"Reproduire une comptine connue en modifiant le vocabulaire (en respectant le nombre de syllabes) one banana, two banana …"},"Reproduire une comptine connue en modifiant le vocabulaire (en respectant le nombre de syllabes) one banana, two banana …",{"$f":"INDIRECT(\"evaluation!\"&ADDRESS(ROW(),4+VLOOKUP(qui,liste!$A$2:$C$31,3,FALSE)))","v":""}]
[{"$f":"evaluation!A51","v":""},{"$f":"evaluation!B51","v":""},{"$f":"evaluation!C51","v":"Produire une phrase sur ses habitudes sportives"},"Produire une phrase sur ses habitudes sportives",{"$f":"INDIRECT(\"evaluation!\"&ADDRESS(ROW(),4+VLOOKUP(qui,liste!$A$2:$C$31,3,FALSE)))","v":""}]
[{"$f":"evaluation!A52","v":""},{"$f":"evaluation!B52","v":""},{"$f":"evaluation!C52","v":"Ecrire les heures désignées"},"Ecrire les heures désignées",{"$f":"INDIRECT(\"evaluation!\"&ADDRESS(ROW(),4+VLOOKUP(qui,liste!$A$2:$C$31,3,FALSE)))","v":""}]
[{"$f":"evaluation!A53","v":""},{"$f":"evaluation!B53","v":""},{"$f":"evaluation!C53","v":"Ecrire sa date d'anniversaire"},"Ecrire sa date d'anniversaire",{"$f":"INDIRECT(\"evaluation!\"&ADDRESS(ROW(),4+VLOOKUP(qui,liste!$A$2:$C$31,3,FALSE)))","v":""}]
[{"$f":"evaluation!A54","v":""},{"$f":"evaluation!B54","v":""},{"$f":"evaluation!C54","v":"Produire des phrases courtes sur les animaux"},"Produire des phrases courtes sur les animaux",{"$f":"INDIRECT(\"evaluation!\"&ADDRESS(ROW(),4+VLOOKUP(qui,liste!$A$2:$C$31,3,FALSE)))","v":""}]
[{"$f":"evaluation!A55","v":""},{"$f":"evaluation!B55","v":""},{"$f":"evaluation!C55","v":"Produire une devinette amusante (une question et une réponse) sur les aptitudes des animaux"},"Produire une devinette amusante (une question et une réponse) sur les aptitudes des animaux",{"$f":"INDIRECT(\"evaluation!\"&ADDRESS(ROW(),4+VLOOKUP(qui,liste!$A$2:$C$31,3,FALSE)))","v":""}]
[{"$f":"evaluation!A56","v":""},{"$f":"evaluation!B56","v":""},{"$f":"evaluation!C56","v":"Produire une phrase relatant si l'on joue d'un instrument ou pas"},"Produire une phrase relatant si l'on joue d'un instrument ou pas",{"$f":"INDIRECT(\"evaluation!\"&ADDRESS(ROW(),4+VLOOKUP(qui,liste!$A$2:$C$31,3,FALSE)))","v":""}]
[{"$f":"evaluation!A57","v":""},{"$f":"evaluation!B57","v":""},{"$f":"evaluation!C57","v":"Ecrire la date en respectant les majuscules"},"Ecrire la date en respectant les majuscules",{"$f":"INDIRECT(\"evaluation!\"&ADDRESS(ROW(),4+VLOOKUP(qui,liste!$A$2:$C$31,3,FALSE)))","v":""}]
[{"$f":"evaluation!A58","v":""},{"$f":"evaluation!B58","v":""},{"$f":"evaluation!C58","v":"desc_7"},"desc_7",{"$f":"INDIRECT(\"evaluation!\"&ADDRESS(ROW(),4+VLOOKUP(qui,liste!$A$2:$C$31,3,FALSE)))","v":""}]
[{"$f":"evaluation!A59","v":""},{"$f":"evaluation!B59","v":""},{"$f":"evaluation!C59","v":"desc_8"},"desc_8",{"$f":"INDIRECT(\"evaluation!\"&ADDRESS(ROW(),4+VLOOKUP(qui,liste!$A$2:$C$31,3,FALSE)))","v":""}]
[{"$f":"evaluation!A60","v":""},{"$f":"evaluation!B60","v":"Ecrire sous la dictée des expressions connues"},{"$f":"evaluation!C60","v":"Ecrire des mots connus dictés par l'enseignant"},"Ecrire des mots connus dictés par l'enseignant",{"$f":"INDIRECT(\"evaluation!\"&ADDRESS(ROW(),4+VLOOKUP(qui,liste!$A$2:$C$31,3,FALSE)))","v":""}]
[{"$f":"evaluation!A61","v":""},{"$f":"evaluation!B61","v":""},{"$f":"evaluation!C61","v":"Ecrire des mots épelés pour constituer une phrase simple (une adresse, un nom, un message, un numéro au téléphone,"},"Ecrire des mots épelés pour constituer une phrase simple (une adresse, un nom, un message, un numéro au téléphone,",{"$f":"INDIRECT(\"evaluation!\"&ADDRESS(ROW(),4+VLOOKUP(qui,liste!$A$2:$C$31,3,FALSE)))","v":""}]
[{"$f":"evaluation!A62","v":""},{"$f":"evaluation!B62","v":""},{"$f":"evaluation!C62","v":"Ecrire des listes de menu, de courses, de cadeaux, d'achats pour la classe, "},"Ecrire des listes de menu, de courses, de cadeaux, d'achats pour la classe, ",{"$f":"INDIRECT(\"evaluation!\"&ADDRESS(ROW(),4+VLOOKUP(qui,liste!$A$2:$C$31,3,FALSE)))","v":""}]
[{"$f":"evaluation!A63","v":""},{"$f":"evaluation!B63","v":""},{"$f":"evaluation!C63","v":"Ecrire des nombres dictés"},"Ecrire des nombres dictés",{"$f":"INDIRECT(\"evaluation!\"&ADDRESS(ROW(),4+VLOOKUP(qui,liste!$A$2:$C$31,3,FALSE)))","v":""}]
[{"$f":"evaluation!A64","v":""},{"$f":"evaluation!B64","v":""},{"$f":"evaluation!C64","v":"Ecrire l'heure dictée"},"Ecrire l'heure dictée",{"$f":"INDIRECT(\"evaluation!\"&ADDRESS(ROW(),4+VLOOKUP(qui,liste!$A$2:$C$31,3,FALSE)))","v":""}]
[{"$f":"evaluation!A65","v":""},{"$f":"evaluation!B65","v":""},{"$f":"evaluation!C65","v":"desc_9"},"desc_9",{"$f":"INDIRECT(\"evaluation!\"&ADDRESS(ROW(),4+VLOOKUP(qui,liste!$A$2:$C$31,3,FALSE)))","v":""}]
[{"$f":"evaluation!A66","v":""},{"$f":"evaluation!B66","v":""},{"$f":"evaluation!C66","v":"desc_10"},{"$f":"IF($E66>0,C66,\"\")","v":"desc_10"},{"$f":"INDIRECT(\"evaluation!\"&ADDRESS(ROW(),4+VLOOKUP(qui,liste!$A$2:$C$31,3,FALSE)))","v":""}]
[{"$f":"evaluation!A67","v":"Comprendre à l'oral "},{"$f":"evaluation!B67","v":"Comprendre les consignes de classe."},{"$f":"evaluation!C67","v":"Comprendre des consignes courtes et simples et agir en conséquence (s'asseoir, ouvrir le cahier, aller au tableau, se taire, écouter, lever la main , se ranger, se mettre en cercle...)"},"Comprendre des consignes courtes et simples et agir en conséquence (s'asseoir, ouvrir le cahier, aller au tableau, se taire, écouter, lever la main , se ranger, se mettre en cercle...)",{"$f":"INDIRECT(\"evaluation!\"&ADDRESS(ROW(),4+VLOOKUP(qui,liste!$A$2:$C$31,3,FALSE)))","v":""}]
[{"$f":"evaluation!A68","v":""},{"$f":"evaluation!B68","v":""},{"$f":"evaluation!C68","v":"Comprendre une salutation quelque soit le moment de la journée (good morning, see you later, good bye ...)"},"Comprendre une salutation quelque soit le moment de la journée (good morning, see you later, good bye ...)",{"$f":"INDIRECT(\"evaluation!\"&ADDRESS(ROW(),4+VLOOKUP(qui,liste!$A$2:$C$31,3,FALSE)))","v":""}]
[{"$f":"evaluation!A69","v":""},{"$f":"evaluation!B69","v":""},{"$f":"evaluation!C69","v":"Comprendre une demande de copie, de recopie, de lecture, de découpage, de collage, de coloriage, de dessin ...(cocher, barrer, entourer, effacer, souligner)"},"Comprendre une demande de copie, de recopie, de lecture, de découpage, de collage, de coloriage, de dessin ...(cocher, barrer, entourer, effacer, souligner)",{"$f":"INDIRECT(\"evaluation!\"&ADDRESS(ROW(),4+VLOOKUP(qui,liste!$A$2:$C$31,3,FALSE)))","v":""}]
[{"$f":"evaluation!A70","v":""},{"$f":"evaluation!B70","v":""},{"$f":"evaluation!C70","v":"Comprendre une demande d'activité de classe (jeu, bricolage)"},"Comprendre une demande d'activité de classe (jeu, bricolage)",{"$f":"INDIRECT(\"evaluation!\"&ADDRESS(ROW(),4+VLOOKUP(qui,liste!$A$2:$C$31,3,FALSE)))","v":""}]
[{"$f":"evaluation!A71","v":""},{"$f":"evaluation!B71","v":""},{"$f":"evaluation!C71","v":"Comprendre les mots et expressions liés au matériel scolaire (contenu d'une trousse, d'un cartable)"},"Comprendre les mots et expressions liés au matériel scolaire (contenu d'une trousse, d'un cartable)",{"$f":"INDIRECT(\"evaluation!\"&ADDRESS(ROW(),4+VLOOKUP(qui,liste!$A$2:$C$31,3,FALSE)))","v":""}]
[{"$f":"evaluation!A72","v":""},{"$f":"evaluation!B72","v":""},{"$f":"evaluation!C72","v":"desc_11"},"desc_11",{"$f":"INDIRECT(\"evaluation!\"&ADDRESS(ROW(),4+VLOOKUP(qui,liste!$A$2:$C$31,3,FALSE)))","v":""}]
[{"$f":"evaluation!A73","v":""},{"$f":"evaluation!B73","v":""},{"$f":"evaluation!C73","v":"desc_12"},"desc_12",{"$f":"INDIRECT(\"evaluation!\"&ADDRESS(ROW(),4+VLOOKUP(qui,liste!$A$2:$C$31,3,FALSE)))","v":""}]
[{"$f":"evaluation!A74","v":""},{"$f":"evaluation!B74","v":"Comprendre des mots familiers et des expressions très courantes"},{"$f":"evaluation!C74","v":"Comprendre des mots familiers ou des expressions courantes sur soi-même si les gens parlent lentement et distinctement "},"Comprendre des mots familiers ou des expressions courantes sur soi-même si les gens parlent lentement et distinctement ",{"$f":"INDIRECT(\"evaluation!\"&ADDRESS(ROW(),4+VLOOKUP(qui,liste!$A$2:$C$31,3,FALSE)))","v":""}]
[{"$f":"evaluation!A75","v":""},{"$f":"evaluation!B75","v":""},{"$f":"evaluation!C75","v":"Comprendre des mots familiers ou des expressions courantes sur sa famille si les gens parlent lentement et distinctement "},"Comprendre des mots familiers ou des expressions courantes sur sa famille si les gens parlent lentement et distinctement ",{"$f":"INDIRECT(\"evaluation!\"&ADDRESS(ROW(),4+VLOOKUP(qui,liste!$A$2:$C$31,3,FALSE)))","v":""}]
[{"$f":"evaluation!A76","v":""},{"$f":"evaluation!B76","v":""},{"$f":"evaluation!C76","v":"Comprendre des mots familiers ou des expressions courantes sur son environnement concret si les gens parlent lentement et distinctement "},"Comprendre des mots familiers ou des expressions courantes sur son environnement concret si les gens parlent lentement et distinctement ",{"$f":"INDIRECT(\"evaluation!\"&ADDRESS(ROW(),4+VLOOKUP(qui,liste!$A$2:$C$31,3,FALSE)))","v":""}]
[{"$f":"evaluation!A77","v":""},{"$f":"evaluation!B77","v":""},{"$f":"evaluation!C77","v":"Comprendre des informations chiffrées (âge, date, prix, numéro de téléphone…)"},"Comprendre des informations chiffrées (âge, date, prix, numéro de téléphone…)",{"$f":"INDIRECT(\"evaluation!\"&ADDRESS(ROW(),4+VLOOKUP(qui,liste!$A$2:$C$31,3,FALSE)))","v":""}]
[{"$f":"evaluation!A78","v":""},{"$f":"evaluation!B78","v":""},{"$f":"evaluation!C78","v":"Comprendre un problème de maths simple "},"Comprendre un problème de maths simple ",{"$f":"INDIRECT(\"evaluation!\"&ADDRESS(ROW(),4+VLOOKUP(qui,liste!$A$2:$C$31,3,FALSE)))","v":""}]
[{"$f":"evaluation!A79","v":""},{"$f":"evaluation!B79","v":""},{"$f":"evaluation!C79","v":"Comprendre des phrases simples sur le petit déjeuner"},"Comprendre des phrases simples sur le petit déjeuner",{"$f":"INDIRECT(\"evaluation!\"&ADDRESS(ROW(),4+VLOOKUP(qui,liste!$A$2:$C$31,3,FALSE)))","v":""}]
[{"$f":"evaluation!A80","v":""},{"$f":"evaluation!B80","v":""},{"$f":"evaluation!C80","v":"Comprendre des informations simples comportant des éléments de situation spatiale "},"Comprendre des informations simples comportant des éléments de situation spatiale ",{"$f":"INDIRECT(\"evaluation!\"&ADDRESS(ROW(),4+VLOOKUP(qui,liste!$A$2:$C$31,3,FALSE)))","v":""}]
[{"$f":"evaluation!A81","v":""},{"$f":"evaluation!B81","v":""},{"$f":"evaluation!C81","v":"Comprendre les pays anglophones et les nationalités"},"Comprendre les pays anglophones et les nationalités",{"$f":"INDIRECT(\"evaluation!\"&ADDRESS(ROW(),4+VLOOKUP(qui,liste!$A$2:$C$31,3,FALSE)))","v":""}]
[{"$f":"evaluation!A82","v":""},{"$f":"evaluation!B82","v":""},{"$f":"evaluation!C82","v":"Comprendre des descriptions de sentiments, de sensations et des descriptions physiques"},"Comprendre des descriptions de sentiments, de sensations et des descriptions physiques",{"$f":"INDIRECT(\"evaluation!\"&ADDRESS(ROW(),4+VLOOKUP(qui,liste!$A$2:$C$31,3,FALSE)))","v":""}]
[{"$f":"evaluation!A83","v":""},{"$f":"evaluation!B83","v":""},{"$f":"evaluation!C83","v":"Comprendre des questions et réponses sur les fêtes calendaires"},"Comprendre des questions et réponses sur les fêtes calendaires",{"$f":"INDIRECT(\"evaluation!\"&ADDRESS(ROW(),4+VLOOKUP(qui,liste!$A$2:$C$31,3,FALSE)))","v":""}]
[{"$f":"evaluation!A84","v":""},{"$f":"evaluation!B84","v":""},{"$f":"evaluation!C84","v":"Comprendre des phrases simples sur les vacances et ce qu'on emporte dans sa valise"},"Comprendre des phrases simples sur les vacances et ce qu'on emporte dans sa valise",{"$f":"INDIRECT(\"evaluation!\"&ADDRESS(ROW(),4+VLOOKUP(qui,liste!$A$2:$C$31,3,FALSE)))","v":""}]
[{"$f":"evaluation!A85","v":""},{"$f":"evaluation!B85","v":""},{"$f":"evaluation!C85","v":"Comprendre des expressions utilisées fréquemment quand quelqu'un salue, s'excuse, remercie ou prend congé "},"Comprendre des expressions utilisées fréquemment quand quelqu'un salue, s'excuse, remercie ou prend congé ",{"$f":"INDIRECT(\"evaluation!\"&ADDRESS(ROW(),4+VLOOKUP(qui,liste!$A$2:$C$31,3,FALSE)))","v":""}]
[{"$f":"evaluation!A86","v":""},{"$f":"evaluation!B86","v":""},{"$f":"evaluation!C86","v":"Identifier dans une émission télévisée des noms, des indications temporelles et spatiales, ainsi que le sujet général "},"Identifier dans une émission télévisée des noms, des indications temporelles et spatiales, ainsi que le sujet général ",{"$f":"INDIRECT(\"evaluation!\"&ADDRESS(ROW(),4+VLOOKUP(qui,liste!$A$2:$C$31,3,FALSE)))","v":""}]
[{"$f":"evaluation!A87","v":""},{"$f":"evaluation!B87","v":""},{"$f":"evaluation!C87","v":"Comprendre le fil d'une histoire avec des aides appropriées "},"Comprendre le fil d'une histoire avec des aides appropriées ",{"$f":"INDIRECT(\"evaluation!\"&ADDRESS(ROW(),4+VLOOKUP(qui,liste!$A$2:$C$31,3,FALSE)))","v":""}]
[{"$f":"evaluation!A88","v":""},{"$f":"evaluation!B88","v":""},{"$f":"evaluation!C88","v":"Comprendre des questions sur son identité (nom, prénom, âge, nationalité, date de naissance, frères et soeurs, adresse)"},"Comprendre des questions sur son identité (nom, prénom, âge, nationalité, date de naissance, frères et soeurs, adresse)",{"$f":"INDIRECT(\"evaluation!\"&ADDRESS(ROW(),4+VLOOKUP(qui,liste!$A$2:$C$31,3,FALSE)))","v":""}]
[{"$f":"evaluation!A89","v":""},{"$f":"evaluation!B89","v":""},{"$f":"evaluation!C89","v":"Comprendre les informations sur l'identité d'autrui (nom, prénom, âge, nationalité, date de naissance, frères et soeurs, adresse)"},"Comprendre les informations sur l'identité d'autrui (nom, prénom, âge, nationalité, date de naissance, frères et soeurs, adresse)",{"$f":"INDIRECT(\"evaluation!\"&ADDRESS(ROW(),4+VLOOKUP(qui,liste!$A$2:$C$31,3,FALSE)))","v":""}]
[{"$f":"evaluation!A90","v":""},{"$f":"evaluation!B90","v":""},{"$f":"evaluation!C90","v":"Comprendre lorsque quelqu'un demande d'épeler son nom"},"Comprendre lorsque quelqu'un demande d'épeler son nom",{"$f":"INDIRECT(\"evaluation!\"&ADDRESS(ROW(),4+VLOOKUP(qui,liste!$A$2:$C$31,3,FALSE)))","v":""}]
[{"$f":"evaluation!A91","v":""},{"$f":"evaluation!B91","v":""},{"$f":"evaluation!C91","v":"Comprendre une question liée au numéro de téléphone, à un prix, à une quantité, à l'heure"},"Comprendre une question liée au numéro de téléphone, à un prix, à une quantité, à l'heure",{"$f":"INDIRECT(\"evaluation!\"&ADDRESS(ROW(),4+VLOOKUP(qui,liste!$A$2:$C$31,3,FALSE)))","v":""}]
[{"$f":"evaluation!A92","v":""},{"$f":"evaluation!B92","v":""},{"$f":"evaluation!C92","v":"Comprendre un numéro de téléphone, un prix, une quantité, l'heure"},"Comprendre un numéro de téléphone, un prix, une quantité, l'heure",{"$f":"INDIRECT(\"evaluation!\"&ADDRESS(ROW(),4+VLOOKUP(qui,liste!$A$2:$C$31,3,FALSE)))","v":""}]
[{"$f":"evaluation!A93","v":""},{"$f":"evaluation!B93","v":""},{"$f":"evaluation!C93","v":"Comprendre un dialogue de présentation d'un pays  ou d'une ville de la langue étudiée"},"Comprendre un dialogue de présentation d'un pays  ou d'une ville de la langue étudiée",{"$f":"INDIRECT(\"evaluation!\"&ADDRESS(ROW(),4+VLOOKUP(qui,liste!$A$2:$C$31,3,FALSE)))","v":""}]
[{"$f":"evaluation!A94","v":""},{"$f":"evaluation!B94","v":""},{"$f":"evaluation!C94","v":"Comprendre une indication de prix, quantité, adresse, numéro de téléphone, âge"},"Comprendre une indication de prix, quantité, adresse, numéro de téléphone, âge",{"$f":"INDIRECT(\"evaluation!\"&ADDRESS(ROW(),4+VLOOKUP(qui,liste!$A$2:$C$31,3,FALSE)))","v":""}]
[{"$f":"evaluation!A95","v":""},{"$f":"evaluation!B95","v":""},{"$f":"evaluation!C95","v":"Comprendre  oui ou non, merci, comment ça va"},"Comprendre  oui ou non, merci, comment ça va",{"$f":"INDIRECT(\"evaluation!\"&ADDRESS(ROW(),4+VLOOKUP(qui,liste!$A$2:$C$31,3,FALSE)))","v":""}]
[{"$f":"evaluation!A96","v":""},{"$f":"evaluation!B96","v":""},{"$f":"evaluation!C96","v":"Comprendre des excuses, des félicitations, des voeux"},"Comprendre des excuses, des félicitations, des voeux",{"$f":"INDIRECT(\"evaluation!\"&ADDRESS(ROW(),4+VLOOKUP(qui,liste!$A$2:$C$31,3,FALSE)))","v":""}]
[{"$f":"evaluation!A97","v":""},{"$f":"evaluation!B97","v":""},{"$f":"evaluation!C97","v":"Comprendre un message court (histoire, dialogue, annonce, comptine, chanson...) à l'aide de d'images, de gestes"},"Comprendre un message court (histoire, dialogue, annonce, comptine, chanson...) à l'aide de d'images, de gestes",{"$f":"INDIRECT(\"evaluation!\"&ADDRESS(ROW(),4+VLOOKUP(qui,liste!$A$2:$C$31,3,FALSE)))","v":""}]
[{"$f":"evaluation!A98","v":""},{"$f":"evaluation!B98","v":""},{"$f":"evaluation!C98","v":"Comprendre une annonce publicitaire en définissant le produit"},"Comprendre une annonce publicitaire en définissant le produit",{"$f":"INDIRECT(\"evaluation!\"&ADDRESS(ROW(),4+VLOOKUP(qui,liste!$A$2:$C$31,3,FALSE)))","v":""}]
[{"$f":"evaluation!A99","v":""},{"$f":"evaluation!B99","v":""},{"$f":"evaluation!C99","v":"Comprendre si quelqu'un aime ou n'aime pas"},"Comprendre si quelqu'un aime ou n'aime pas",{"$f":"INDIRECT(\"evaluation!\"&ADDRESS(ROW(),4+VLOOKUP(qui,liste!$A$2:$C$31,3,FALSE)))","v":""}]
[{"$f":"evaluation!A100","v":""},{"$f":"evaluation!B100","v":""},{"$f":"evaluation!C100","v":"Comprendre les actions de personnages"},"Comprendre les actions de personnages",{"$f":"INDIRECT(\"evaluation!\"&ADDRESS(ROW(),4+VLOOKUP(qui,liste!$A$2:$C$31,3,FALSE)))","v":""}]
[{"$f":"evaluation!A101","v":""},{"$f":"evaluation!B101","v":""},{"$f":"evaluation!C101","v":"Comprendre des descriptions simples d'animaux"},"Comprendre des descriptions simples d'animaux",{"$f":"INDIRECT(\"evaluation!\"&ADDRESS(ROW(),4+VLOOKUP(qui,liste!$A$2:$C$31,3,FALSE)))","v":""}]
[{"$f":"evaluation!A102","v":""},{"$f":"evaluation!B102","v":""},{"$f":"evaluation!C102","v":"desc_13"},"desc_13",{"$f":"INDIRECT(\"evaluation!\"&ADDRESS(ROW(),4+VLOOKUP(qui,liste!$A$2:$C$31,3,FALSE)))","v":""}]
[{"$f":"evaluation!A103","v":""},{"$f":"evaluation!B103","v":""},{"$f":"evaluation!C103","v":"desc_14"},"desc_14",{"$f":"INDIRECT(\"evaluation!\"&ADDRESS(ROW(),4+VLOOKUP(qui,liste!$A$2:$C$31,3,FALSE)))","v":""}]
[{"$f":"evaluation!A104","v":""},{"$f":"evaluation!B104","v":"Suivre des instructions courtes et simples"},{"$f":"evaluation!C104","v":"Pour réaliser une tâche en lien avec un message entendu par l'élève (cocher un dessin, dessiner sous la dictée)"},"Pour réaliser une tâche en lien avec un message entendu par l'élève (cocher un dessin, dessiner sous la dictée)",{"$f":"INDIRECT(\"evaluation!\"&ADDRESS(ROW(),4+VLOOKUP(qui,liste!$A$2:$C$31,3,FALSE)))","v":""}]
[{"$f":"evaluation!A105","v":""},{"$f":"evaluation!B105","v":""},{"$f":"evaluation!C105","v":"Comprendre une demande d'actions physiques et réagir (lancer un ballon, un dé..."},"Comprendre une demande d'actions physiques et réagir (lancer un ballon, un dé...",{"$f":"INDIRECT(\"evaluation!\"&ADDRESS(ROW(),4+VLOOKUP(qui,liste!$A$2:$C$31,3,FALSE)))","v":""}]
[{"$f":"evaluation!A106","v":""},{"$f":"evaluation!B106","v":""},{"$f":"evaluation!C106","v":"Comprendre une demande pour ranger ses affaires"},"Comprendre une demande pour ranger ses affaires",{"$f":"INDIRECT(\"evaluation!\"&ADDRESS(ROW(),4+VLOOKUP(qui,liste!$A$2:$C$31,3,FALSE)))","v":""}]
[{"$f":"evaluation!A107","v":""},{"$f":"evaluation!B107","v":""},{"$f":"evaluation!C107","v":"Comprendre pour ouvrir et fermer la porte"},"Comprendre pour ouvrir et fermer la porte",{"$f":"INDIRECT(\"evaluation!\"&ADDRESS(ROW(),4+VLOOKUP(qui,liste!$A$2:$C$31,3,FALSE)))","v":""}]
[{"$f":"evaluation!A108","v":""},{"$f":"evaluation!B108","v":""},{"$f":"evaluation!C108","v":"Comprendre pour allumer et éteindre la lumière, l'ordinateur"},"Comprendre pour allumer et éteindre la lumière, l'ordinateur",{"$f":"INDIRECT(\"evaluation!\"&ADDRESS(ROW(),4+VLOOKUP(qui,liste!$A$2:$C$31,3,FALSE)))","v":""}]
[{"$f":"evaluation!A109","v":""},{"$f":"evaluation!B109","v":""},{"$f":"evaluation!C109","v":"Comprendre pour jouer aux cartes, les distribuer"},"Comprendre pour jouer aux cartes, les distribuer",{"$f":"INDIRECT(\"evaluation!\"&ADDRESS(ROW(),4+VLOOKUP(qui,liste!$A$2:$C$31,3,FALSE)))","v":""}]
[{"$f":"evaluation!A110","v":""},{"$f":"evaluation!B110","v":""},{"$f":"evaluation!C110","v":"Comprendre de parler plus ou moins fort ou lentement"},"Comprendre de parler plus ou moins fort ou lentement",{"$f":"INDIRECT(\"evaluation!\"&ADDRESS(ROW(),4+VLOOKUP(qui,liste!$A$2:$C$31,3,FALSE)))","v":""}]
[{"$f":"evaluation!A111","v":""},{"$f":"evaluation!B111","v":""},{"$f":"evaluation!C111","v":"Comprendre une demande de répétition"},"Comprendre une demande de répétition",{"$f":"INDIRECT(\"evaluation!\"&ADDRESS(ROW(),4+VLOOKUP(qui,liste!$A$2:$C$31,3,FALSE)))","v":""}]
[{"$f":"evaluation!A112","v":""},{"$f":"evaluation!B112","v":""},{"$f":"evaluation!C112","v":"Comprendre des consignes de bricolage"},"Comprendre des consignes de bricolage",{"$f":"INDIRECT(\"evaluation!\"&ADDRESS(ROW(),4+VLOOKUP(qui,liste!$A$2:$C$31,3,FALSE)))","v":""}]
[{"$f":"evaluation!A113","v":""},{"$f":"evaluation!B113","v":""},{"$f":"evaluation!C113","v":" Comprendre des opérations simples"}," Comprendre des opérations simples",{"$f":"INDIRECT(\"evaluation!\"&ADDRESS(ROW(),4+VLOOKUP(qui,liste!$A$2:$C$31,3,FALSE)))","v":""}]
[{"$f":"evaluation!A114","v":""},{"$f":"evaluation!B114","v":""},{"$f":"evaluation!C114","v":"Suivre des instructions pour former et dessiner des formes"},"Suivre des instructions pour former et dessiner des formes",{"$f":"INDIRECT(\"evaluation!\"&ADDRESS(ROW(),4+VLOOKUP(qui,liste!$A$2:$C$31,3,FALSE)))","v":""}]
[{"$f":"evaluation!A115","v":""},{"$f":"evaluation!B115","v":""},{"$f":"evaluation!C115","v":"Comprendre où aller dans une école, une maison,  une ville"},"Comprendre où aller dans une école, une maison,  une ville",{"$f":"INDIRECT(\"evaluation!\"&ADDRESS(ROW(),4+VLOOKUP(qui,liste!$A$2:$C$31,3,FALSE)))","v":""}]
[{"$f":"evaluation!A116","v":""},{"$f":"evaluation!B116","v":""},{"$f":"evaluation!C116","v":"Comprendre les injonctions de parents (réveille toi ...)"},"Comprendre les injonctions de parents (réveille toi ...)",{"$f":"INDIRECT(\"evaluation!\"&ADDRESS(ROW(),4+VLOOKUP(qui,liste!$A$2:$C$31,3,FALSE)))","v":""}]
[{"$f":"evaluation!A117","v":""},{"$f":"evaluation!B117","v":""},{"$f":"evaluation!C117","v":"desc_15"},"desc_15",{"$f":"INDIRECT(\"evaluation!\"&ADDRESS(ROW(),4+VLOOKUP(qui,liste!$A$2:$C$31,3,FALSE)))","v":""}]
[{"$f":"evaluation!A118","v":""},{"$f":"evaluation!B118","v":""},{"$f":"evaluation!C118","v":"desc_16"},"desc_16",{"$f":"INDIRECT(\"evaluation!\"&ADDRESS(ROW(),4+VLOOKUP(qui,liste!$A$2:$C$31,3,FALSE)))","v":""}]
[{"$f":"evaluation!A119","v":"Parler en continu"},{"$f":"evaluation!B119","v":"Reproduire un modèle oral"},{"$f":"evaluation!C119","v":"Reproduire des phrases simples fréquemment utilisées "},"Reproduire des phrases simples fréquemment utilisées ",{"$f":"INDIRECT(\"evaluation!\"&ADDRESS(ROW(),4+VLOOKUP(qui,liste!$A$2:$C$31,3,FALSE)))","v":""}]
[{"$f":"evaluation!A120","v":""},{"$f":"evaluation!B120","v":""},{"$f":"evaluation!C120","v":"Réciter un texte mémorisé, une comptine, un poème "},"Réciter un texte mémorisé, une comptine, un poème ",{"$f":"INDIRECT(\"evaluation!\"&ADDRESS(ROW(),4+VLOOKUP(qui,liste!$A$2:$C$31,3,FALSE)))","v":""}]
[{"$f":"evaluation!A121","v":""},{"$f":"evaluation!B121","v":""},{"$f":"evaluation!C121","v":"Chanter une chanson "},"Chanter une chanson ",{"$f":"INDIRECT(\"evaluation!\"&ADDRESS(ROW(),4+VLOOKUP(qui,liste!$A$2:$C$31,3,FALSE)))","v":""}]
[{"$f":"evaluation!A122","v":""},{"$f":"evaluation!B122","v":""},{"$f":"evaluation!C122","v":"Epeler des mots familiers ou chanter l'alphabet "},"Epeler des mots familiers ou chanter l'alphabet ",{"$f":"INDIRECT(\"evaluation!\"&ADDRESS(ROW(),4+VLOOKUP(qui,liste!$A$2:$C$31,3,FALSE)))","v":""}]
[{"$f":"evaluation!A123","v":""},{"$f":"evaluation!B123","v":""},{"$f":"evaluation!C123","v":"Faire une courte annonce répétée auparavant pour présenter une fête, un personnage, donner une consigne"},"Faire une courte annonce répétée auparavant pour présenter une fête, un personnage, donner une consigne",{"$f":"INDIRECT(\"evaluation!\"&ADDRESS(ROW(),4+VLOOKUP(qui,liste!$A$2:$C$31,3,FALSE)))","v":""}]
[{"$f":"evaluation!A124","v":""},{"$f":"evaluation!B124","v":""},{"$f":"evaluation!C124","v":"Reproduire la comptine numérique jusqu'à 100"},"Reproduire la comptine numérique jusqu'à 100",{"$f":"INDIRECT(\"evaluation!\"&ADDRESS(ROW(),4+VLOOKUP(qui,liste!$A$2:$C$31,3,FALSE)))","v":""}]
[{"$f":"evaluation!A125","v":""},{"$f":"evaluation!B125","v":""},{"$f":"evaluation!C125","v":"Reproduire quelques tables d'opération"},"Reproduire quelques tables d'opération",{"$f":"INDIRECT(\"evaluation!\"&ADDRESS(ROW(),4+VLOOKUP(qui,liste!$A$2:$C$31,3,FALSE)))","v":""}]
[{"$f":"evaluation!A126","v":""},{"$f":"evaluation!B126","v":""},{"$f":"evaluation!C126","v":"Réciter l'alphabet"},"Réciter l'alphabet",{"$f":"INDIRECT(\"evaluation!\"&ADDRESS(ROW(),4+VLOOKUP(qui,liste!$A$2:$C$31,3,FALSE)))","v":""}]
[{"$f":"evaluation!A127","v":""},{"$f":"evaluation!B127","v":""},{"$f":"evaluation!C127","v":"Reproduire une description de journée (pour une saynète)"},"Reproduire une description de journée (pour une saynète)",{"$f":"INDIRECT(\"evaluation!\"&ADDRESS(ROW(),4+VLOOKUP(qui,liste!$A$2:$C$31,3,FALSE)))","v":""}]
[{"$f":"evaluation!A128","v":""},{"$f":"evaluation!B128","v":""},{"$f":"evaluation!C128","v":"Epeler les jours et les mois"},"Epeler les jours et les mois",{"$f":"INDIRECT(\"evaluation!\"&ADDRESS(ROW(),4+VLOOKUP(qui,liste!$A$2:$C$31,3,FALSE)))","v":""}]
[{"$f":"evaluation!A129","v":""},{"$f":"evaluation!B129","v":""},{"$f":"evaluation!C129","v":"Présenter la météo"},"Présenter la météo",{"$f":"INDIRECT(\"evaluation!\"&ADDRESS(ROW(),4+VLOOKUP(qui,liste!$A$2:$C$31,3,FALSE)))","v":""}]
[{"$f":"evaluation!A130","v":""},{"$f":"evaluation!B130","v":""},{"$f":"evaluation!C130","v":"Décrire un jeu de cartes"},{"$f":"IF($E130>0,C130,\"\")","v":"Décrire un jeu de cartes"},{"$f":"INDIRECT(\"evaluation!\"&ADDRESS(ROW(),4+VLOOKUP(qui,liste!$A$2:$C$31,3,FALSE)))","v":""}]
[{"$f":"evaluation!A131","v":""},{"$f":"evaluation!B131","v":""},{"$f":"evaluation!C131","v":"desc_17"},"desc_17",{"$f":"INDIRECT(\"evaluation!\"&ADDRESS(ROW(),4+VLOOKUP(qui,liste!$A$2:$C$31,3,FALSE)))","v":""}]
[{"$f":"evaluation!A132","v":""},{"$f":"evaluation!B132","v":""},{"$f":"evaluation!C132","v":"desc_18"},"desc_18",{"$f":"INDIRECT(\"evaluation!\"&ADDRESS(ROW(),4+VLOOKUP(qui,liste!$A$2:$C$31,3,FALSE)))","v":""}]
[{"$f":"evaluation!A133","v":""},{"$f":"evaluation!B133","v":"Utiliser des expressions et des phrases proches des modèles rencontrés lors des apprentissages"},{"$f":"evaluation!C133","v":"Utiliser des expressions et phrases simples pour se présenter ou présenter quelqu'un (nom, prénom, âge, adresse, goûts, famille, animaux)"},"Utiliser des expressions et phrases simples pour se présenter ou présenter quelqu'un (nom, prénom, âge, adresse, goûts, famille, animaux)",{"$f":"INDIRECT(\"evaluation!\"&ADDRESS(ROW(),4+VLOOKUP(qui,liste!$A$2:$C$31,3,FALSE)))","v":""}]
[{"$f":"evaluation!A134","v":""},{"$f":"evaluation!B134","v":""},{"$f":"evaluation!C134","v":"Dire ce qu'il fait chaque jour, chaque semaine en termes simples "},"Dire ce qu'il fait chaque jour, chaque semaine en termes simples ",{"$f":"INDIRECT(\"evaluation!\"&ADDRESS(ROW(),4+VLOOKUP(qui,liste!$A$2:$C$31,3,FALSE)))","v":""}]
[{"$f":"evaluation!A135","v":""},{"$f":"evaluation!B135","v":""},{"$f":"evaluation!C135","v":"Utiliser des expressions et phrases simples pour  présenter son lieu d'habitation, sa chambre"},"Utiliser des expressions et phrases simples pour  présenter son lieu d'habitation, sa chambre",{"$f":"INDIRECT(\"evaluation!\"&ADDRESS(ROW(),4+VLOOKUP(qui,liste!$A$2:$C$31,3,FALSE)))","v":""}]
[{"$f":"evaluation!A136","v":""},{"$f":"evaluation!B136","v":""},{"$f":"evaluation!C136","v":"Dire ce que font les personnages, de ce qu'on fait, de ce qu'on a fait, de ce qu'on est en train de faire"},"Dire ce que font les personnages, de ce qu'on fait, de ce qu'on a fait, de ce qu'on est en train de faire",{"$f":"INDIRECT(\"evaluation!\"&ADDRESS(ROW(),4+VLOOKUP(qui,liste!$A$2:$C$31,3,FALSE)))","v":""}]
[{"$f":"evaluation!A137","v":""},{"$f":"evaluation!B137","v":""},{"$f":"evaluation!C137","v":"Décrire des personnes, des animaux ou des objets familiers (avec des adjectifs indiquant la taille, la couleur ou l'âge)"},"Décrire des personnes, des animaux ou des objets familiers (avec des adjectifs indiquant la taille, la couleur ou l'âge)",{"$f":"INDIRECT(\"evaluation!\"&ADDRESS(ROW(),4+VLOOKUP(qui,liste!$A$2:$C$31,3,FALSE)))","v":""}]
[{"$f":"evaluation!A138","v":""},{"$f":"evaluation!B138","v":""},{"$f":"evaluation!C138","v":"Exprimer ce qu'il aime et ce qu'il n'aime pas "},"Exprimer ce qu'il aime et ce qu'il n'aime pas ",{"$f":"INDIRECT(\"evaluation!\"&ADDRESS(ROW(),4+VLOOKUP(qui,liste!$A$2:$C$31,3,FALSE)))","v":""}]
[{"$f":"evaluation!A139","v":""},{"$f":"evaluation!B139","v":""},{"$f":"evaluation!C139","v":"Exprimer ce qu'il ressent, ses besoins élémentaires (j'ai faim, soif, j'ai froid, je suis malade..) "},"Exprimer ce qu'il ressent, ses besoins élémentaires (j'ai faim, soif, j'ai froid, je suis malade..) ",{"$f":"INDIRECT(\"evaluation!\"&ADDRESS(ROW(),4+VLOOKUP(qui,liste!$A$2:$C$31,3,FALSE)))","v":""}]
[{"$f":"evaluation!A140","v":""},{"$f":"evaluation!B140","v":""},{"$f":"evaluation!C140","v":"Dire ce qu'il possède ou pas, ce qu'il souhaite "},"Dire ce qu'il possède ou pas, ce qu'il souhaite ",{"$f":"INDIRECT(\"evaluation!\"&ADDRESS(ROW(),4+VLOOKUP(qui,liste!$A$2:$C$31,3,FALSE)))","v":""}]
[{"$f":"evaluation!A141","v":""},{"$f":"evaluation!B141","v":""},{"$f":"evaluation!C141","v":"Décrire un pays, une ville selon un modèle oral"},"Décrire un pays, une ville selon un modèle oral",{"$f":"INDIRECT(\"evaluation!\"&ADDRESS(ROW(),4+VLOOKUP(qui,liste!$A$2:$C$31,3,FALSE)))","v":""}]
[{"$f":"evaluation!A142","v":""},{"$f":"evaluation!B142","v":""},{"$f":"evaluation!C142","v":"Décrire une peinture en utilisant les phrases connues d'un modèle rencontré"},"Décrire une peinture en utilisant les phrases connues d'un modèle rencontré",{"$f":"INDIRECT(\"evaluation!\"&ADDRESS(ROW(),4+VLOOKUP(qui,liste!$A$2:$C$31,3,FALSE)))","v":""}]
[{"$f":"evaluation!A143","v":""},{"$f":"evaluation!B143","v":""},{"$f":"evaluation!C143","v":"Compter, donner l'heure, indiquer des quantités "},"Compter, donner l'heure, indiquer des quantités ",{"$f":"INDIRECT(\"evaluation!\"&ADDRESS(ROW(),4+VLOOKUP(qui,liste!$A$2:$C$31,3,FALSE)))","v":""}]
[{"$f":"evaluation!A144","v":""},{"$f":"evaluation!B144","v":""},{"$f":"evaluation!C144","v":"Dire les dates d'anniversaire de sa famille"},"Dire les dates d'anniversaire de sa famille",{"$f":"INDIRECT(\"evaluation!\"&ADDRESS(ROW(),4+VLOOKUP(qui,liste!$A$2:$C$31,3,FALSE)))","v":""}]
[{"$f":"evaluation!A145","v":""},{"$f":"evaluation!B145","v":""},{"$f":"evaluation!C145","v":"Présenter une famille"},"Présenter une famille",{"$f":"INDIRECT(\"evaluation!\"&ADDRESS(ROW(),4+VLOOKUP(qui,liste!$A$2:$C$31,3,FALSE)))","v":""}]
[{"$f":"evaluation!A146","v":""},{"$f":"evaluation!B146","v":""},{"$f":"evaluation!C146","v":"Utiliser les éléments vus pour parler de ses vacances (transport, contenu de sa valise, destinations, activités)"},"Utiliser les éléments vus pour parler de ses vacances (transport, contenu de sa valise, destinations, activités)",{"$f":"INDIRECT(\"evaluation!\"&ADDRESS(ROW(),4+VLOOKUP(qui,liste!$A$2:$C$31,3,FALSE)))","v":""}]
[{"$f":"evaluation!A147","v":""},{"$f":"evaluation!B147","v":""},{"$f":"evaluation!C147","v":"Utiliser les éléments vus pour décrire une maison (scénette de l'agent immobilier)"},"Utiliser les éléments vus pour décrire une maison (scénette de l'agent immobilier)",{"$f":"INDIRECT(\"evaluation!\"&ADDRESS(ROW(),4+VLOOKUP(qui,liste!$A$2:$C$31,3,FALSE)))","v":""}]
[{"$f":"evaluation!A148","v":""},{"$f":"evaluation!B148","v":""},{"$f":"evaluation!C148","v":"Parler de son emploi du temps et de ses activités préférées à l'école (ou ailleurs)"},"Parler de son emploi du temps et de ses activités préférées à l'école (ou ailleurs)",{"$f":"INDIRECT(\"evaluation!\"&ADDRESS(ROW(),4+VLOOKUP(qui,liste!$A$2:$C$31,3,FALSE)))","v":""}]
[{"$f":"evaluation!A149","v":""},{"$f":"evaluation!B149","v":""},{"$f":"evaluation!C149","v":"Décrire les expressions mimées par ses camarades"},"Décrire les expressions mimées par ses camarades",{"$f":"INDIRECT(\"evaluation!\"&ADDRESS(ROW(),4+VLOOKUP(qui,liste!$A$2:$C$31,3,FALSE)))","v":""}]
[{"$f":"evaluation!A150","v":""},{"$f":"evaluation!B150","v":""},{"$f":"evaluation!C150","v":"Dire l'heure mimée par un camarade"},"Dire l'heure mimée par un camarade",{"$f":"INDIRECT(\"evaluation!\"&ADDRESS(ROW(),4+VLOOKUP(qui,liste!$A$2:$C$31,3,FALSE)))","v":""}]
[{"$f":"evaluation!A151","v":""},{"$f":"evaluation!B151","v":""},{"$f":"evaluation!C151","v":"Exprimer où l'on a mal"},"Exprimer où l'on a mal",{"$f":"INDIRECT(\"evaluation!\"&ADDRESS(ROW(),4+VLOOKUP(qui,liste!$A$2:$C$31,3,FALSE)))","v":""}]
[{"$f":"evaluation!A152","v":""},{"$f":"evaluation!B152","v":""},{"$f":"evaluation!C152","v":"Utiliser les éléments vus pour décrire les sports"},"Utiliser les éléments vus pour décrire les sports",{"$f":"INDIRECT(\"evaluation!\"&ADDRESS(ROW(),4+VLOOKUP(qui,liste!$A$2:$C$31,3,FALSE)))","v":""}]
[{"$f":"evaluation!A153","v":""},{"$f":"evaluation!B153","v":""},{"$f":"evaluation!C153","v":"Décrire une image, une photo, un dessin, un cadeau"},"Décrire une image, une photo, un dessin, un cadeau",{"$f":"INDIRECT(\"evaluation!\"&ADDRESS(ROW(),4+VLOOKUP(qui,liste!$A$2:$C$31,3,FALSE)))","v":""}]
[{"$f":"evaluation!A154","v":""},{"$f":"evaluation!B154","v":""},{"$f":"evaluation!C154","v":"Décrire le contenu d'une trousse et d'un cartable"},"Décrire le contenu d'une trousse et d'un cartable",{"$f":"INDIRECT(\"evaluation!\"&ADDRESS(ROW(),4+VLOOKUP(qui,liste!$A$2:$C$31,3,FALSE)))","v":""}]
[{"$f":"evaluation!A155","v":""},{"$f":"evaluation!B155","v":""},{"$f":"evaluation!C155","v":"Décrire le contenu d'une lunch box, de son petit déjeuner, de son sandwich"},"Décrire le contenu d'une lunch box, de son petit déjeuner, de son sandwich",{"$f":"INDIRECT(\"evaluation!\"&ADDRESS(ROW(),4+VLOOKUP(qui,liste!$A$2:$C$31,3,FALSE)))","v":""}]
[{"$f":"evaluation!A156","v":""},{"$f":"evaluation!B156","v":""},{"$f":"evaluation!C156","v":"Expliquer une information simple (règle de jeu, recette, histoire courte à partir d'images, film, livre ...)"},"Expliquer une information simple (règle de jeu, recette, histoire courte à partir d'images, film, livre ...)",{"$f":"INDIRECT(\"evaluation!\"&ADDRESS(ROW(),4+VLOOKUP(qui,liste!$A$2:$C$31,3,FALSE)))","v":""}]
[{"$f":"evaluation!A157","v":""},{"$f":"evaluation!B157","v":""},{"$f":"evaluation!C157","v":"desc_19"},"desc_19",{"$f":"INDIRECT(\"evaluation!\"&ADDRESS(ROW(),4+VLOOKUP(qui,liste!$A$2:$C$31,3,FALSE)))","v":""}]
[{"$f":"evaluation!A158","v":""},{"$f":"evaluation!B158","v":""},{"$f":"evaluation!C158","v":"desc_20"},"desc_20",{"$f":"INDIRECT(\"evaluation!\"&ADDRESS(ROW(),4+VLOOKUP(qui,liste!$A$2:$C$31,3,FALSE)))","v":""}]
[{"$f":"evaluation!A159","v":""},{"$f":"evaluation!B159","v":"Lire à haute voix et de manière expressive un texte bref après répétition"},{"$f":"evaluation!C159","v":"Lire à haute voix un court poème, un bref extrait de conte ou de théâtre "},"Lire à haute voix un court poème, un bref extrait de conte ou de théâtre ",{"$f":"INDIRECT(\"evaluation!\"&ADDRESS(ROW(),4+VLOOKUP(qui,liste!$A$2:$C$31,3,FALSE)))","v":""}]
[{"$f":"evaluation!A160","v":""},{"$f":"evaluation!B160","v":""},{"$f":"evaluation!C160","v":"Lire à haute voix un emploi du temps pour faire repérer des disciplines étudiées"},"Lire à haute voix un emploi du temps pour faire repérer des disciplines étudiées",{"$f":"INDIRECT(\"evaluation!\"&ADDRESS(ROW(),4+VLOOKUP(qui,liste!$A$2:$C$31,3,FALSE)))","v":""}]
[{"$f":"evaluation!A161","v":""},{"$f":"evaluation!B161","v":""},{"$f":"evaluation!C161","v":"Lire les paroles d'un karaoké "},"Lire les paroles d'un karaoké ",{"$f":"INDIRECT(\"evaluation!\"&ADDRESS(ROW(),4+VLOOKUP(qui,liste!$A$2:$C$31,3,FALSE)))","v":""}]
[{"$f":"evaluation!A162","v":""},{"$f":"evaluation!B162","v":""},{"$f":"evaluation!C162","v":"Lire un compte rendu médical"},"Lire un compte rendu médical",{"$f":"INDIRECT(\"evaluation!\"&ADDRESS(ROW(),4+VLOOKUP(qui,liste!$A$2:$C$31,3,FALSE)))","v":""}]
[{"$f":"evaluation!A163","v":""},{"$f":"evaluation!B163","v":""},{"$f":"evaluation!C163","v":"Raconter une histoire courte exploitée en classe en s'aidant d'images "},"Raconter une histoire courte exploitée en classe en s'aidant d'images ",{"$f":"INDIRECT(\"evaluation!\"&ADDRESS(ROW(),4+VLOOKUP(qui,liste!$A$2:$C$31,3,FALSE)))","v":""}]
[{"$f":"evaluation!A164","v":""},{"$f":"evaluation!B164","v":""},{"$f":"evaluation!C164","v":"desc_21"},"desc_21",{"$f":"INDIRECT(\"evaluation!\"&ADDRESS(ROW(),4+VLOOKUP(qui,liste!$A$2:$C$31,3,FALSE)))","v":""}]
[{"$f":"evaluation!A165","v":""},{"$f":"evaluation!B165","v":""},{"$f":"evaluation!C165","v":"desc_22"},"desc_22",{"$f":"INDIRECT(\"evaluation!\"&ADDRESS(ROW(),4+VLOOKUP(qui,liste!$A$2:$C$31,3,FALSE)))","v":""}]
[{"$f":"evaluation!A166","v":"Lire"},{"$f":"evaluation!B166","v":"Comprendre des textes courts et simples en s'appuyant sur des éléments connus (indications, informations)"},{"$f":"evaluation!C166","v":"Relever des noms, des mots familiers et des expressions élémentaires dans un texte "},"Relever des noms, des mots familiers et des expressions élémentaires dans un texte ",{"$f":"INDIRECT(\"evaluation!\"&ADDRESS(ROW(),4+VLOOKUP(qui,liste!$A$2:$C$31,3,FALSE)))","v":""}]
[{"$f":"evaluation!A167","v":""},{"$f":"evaluation!B167","v":""},{"$f":"evaluation!C167","v":"Comprendre une lettre très simple, une carte postale ou une invitation simple et brève, un courriel "},"Comprendre une lettre très simple, une carte postale ou une invitation simple et brève, un courriel ",{"$f":"INDIRECT(\"evaluation!\"&ADDRESS(ROW(),4+VLOOKUP(qui,liste!$A$2:$C$31,3,FALSE)))","v":""}]
[{"$f":"evaluation!A168","v":""},{"$f":"evaluation!B168","v":""},{"$f":"evaluation!C168","v":"Comprendre des mots et des phrases très simples dans des annonces, des affiches, des catalogues, des programmes de télévision "},"Comprendre des mots et des phrases très simples dans des annonces, des affiches, des catalogues, des programmes de télévision ",{"$f":"INDIRECT(\"evaluation!\"&ADDRESS(ROW(),4+VLOOKUP(qui,liste!$A$2:$C$31,3,FALSE)))","v":""}]
[{"$f":"evaluation!A169","v":""},{"$f":"evaluation!B169","v":""},{"$f":"evaluation!C169","v":"Comprendre un questionnaire : date, nom, prénom, âge, domicile "},"Comprendre un questionnaire : date, nom, prénom, âge, domicile ",{"$f":"INDIRECT(\"evaluation!\"&ADDRESS(ROW(),4+VLOOKUP(qui,liste!$A$2:$C$31,3,FALSE)))","v":""}]
[{"$f":"evaluation!A170","v":""},{"$f":"evaluation!B170","v":""},{"$f":"evaluation!C170","v":"Comprendre une description de famille, de personne "},"Comprendre une description de famille, de personne ",{"$f":"INDIRECT(\"evaluation!\"&ADDRESS(ROW(),4+VLOOKUP(qui,liste!$A$2:$C$31,3,FALSE)))","v":""}]
[{"$f":"evaluation!A171","v":""},{"$f":"evaluation!B171","v":""},{"$f":"evaluation!C171","v":"Comprendre un bulletin météorologique"},"Comprendre un bulletin météorologique",{"$f":"INDIRECT(\"evaluation!\"&ADDRESS(ROW(),4+VLOOKUP(qui,liste!$A$2:$C$31,3,FALSE)))","v":""}]
[{"$f":"evaluation!A172","v":""},{"$f":"evaluation!B172","v":""},{"$f":"evaluation!C172","v":"Relever des noms propres ou communs dans un texte et les relier à des personnes, lieux, événements"},"Relever des noms propres ou communs dans un texte et les relier à des personnes, lieux, événements",{"$f":"INDIRECT(\"evaluation!\"&ADDRESS(ROW(),4+VLOOKUP(qui,liste!$A$2:$C$31,3,FALSE)))","v":""}]
[{"$f":"evaluation!A173","v":""},{"$f":"evaluation!B173","v":""},{"$f":"evaluation!C173","v":"Repérer des chiffres et des nombres et les associer à des horaires, dates, quantités, opérations"},"Repérer des chiffres et des nombres et les associer à des horaires, dates, quantités, opérations",{"$f":"INDIRECT(\"evaluation!\"&ADDRESS(ROW(),4+VLOOKUP(qui,liste!$A$2:$C$31,3,FALSE)))","v":""}]
[{"$f":"evaluation!A174","v":""},{"$f":"evaluation!B174","v":""},{"$f":"evaluation!C174","v":"Comprendre un simple problème de maths "},"Comprendre un simple problème de maths ",{"$f":"INDIRECT(\"evaluation!\"&ADDRESS(ROW(),4+VLOOKUP(qui,liste!$A$2:$C$31,3,FALSE)))","v":""}]
[{"$f":"evaluation!A175","v":""},{"$f":"evaluation!B175","v":""},{"$f":"evaluation!C175","v":"Comprendre les ingrédients essentiels d'une recette, d'un sandwich, d'un petit déjeuner"},"Comprendre les ingrédients essentiels d'une recette, d'un sandwich, d'un petit déjeuner",{"$f":"INDIRECT(\"evaluation!\"&ADDRESS(ROW(),4+VLOOKUP(qui,liste!$A$2:$C$31,3,FALSE)))","v":""}]
[{"$f":"evaluation!A176","v":""},{"$f":"evaluation!B176","v":""},{"$f":"evaluation!C176","v":"Comprendre une légende, un plan de ville, des panneaux d'indication  pour retrouver des rues ou des bâtiments principaux (bibliothèque, piscine, musée...)"},"Comprendre une légende, un plan de ville, des panneaux d'indication  pour retrouver des rues ou des bâtiments principaux (bibliothèque, piscine, musée...)",{"$f":"INDIRECT(\"evaluation!\"&ADDRESS(ROW(),4+VLOOKUP(qui,liste!$A$2:$C$31,3,FALSE)))","v":""}]
[{"$f":"evaluation!A177","v":""},{"$f":"evaluation!B177","v":""},{"$f":"evaluation!C177","v":"Retrouver des mots connus dans une grille de mots cachés, fléchés ..."},"Retrouver des mots connus dans une grille de mots cachés, fléchés ...",{"$f":"INDIRECT(\"evaluation!\"&ADDRESS(ROW(),4+VLOOKUP(qui,liste!$A$2:$C$31,3,FALSE)))","v":""}]
[{"$f":"evaluation!A178","v":""},{"$f":"evaluation!B178","v":""},{"$f":"evaluation!C178","v":"Reconnaître des mots sur des emballages alimentaires"},"Reconnaître des mots sur des emballages alimentaires",{"$f":"INDIRECT(\"evaluation!\"&ADDRESS(ROW(),4+VLOOKUP(qui,liste!$A$2:$C$31,3,FALSE)))","v":""}]
[{"$f":"evaluation!A179","v":""},{"$f":"evaluation!B179","v":""},{"$f":"evaluation!C179","v":"Comprendre des consignes simples (relier, entourer, surligner, barrer, cocher)"},"Comprendre des consignes simples (relier, entourer, surligner, barrer, cocher)",{"$f":"INDIRECT(\"evaluation!\"&ADDRESS(ROW(),4+VLOOKUP(qui,liste!$A$2:$C$31,3,FALSE)))","v":""}]
[{"$f":"evaluation!A180","v":""},{"$f":"evaluation!B180","v":""},{"$f":"evaluation!C180","v":"Comprendre les consignes dans une règle de jeu "},"Comprendre les consignes dans une règle de jeu ",{"$f":"INDIRECT(\"evaluation!\"&ADDRESS(ROW(),4+VLOOKUP(qui,liste!$A$2:$C$31,3,FALSE)))","v":""}]
[{"$f":"evaluation!A181","v":""},{"$f":"evaluation!B181","v":""},{"$f":"evaluation!C181","v":"Comprendre les noms des sports "},"Comprendre les noms des sports ",{"$f":"INDIRECT(\"evaluation!\"&ADDRESS(ROW(),4+VLOOKUP(qui,liste!$A$2:$C$31,3,FALSE)))","v":""}]
[{"$f":"evaluation!A182","v":""},{"$f":"evaluation!B182","v":""},{"$f":"evaluation!C182","v":"Comprendre des phrases courtes sur un anniversaire"},"Comprendre des phrases courtes sur un anniversaire",{"$f":"INDIRECT(\"evaluation!\"&ADDRESS(ROW(),4+VLOOKUP(qui,liste!$A$2:$C$31,3,FALSE)))","v":""}]
[{"$f":"evaluation!A183","v":""},{"$f":"evaluation!B183","v":""},{"$f":"evaluation!C183","v":"Comprendre le texte d'une chanson"},"Comprendre le texte d'une chanson",{"$f":"INDIRECT(\"evaluation!\"&ADDRESS(ROW(),4+VLOOKUP(qui,liste!$A$2:$C$31,3,FALSE)))","v":""}]
[{"$f":"evaluation!A184","v":""},{"$f":"evaluation!B184","v":""},{"$f":"evaluation!C184","v":"Chercher et trouver un mot dans un dictionnaire"},"Chercher et trouver un mot dans un dictionnaire",{"$f":"INDIRECT(\"evaluation!\"&ADDRESS(ROW(),4+VLOOKUP(qui,liste!$A$2:$C$31,3,FALSE)))","v":""}]
[{"$f":"evaluation!A185","v":""},{"$f":"evaluation!B185","v":""},{"$f":"evaluation!C185","v":"Comprendre des phrases sur l'école"},"Comprendre des phrases sur l'école",{"$f":"INDIRECT(\"evaluation!\"&ADDRESS(ROW(),4+VLOOKUP(qui,liste!$A$2:$C$31,3,FALSE)))","v":""}]
[{"$f":"evaluation!A186","v":""},{"$f":"evaluation!B186","v":""},{"$f":"evaluation!C186","v":"Comprendre un emploi du temps"},"Comprendre un emploi du temps",{"$f":"INDIRECT(\"evaluation!\"&ADDRESS(ROW(),4+VLOOKUP(qui,liste!$A$2:$C$31,3,FALSE)))","v":""}]
[{"$f":"evaluation!A187","v":""},{"$f":"evaluation!B187","v":""},{"$f":"evaluation!C187","v":"desc_23"},"desc_23",{"$f":"INDIRECT(\"evaluation!\"&ADDRESS(ROW(),4+VLOOKUP(qui,liste!$A$2:$C$31,3,FALSE)))","v":""}]
[{"$f":"evaluation!A188","v":""},{"$f":"evaluation!B188","v":""},{"$f":"evaluation!C188","v":"desc_24"},"desc_24",{"$f":"INDIRECT(\"evaluation!\"&ADDRESS(ROW(),4+VLOOKUP(qui,liste!$A$2:$C$31,3,FALSE)))","v":""}]
[{"$f":"evaluation!A189","v":""},{"$f":"evaluation!B189","v":"Se faire une idée du contenu d'un texte informatif simple, accompagné éventuellement d'un document visuel "},{"$f":"evaluation!C189","v":"Comprendre un menu, une recette, une liste de courses"},"Comprendre un menu, une recette, une liste de courses",{"$f":"INDIRECT(\"evaluation!\"&ADDRESS(ROW(),4+VLOOKUP(qui,liste!$A$2:$C$31,3,FALSE)))","v":""}]
[{"$f":"evaluation!A190","v":""},{"$f":"evaluation!B190","v":""},{"$f":"evaluation!C190","v":"Comprendre une enquête, un tableau à double entrée"},"Comprendre une enquête, un tableau à double entrée",{"$f":"INDIRECT(\"evaluation!\"&ADDRESS(ROW(),4+VLOOKUP(qui,liste!$A$2:$C$31,3,FALSE)))","v":""}]
[{"$f":"evaluation!A191","v":""},{"$f":"evaluation!B191","v":""},{"$f":"evaluation!C191","v":"Comprendre une carte, un plan, des panneaux"},"Comprendre une carte, un plan, des panneaux",{"$f":"INDIRECT(\"evaluation!\"&ADDRESS(ROW(),4+VLOOKUP(qui,liste!$A$2:$C$31,3,FALSE)))","v":""}]
[{"$f":"evaluation!A192","v":""},{"$f":"evaluation!B192","v":""},{"$f":"evaluation!C192","v":"Comprendre une description physique d'un animal, d'une personne"},"Comprendre une description physique d'un animal, d'une personne",{"$f":"INDIRECT(\"evaluation!\"&ADDRESS(ROW(),4+VLOOKUP(qui,liste!$A$2:$C$31,3,FALSE)))","v":""}]
[{"$f":"evaluation!A193","v":""},{"$f":"evaluation!B193","v":""},{"$f":"evaluation!C193","v":"Comprendre un bulletin météorologique"},"Comprendre un bulletin météorologique",{"$f":"INDIRECT(\"evaluation!\"&ADDRESS(ROW(),4+VLOOKUP(qui,liste!$A$2:$C$31,3,FALSE)))","v":""}]
[{"$f":"evaluation!A194","v":""},{"$f":"evaluation!B194","v":""},{"$f":"evaluation!C194","v":"Comprendre un programme de voyage, de séjour (réel ou virtuel)"},{"$f":"IF($E194>0,C194,\"\")","v":"Comprendre un programme de voyage, de séjour (réel ou virtuel)"},{"$f":"INDIRECT(\"evaluation!\"&ADDRESS(ROW(),4+VLOOKUP(qui,liste!$A$2:$C$31,3,FALSE)))","v":""}]
[{"$f":"evaluation!A195","v":""},{"$f":"evaluation!B195","v":""},{"$f":"evaluation!C195","v":"Comprendre des horaires, des tarifs sur une brochure, un site web"},"Comprendre des horaires, des tarifs sur une brochure, un site web",{"$f":"INDIRECT(\"evaluation!\"&ADDRESS(ROW(),4+VLOOKUP(qui,liste!$A$2:$C$31,3,FALSE)))","v":""}]
[{"$f":"evaluation!A196","v":""},{"$f":"evaluation!B196","v":""},{"$f":"evaluation!C196","v":"Comprendre un mode d'emploi"},"Comprendre un mode d'emploi",{"$f":"INDIRECT(\"evaluation!\"&ADDRESS(ROW(),4+VLOOKUP(qui,liste!$A$2:$C$31,3,FALSE)))","v":""}]
[{"$f":"evaluation!A197","v":""},{"$f":"evaluation!B197","v":""},{"$f":"evaluation!C197","v":"Cocher un choix de  petit déjeuner (continental ou English, d'un sandwich, d'une lunch box, d'un lunch, d'un dinner"},"Cocher un choix de  petit déjeuner (continental ou English, d'un sandwich, d'une lunch box, d'un lunch, d'un dinner",{"$f":"INDIRECT(\"evaluation!\"&ADDRESS(ROW(),4+VLOOKUP(qui,liste!$A$2:$C$31,3,FALSE)))","v":""}]
[{"$f":"evaluation!A198","v":""},{"$f":"evaluation!B198","v":""},{"$f":"evaluation!C198","v":"Catégoriser des mots selon le sens (couleurs, parties du corps, vêtements)"},"Catégoriser des mots selon le sens (couleurs, parties du corps, vêtements)",{"$f":"INDIRECT(\"evaluation!\"&ADDRESS(ROW(),4+VLOOKUP(qui,liste!$A$2:$C$31,3,FALSE)))","v":""}]
[{"$f":"evaluation!A199","v":""},{"$f":"evaluation!B199","v":""},{"$f":"evaluation!C199","v":"Compléter une enquête de satisfaction "},"Compléter une enquête de satisfaction ",{"$f":"INDIRECT(\"evaluation!\"&ADDRESS(ROW(),4+VLOOKUP(qui,liste!$A$2:$C$31,3,FALSE)))","v":""}]
[{"$f":"evaluation!A200","v":""},{"$f":"evaluation!B200","v":""},{"$f":"evaluation!C200","v":"Comprendre le sens global d'une histoire drôle, d'un album, d'un texte documentaire, d'un dialogue"},"Comprendre le sens global d'une histoire drôle, d'un album, d'un texte documentaire, d'un dialogue",{"$f":"INDIRECT(\"evaluation!\"&ADDRESS(ROW(),4+VLOOKUP(qui,liste!$A$2:$C$31,3,FALSE)))","v":""}]
[{"$f":"evaluation!A201","v":""},{"$f":"evaluation!B201","v":""},{"$f":"evaluation!C201","v":"Comprendre les bulles d'une bande dessinée à l'aide des mots connus, des images"},"Comprendre les bulles d'une bande dessinée à l'aide des mots connus, des images",{"$f":"INDIRECT(\"evaluation!\"&ADDRESS(ROW(),4+VLOOKUP(qui,liste!$A$2:$C$31,3,FALSE)))","v":""}]
[{"$f":"evaluation!A202","v":""},{"$f":"evaluation!B202","v":""},{"$f":"evaluation!C202","v":"Connaître les onomatopées"},"Connaître les onomatopées",{"$f":"INDIRECT(\"evaluation!\"&ADDRESS(ROW(),4+VLOOKUP(qui,liste!$A$2:$C$31,3,FALSE)))","v":""}]
[{"$f":"evaluation!A203","v":""},{"$f":"evaluation!B203","v":""},{"$f":"evaluation!C203","v":"Comprendre le texte  d'une comptine"},"Comprendre le texte  d'une comptine",{"$f":"INDIRECT(\"evaluation!\"&ADDRESS(ROW(),4+VLOOKUP(qui,liste!$A$2:$C$31,3,FALSE)))","v":""}]
[{"$f":"evaluation!A204","v":""},{"$f":"evaluation!B204","v":""},{"$f":"evaluation!C204","v":"desc_25"},"desc_25",{"$f":"INDIRECT(\"evaluation!\"&ADDRESS(ROW(),4+VLOOKUP(qui,liste!$A$2:$C$31,3,FALSE)))","v":""}]
[{"$f":"evaluation!A205","v":""},{"$f":"evaluation!B205","v":""},{"$f":"evaluation!C205","v":"desc_26"},"desc_26",{"$f":"INDIRECT(\"evaluation!\"&ADDRESS(ROW(),4+VLOOKUP(qui,liste!$A$2:$C$31,3,FALSE)))","v":""}]
[{"$f":"evaluation!A206","v":"Réagir et dialoguer (interaction orale)"},{"$f":"evaluation!B206","v":"Communiquer, au besoin avec des pauses pour chercher ses mots"},{"$f":"evaluation!C206","v":"Parler du temps qu'il fait "},"Parler du temps qu'il fait ",{"$f":"INDIRECT(\"evaluation!\"&ADDRESS(ROW(),4+VLOOKUP(qui,liste!$A$2:$C$31,3,FALSE)))","v":""}]
[{"$f":"evaluation!A207","v":""},{"$f":"evaluation!B207","v":""},{"$f":"evaluation!C207","v":"Dire : \" Merci, s'il vous plaît, excusez-moi \" "},"Dire : \" Merci, s'il vous plaît, excusez-moi \" ",{"$f":"INDIRECT(\"evaluation!\"&ADDRESS(ROW(),4+VLOOKUP(qui,liste!$A$2:$C$31,3,FALSE)))","v":""}]
[{"$f":"evaluation!A208","v":""},{"$f":"evaluation!B208","v":""},{"$f":"evaluation!C208","v":"Poser des questions sur des nombres, des quantités, le prix et l'heure et y répondre"},"Poser des questions sur des nombres, des quantités, le prix et l'heure et y répondre",{"$f":"INDIRECT(\"evaluation!\"&ADDRESS(ROW(),4+VLOOKUP(qui,liste!$A$2:$C$31,3,FALSE)))","v":""}]
[{"$f":"evaluation!A209","v":""},{"$f":"evaluation!B209","v":""},{"$f":"evaluation!C209","v":"Exprimer ses goûts et réagir à l'expression des goûts d'autrui "},"Exprimer ses goûts et réagir à l'expression des goûts d'autrui ",{"$f":"INDIRECT(\"evaluation!\"&ADDRESS(ROW(),4+VLOOKUP(qui,liste!$A$2:$C$31,3,FALSE)))","v":""}]
[{"$f":"evaluation!A210","v":""},{"$f":"evaluation!B210","v":""},{"$f":"evaluation!C210","v":"Exprimer son accord et son désaccord "},"Exprimer son accord et son désaccord ",{"$f":"INDIRECT(\"evaluation!\"&ADDRESS(ROW(),4+VLOOKUP(qui,liste!$A$2:$C$31,3,FALSE)))","v":""}]
[{"$f":"evaluation!A211","v":""},{"$f":"evaluation!B211","v":""},{"$f":"evaluation!C211","v":"Parler du temps avec des expressions telles que : la semaine dernière, vendredi prochain, en Novembre, à 3 heures "},"Parler du temps avec des expressions telles que : la semaine dernière, vendredi prochain, en Novembre, à 3 heures ",{"$f":"INDIRECT(\"evaluation!\"&ADDRESS(ROW(),4+VLOOKUP(qui,liste!$A$2:$C$31,3,FALSE)))","v":""}]
[{"$f":"evaluation!A212","v":""},{"$f":"evaluation!B212","v":""},{"$f":"evaluation!C212","v":"Demander son chemin et répéter les instructions pour vérifier qu'il a bien compris "},"Demander son chemin et répéter les instructions pour vérifier qu'il a bien compris ",{"$f":"INDIRECT(\"evaluation!\"&ADDRESS(ROW(),4+VLOOKUP(qui,liste!$A$2:$C$31,3,FALSE)))","v":""}]
[{"$f":"evaluation!A213","v":""},{"$f":"evaluation!B213","v":""},{"$f":"evaluation!C213","v":"Répondre et poser des questions sur la localisation, les couleurs, les formes "},"Répondre et poser des questions sur la localisation, les couleurs, les formes ",{"$f":"INDIRECT(\"evaluation!\"&ADDRESS(ROW(),4+VLOOKUP(qui,liste!$A$2:$C$31,3,FALSE)))","v":""}]
[{"$f":"evaluation!A214","v":""},{"$f":"evaluation!B214","v":""},{"$f":"evaluation!C214","v":"Se décrire et poser des questions sur la description d'autrui, ses vêtements"},"Se décrire et poser des questions sur la description d'autrui, ses vêtements",{"$f":"INDIRECT(\"evaluation!\"&ADDRESS(ROW(),4+VLOOKUP(qui,liste!$A$2:$C$31,3,FALSE)))","v":""}]
[{"$f":"evaluation!A215","v":""},{"$f":"evaluation!B215","v":""},{"$f":"evaluation!C215","v":"Répondre et poser des questions sur les disciplines scolaires"},"Répondre et poser des questions sur les disciplines scolaires",{"$f":"INDIRECT(\"evaluation!\"&ADDRESS(ROW(),4+VLOOKUP(qui,liste!$A$2:$C$31,3,FALSE)))","v":""}]
[{"$f":"evaluation!A216","v":""},{"$f":"evaluation!B216","v":""},{"$f":"evaluation!C216","v":"Dire son incompréhension ou son ignorance"},"Dire son incompréhension ou son ignorance",{"$f":"INDIRECT(\"evaluation!\"&ADDRESS(ROW(),4+VLOOKUP(qui,liste!$A$2:$C$31,3,FALSE)))","v":""}]
[{"$f":"evaluation!A217","v":""},{"$f":"evaluation!B217","v":""},{"$f":"evaluation!C217","v":"Demander de répéter, d'expliquer sans traduire"},"Demander de répéter, d'expliquer sans traduire",{"$f":"INDIRECT(\"evaluation!\"&ADDRESS(ROW(),4+VLOOKUP(qui,liste!$A$2:$C$31,3,FALSE)))","v":""}]
[{"$f":"evaluation!A218","v":""},{"$f":"evaluation!B218","v":""},{"$f":"evaluation!C218","v":"Répondre et questionner sur ses vacances"},"Répondre et questionner sur ses vacances",{"$f":"INDIRECT(\"evaluation!\"&ADDRESS(ROW(),4+VLOOKUP(qui,liste!$A$2:$C$31,3,FALSE)))","v":""}]
[{"$f":"evaluation!A219","v":""},{"$f":"evaluation!B219","v":""},{"$f":"evaluation!C219","v":"Etre capable de parler plus lentement, de paraphraser ou de mimer pour être compris"},"Etre capable de parler plus lentement, de paraphraser ou de mimer pour être compris",{"$f":"INDIRECT(\"evaluation!\"&ADDRESS(ROW(),4+VLOOKUP(qui,liste!$A$2:$C$31,3,FALSE)))","v":""}]
[{"$f":"evaluation!A220","v":""},{"$f":"evaluation!B220","v":""},{"$f":"evaluation!C220","v":"Répondre et questionner pour jouer aux cartes"},"Répondre et questionner pour jouer aux cartes",{"$f":"INDIRECT(\"evaluation!\"&ADDRESS(ROW(),4+VLOOKUP(qui,liste!$A$2:$C$31,3,FALSE)))","v":""}]
[{"$f":"evaluation!A221","v":""},{"$f":"evaluation!B221","v":""},{"$f":"evaluation!C221","v":"Demander à son interlocuteur de parler moins vite, plus fort ..."},"Demander à son interlocuteur de parler moins vite, plus fort ...",{"$f":"INDIRECT(\"evaluation!\"&ADDRESS(ROW(),4+VLOOKUP(qui,liste!$A$2:$C$31,3,FALSE)))","v":""}]
[{"$f":"evaluation!A222","v":""},{"$f":"evaluation!B222","v":""},{"$f":"evaluation!C222","v":"desc_27"},"desc_27",{"$f":"INDIRECT(\"evaluation!\"&ADDRESS(ROW(),4+VLOOKUP(qui,liste!$A$2:$C$31,3,FALSE)))","v":""}]
[{"$f":"evaluation!A223","v":""},{"$f":"evaluation!B223","v":""},{"$f":"evaluation!C223","v":"desc_28"},"desc_28",{"$f":"INDIRECT(\"evaluation!\"&ADDRESS(ROW(),4+VLOOKUP(qui,liste!$A$2:$C$31,3,FALSE)))","v":""}]
[{"$f":"evaluation!A224","v":""},{"$f":"evaluation!B224","v":"Se présenter, présenter quelqu'un, demander à quelqu'un de ses nouvelles en utilisant les formes de politesse les plus élémentaires, accueil et prise de congé"},{"$f":"evaluation!C224","v":"Saluer quelqu'un à plusieurs périodes dans la journée "},"Saluer quelqu'un à plusieurs périodes dans la journée ",{"$f":"INDIRECT(\"evaluation!\"&ADDRESS(ROW(),4+VLOOKUP(qui,liste!$A$2:$C$31,3,FALSE)))","v":""}]
[{"$f":"evaluation!A225","v":""},{"$f":"evaluation!B225","v":""},{"$f":"evaluation!C225","v":"Demander des nouvelles de quelqu'un et y réagir "},"Demander des nouvelles de quelqu'un et y réagir ",{"$f":"INDIRECT(\"evaluation!\"&ADDRESS(ROW(),4+VLOOKUP(qui,liste!$A$2:$C$31,3,FALSE)))","v":""}]
[{"$f":"evaluation!A226","v":""},{"$f":"evaluation!B226","v":""},{"$f":"evaluation!C226","v":"Prendre congé "},"Prendre congé ",{"$f":"INDIRECT(\"evaluation!\"&ADDRESS(ROW(),4+VLOOKUP(qui,liste!$A$2:$C$31,3,FALSE)))","v":""}]
[{"$f":"evaluation!A227","v":""},{"$f":"evaluation!B227","v":""},{"$f":"evaluation!C227","v":"Se présenter en répondant à des questions simples sur son identité "},"Se présenter en répondant à des questions simples sur son identité ",{"$f":"INDIRECT(\"evaluation!\"&ADDRESS(ROW(),4+VLOOKUP(qui,liste!$A$2:$C$31,3,FALSE)))","v":""}]
[{"$f":"evaluation!A228","v":""},{"$f":"evaluation!B228","v":""},{"$f":"evaluation!C228","v":"Présenter quelqu'un et réagir de façon appropriée quand on lui présente quelqu'un "},"Présenter quelqu'un et réagir de façon appropriée quand on lui présente quelqu'un ",{"$f":"INDIRECT(\"evaluation!\"&ADDRESS(ROW(),4+VLOOKUP(qui,liste!$A$2:$C$31,3,FALSE)))","v":""}]
[{"$f":"evaluation!A229","v":""},{"$f":"evaluation!B229","v":""},{"$f":"evaluation!C229","v":"Indiquer un itinéraire simple à quelqu'un, avec des supports appropriés (carte, plan, …)"},"Indiquer un itinéraire simple à quelqu'un, avec des supports appropriés (carte, plan, …)",{"$f":"INDIRECT(\"evaluation!\"&ADDRESS(ROW(),4+VLOOKUP(qui,liste!$A$2:$C$31,3,FALSE)))","v":""}]
[{"$f":"evaluation!A230","v":""},{"$f":"evaluation!B230","v":""},{"$f":"evaluation!C230","v":"Remercier et répondre \" pas de quoi \""},"Remercier et répondre \" pas de quoi \"",{"$f":"INDIRECT(\"evaluation!\"&ADDRESS(ROW(),4+VLOOKUP(qui,liste!$A$2:$C$31,3,FALSE)))","v":""}]
[{"$f":"evaluation!A231","v":""},{"$f":"evaluation!B231","v":""},{"$f":"evaluation!C231","v":"Demander poliment une permission"},"Demander poliment une permission",{"$f":"INDIRECT(\"evaluation!\"&ADDRESS(ROW(),4+VLOOKUP(qui,liste!$A$2:$C$31,3,FALSE)))","v":""}]
[{"$f":"evaluation!A232","v":""},{"$f":"evaluation!B232","v":""},{"$f":"evaluation!C232","v":"Présenter des excuses"},"Présenter des excuses",{"$f":"INDIRECT(\"evaluation!\"&ADDRESS(ROW(),4+VLOOKUP(qui,liste!$A$2:$C$31,3,FALSE)))","v":""}]
[{"$f":"evaluation!A233","v":""},{"$f":"evaluation!B233","v":""},{"$f":"evaluation!C233","v":"Féliciter quelqu'un"},"Féliciter quelqu'un",{"$f":"INDIRECT(\"evaluation!\"&ADDRESS(ROW(),4+VLOOKUP(qui,liste!$A$2:$C$31,3,FALSE)))","v":""}]
[{"$f":"evaluation!A234","v":""},{"$f":"evaluation!B234","v":""},{"$f":"evaluation!C234","v":"Souhaiter bon anniversaire, une fête..."},"Souhaiter bon anniversaire, une fête...",{"$f":"INDIRECT(\"evaluation!\"&ADDRESS(ROW(),4+VLOOKUP(qui,liste!$A$2:$C$31,3,FALSE)))","v":""}]
[{"$f":"evaluation!A235","v":""},{"$f":"evaluation!B235","v":""},{"$f":"evaluation!C235","v":"desc_29"},"desc_29",{"$f":"INDIRECT(\"evaluation!\"&ADDRESS(ROW(),4+VLOOKUP(qui,liste!$A$2:$C$31,3,FALSE)))","v":""}]
[{"$f":"evaluation!A236","v":""},{"$f":"evaluation!B236","v":""},{"$f":"evaluation!C236","v":"desc_30"},"desc_30",{"$f":"INDIRECT(\"evaluation!\"&ADDRESS(ROW(),4+VLOOKUP(qui,liste!$A$2:$C$31,3,FALSE)))","v":""}]
[{"$f":"evaluation!A237","v":""},{"$f":"evaluation!B237","v":"Répondre à des questions et en poser (sujets familiers ou besoins immédiats)"},{"$f":"evaluation!C237","v":"Demander des objets à autrui et lui en donner "},"Demander des objets à autrui et lui en donner ",{"$f":"INDIRECT(\"evaluation!\"&ADDRESS(ROW(),4+VLOOKUP(qui,liste!$A$2:$C$31,3,FALSE)))","v":""}]
[{"$f":"evaluation!A238","v":""},{"$f":"evaluation!B238","v":""},{"$f":"evaluation!C238","v":"Réagir à des questions simples qui lui sont adressées "},"Réagir à des questions simples qui lui sont adressées ",{"$f":"INDIRECT(\"evaluation!\"&ADDRESS(ROW(),4+VLOOKUP(qui,liste!$A$2:$C$31,3,FALSE)))","v":""}]
[{"$f":"evaluation!A239","v":""},{"$f":"evaluation!B239","v":""},{"$f":"evaluation!C239","v":"Proposer quelque chose et réagir à une proposition "},"Proposer quelque chose et réagir à une proposition ",{"$f":"INDIRECT(\"evaluation!\"&ADDRESS(ROW(),4+VLOOKUP(qui,liste!$A$2:$C$31,3,FALSE)))","v":""}]
[{"$f":"evaluation!A240","v":""},{"$f":"evaluation!B240","v":""},{"$f":"evaluation!C240","v":"Réagir à des instructions simples et brèves, énoncées lentement"},"Réagir à des instructions simples et brèves, énoncées lentement",{"$f":"INDIRECT(\"evaluation!\"&ADDRESS(ROW(),4+VLOOKUP(qui,liste!$A$2:$C$31,3,FALSE)))","v":""}]
[{"$f":"evaluation!A241","v":""},{"$f":"evaluation!B241","v":""},{"$f":"evaluation!C241","v":"Demander à son interlocuteur de répéter ses propos, en s'aidant éventuellement de gestes ou de mimiques"},"Demander à son interlocuteur de répéter ses propos, en s'aidant éventuellement de gestes ou de mimiques",{"$f":"INDIRECT(\"evaluation!\"&ADDRESS(ROW(),4+VLOOKUP(qui,liste!$A$2:$C$31,3,FALSE)))","v":""}]
[{"$f":"evaluation!A242","v":""},{"$f":"evaluation!B242","v":""},{"$f":"evaluation!C242","v":"Répondre à des questions concernant ses nom, prénom, âge, adresse, nationalité, famille, animaux, numéro de téléphone, humeur/sentiment, date d'anniversaire..."},"Répondre à des questions concernant ses nom, prénom, âge, adresse, nationalité, famille, animaux, numéro de téléphone, humeur/sentiment, date d'anniversaire...",{"$f":"INDIRECT(\"evaluation!\"&ADDRESS(ROW(),4+VLOOKUP(qui,liste!$A$2:$C$31,3,FALSE)))","v":""}]
[{"$f":"evaluation!A243","v":""},{"$f":"evaluation!B243","v":""},{"$f":"evaluation!C243","v":"Poser des questions concernant l'identité et l'entourage d'un interlocuteur"},"Poser des questions concernant l'identité et l'entourage d'un interlocuteur",{"$f":"INDIRECT(\"evaluation!\"&ADDRESS(ROW(),4+VLOOKUP(qui,liste!$A$2:$C$31,3,FALSE)))","v":""}]
[{"$f":"evaluation!A244","v":""},{"$f":"evaluation!B244","v":""},{"$f":"evaluation!C244","v":"Demander et donner des informations sur une tierce personne"},"Demander et donner des informations sur une tierce personne",{"$f":"INDIRECT(\"evaluation!\"&ADDRESS(ROW(),4+VLOOKUP(qui,liste!$A$2:$C$31,3,FALSE)))","v":""}]
[{"$f":"evaluation!A245","v":""},{"$f":"evaluation!B245","v":""},{"$f":"evaluation!C245","v":"Répondre et questionner sur les descriptions et activités animales"},"Répondre et questionner sur les descriptions et activités animales",{"$f":"INDIRECT(\"evaluation!\"&ADDRESS(ROW(),4+VLOOKUP(qui,liste!$A$2:$C$31,3,FALSE)))","v":""}]
[{"$f":"evaluation!A246","v":""},{"$f":"evaluation!B246","v":""},{"$f":"evaluation!C246","v":"Répondre et poser des questions sur les pièces d'une habitation"},"Répondre et poser des questions sur les pièces d'une habitation",{"$f":"INDIRECT(\"evaluation!\"&ADDRESS(ROW(),4+VLOOKUP(qui,liste!$A$2:$C$31,3,FALSE)))","v":""}]
[{"$f":"evaluation!A247","v":""},{"$f":"evaluation!B247","v":""},{"$f":"evaluation!C247","v":"Répondre et poser des questions sur ce que l'on prend ou pas aux trois repas"},"Répondre et poser des questions sur ce que l'on prend ou pas aux trois repas",{"$f":"INDIRECT(\"evaluation!\"&ADDRESS(ROW(),4+VLOOKUP(qui,liste!$A$2:$C$31,3,FALSE)))","v":""}]
[{"$f":"evaluation!A248","v":""},{"$f":"evaluation!B248","v":""},{"$f":"evaluation!C248","v":"Proposer et refuser des aliments"},"Proposer et refuser des aliments",{"$f":"INDIRECT(\"evaluation!\"&ADDRESS(ROW(),4+VLOOKUP(qui,liste!$A$2:$C$31,3,FALSE)))","v":""}]
[{"$f":"evaluation!A249","v":""},{"$f":"evaluation!B249","v":""},{"$f":"evaluation!C249","v":"Exprimer sa faim, sa soif"},"Exprimer sa faim, sa soif",{"$f":"INDIRECT(\"evaluation!\"&ADDRESS(ROW(),4+VLOOKUP(qui,liste!$A$2:$C$31,3,FALSE)))","v":""}]
[{"$f":"evaluation!A250","v":""},{"$f":"evaluation!B250","v":""},{"$f":"evaluation!C250","v":"Demander un objet à quelqu'un"},"Demander un objet à quelqu'un",{"$f":"INDIRECT(\"evaluation!\"&ADDRESS(ROW(),4+VLOOKUP(qui,liste!$A$2:$C$31,3,FALSE)))","v":""}]
[{"$f":"evaluation!A251","v":""},{"$f":"evaluation!B251","v":""},{"$f":"evaluation!C251","v":"Dire et demander à son interlocuteur ce qu'il aime ou pas : manger, boire, faire"},"Dire et demander à son interlocuteur ce qu'il aime ou pas : manger, boire, faire",{"$f":"INDIRECT(\"evaluation!\"&ADDRESS(ROW(),4+VLOOKUP(qui,liste!$A$2:$C$31,3,FALSE)))","v":""}]
[{"$f":"evaluation!A252","v":""},{"$f":"evaluation!B252","v":""},{"$f":"evaluation!C252","v":"Demander et donner une date, heure, lieu de rendez-vous"},"Demander et donner une date, heure, lieu de rendez-vous",{"$f":"INDIRECT(\"evaluation!\"&ADDRESS(ROW(),4+VLOOKUP(qui,liste!$A$2:$C$31,3,FALSE)))","v":""}]
[{"$f":"evaluation!A253","v":""},{"$f":"evaluation!B253","v":""},{"$f":"evaluation!C253","v":"Indiquer et demander le temps qu'il fait "},"Indiquer et demander le temps qu'il fait ",{"$f":"INDIRECT(\"evaluation!\"&ADDRESS(ROW(),4+VLOOKUP(qui,liste!$A$2:$C$31,3,FALSE)))","v":""}]
[{"$f":"evaluation!A254","v":""},{"$f":"evaluation!B254","v":""},{"$f":"evaluation!C254","v":"Exprimer et comprendre une envie, un besoin"},"Exprimer et comprendre une envie, un besoin",{"$f":"INDIRECT(\"evaluation!\"&ADDRESS(ROW(),4+VLOOKUP(qui,liste!$A$2:$C$31,3,FALSE)))","v":""}]
[{"$f":"evaluation!A255","v":""},{"$f":"evaluation!B255","v":""},{"$f":"evaluation!C255","v":"Indiquer et demander une quantité "},"Indiquer et demander une quantité ",{"$f":"INDIRECT(\"evaluation!\"&ADDRESS(ROW(),4+VLOOKUP(qui,liste!$A$2:$C$31,3,FALSE)))","v":""}]
[{"$f":"evaluation!A256","v":""},{"$f":"evaluation!B256","v":""},{"$f":"evaluation!C256","v":"Questionner et répondre à la description d'un paysage"},"Questionner et répondre à la description d'un paysage",{"$f":"INDIRECT(\"evaluation!\"&ADDRESS(ROW(),4+VLOOKUP(qui,liste!$A$2:$C$31,3,FALSE)))","v":""}]
[{"$f":"evaluation!A257","v":""},{"$f":"evaluation!B257","v":""},{"$f":"evaluation!C257","v":"Interroger et répondre au sujet des pratiques sportives"},"Interroger et répondre au sujet des pratiques sportives",{"$f":"INDIRECT(\"evaluation!\"&ADDRESS(ROW(),4+VLOOKUP(qui,liste!$A$2:$C$31,3,FALSE)))","v":""}]
[{"$f":"evaluation!A258","v":""},{"$f":"evaluation!B258","v":""},{"$f":"evaluation!C258","v":"desc_31"},{"$f":"IF($E258>0,C258,\"\")","v":"desc_31"},{"$f":"INDIRECT(\"evaluation!\"&ADDRESS(ROW(),4+VLOOKUP(qui,liste!$A$2:$C$31,3,FALSE)))","v":""}]
[{"$f":"evaluation!A259","v":""},{"$f":"evaluation!B259","v":""},{"$f":"evaluation!C259","v":"desc_32"},"desc_32",{"$f":"INDIRECT(\"evaluation!\"&ADDRESS(ROW(),4+VLOOKUP(qui,liste!$A$2:$C$31,3,FALSE)))","v":""}]
[{"$f":"evaluation!A260","v":""},{"$f":"evaluation!B260","v":"Epeler des mots familiers"},{"$f":"evaluation!C260","v":"En situation de communication dans le cadre d'un jeu de rôle par exemple, épeler son nom, son prénom, sa nationalité, son adresse, numéro de téléphone…"},"En situation de communication dans le cadre d'un jeu de rôle par exemple, épeler son nom, son prénom, sa nationalité, son adresse, numéro de téléphone…",{"$f":"INDIRECT(\"evaluation!\"&ADDRESS(ROW(),4+VLOOKUP(qui,liste!$A$2:$C$31,3,FALSE)))","v":""}]
[{"$f":"evaluation!A261","v":""},{"$f":"evaluation!B261","v":""},{"$f":"evaluation!C261","v":"Demander d'épeler et comprendre la réponse"},"Demander d'épeler et comprendre la réponse",{"$f":"INDIRECT(\"evaluation!\"&ADDRESS(ROW(),4+VLOOKUP(qui,liste!$A$2:$C$31,3,FALSE)))","v":""}]
[{"$f":"evaluation!A262","v":""},{"$f":"evaluation!B262","v":""},{"$f":"evaluation!C262","v":"desc_33"},"desc_33",{"$f":"INDIRECT(\"evaluation!\"&ADDRESS(ROW(),4+VLOOKUP(qui,liste!$A$2:$C$31,3,FALSE)))","v":""}]
[{"$f":"evaluation!A263","v":""},{"$f":"evaluation!B263","v":""},{"$f":"evaluation!C263","v":"desc_34"},"desc_34",{"$f":"INDIRECT(\"evaluation!\"&ADDRESS(ROW(),4+VLOOKUP(qui,liste!$A$2:$C$31,3,FALSE)))","v":""}]

{"sheet":".init","index":8,"n_rows":263,"n_cols":34,"rows_kept":263,"cut":false,"hidden":true,"merged":[]}
[]
[null,null,null,null,{"$f":"IF($D2=0,\"\",$D2)","v":""},{"$f":"IF($D2=0,\"\",$D2)","v":""},"","","","","","","","","","","","","","","","","","","","","","","","","","","",""]
[null,null,null,null,{"$f":"IF($D3=0,\"\",$D3)","v":""},"","","","","","","","","","","","","","","","","","","","","","","","","","","","",""]
[null,null,null,null,{"$f":"IF($D4=0,\"\",$D4)","v":""},"","","","","","","","","","","","","","","","","","","","","","","","","","","","",""]
[null,null,null,null,{"$f":"IF($D5=0,\"\",$D5)","v":""},"","","","","","","","","","","","","","","","","","","","","","","","","","","","",""]
[null,null,null,null,{"$f":"IF($D6=0,\"\",$D6)","v":""},"","","","","","","","","","","","","","","","","","","","","","","","","","","","",""]
[null,null,null,null,"","","","","","","","","","","","","","","","","","","","","","","","","","","","","",""]
[null,null,null,null,"","","","","","","","","","","","","","","","","","","","","","","","","","","","","",""]
[null,null,null,null,"","","","","","","","","","","","","","","","","","","","","","","","","","","","","",""]
[null,null,null,null,"","","","","","","","","","","","","","","","","","","","","","","","","",{"$f":"IF($D10=0,\"\",$D10)","v":""},{"$f":"IF($D10=0,\"\",$D10)","v":""},{"$f":"IF($D10=0,\"\",$D10)","v":""},{"$f":"IF($D10=0,\"\",$D10)","v":""},{"$f":"IF($D10=0,\"\",$D10)","v":""}]
[null,null,null,null,"",{"$f":"IF($D11=0,\"\",$D11)","v":""},"","","","","","","","","","","","","","",{"$f":"IF($D11=0,\"\",$D11)","v":""},"","","","","","","","","","","","",""]
[null,null,null,null,"","","","","","","","","","","","","","","","","","","","","","","","","","","","","",""]
[null,null,null,null,"","","","","","","","","","","","","","","","","","","","","","","","","","","","","",""]
[null,null,null,null,"","","","","","","","","","","","","","","","","","","","","","","","","","","","","",""]
[null,null,null,null,"","","","","","","","","","","","","","","","","","","","","","","","","","","","","",""]
[null,null,null,null,"","","","","","","","","","","","","","","","","","","","","","","","","","","","","",""]
[null,null,null,null,"","","","","","","","","","","","","","","","","","","","","","","","","","","","","",""]
[null,null,null,null,"","","","","","","","","","","","","","","","","","","","","","","","","","","","","",""]
[null,null,null,null,"","","","","","","","","","","","","","","","","","","","","","","","","","","","","",""]
[null,null,null,null,"","","","","","","","","","","","","","","","","","","","","","","","","","","","","",""]
[null,null,null,null,"","","","","","","","","","","","","","","","","","","","","","","","","","","","","",""]
[null,null,null,null,"","","","","","","","","","","","","","","","","","","","","","","","","","","","","",""]
[null,null,null,null,{"$f":"IF($D23=0,\"\",$D23)","v":""},"","","","","","","","","","","","","","","","","","","","","","","","","","","","",""]
[null,null,null,null,"","","","","","","","","","","","","","","","","","","","","","","","","","","","","",""]
[null,null,null,null,"",{"$f":"IF($D25=0,\"\",$D25)","v":""},"","","","","","","","","","","","","","","","","","","","","","","","","","","",""]
[null,null,null,null,"","","","","","","","","","","","","","","","","","","","","","","","","","","","","",""]
[null,null,null,null,"","","","","","","","","","","","","","","","",{"$f":"IF($D27=0,\"\",$D27)","v":""},"","","","","","","","","","","","",""]
[null,null,null,null,"","","","","","","","","","","","","","","","","","","","","","","","","","","","","",""]
[null,null,null,null,"","","","","","","","","","","","","","","","","","","","","","","","","","","","","",""]
[null,null,null,null,"","","","","","","","","","","","","","","","","","","","","","","","","","","","","",""]
[null,null,null,null,"","","","","","","","","","","","","","","","","","","","","","","","","","","","","",""]
[null,null,null,null,"","","","","","","","","","","","","","","","","","","","","","","","","","","","","",""]
[null,null,null,null,"","","","","","","","","","","","","","","","","","","","","","","","","","","","","",""]
[null,null,null,null,"","","","","","","","","","","","","","","","","","","","","","","","","","","","","",""]
[null,null,null,null,"","","","","","","","","","","","","","","","","","","","","","","","","","","","","",""]
[null,null,null,null,"","","","","","","","","","","","","","","","","","","","","","","","","","","","","",""]
[null,null,null,null,"","","","","","","","","","","","","","","","","","","","","","","","","","","","","",""]
[null,null,null,null,"","","","","","","","","","","","","","","","","","","","","","","","","","","","","",""]
[null,null,null,null,"","","","","","","","","","","","","","","","","","","","","","","","","","","","","",""]
[null,null,null,null,"",{"$f":"IF($D40=0,\"\",$D40)","v":""},"","","","","","","","","","","",{"$f":"IF($D40=0,\"\",$D40)","v":""},"","","","","","","","","","","","","","","",""]
[null,null,null,null,"","","","","","","","","","","","","",{"$f":"IF($D41=0,\"\",$D41)","v":""},"","","","","","","","","","","","","","","",""]
[null,null,null,null,"","","","","","","","","","","","","","","","","","","","","","","","","","","","","",""]
[null,null,null,null,"","","","","","","","","","","","","","","","","","","","","","","","","","","","","",""]
[null,null,null,null,"","","","","","","","","","","","","","","","","","","","","","","","","","","","","",""]
[null,null,null,null,"","","","","","","","","","","","","","","","","","","","","","","","","","","","","",""]
[null,null,null,null,"","","","","","","","","","","","","","","","","","","","","","","","","","","","","",""]
[null,null,null,null,"","","","","","","","","","","","","","","","","","","","","","","","","","","","","",""]
[null,null,null,null,"","","","","","","","","","","","","","","","","","","","","","","","","","","","","",""]
[null,null,null,null,"","","","","","","","","","","","","","","","","","","","","","","","","","","","","",""]
[null,null,null,null,"",{"$f":"IF($D50=0,\"\",$D50)","v":""},"","","","","","","","","","","","","","","","","","","","","","","","","","","",""]
[null,null,null,null,"","","","","","","","","","","","","","","","","","","","","","","","","","","","","",""]
[null,null,null,null,"","","","","","","","","","","","","","","","","","","","","","","","","","","","","",""]
[null,null,null,null,"","","","","","","","","","","","","","","","","","","","","","","","","","","","","",""]
[null,null,null,null,"","","","","","","","","","","","","","","","","","","","","","","","","","","","","",""]
[null,null,null,null,"","","","","","","","","","","","","","","","","","","","","","","","","","","","","",""]
[null,null,null,null,"","","","","","","","","","","","","",{"$f":"IF($D56=0,\"\",$D56)","v":""},"",{"$f":"IF($D56=0,\"\",$D56)","v":""},"","","","","","","","","","","","","",""]
[null,null,null,null,"","","","","","","","","","","","","","","",{"$f":"IF($D57=0,\"\",$D57)","v":""},"","","","","","","","","","","","","",""]
[null,null,null,null,"","","","","","","","","","","","","","","","","","","","","","","","","","","","","",""]
[null,null,null,null,"","","","","","","","","","","","","","","","","","","","","","","","","","","","","",""]
[null,null,null,null,"",{"$f":"IF($D60=0,\"\",$D60)","v":""},"","","","","","","","","","","","","","","","","","","","","","","","","","","",""]
[null,null,null,null,"","","","","","","","","","","","","","","","","","","","","","","","","","","","","",""]
[null,null,null,null,"","","","","","","","","","","","","","","","","","","","","","","","","","","","","",""]
[null,null,null,null,"","","","","","","","","","","","","","","","","","","","","","","","","","","","","",""]
[null,null,null,null,"","","","","","","","","","","","","","","","","","","","","","","","","","","","","",""]
[null,null,null,null,"","","","","","","","","","","","","","","","","","","","","","","","","","","","","",""]
[null,null,null,null,"","","","","","","","","","","","","","","","","","","","","","","","","","","","","",""]
[null,null,null,null,"","","","","","","","","","","","","","","","","","","","","","","","","","","","","",""]
[null,null,null,null,"","","","","","","","","","","","","","","","","","","","","","","","","","","","","",""]
[null,null,null,null,"","","","","","","","","","","","","","","","","","","","","","","","","","","","","",""]
[null,null,null,null,"",{"$f":"IF($D70=0,\"\",$D70)","v":""},"","","","","","","","","","","","","","","","","","","","","","","","","","","",""]
[null,null,null,null,"","","","","","","","","","","","","","","","","","","","","","","","","","","","","",""]
[null,null,null,null,"","","","","","","","","","","","","","","",{"$f":"IF($D72=0,\"\",$D72)","v":""},"","","","","","","","","","","","","",""]
[null,null,null,null,"","","","","","","","","","","","","","","",{"$f":"IF($D73=0,\"\",$D73)","v":""},"","","","","","","","","","","","","",""]
[null,null,null,null,"","","","","","","","","","","","","","","","","","","","","","","","","","","","","",""]
[null,null,null,null,"","","","","","","","","","","","","","","","","","","","","","","","","","","","","",""]
[null,null,null,null,"","","","","","","","","","","","","",{"$f":"IF($D76=0,\"\",$D76)","v":""},"","","","","","","","","","","","","","","",""]
[null,null,null,null,"","","","","","","","","","","","","","","","","","","","","","","","","","","","","",""]
[null,null,null,null,"","","","","","","","","","","","","","","","","","","","","","","","","","","","","",""]
[null,null,null,null,"","","","","","","","","","","","","","","","","","","","","","","","","","","","","",""]
[null,null,null,null,"",{"$f":"IF($D80=0,\"\",$D80)","v":""},"","","","","","","","","","","","","","","","","","","","","","","","","","","",""]
[null,null,null,null,"","","","","","","","","","","","","","","","","","","","","","","","","","","","","",""]
[null,null,null,null,"","","","","","","","","","","","","","","","","","","","","","","","","","","","","",""]
[null,null,null,null,"","","","","","","","","","","","","","","","","","","","","","","","","","","","","",""]
[null,null,null,null,"","","","","","","","","","","","","","","","","","","","","","","","","","","","","",""]
[null,null,null,null,"","","","","","","","","","","","","","","","","","","","","","","","","","","","","",""]
[null,null,null,null,"","","","","","","","","","","","","","","","","","","","","","","","","","","","","",""]
[null,null,null,null,{"$f":"IF($D87=0,\"\",$D87)","v":""},"","","","","","","","","","","","","","","","","","","","","","","","","","","","",""]
[null,null,null,null,"","","","","","","","","","","","","","","",{"$f":"IF($D88=0,\"\",$D88)","v":""},"","","","","","","","","","","","","",""]
[null,null,null,null,"","","","","","","","","","","","","","","",{"$f":"IF($D89=0,\"\",$D89)","v":""},"","","","","","","","","","","","","",""]
[null,null,null,null,"",{"$f":"IF($D90=0,\"\",$D90)","v":""},"","","","","","","","","","","","","","","","","","","","","","","","","","","",""]
[null,null,null,null,"","","","","","","","","","","","","","","","","","","","","","","","","","","","","",""]
[null,null,null,null,"","","","","","","","","","","","","","","","","","","","","","","","","","","","","",""]
[null,null,null,null,"","","","","","","","","","","","","","","","","","","","","","","","","","","","","",""]
[null,null,null,null,"","","","","","","","","","","","","","","","","","","","","","","","","","","","","",""]
[null,null,null,null,"","","","","","","","","","","","","","","","","","","","","","","","","","","","","",""]
[null,null,null,null,"","","","","","","","","","","","","",{"$f":"IF($D96=0,\"\",$D96)","v":""},"","","","","","","","","","","","","","","",""]
[null,null,null,null,"","","","","","","","","","","","","","","","","","","","","","","","","","","","","",""]
[null,null,null,null,"","","","","","","","","","","","","","","","","","","","","","","","","","","","","",""]
[null,null,null,null,"","","","","","","","","","","","","","","","","","","","","","","","","","","","","",""]
[null,null,null,null,"",{"$f":"IF($D100=0,\"\",$D100)","v":""},"","","","","","","","","","","","","","","","","","","","","","","","","","","",""]
[null,null,null,null,"","","","","","","","","","","","","","","","","","","","","","","","","","","","","",""]
[null,null,null,null,"","","","","","","","","","","","","","","","","","","","","","","","","","","","","",""]
[null,null,null,null,"","","","","","","","","","","","","","","","","","","","","","","","","","","","","",""]
[null,null,null,null,"","","","","","","","","","","","","","","",{"$f":"IF($D104=0,\"\",$D104)","v":""},"","","","","","","","","","","","","",""]
[null,null,null,null,"","","","","","","","","","","","","","","",{"$f":"IF($D105=0,\"\",$D105)","v":""},"","","","","","","","","","","","","",""]
[null,null,null,null,"","","","","","","","","","","","","","","","","","","","","","","","","","","","","",""]
[null,null,null,null,"","","","","","","","","","","","","","","","","","","","","","","","","","","","","",""]
[null,null,null,null,"","","","","","","","","","","","","","","","","","","","","","","","","","","","","",""]
[null,null,null,null,"","","","","","","","","","","","","","","","","","","","","","","","","","","","","",""]
[null,null,null,null,"",{"$f":"IF($D110=0,\"\",$D110)","v":""},"","","","","","","","","","","","","","","","","","","","","","","","","","","",""]
[null,null,null,null,"","","","","","","","","","","","","","","","","","","","","","","","","","","","","",""]
[null,null,null,null,"","","","","","","","","","","","","","","","","","","","","","","","","","","","","",""]
[null,null,null,null,"","","","","","","","","","","","","","","","","","","","","","","","","","","","","",""]
[null,null,null,null,"","","","","","","","","","","","","","","","","","","","","","","","","","","","","",""]
[null,null,null,null,"","","","","","","","","","","","","","","","","","","","","","","","","","","","","",""]
[null,null,null,null,"","","","","","","","","","","","","",{"$f":"IF($D116=0,\"\",$D116)","v":""},"","","","","","","","","","","","","","","",""]
[null,null,null,null,"","","","","","","","","","","","","","","","","","","","","","","","","","","","","",""]
[null,null,null,null,"","","","","","","","","","","","","","","","","","","","","","","","","","","","","",""]
[null,null,null,null,"","","","","","","","","","","","","","","","","","","","","","","","","","","","","",""]
[null,null,null,null,"",{"$f":"IF($D120=0,\"\",$D120)","v":""},"","","","","","","","","","","","","",{"$f":"IF($D120=0,\"\",$D120)","v":""},"","","","","","","","","","","","","",""]
[null,null,null,null,"","","","","","","","","","","","","","","",{"$f":"IF($D121=0,\"\",$D121)","v":""},"","","","","","","","","","","","","",""]
[null,null,null,null,"","","","","","","","","","","","","","","","","","","","","","","","","","","","","",""]
[null,null,null,null,"","","","","","","","","","","","","","","","","","","","","","","","","","","","","",""]
[null,null,null,null,"","","","","","","","","","","","","","","","","","","","","","","","","","","","","",""]
[null,null,null,null,"","","","","","","","","","","","","","","","","","","","","","","","","","","","","",""]
[null,null,null,null,"","","","","","","","","","","","","","","","","","","","","","","","","","","","","",""]
[null,null,null,null,"","","","","","","","","","","","","","","","","","","","","","","","","","","","","",""]
[null,null,null,null,"","","","","","","","","","","","","","","","","","","","","","","","","","","","","",""]
[null,null,null,null,"","","","","","","","","","","","","","","","","","","","","","","","","","","","","",""]
[null,null,null,null,"",{"$f":"IF($D130=0,\"\",$D130)","v":""},"","","","","","","","","","","","","","","","","","","","","","","","","","","",""]
[null,null,null,null,"","","","","","","","","","","","","","","","","","","","","","","","","","","","","",""]
[null,null,null,null,"","","","","","","","","","","","","","","","","","","","","","","","","","","","","",""]
[null,null,null,null,"","","","","","","","","","","","","","","","","","","","","","","","","","","","","",""]
[null,null,null,null,"","","","","","","","","","","","","","","","","","","","","","","","","","","","","",""]
[null,null,null,null,"","","","","","","","","","","","","","","","","","","","","","","","","","","","","",""]
[null,null,null,null,"","","","","","","","","","","","","",{"$f":"IF($D136=0,\"\",$D136)","v":""},"",{"$f":"IF($D136=0,\"\",$D136)","v":""},"","","","","","","","","","","","","",""]
[null,null,null,null,"","","","","","","","","","","","","","","",{"$f":"IF($D137=0,\"\",$D137)","v":""},"","","","","","","","","","","","","",""]
[null,null,null,null,"","","","","","","","","","","","","","","","","","","","","","","","","","","","","",""]
[null,null,null,null,"","","","","","","","","","","","","","","","","","","","","","","","","","","","","",""]
[null,null,null,null,"",{"$f":"IF($D140=0,\"\",$D140)","v":""},"","","","","","","","","","","","","","","","","","","","","","","","","","","",""]
[null,null,null,null,"","","","","","","","","","","","","","","","","","","","","","","","","","","","","",""]
[null,null,null,null,"","","","","","","","","","","","","","","","","","","","","","","","","","","","","",""]
[null,null,null,null,"","","","","","","","","","","","","","","","","","","","","","","","","","","","","",""]
[null,null,null,null,"","","","","","","","","","","","","","","","","","","","","","","","","","","","","",""]
[null,null,null,null,"","","","","","","","","","","","","","","","","","","","","","","","","","","","","",""]
[null,null,null,null,"","","","","","","","","","","","","","","","","","","","","","","","","","","","","",""]
[null,null,null,null,"","","","","","","","","","","","","","","","","","","","","","","","","","","","","",""]
[null,null,null,null,"","","","","","","","","","","","","","","","","","","","","","","","","","","","","",""]
[null,null,null,null,"","","","","","","","","","","","","","","","","","","","","","","","","","","","","",""]
[null,null,null,null,"",{"$f":"IF($D150=0,\"\",$D150)","v":""},"","","","","","","","","","","","","","","","","","","","","","","","","","","",""]
[null,null,null,null,{"$f":"IF($D151=0,\"\",$D151)","v":""},"","","","","","","","","","","","","","","","","","","","","","","","","","","","",""]
[null,null,null,null,"","","","","","","","","","","","","","","",{"$f":"IF($D152=0,\"\",$D152)","v":""},"","","","","","","","","","","","","",""]
[null,null,null,null,"","","","","","","","","","","","","","","",{"$f":"IF($D153=0,\"\",$D153)","v":""},"","","","","","","","","","","","","",""]
[null,null,null,null,"","","","","","","","","","","","","","","","","","","","","","","","","","","","","",""]
[null,null,null,null,"","","","","","","","","","","","","","","","","","","","","","","","","","","","","",""]
[null,null,null,null,"","","","","","","","","","","","","",{"$f":"IF($D156=0,\"\",$D156)","v":""},"","","","","","","","","","","","","","","",""]
[null,null,null,null,"","","","","","","","","","","","","","","","","","","","","","","","","","","","","",""]
[null,null,null,null,"","","","","","","","","","","","","","","","","","","","","","","","","","","","","",""]
[null,null,null,null,"","","","","","","","","","","","","","","","","","","","","","","","","","","","","",""]
[null,null,null,null,"",{"$f":"IF($D160=0,\"\",$D160)","v":""},"","","","","","","","","","","","","","","","","","","","","","","","","","","",""]
[null,null,null,null,"","","","","","","","","","","","","","","","","","","","","","","","","","","","","",""]
[null,null,null,null,"","","","","","","","","","","","","","","","","","","","","","","","","","","","","",""]
[null,null,null,null,"","","","","","","","","","","","","","","","","","","","","","","","","","","","","",""]
[null,null,null,null,"","","","","","","","","","","","","","","","","","","","","","","","","","","","","",""]
[null,null,null,null,"","","","","","","","","","","","","","","","","","","","","","","","","","","","","",""]
[null,null,null,null,"","","","","","","","","","","","","","","","","","","","","","","","","","","","","",""]
[null,null,null,null,"","","","","","","","","","","","","","","","","","","","","","","","","","","","","",""]
[null,null,null,null,"","","","","","","","","","","","","","","",{"$f":"IF($D168=0,\"\",$D168)","v":""},"","","","","","","","","","","","","",""]
[null,null,null,null,"","","","","","","","","","","","","","","",{"$f":"IF($D169=0,\"\",$D169)","v":""},"","","","","","","","","","","","","",""]
[null,null,null,null,"",{"$f":"IF($D170=0,\"\",$D170)","v":""},"","","","","","","","","","","","","","","","","","","","","","","","","","","",""]
[null,null,null,null,"","","","","","","","","","","","","","","","","","","","","","","","","","","","","",""]
[null,null,null,null,"","","","","","","","","","","","","","","","","","","","","","","","","","","","","",""]
[null,null,null,null,"","","","","","","","","","","","","","","","","","","","","","","","","","","","","",""]
[null,null,null,null,"","","","","","","","","","","","","","","","","","","","","","","","","","","","","",""]
[null,null,null,null,"","","","","","","","","","","","","","","","","","","","","","","","","","","","","",""]
[null,null,null,null,"","","","","","","","","","","","","",{"$f":"IF($D176=0,\"\",$D176)","v":""},"","","","","","","","","","","","","","","",""]
[null,null,null,null,"","","","","","","","","","","","","","","","","","","","","","","","","","","","","",""]
[null,null,null,null,"","","","","","","","","","","","","","","","","","","","","","","","","","","","","",""]
[null,null,null,null,"","","","","","","","","","","","","","","","","","","","","","","","","","","","","",""]
[null,null,null,null,"",{"$f":"IF($D180=0,\"\",$D180)","v":""},"","","","","","","","","","","","","","","","","","","","","","","","","","","",""]
[null,null,null,null,"","","","","","","","","","","","","","","","","","","","","","","","","","","","","",""]
[null,null,null,null,"","","","","","","","","","","","","","","","","","","","","","","","","","","","","",""]
[null,null,null,null,"","","","","","","","","","","","","","","","","","","","","","","","","","","","","",""]
[null,null,null,null,"","","","","","","","","","","","","","","",{"$f":"IF($D184=0,\"\",$D184)","v":""},"","","","","","","","","","","","","",""]
[null,null,null,null,"","","","","","","","","","","","","","","",{"$f":"IF($D185=0,\"\",$D185)","v":""},"","","","","","","","","","","","","",""]
[null,null,null,null,"","","","","","","","","","","","","","","","","","","","","","","","","","","","","",""]
[null,null,null,null,"","","","","","","","","","","","","","","","","","","","","","","","","","","","","",""]
[null,null,null,null,"","","","","","","","","","","","","","","","","","","","","","","","","","","","","",""]
[null,null,null,null,"","","","","","","","","","","","","","","","","","","","","","","","","","","","","",""]
[null,null,null,null,"",{"$f":"IF($D190=0,\"\",$D190)","v":""},"","","","","","","","","","","","","","","","","","","","","","","","","","","",""]
[null,null,null,null,"","","","","","","","","","","","","","","","","","","","","","","","","","","","","",""]
[null,null,null,null,"","","","","","","","","","","","","","","","","","","","","","","","","","","","","",""]
[null,null,null,null,"","","","","","","","","","","","","","","","","","","","","","","","","","","","","",""]
[null,null,null,null,"","","","","","","","","","","","","","","","","","","","","","","","","","","","","",""]
[null,null,null,null,"","","","","","","","","","","","","","","","","","","","","","","","","","","","","",""]
[null,null,null,null,"","","","","","","","","","","","","",{"$f":"IF($D196=0,\"\",$D196)","v":""},"","","","","","","","","","","","","","","",""]
[null,null,null,null,"","","","","","","","","","","","","","","","","","","","","","","","","","","","","",""]
[null,null,null,null,"","","","","","","","","","","","","","","","","","","","","","","","","","","","","",""]
[null,null,null,null,"","","","","","","","","","","","","","","","","","","","","","","","","","","","","",""]
[null,null,null,null,"",{"$f":"IF($D200=0,\"\",$D200)","v":""},"","","","","","","","","","","","","",{"$f":"IF($D200=0,\"\",$D200)","v":""},"","","","","","","","","","","","","",""]
[null,null,null,null,"","","","","","","","","","","","","","","",{"$f":"IF($D201=0,\"\",$D201)","v":""},"","","","","","","","","","","","","",""]
[null,null,null,null,"","","","","","","","","","","","","","","","","","","","","","","","","","","","","",""]
[null,null,null,null,"","","","","","","","","","","","","","","","","","","","","","","","","","","","","",""]
[null,null,null,null,"","","","","","","","","","","","","","","","","","","","","","","","","","","","","",""]
[null,null,null,null,"","","","","","","","","","","","","","","","","","","","","","","","","","","","","",""]
[null,null,null,null,"","","","","","","","","","","","","","","","","","","","","","","","","","","","","",""]
[null,null,null,null,"","","","","","","","","","","","","","","","","","","","","","","","","","","","","",""]
[null,null,null,null,"","","","","","","","","","","","","","","","","","","","","","","","","","","","","",""]
[null,null,null,null,"","","","","","","","","","","","","","","","","","","","","","","","","","","","","",""]
[null,null,null,null,"",{"$f":"IF($D210=0,\"\",$D210)","v":""},"","","","","","","","","","","","","","","","","","","","","","","","","","","",""]
[null,null,null,null,"","","","","","","","","","","","","","","","","","","","","","","","","","","","","",""]
[null,null,null,null,"","","","","","","","","","","","","","","","","","","","","","","","","","","","","",""]
[null,null,null,null,"","","","","","","","","","","","","","","","","","","","","","","","","","","","","",""]
[null,null,null,null,"","","","","","","","","","","","","","","","","","","","","","","","","","","","","",""]
[null,null,null,null,{"$f":"IF($D215=0,\"\",$D215)","v":""},"","","","","","","","","","","","","","","","","","","","","","","","","","","","",""]
[null,null,null,null,"","","","","","","","","","","","","",{"$f":"IF($D216=0,\"\",$D216)","v":""},"",{"$f":"IF($D216=0,\"\",$D216)","v":""},"","","","","","","","","","","","","",""]
[null,null,null,null,"","","","","","","","","","","","","","","",{"$f":"IF($D217=0,\"\",$D217)","v":""},"","","","","","","","","","","","","",""]
[null,null,null,null,"","","","","","","","","","","","","","","","","","","","","","","","","","","","","",""]
[null,null,null,null,"","","","","","","","","","","","","","","","","","","","","","","","","","","","","",""]
[null,null,null,null,"",{"$f":"IF($D220=0,\"\",$D220)","v":""},"","","","","","","","","","","","","","","","","","","","","","","","","","","",""]
[null,null,null,null,"","","","","","","","","","","","","","","","","","","","","","","","","","","","","",""]
[null,null,null,null,"","","","","","","","","","","","","","","","","","","","","","","","","","","","","",""]
[null,null,null,null,"","","","","","","","","","","","","","","","","","","","","","","","","","","","","",""]
[null,null,null,null,"","","","","","","","","","","","","","","","","","","","","","","","","","","","","",""]
[null,null,null,null,"","","","","","","","","","","","","","","","","","","","","","","","","","","","","",""]
[null,null,null,null,"","","","","","","","","","","","","","","","","","","","","","","","","","","","","",""]
[null,null,null,null,"","","","","","","","","","","","","","","","","","","","","","","","","","","","","",""]
[null,null,null,null,"","","","","","","","","","","","","","","","","","","","","","","","","","","","","",""]
[null,null,null,null,"","","","","","","","","","","","","","","","","","","","","","","","","","","","","",""]
[null,null,null,null,"","","","","","","","","","","","","","","","","","","","","","","","","","","","","",""]
[null,null,null,null,"","","","","","","","","","","","","","","","","","","","","","","","","","","","","",""]
[null,null,null,null,"","","","","","","","","","","","","","","",{"$f":"IF($D232=0,\"\",$D232)","v":""},"","","","","","","","","","","","","",""]
[null,null,null,null,{"$f":"IF($D233=0,\"\",$D233)","v":""},"","","","","","","","","","","","","","","","","","","","","","","","","","","","",""]
[null,null,null,null,"","","","","","","","","","","","","","","","","","","","","","","","","","","","","",""]
[null,null,null,null,"","","","","","","","","","","","","","","","","","","","","","","","","","","","","",""]
[null,null,null,null,"","","","","","","","","","","","","","","","","","","","","","","","","","","","","",""]
[null,null,null,null,"","","","","","","","","","","","","","","","","","","","","","","","","","","","","",""]
[null,null,null,null,"","","","","","","","","","","","","","","","","","","","","","","","","","","","","",""]
[null,null,null,null,"","","","","","","","","","","","","","","","","","","","","","","","","","","","","",""]
[null,null,null,null,"","","","","","","","","","","","","","","","","","","","","","","","","","","","","",""]
[null,null,null,null,"","","","","","","","","","","","","","","","","","","","","","","","","","","","","",""]
[null,null,null,null,"","","","","","","","","","","","","","","","","","","","","","","","","","","","","",""]
[null,null,null,null,"","","","","","","","","","","","","","","","","","","","","","","","","","","","","",""]
[null,null,null,null,"","","","","","","","","","","","","","","","","","","","","","","","","","","","","",""]
[null,null,null,null,"","","","","","","","","","","","","","","","","","","","","","","","","","","","","",""]
[null,null,null,null,"","","","","","","","","","","","","","","","","","","","","","","","","","","","","",""]
[null,null,null,null,"","","","","","","","","","","","","","","","","","","","","","","","","","","","","",""]
[null,null,null,null,"","","","","","","","","","","","","","","",{"$f":"IF($D248=0,\"\",$D248)","v":""},"","","","","","","","","","","","","",""]
[null,null,null,null,{"$f":"IF($D249=0,\"\",$D249)","v":""},"","","","","","","","","","","","","","","","","","","","","","","","","","","","",""]
[null,null,null,null,"","","","","","","","","","","","","","","","","","","","","","","","","","","","","",""]
[null,null,null,null,"","","","","","","","","","","","","","","","","","","","","","","","","","","","","",""]
[null,null,null,null,"","","","","","","","","","","","","","","","","","","","","","","","","","","","","",""]
[null,null,null,null,"","","","","","","","","","","","","","","","","","","","","","","","","","","","","",""]
[null,null,null,null,"","","","","","","","","","","","","","","","","","","","","","","","","","","","","",""]
[null,null,null,null,"","","","","","","","","","","","","","","","","","","","","","","","","","","","","",""]
[null,null,null,null,"","","","","","","","","","","","","","","","","","","","","","","","","","","","","",""]
[null,null,null,null,"","","","","","","","","","","","","","","","","","","","","","","","","","","","","",""]
[null,null,null,null,"","","","","","","","","","","","","","","","","","","","","","","","","","","","","",""]
[null,null,null,null,"","","","","","","","","","","","","","","","","","","","","","","","","","","","","",""]
[null,null,null,null,"","","","","","","","","","","","","","","","","","","","","","","","","","","","","",""]
[null,null,null,null,"","","","","","","","","","","","","","","","","","","","","","","","","","","","","",""]
[null,null,null,null,"","","","","","","","","","","","","","","","","","","","","","","","","","","","","",""]
[null,null,null,null,"","","","","","","","","","","","","","","","","","","","","","","","","","","","","",""]

{"sheet":"commentaires","index":9,"n_rows":31,"n_cols":17,"rows_kept":31,"cut":false,"hidden":false,"merged":[]}
["NOM et Prénom","Commentaire_Ecrire","Validation_Ecrire","Commentaire_Comprendre à l'oral","Validation_Comprendre à l'oral","Commentaire_Parler en continu","Validation_Parler en continu","Commentaire_Lire","Validation_Lire","Commentaire_Réagir et dialoguer","Validation_Réagir et dialoguer","VALIDATION_PALIER_A1","val_ec","val_co","val_pa","val_li","val_re"]
[{"$f":"liste!A2","v":"PICASSO Pablo"},null,1,null,1,null,1,null,1,null,1,1,{"$f":"IF($L2=0,C2,0)","v":0},{"$f":"IF($L2=0,E2,0)","v":0},{"$f":"IF($L2=0,G2,0)","v":0},{"$f":"IF($L2=0,I2,0)","v":0},{"$f":"IF($L2=0,K2,0)","v":0}]
[{"$f":"liste!A3","v":"FREUD Sigmund"},null,1,null,1,null,1,null,0,null,0,1,{"$f":"IF($L3=0,C3,0)","v":0},{"$f":"IF($L3=0,E3,0)","v":0},{"$f":"IF($L3=0,G3,0)","v":0},{"$f":"IF($L3=0,I3,0)","v":0},{"$f":"IF($L3=0,K3,0)","v":0}]
[{"$f":"liste!A4","v":"HOLMES Sherlock"},null,1,null,0,null,0,null,0,null,0,0,1,0,0,0,0]
[{"$f":"liste!A5","v":"CHAHINE Youcef"},null,1,null,1,null,1,null,0,null,0,0,1,1,1,0,0]
[{"$f":"liste!A6","v":"NOM5"},null,null,null,null,null,null,null,null,null,null,null,0,0,0,0,0]
[{"$f":"liste!A7","v":"NOM6"},null,null,null,null,null,null,null,null,null,null,null,0,0,0,0,0]
[{"$f":"liste!A8","v":"NOM7"},null,null,null,null,null,null,null,null,null,null,null,0,0,0,0,0]
[{"$f":"liste!A9","v":"NOM8"},null,null,null,null,null,null,null,null,null,null,null,0,0,0,0,0]
[{"$f":"liste!A10","v":"NOM9"},null,null,null,null,null,null,null,null,null,null,null,0,0,0,0,0]
[{"$f":"liste!A11","v":"NOM10"},null,null,null,null,null,null,null,null,null,null,null,0,0,0,0,0]
[{"$f":"liste!A12","v":"NOM11"},null,null,null,null,null,null,null,null,null,null,null,0,0,0,0,0]
[{"$f":"liste!A13","v":"NOM12"},null,null,null,null,null,null,null,null,null,null,null,0,0,0,0,0]
[{"$f":"liste!A14","v":"NOM13"},null,null,null,null,null,null,null,null,null,null,null,0,0,0,0,0]
[{"$f":"liste!A15","v":"NOM14"},null,null,null,null,null,null,null,null,null,null,null,0,0,0,0,0]
[{"$f":"liste!A16","v":"NOM15"},null,null,null,null,null,null,null,null,null,null,null,0,0,0,0,0]
[{"$f":"liste!A17","v":"NOM16"},null,null,null,null,null,null,null,null,null,null,null,0,0,0,0,0]
[{"$f":"liste!A18","v":"NOM17"},null,null,null,null,null,null,null,null,null,null,null,0,0,0,0,0]
[{"$f":"liste!A19","v":"NOM18"},null,null,null,null,null,null,null,null,null,null,null,0,0,0,0,0]
[{"$f":"liste!A20","v":"NOM19"},null,null,null,null,null,null,null,null,null,null,null,0,0,0,0,0]
[{"$f":"liste!A21","v":"NOM20"},null,null,null,null,null,null,null,null,null,null,null,0,0,0,0,0]
[{"$f":"liste!A22","v":"NOM21"},null,null,null,null,null,null,null,null,null,null,null,0,0,0,0,0]
[{"$f":"liste!A23","v":"NOM22"},null,null,null,null,null,null,null,null,null,null,null,0,0,0,0,0]
[{"$f":"liste!A24","v":"NOM23"},null,null,null,null,null,null,null,null,null,null,null,0,0,0,0,0]
[{"$f":"liste!A25","v":"NOM24"},null,null,null,null,null,null,null,null,null,null,null,0,0,0,0,0]
[{"$f":"liste!A26","v":"NOM25"},null,null,null,null,null,null,null,null,null,null,null,0,0,0,0,0]
[{"$f":"liste!A27","v":"NOM26"},null,null,null,null,null,null,null,null,null,null,null,0,0,0,0,0]
[{"$f":"liste!A28","v":"NOM27"},null,null,null,null,null,null,null,null,null,null,null,0,0,0,0,0]
[{"$f":"liste!A29","v":"NOM28"},null,null,null,null,null,null,null,null,null,null,null,0,0,0,0,0]
[{"$f":"liste!A30","v":"NOM29"},null,null,null,null,null,null,null,null,null,null,null,0,0,0,0,0]
[{"$f":"liste!A31","v":"NOM30"},null,null,null,null,null,null,null,null,null,null,null,0,0,0,0,0]

{"sheet":"Ecrire","index":10,"n_rows":108,"n_cols":4,"rows_kept":108,"cut":false,"hidden":false,"merged":[[28,0,28,3],[29,0,29,2],[51,0,51,2],[64,0,64,2],[79,0,79,2],[95,0,95,2]]}
[]
[]
[]
[]
[]
[]
[]
[]
[]
[]
[]
[]
[]
[]
[]
[]
[]
[]
[]
[]
[]
[null,"École :","Paul Eluard"]
[null,"Commune :","Le Mans"]
[]
[null,"Nom et prénom de l'élève :","PICASSO Pablo"]
[]
[null,"Langue :",{"$f":"VLOOKUP(qui,liste!$A$2:$B$31,2,FALSE)","v":"Espagnol"}]
[]
[{"$f":"'.calc_eva'!A2","v":"Ecrire"}]
[{"$f":"'.calc_eva'!B2","v":"Copier des mots isolés et des textes courts"},null,null,"évalué positivement le :"]
[null,null,{"$f":"'.calc_eva'!C2","v":"Copier des textes courts imprimés (des listes : cadeaux, ingrédients, de courses, de menu, de lunch box, de sandwich... un court poème par exemple) "},{"$f":"IF('.calc_eva'!E2=0,\"\",'.calc_eva'!E2)","v":""}]
[null,null,{"$f":"'.calc_eva'!C3","v":"Recopier des mots à partir d'un modèle (livre, affiche, tableau...)"},{"$f":"IF('.calc_eva'!E3=0,\"\",'.calc_eva'!E3)","v":""}]
[null,null,{"$f":"'.calc_eva'!C4","v":"Compléter des grilles de mots (fléchés, codés, cachés, croisés...)"},{"$f":"IF('.calc_eva'!E4=0,\"\",'.calc_eva'!E4)","v":""}]
[null,null,{"$f":"'.calc_eva'!C5","v":"Compléter des phrases à trous à partir d'une liste de mots en désordre"},{"$f":"IF('.calc_eva'!E5=0,\"\",'.calc_eva'!E5)","v":""}]
[null,null,{"$f":"'.calc_eva'!C6","v":"Compléter des phrases qui permettent de se décrire à l'aide d'une liste de mots en désordre"},{"$f":"IF('.calc_eva'!E6=0,\"\",'.calc_eva'!E6)","v":""}]
[null,null,{"$f":"'.calc_eva'!C7","v":"Copier des phrases à remettre dans l'ordre d'une histoire"},{"$f":"IF('.calc_eva'!E7=0,\"\",'.calc_eva'!E7)","v":""}]
[null,null,{"$f":"'.calc_eva'!C8","v":"Compléter une chanson connue avec une liste de mots manquants "},{"$f":"IF('.calc_eva'!E8=0,\"\",'.calc_eva'!E8)","v":""}]
[null,null,{"$f":"'.calc_eva'!C9","v":"Ecrire une légende ou un titre à une image, en utilisant les outils de la classe"},{"$f":"IF('.calc_eva'!E9=0,\"\",'.calc_eva'!E9)","v":""}]
[null,null,{"$f":"'.calc_eva'!C10","v":"Transcrire sur l'ordinateur une phrase écrite au tableau par l'enseignant"},{"$f":"IF('.calc_eva'!E10=0,\"\",'.calc_eva'!E10)","v":""}]
[null,null,{"$f":"'.calc_eva'!C11","v":"En se référant à un modèle, écrire des phrases courtes sur un pays de la langue étudiée"},{"$f":"IF('.calc_eva'!E11=0,\"\",'.calc_eva'!E11)","v":""}]
[null,null,{"$f":"'.calc_eva'!C12","v":"A l'aide d'indications touristiques, écrire un texte court sur sa visite dans une capitale de la langue étudiée"},{"$f":"IF('.calc_eva'!E12=0,\"\",'.calc_eva'!E12)","v":""}]
[null,null,{"$f":"'.calc_eva'!C13","v":"Recopier les titres de chansons apprises"},{"$f":"IF('.calc_eva'!E13=0,\"\",'.calc_eva'!E13)","v":""}]
[null,null,{"$f":"'.calc_eva'!C14","v":"Reconstituer par étiquettes une comptine, poème appris "},{"$f":"IF('.calc_eva'!E14=0,\"\",'.calc_eva'!E14)","v":""}]
[null,null,{"$f":"'.calc_eva'!C15","v":"Copier des mots pour compléter des descriptions"},{"$f":"IF('.calc_eva'!E15=0,\"\",'.calc_eva'!E15)","v":""}]
[null,null,{"$f":"'.calc_eva'!C16","v":"Copier les nombres (prix, quantité, opérations, dans une comptine, âge, "},{"$f":"IF('.calc_eva'!E16=0,\"\",'.calc_eva'!E16)","v":""}]
[null,null,{"$f":"'.calc_eva'!C17","v":"Remettre des mots dans l'ordre pour écrire une phrase simple"},{"$f":"IF('.calc_eva'!E17=0,\"\",'.calc_eva'!E17)","v":""}]
[null,null,{"$f":"'.calc_eva'!C18","v":"Ecrire des mots et expressions relatifs à l'heure"},{"$f":"IF('.calc_eva'!E18=0,\"\",'.calc_eva'!E18)","v":""}]
[null,null,{"$f":"'.calc_eva'!C19","v":"Compléter des phrases courtes sur un anniversaire"},{"$f":"IF('.calc_eva'!E19=0,\"\",'.calc_eva'!E19)","v":""}]
[null,null,{"$f":"'.calc_eva'!C20","v":"desc_1"},{"$f":"IF('.calc_eva'!E20=0,\"\",'.calc_eva'!E20)","v":""}]
[null,null,{"$f":"'.calc_eva'!C21","v":"desc_2"},{"$f":"IF('.calc_eva'!E21=0,\"\",'.calc_eva'!E21)","v":""}]
[]
[{"$f":"'.calc_eva'!B22","v":"Ecrire un message électronique simple ou une courte carte postale en référence à des modèles "}]
[null,null,{"$f":"'.calc_eva'!C22","v":"Ecrire une courte carte de vœux, d'invitation, de remerciements, de salutations..., "},{"$f":"IF('.calc_eva'!E22=0,\"\",'.calc_eva'!E22)","v":""}]
[null,null,{"$f":"'.calc_eva'!C23","v":"Répondre à une invitation"},{"$f":"IF('.calc_eva'!E23=0,\"\",'.calc_eva'!E23)","v":""}]
[null,null,{"$f":"'.calc_eva'!C24","v":"Rédiger une courte carte postale (dire où l'on est, comment on va et signer)"},{"$f":"IF('.calc_eva'!E24=0,\"\",'.calc_eva'!E24)","v":""}]
[null,null,{"$f":"'.calc_eva'!C25","v":"Donner de ses nouvelles par courriel"},{"$f":"IF('.calc_eva'!E25=0,\"\",'.calc_eva'!E25)","v":""}]
[null,null,{"$f":"'.calc_eva'!C26","v":"Poser des questions par courriel"},{"$f":"IF('.calc_eva'!E26=0,\"\",'.calc_eva'!E26)","v":""}]
[null,null,{"$f":"'.calc_eva'!C27","v":"Ecrire un petit dialogue en complétant des bulles de bande dessinée ou d'après des images séquentielles"},{"$f":"IF('.calc_eva'!E27=0,\"\",'.calc_eva'!E27)","v":""}]
[null,null,{"$f":"'.calc_eva'!C28","v":"Compléter un dialogue par des mots ou des phrases qui manquent"},{"$f":"IF('.calc_eva'!E28=0,\"\",'.calc_eva'!E28)","v":""}]
[null,null,{"$f":"'.calc_eva'!C29","v":"Compléter les salutations différentes selon le moment de la journée"},{"$f":"IF('.calc_eva'!E29=0,\"\",'.calc_eva'!E29)","v":""}]
[null,null,{"$f":"'.calc_eva'!C30","v":"Compléter deux phrases courtes pour décrire ce que l'on fait à Noël"},{"$f":"IF('.calc_eva'!E30=0,\"\",'.calc_eva'!E30)","v":""}]
[null,null,{"$f":"'.calc_eva'!C31","v":"desc_3"},{"$f":"IF('.calc_eva'!E31=0,\"\",'.calc_eva'!E31)","v":""}]
[null,null,{"$f":"'.calc_eva'!C32","v":"desc_4"},{"$f":"IF('.calc_eva'!E32=0,\"\",'.calc_eva'!E32)","v":""}]
[]
[{"$f":"'.calc_eva'!B33","v":"Renseigner un questionnaire"}]
[null,null,{"$f":"'.calc_eva'!C33","v":"Remplir une fiche d'information sur soi : nom, prénom, âge, date et lieu de naissance,  nationalité, sexe, adresse, frères et soeurs, animaux, goûts "},{"$f":"IF('.calc_eva'!E33=0,\"\",'.calc_eva'!E33)","v":""}]
[null,null,{"$f":"'.calc_eva'!C34","v":"Remplir une fiche d'hôtel en indiquant la date d'arrivée, ses noms, prénoms, nationalité, date de départ prévue, "},{"$f":"IF('.calc_eva'!E34=0,\"\",'.calc_eva'!E34)","v":""}]
[null,null,{"$f":"'.calc_eva'!C35","v":"Remplir un tableau lors d'une enquête avec des mots appropriés (les médias des élèves par tranche d'âge)"},{"$f":"IF('.calc_eva'!E35=0,\"\",'.calc_eva'!E35)","v":""}]
[null,null,{"$f":"'.calc_eva'!C36","v":"Compléter un emploi du temps avec les disciplines adéquates"},{"$f":"IF('.calc_eva'!E36=0,\"\",'.calc_eva'!E36)","v":""}]
[null,null,{"$f":"'.calc_eva'!C37","v":"Compléter une enquête de recensement en décrivant sa famille (selon un modèle donné)"},{"$f":"IF('.calc_eva'!E37=0,\"\",'.calc_eva'!E37)","v":""}]
[null,null,{"$f":"'.calc_eva'!C38","v":"Compléter une fiche publicitaire immobilière (décrire son habitation)"},{"$f":"IF('.calc_eva'!E38=0,\"\",'.calc_eva'!E38)","v":""}]
[null,null,{"$f":"'.calc_eva'!C39","v":"Compléter une fiche de renseignements sur ses habitudes alimentaires"},{"$f":"IF('.calc_eva'!E39=0,\"\",'.calc_eva'!E39)","v":""}]
[null,null,{"$f":"'.calc_eva'!C40","v":"Compléter une fiche de renseignements sur ses habitudes sportives"},{"$f":"IF('.calc_eva'!E40=0,\"\",'.calc_eva'!E40)","v":""}]
[null,null,{"$f":"'.calc_eva'!C41","v":"Compléter une enquête liée à ses habitudes horaires"},{"$f":"IF('.calc_eva'!E41=0,\"\",'.calc_eva'!E41)","v":""}]
[null,null,{"$f":"'.calc_eva'!C42","v":"Compléter un tableau relatif aux catégories animales"},{"$f":"IF('.calc_eva'!E42=0,\"\",'.calc_eva'!E42)","v":""}]
[null,null,{"$f":"'.calc_eva'!C43","v":"Catégoriser dans un tableau des personnages d'histoires à partir de leurs qualités physiques ou morales"},{"$f":"IF('.calc_eva'!E43=0,\"\",'.calc_eva'!E43)","v":""}]
[null,null,{"$f":"'.calc_eva'!C44","v":"desc_5"},{"$f":"IF('.calc_eva'!E44=0,\"\",'.calc_eva'!E44)","v":""}]
[null,null,{"$f":"'.calc_eva'!C45","v":"desc_6"},{"$f":"IF('.calc_eva'!E45=0,\"\",'.calc_eva'!E45)","v":""}]
[]
[{"$f":"'.calc_eva'!B46","v":"Produire de manière autonome quelques phrases"}]
[null,null,{"$f":"'.calc_eva'!C46","v":"Ecrire des énoncés simples et brefs sur soi-même "},{"$f":"IF('.calc_eva'!E46=0,\"\",'.calc_eva'!E46)","v":""}]
[null,null,{"$f":"'.calc_eva'!C47","v":"Ecrire des énoncés simples sur son environnement familier"},{"$f":"IF('.calc_eva'!E47=0,\"\",'.calc_eva'!E47)","v":""}]
[null,null,{"$f":"'.calc_eva'!C48","v":"Ecrire de façon simple sur des personnages imaginaires"},{"$f":"IF('.calc_eva'!E48=0,\"\",'.calc_eva'!E48)","v":""}]
[null,null,{"$f":"'.calc_eva'!C49","v":"Ecrire son problème de maths d'après un modèle"},{"$f":"IF('.calc_eva'!E49=0,\"\",'.calc_eva'!E49)","v":""}]
[null,null,{"$f":"'.calc_eva'!C50","v":"Reproduire une comptine connue en modifiant le vocabulaire (en respectant le nombre de syllabes) one banana, two banana …"},{"$f":"IF('.calc_eva'!E50=0,\"\",'.calc_eva'!E50)","v":""}]
[null,null,{"$f":"'.calc_eva'!C51","v":"Produire une phrase sur ses habitudes sportives"},{"$f":"IF('.calc_eva'!E51=0,\"\",'.calc_eva'!E51)","v":""}]
[null,null,{"$f":"'.calc_eva'!C52","v":"Ecrire les heures désignées"},{"$f":"IF('.calc_eva'!E52=0,\"\",'.calc_eva'!E52)","v":""}]
[null,null,{"$f":"'.calc_eva'!C53","v":"Ecrire sa date d'anniversaire"},{"$f":"IF('.calc_eva'!E53=0,\"\",'.calc_eva'!E53)","v":""}]
[null,null,{"$f":"'.calc_eva'!C54","v":"Produire des phrases courtes sur les animaux"},{"$f":"IF('.calc_eva'!E54=0,\"\",'.calc_eva'!E54)","v":""}]
[null,null,{"$f":"'.calc_eva'!C55","v":"Produire une devinette amusante (une question et une réponse) sur les aptitudes des animaux"},{"$f":"IF('.calc_eva'!E55=0,\"\",'.calc_eva'!E55)","v":""}]
[null,null,{"$f":"'.calc_eva'!C56","v":"Produire une phrase relatant si l'on joue d'un instrument ou pas"},{"$f":"IF('.calc_eva'!E56=0,\"\",'.calc_eva'!E56)","v":""}]
[null,null,{"$f":"'.calc_eva'!C57","v":"Ecrire la date en respectant les majuscules"},{"$f":"IF('.calc_eva'!E57=0,\"\",'.calc_eva'!E57)","v":""}]
[null,null,{"$f":"'.calc_eva'!C58","v":"desc_7"},{"$f":"IF('.calc_eva'!E58=0,\"\",'.calc_eva'!E58)","v":""}]
[null,null,{"$f":"'.calc_eva'!C59","v":"desc_8"},{"$f":"IF('.calc_eva'!E59=0,\"\",'.calc_eva'!E59)","v":""}]
[]
[{"$f":"'.calc_eva'!B60","v":"Ecrire sous la dictée des expressions connues"}]
[null,null,{"$f":"'.calc_eva'!C60","v":"Ecrire des mots connus dictés par l'enseignant"},{"$f":"IF('.calc_eva'!E60=0,\"\",'.calc_eva'!E60)","v":""}]
[null,null,{"$f":"'.calc_eva'!C61","v":"Ecrire des mots épelés pour constituer une phrase simple (une adresse, un nom, un message, un numéro au téléphone,"},{"$f":"IF('.calc_eva'!E61=0,\"\",'.calc_eva'!E61)","v":""}]
[null,null,{"$f":"'.calc_eva'!C62","v":"Ecrire des listes de menu, de courses, de cadeaux, d'achats pour la classe, "},{"$f":"IF('.calc_eva'!E62=0,\"\",'.calc_eva'!E62)","v":""}]
[null,null,{"$f":"'.calc_eva'!C63","v":"Ecrire des nombres dictés"},{"$f":"IF('.calc_eva'!E63=0,\"\",'.calc_eva'!E63)","v":""}]
[null,null,{"$f":"'.calc_eva'!C64","v":"Ecrire l'heure dictée"},{"$f":"IF('.calc_eva'!E64=0,\"\",'.calc_eva'!E64)","v":""}]
[null,null,{"$f":"'.calc_eva'!C65","v":"desc_9"},{"$f":"IF('.calc_eva'!E65=0,\"\",'.calc_eva'!E65)","v":""}]
[null,null,{"$f":"'.calc_eva'!C66","v":"desc_10"},{"$f":"IF('.calc_eva'!E66=0,\"\",'.calc_eva'!E66)","v":""}]
[]
[null,"L'activité langagière \"Ecrire\" est-elle validée ?",null,{"$f":"IF(VLOOKUP(qui,commentaire,3,FALSE)=1,\"OUI, le \",\"NON\")","v":"OUI, le "}]
[null,null,null,{"$f":"IF(LEFT(D105,3)=\"OUI\",MAX(D31:D103),\"\")","v":"00:00:00"}]
[null,"Commentaire du professeur :"]
[null,null,{"$f":"VLOOKUP(qui,commentaire,2,FALSE)","v":0}]

{"sheet":"Comprendre","index":11,"n_rows":68,"n_cols":4,"rows_kept":68,"cut":false,"hidden":false,"merged":[[5,0,5,3],[6,0,6,2],[15,0,15,2],[47,0,47,2]]}
[]
[null,"Nom et prénom de l'élève :",{"$f":"qui","v":"PICASSO Pablo"}]
[]
[null,"Langue :",{"$f":"VLOOKUP(qui,liste!$A$2:$B$31,2,FALSE)","v":"Espagnol"}]
[]
[{"$f":"'.calc_eva'!A67","v":"Comprendre à l'oral "}]
[{"$f":"'.calc_eva'!B67","v":"Comprendre les consignes de classe."}]
[null,null,{"$f":"'.calc_eva'!C67","v":"Comprendre des consignes courtes et simples et agir en conséquence (s'asseoir, ouvrir le cahier, aller au tableau, se taire, écouter, lever la main , se ranger, se mettre en cercle...)"},{"$f":"IF('.calc_eva'!E67=0,\"\",'.calc_eva'!E67)","v":""}]
[null,null,{"$f":"'.calc_eva'!C68","v":"Comprendre une salutation quelque soit le moment de la journée (good morning, see you later, good bye ...)"},{"$f":"IF('.calc_eva'!E68=0,\"\",'.calc_eva'!E68)","v":""}]
[null,null,{"$f":"'.calc_eva'!C69","v":"Comprendre une demande de copie, de recopie, de lecture, de découpage, de collage, de coloriage, de dessin ...(cocher, barrer, entourer, effacer, souligner)"},{"$f":"IF('.calc_eva'!E69=0,\"\",'.calc_eva'!E69)","v":""}]
[null,null,{"$f":"'.calc_eva'!C70","v":"Comprendre une demande d'activité de classe (jeu, bricolage)"},{"$f":"IF('.calc_eva'!E70=0,\"\",'.calc_eva'!E70)","v":""}]
[null,null,{"$f":"'.calc_eva'!C71","v":"Comprendre les mots et expressions liés au matériel scolaire (contenu d'une trousse, d'un cartable)"},{"$f":"IF('.calc_eva'!E71=0,\"\",'.calc_eva'!E71)","v":""}]
[null,null,{"$f":"'.calc_eva'!C72","v":"desc_11"},{"$f":"IF('.calc_eva'!E72=0,\"\",'.calc_eva'!E72)","v":""}]
[null,null,{"$f":"'.calc_eva'!C73","v":"desc_12"},{"$f":"IF('.calc_eva'!E73=0,\"\",'.calc_eva'!E73)","v":""}]
[]
[{"$f":"'.calc_eva'!B74","v":"Comprendre des mots familiers et des expressions très courantes"}]
[null,null,{"$f":"'.calc_eva'!C74","v":"Comprendre des mots familiers ou des expressions courantes sur soi-même si les gens parlent lentement et distinctement "},{"$f":"IF('.calc_eva'!E74=0,\"\",'.calc_eva'!E74)","v":""}]
[null,null,{"$f":"'.calc_eva'!C75","v":"Comprendre des mots familiers ou des expressions courantes sur sa famille si les gens parlent lentement et distinctement "},{"$f":"IF('.calc_eva'!E75=0,\"\",'.calc_eva'!E75)","v":""}]
[null,null,{"$f":"'.calc_eva'!C76","v":"Comprendre des mots familiers ou des expressions courantes sur son environnement concret si les gens parlent lentement et distinctement "},{"$f":"IF('.calc_eva'!E76=0,\"\",'.calc_eva'!E76)","v":""}]
[null,null,{"$f":"'.calc_eva'!C77","v":"Comprendre des informations chiffrées (âge, date, prix, numéro de téléphone…)"},{"$f":"IF('.calc_eva'!E77=0,\"\",'.calc_eva'!E77)","v":""}]
[null,null,{"$f":"'.calc_eva'!C78","v":"Comprendre un problème de maths simple "},{"$f":"IF('.calc_eva'!E78=0,\"\",'.calc_eva'!E78)","v":""}]
[null,null,{"$f":"'.calc_eva'!C79","v":"Comprendre des phrases simples sur le petit déjeuner"},{"$f":"IF('.calc_eva'!E79=0,\"\",'.calc_eva'!E79)","v":""}]
[null,null,{"$f":"'.calc_eva'!C80","v":"Comprendre des informations simples comportant des éléments de situation spatiale "},{"$f":"IF('.calc_eva'!E80=0,\"\",'.calc_eva'!E80)","v":""}]
[null,null,{"$f":"'.calc_eva'!C81","v":"Comprendre les pays anglophones et les nationalités"},{"$f":"IF('.calc_eva'!E81=0,\"\",'.calc_eva'!E81)","v":""}]
[null,null,{"$f":"'.calc_eva'!C82","v":"Comprendre des descriptions de sentiments, de sensations et des descriptions physiques"},{"$f":"IF('.calc_eva'!E82=0,\"\",'.calc_eva'!E82)","v":""}]
[null,null,{"$f":"'.calc_eva'!C83","v":"Comprendre des questions et réponses sur les fêtes calendaires"},{"$f":"IF('.calc_eva'!E83=0,\"\",'.calc_eva'!E83)","v":""}]
[null,null,{"$f":"'.calc_eva'!C84","v":"Comprendre des phrases simples sur les vacances et ce qu'on emporte dans sa valise"},{"$f":"IF('.calc_eva'!E84=0,\"\",'.calc_eva'!E84)","v":""}]
[null,null,{"$f":"'.calc_eva'!C85","v":"Comprendre des expressions utilisées fréquemment quand quelqu'un salue, s'excuse, remercie ou prend congé "},{"$f":"IF('.calc_eva'!E85=0,\"\",'.calc_eva'!E85)","v":""}]
[null,null,{"$f":"'.calc_eva'!C86","v":"Identifier dans une émission télévisée des noms, des indications temporelles et spatiales, ainsi que le sujet général "},{"$f":"IF('.calc_eva'!E86=0,\"\",'.calc_eva'!E86)","v":""}]
[null,null,{"$f":"'.calc_eva'!C87","v":"Comprendre le fil d'une histoire avec des aides appropriées "},{"$f":"IF('.calc_eva'!E87=0,\"\",'.calc_eva'!E87)","v":""}]
[null,null,{"$f":"'.calc_eva'!C88","v":"Comprendre des questions sur son identité (nom, prénom, âge, nationalité, date de naissance, frères et soeurs, adresse)"},{"$f":"IF('.calc_eva'!E88=0,\"\",'.calc_eva'!E88)","v":""}]
[null,null,{"$f":"'.calc_eva'!C89","v":"Comprendre les informations sur l'identité d'autrui (nom, prénom, âge, nationalité, date de naissance, frères et soeurs, adresse)"},{"$f":"IF('.calc_eva'!E89=0,\"\",'.calc_eva'!E89)","v":""}]
[null,null,{"$f":"'.calc_eva'!C90","v":"Comprendre lorsque quelqu'un demande d'épeler son nom"},{"$f":"IF('.calc_eva'!E90=0,\"\",'.calc_eva'!E90)","v":""}]
[null,null,{"$f":"'.calc_eva'!C91","v":"Comprendre une question liée au numéro de téléphone, à un prix, à une quantité, à l'heure"},{"$f":"IF('.calc_eva'!E91=0,\"\",'.calc_eva'!E91)","v":""}]
[null,null,{"$f":"'.calc_eva'!C92","v":"Comprendre un numéro de téléphone, un prix, une quantité, l'heure"},{"$f":"IF('.calc_eva'!E92=0,\"\",'.calc_eva'!E92)","v":""}]
[null,null,{"$f":"'.calc_eva'!C93","v":"Comprendre un dialogue de présentation d'un pays  ou d'une ville de la langue étudiée"},{"$f":"IF('.calc_eva'!E93=0,\"\",'.calc_eva'!E93)","v":""}]
[null,null,{"$f":"'.calc_eva'!C94","v":"Comprendre une indication de prix, quantité, adresse, numéro de téléphone, âge"},{"$f":"IF('.calc_eva'!E94=0,\"\",'.calc_eva'!E94)","v":""}]
[null,null,{"$f":"'.calc_eva'!C95","v":"Comprendre  oui ou non, merci, comment ça va"},{"$f":"IF('.calc_eva'!E95=0,\"\",'.calc_eva'!E95)","v":""}]
[null,null,{"$f":"'.calc_eva'!C96","v":"Comprendre des excuses, des félicitations, des voeux"},{"$f":"IF('.calc_eva'!E96=0,\"\",'.calc_eva'!E96)","v":""}]
[null,null,{"$f":"'.calc_eva'!C97","v":"Comprendre un message court (histoire, dialogue, annonce, comptine, chanson...) à l'aide de d'images, de gestes"},{"$f":"IF('.calc_eva'!E97=0,\"\",'.calc_eva'!E97)","v":""}]
[null,null,{"$f":"'.calc_eva'!C98","v":"Comprendre une annonce publicitaire en définissant le produit"},{"$f":"IF('.calc_eva'!E98=0,\"\",'.calc_eva'!E98)","v":""}]
[null,null,{"$f":"'.calc_eva'!C99","v":"Comprendre si quelqu'un aime ou n'aime pas"},{"$f":"IF('.calc_eva'!E99=0,\"\",'.calc_eva'!E99)","v":""}]
[null,null,{"$f":"'.calc_eva'!C100","v":"Comprendre les actions de personnages"},{"$f":"IF('.calc_eva'!E100=0,\"\",'.calc_eva'!E100)","v":""}]
[null,null,{"$f":"'.calc_eva'!C101","v":"Comprendre des descriptions simples d'animaux"},{"$f":"IF('.calc_eva'!E101=0,\"\",'.calc_eva'!E101)","v":""}]
[null,null,{"$f":"'.calc_eva'!C102","v":"desc_13"},{"$f":"IF('.calc_eva'!E102=0,\"\",'.calc_eva'!E102)","v":""}]
[null,null,{"$f":"'.calc_eva'!C103","v":"desc_14"},{"$f":"IF('.calc_eva'!E103=0,\"\",'.calc_eva'!E103)","v":""}]
[]
[{"$f":"'.calc_eva'!B104","v":"Suivre des instructions courtes et simples"}]
[null,null,{"$f":"'.calc_eva'!C104","v":"Pour réaliser une tâche en lien avec un message entendu par l'élève (cocher un dessin, dessiner sous la dictée)"},{"$f":"IF('.calc_eva'!E104=0,\"\",'.calc_eva'!E104)","v":""}]
[null,null,{"$f":"'.calc_eva'!C105","v":"Comprendre une demande d'actions physiques et réagir (lancer un ballon, un dé..."},{"$f":"IF('.calc_eva'!E105=0,\"\",'.calc_eva'!E105)","v":""}]
[null,null,{"$f":"'.calc_eva'!C106","v":"Comprendre une demande pour ranger ses affaires"},{"$f":"IF('.calc_eva'!E106=0,\"\",'.calc_eva'!E106)","v":""}]
[null,null,{"$f":"'.calc_eva'!C107","v":"Comprendre pour ouvrir et fermer la porte"},{"$f":"IF('.calc_eva'!E107=0,\"\",'.calc_eva'!E107)","v":""}]
[null,null,{"$f":"'.calc_eva'!C108","v":"Comprendre pour allumer et éteindre la lumière, l'ordinateur"},{"$f":"IF('.calc_eva'!E108=0,\"\",'.calc_eva'!E108)","v":""}]
[null,null,{"$f":"'.calc_eva'!C109","v":"Comprendre pour jouer aux cartes, les distribuer"},{"$f":"IF('.calc_eva'!E109=0,\"\",'.calc_eva'!E109)","v":""}]
[null,null,{"$f":"'.calc_eva'!C110","v":"Comprendre de parler plus ou moins fort ou lentement"},{"$f":"IF('.calc_eva'!E110=0,\"\",'.calc_eva'!E110)","v":""}]
[null,null,{"$f":"'.calc_eva'!C111","v":"Comprendre une demande de répétition"},{"$f":"IF('.calc_eva'!E111=0,\"\",'.calc_eva'!E111)","v":""}]
[null,null,{"$f":"'.calc_eva'!C112","v":"Comprendre des consignes de bricolage"},{"$f":"IF('.calc_eva'!E112=0,\"\",'.calc_eva'!E112)","v":""}]
[null,null,{"$f":"'.calc_eva'!C113","v":" Comprendre des opérations simples"},{"$f":"IF('.calc_eva'!E113=0,\"\",'.calc_eva'!E113)","v":""}]
[null,null,{"$f":"'.calc_eva'!C114","v":"Suivre des instructions pour former et dessiner des formes"},{"$f":"IF('.calc_eva'!E114=0,\"\",'.calc_eva'!E114)","v":""}]
[null,null,{"$f":"'.calc_eva'!C115","v":"Comprendre où aller dans une école, une maison,  une ville"},{"$f":"IF('.calc_eva'!E115=0,\"\",'.calc_eva'!E115)","v":""}]
[null,null,{"$f":"'.calc_eva'!C116","v":"Comprendre les injonctions de parents (réveille toi ...)"},{"$f":"IF('.calc_eva'!E116=0,\"\",'.calc_eva'!E116)","v":""}]
[null,null,{"$f":"'.calc_eva'!C117","v":"desc_15"},{"$f":"IF('.calc_eva'!E117=0,\"\",'.calc_eva'!E117)","v":""}]
[null,null,{"$f":"'.calc_eva'!C118","v":"desc_16"},{"$f":"IF('.calc_eva'!E118=0,\"\",'.calc_eva'!E118)","v":""}]
[]
[null,"L'activité langagière \"Comprendre à l'oral\" est-elle validée ?",null,{"$f":"IF(VLOOKUP(qui,commentaire,5,FALSE)=1,\"OUI, le \",\"NON\")","v":"OUI, le "}]
[null,null,null,{"$f":"IF(LEFT(D65,3)=\"OUI\",MAX(D8:D63),\"\")","v":"00:00:00"}]
[null,"Commentaire du professeur :"]
[null,null,{"$f":"VLOOKUP(qui,commentaire,4,FALSE)","v":0}]

{"sheet":"Parler","index":12,"n_rows":63,"n_cols":4,"rows_kept":63,"cut":false,"hidden":false,"merged":[[22,0,22,2],[50,0,50,2],[5,0,5,3],[6,0,6,2]]}
[]
[null,"Nom et prénom de l'élève :",{"$f":"qui","v":"PICASSO Pablo"}]
[]
[null,"Langue :",{"$f":"VLOOKUP(qui,liste!$A$2:$B$31,2,FALSE)","v":"Espagnol"}]
[]
[{"$f":"'.calc_eva'!A119","v":"Parler en continu"}]
[{"$f":"'.calc_eva'!B119","v":"Reproduire un modèle oral"}]
[null,null,{"$f":"'.calc_eva'!C119","v":"Reproduire des phrases simples fréquemment utilisées "},{"$f":"IF('.calc_eva'!E119=0,\"\",'.calc_eva'!E119)","v":""}]
[null,null,{"$f":"'.calc_eva'!C120","v":"Réciter un texte mémorisé, une comptine, un poème "},{"$f":"IF('.calc_eva'!E120=0,\"\",'.calc_eva'!E120)","v":""}]
[null,null,{"$f":"'.calc_eva'!C121","v":"Chanter une chanson "},{"$f":"IF('.calc_eva'!E121=0,\"\",'.calc_eva'!E121)","v":""}]
[null,null,{"$f":"'.calc_eva'!C122","v":"Epeler des mots familiers ou chanter l'alphabet "},{"$f":"IF('.calc_eva'!E122=0,\"\",'.calc_eva'!E122)","v":""}]
[null,null,{"$f":"'.calc_eva'!C123","v":"Faire une courte annonce répétée auparavant pour présenter une fête, un personnage, donner une consigne"},{"$f":"IF('.calc_eva'!E123=0,\"\",'.calc_eva'!E123)","v":""}]
[null,null,{"$f":"'.calc_eva'!C124","v":"Reproduire la comptine numérique jusqu'à 100"},{"$f":"IF('.calc_eva'!E124=0,\"\",'.calc_eva'!E124)","v":""}]
[null,null,{"$f":"'.calc_eva'!C125","v":"Reproduire quelques tables d'opération"},{"$f":"IF('.calc_eva'!E125=0,\"\",'.calc_eva'!E125)","v":""}]
[null,null,{"$f":"'.calc_eva'!C126","v":"Réciter l'alphabet"},{"$f":"IF('.calc_eva'!E126=0,\"\",'.calc_eva'!E126)","v":""}]
[null,null,{"$f":"'.calc_eva'!C127","v":"Reproduire une description de journée (pour une saynète)"},{"$f":"IF('.calc_eva'!E127=0,\"\",'.calc_eva'!E127)","v":""}]
[null,null,{"$f":"'.calc_eva'!C128","v":"Epeler les jours et les mois"},{"$f":"IF('.calc_eva'!E128=0,\"\",'.calc_eva'!E128)","v":""}]
[null,null,{"$f":"'.calc_eva'!C129","v":"Présenter la météo"},{"$f":"IF('.calc_eva'!E129=0,\"\",'.calc_eva'!E129)","v":""}]
[null,null,{"$f":"'.calc_eva'!C130","v":"Décrire un jeu de cartes"},{"$f":"IF('.calc_eva'!E130=0,\"\",'.calc_eva'!E130)","v":""}]
[null,null,{"$f":"'.calc_eva'!C131","v":"desc_17"},{"$f":"IF('.calc_eva'!E131=0,\"\",'.calc_eva'!E131)","v":""}]
[null,null,{"$f":"'.calc_eva'!C132","v":"desc_18"},{"$f":"IF('.calc_eva'!E132=0,\"\",'.calc_eva'!E132)","v":""}]
[]
[{"$f":"'.calc_eva'!B133","v":"Utiliser des expressions et des phrases proches des modèles rencontrés lors des apprentissages"}]
[null,null,{"$f":"'.calc_eva'!C133","v":"Utiliser des expressions et phrases simples pour se présenter ou présenter quelqu'un (nom, prénom, âge, adresse, goûts, famille, animaux)"},{"$f":"IF('.calc_eva'!E133=0,\"\",'.calc_eva'!E133)","v":""}]
[null,null,{"$f":"'.calc_eva'!C134","v":"Dire ce qu'il fait chaque jour, chaque semaine en termes simples "},{"$f":"IF('.calc_eva'!E134=0,\"\",'.calc_eva'!E134)","v":""}]
[null,null,{"$f":"'.calc_eva'!C135","v":"Utiliser des expressions et phrases simples pour  présenter son lieu d'habitation, sa chambre"},{"$f":"IF('.calc_eva'!E135=0,\"\",'.calc_eva'!E135)","v":""}]
[null,null,{"$f":"'.calc_eva'!C136","v":"Dire ce que font les personnages, de ce qu'on fait, de ce qu'on a fait, de ce qu'on est en train de faire"},{"$f":"IF('.calc_eva'!E136=0,\"\",'.calc_eva'!E136)","v":""}]
[null,null,{"$f":"'.calc_eva'!C137","v":"Décrire des personnes, des animaux ou des objets familiers (avec des adjectifs indiquant la taille, la couleur ou l'âge)"},{"$f":"IF('.calc_eva'!E137=0,\"\",'.calc_eva'!E137)","v":""}]
[null,null,{"$f":"'.calc_eva'!C138","v":"Exprimer ce qu'il aime et ce qu'il n'aime pas "},{"$f":"IF('.calc_eva'!E138=0,\"\",'.calc_eva'!E138)","v":""}]
[null,null,{"$f":"'.calc_eva'!C139","v":"Exprimer ce qu'il ressent, ses besoins élémentaires (j'ai faim, soif, j'ai froid, je suis malade..) "},{"$f":"IF('.calc_eva'!E139=0,\"\",'.calc_eva'!E139)","v":""}]
[null,null,{"$f":"'.calc_eva'!C140","v":"Dire ce qu'il possède ou pas, ce qu'il souhaite "},{"$f":"IF('.calc_eva'!E140=0,\"\",'.calc_eva'!E140)","v":""}]
[null,null,{"$f":"'.calc_eva'!C141","v":"Décrire un pays, une ville selon un modèle oral"},{"$f":"IF('.calc_eva'!E141=0,\"\",'.calc_eva'!E141)","v":""}]
[null,null,{"$f":"'.calc_eva'!C142","v":"Décrire une peinture en utilisant les phrases connues d'un modèle rencontré"},{"$f":"IF('.calc_eva'!E142=0,\"\",'.calc_eva'!E142)","v":""}]
[null,null,{"$f":"'.calc_eva'!C143","v":"Compter, donner l'heure, indiquer des quantités "},{"$f":"IF('.calc_eva'!E143=0,\"\",'.calc_eva'!E143)","v":""}]
[null,null,{"$f":"'.calc_eva'!C144","v":"Dire les dates d'anniversaire de sa famille"},{"$f":"IF('.calc_eva'!E144=0,\"\",'.calc_eva'!E144)","v":""}]
[null,null,{"$f":"'.calc_eva'!C145","v":"Présenter une famille"},{"$f":"IF('.calc_eva'!E145=0,\"\",'.calc_eva'!E145)","v":""}]
[null,null,{"$f":"'.calc_eva'!C146","v":"Utiliser les éléments vus pour parler de ses vacances (transport, contenu de sa valise, destinations, activités)"},{"$f":"IF('.calc_eva'!E146=0,\"\",'.calc_eva'!E146)","v":""}]
[null,null,{"$f":"'.calc_eva'!C147","v":"Utiliser les éléments vus pour décrire une maison (scénette de l'agent immobilier)"},{"$f":"IF('.calc_eva'!E147=0,\"\",'.calc_eva'!E147)","v":""}]
[null,null,{"$f":"'.calc_eva'!C148","v":"Parler de son emploi du temps et de ses activités préférées à l'école (ou ailleurs)"},{"$f":"IF('.calc_eva'!E148=0,\"\",'.calc_eva'!E148)","v":""}]
[null,null,{"$f":"'.calc_eva'!C149","v":"Décrire les expressions mimées par ses camarades"},{"$f":"IF('.calc_eva'!E149=0,\"\",'.calc_eva'!E149)","v":""}]
[null,null,{"$f":"'.calc_eva'!C150","v":"Dire l'heure mimée par un camarade"},{"$f":"IF('.calc_eva'!E150=0,\"\",'.calc_eva'!E150)","v":""}]
[null,null,{"$f":"'.calc_eva'!C151","v":"Exprimer où l'on a mal"},{"$f":"IF('.calc_eva'!E151=0,\"\",'.calc_eva'!E151)","v":""}]
[null,null,{"$f":"'.calc_eva'!C152","v":"Utiliser les éléments vus pour décrire les sports"},{"$f":"IF('.calc_eva'!E152=0,\"\",'.calc_eva'!E152)","v":""}]
[null,null,{"$f":"'.calc_eva'!C153","v":"Décrire une image, une photo, un dessin, un cadeau"},{"$f":"IF('.calc_eva'!E153=0,\"\",'.calc_eva'!E153)","v":""}]
[null,null,{"$f":"'.calc_eva'!C154","v":"Décrire le contenu d'une trousse et d'un cartable"},{"$f":"IF('.calc_eva'!E154=0,\"\",'.calc_eva'!E154)","v":""}]
[null,null,{"$f":"'.calc_eva'!C155","v":"Décrire le contenu d'une lunch box, de son petit déjeuner, de son sandwich"},{"$f":"IF('.calc_eva'!E155=0,\"\",'.calc_eva'!E155)","v":""}]
[null,null,{"$f":"'.calc_eva'!C156","v":"Expliquer une information simple (règle de jeu, recette, histoire courte à partir d'images, film, livre ...)"},{"$f":"IF('.calc_eva'!E156=0,\"\",'.calc_eva'!E156)","v":""}]
[null,null,{"$f":"'.calc_eva'!C157","v":"desc_19"},{"$f":"IF('.calc_eva'!E157=0,\"\",'.calc_eva'!E157)","v":""}]
[null,null,{"$f":"'.calc_eva'!C158","v":"desc_20"},{"$f":"IF('.calc_eva'!E158=0,\"\",'.calc_eva'!E158)","v":""}]
[]
[{"$f":"'.calc_eva'!B159","v":"Lire à haute voix et de manière expressive un texte bref après répétition"}]
[null,null,{"$f":"'.calc_eva'!C159","v":"Lire à haute voix un court poème, un bref extrait de conte ou de théâtre "},{"$f":"IF('.calc_eva'!E159=0,\"\",'.calc_eva'!E159)","v":""}]
[null,null,{"$f":"'.calc_eva'!C160","v":"Lire à haute voix un emploi du temps pour faire repérer des disciplines étudiées"},{"$f":"IF('.calc_eva'!E160=0,\"\",'.calc_eva'!E160)","v":""}]
[null,null,{"$f":"'.calc_eva'!C161","v":"Lire les paroles d'un karaoké "},{"$f":"IF('.calc_eva'!E161=0,\"\",'.calc_eva'!E161)","v":""}]
[null,null,{"$f":"'.calc_eva'!C162","v":"Lire un compte rendu médical"},{"$f":"IF('.calc_eva'!E162=0,\"\",'.calc_eva'!E162)","v":""}]
[null,null,{"$f":"'.calc_eva'!C163","v":"Raconter une histoire courte exploitée en classe en s'aidant d'images "},{"$f":"IF('.calc_eva'!E163=0,\"\",'.calc_eva'!E163)","v":""}]
[null,null,{"$f":"'.calc_eva'!C164","v":"desc_21"},{"$f":"IF('.calc_eva'!E164=0,\"\",'.calc_eva'!E164)","v":""}]
[null,null,{"$f":"'.calc_eva'!C165","v":"desc_22"},{"$f":"IF('.calc_eva'!E165=0,\"\",'.calc_eva'!E165)","v":""}]
[]
[null,"L'activité langagière \"Parler en continu\" est-elle validée ?",null,{"$f":"IF(VLOOKUP(qui,commentaire,7,FALSE)=1,\"OUI, le \",\"NON\")","v":"OUI, le "}]
[null,null,null,{"$f":"IF(LEFT(D60,3)=\"OUI\",MAX(D8:D58),\"\")","v":"00:00:00"}]
[null,"Commentaire du professeur :"]
[null,null,{"$f":"VLOOKUP(qui,commentaire,6,FALSE)","v":0}]

{"sheet":"Lire","index":13,"n_rows":54,"n_cols":4,"rows_kept":54,"cut":false,"hidden":false,"merged":[[5,0,5,3],[6,0,6,2],[31,0,31,2]]}
[]
[null,"Nom et prénom de l'élève :",{"$f":"qui","v":"PICASSO Pablo"}]
[]
[null,"Langue :",{"$f":"VLOOKUP(qui,liste!$A$2:$B$31,2,FALSE)","v":"Espagnol"}]
[]
[{"$f":"'.calc_eva'!A166","v":"Lire"}]
[{"$f":"'.calc_eva'!B166","v":"Comprendre des textes courts et simples en s'appuyant sur des éléments connus (indications, informations)"}]
[null,null,{"$f":"'.calc_eva'!C166","v":"Relever des noms, des mots familiers et des expressions élémentaires dans un texte "},{"$f":"IF('.calc_eva'!E166=0,\"\",'.calc_eva'!E166)","v":""}]
[null,null,{"$f":"'.calc_eva'!C167","v":"Comprendre une lettre très simple, une carte postale ou une invitation simple et brève, un courriel "},{"$f":"IF('.calc_eva'!E167=0,\"\",'.calc_eva'!E167)","v":""}]
[null,null,{"$f":"'.calc_eva'!C168","v":"Comprendre des mots et des phrases très simples dans des annonces, des affiches, des catalogues, des programmes de télévision "},{"$f":"IF('.calc_eva'!E168=0,\"\",'.calc_eva'!E168)","v":""}]
[null,null,{"$f":"'.calc_eva'!C169","v":"Comprendre un questionnaire : date, nom, prénom, âge, domicile "},{"$f":"IF('.calc_eva'!E169=0,\"\",'.calc_eva'!E169)","v":""}]
[null,null,{"$f":"'.calc_eva'!C170","v":"Comprendre une description de famille, de personne "},{"$f":"IF('.calc_eva'!E170=0,\"\",'.calc_eva'!E170)","v":""}]
[null,null,{"$f":"'.calc_eva'!C171","v":"Comprendre un bulletin météorologique"},{"$f":"IF('.calc_eva'!E171=0,\"\",'.calc_eva'!E171)","v":""}]
[null,null,{"$f":"'.calc_eva'!C172","v":"Relever des noms propres ou communs dans un texte et les relier à des personnes, lieux, événements"},{"$f":"IF('.calc_eva'!E172=0,\"\",'.calc_eva'!E172)","v":""}]
[null,null,{"$f":"'.calc_eva'!C173","v":"Repérer des chiffres et des nombres et les associer à des horaires, dates, quantités, opérations"},{"$f":"IF('.calc_eva'!E173=0,\"\",'.calc_eva'!E173)","v":""}]
[null,null,{"$f":"'.calc_eva'!C174","v":"Comprendre un simple problème de maths "},{"$f":"IF('.calc_eva'!E174=0,\"\",'.calc_eva'!E174)","v":""}]
[null,null,{"$f":"'.calc_eva'!C175","v":"Comprendre les ingrédients essentiels d'une recette, d'un sandwich, d'un petit déjeuner"},{"$f":"IF('.calc_eva'!E175=0,\"\",'.calc_eva'!E175)","v":""}]
[null,null,{"$f":"'.calc_eva'!C176","v":"Comprendre une légende, un plan de ville, des panneaux d'indication  pour retrouver des rues ou des bâtiments principaux (bibliothèque, piscine, musée...)"},{"$f":"IF('.calc_eva'!E176=0,\"\",'.calc_eva'!E176)","v":""}]
[null,null,{"$f":"'.calc_eva'!C177","v":"Retrouver des mots connus dans une grille de mots cachés, fléchés ..."},{"$f":"IF('.calc_eva'!E177=0,\"\",'.calc_eva'!E177)","v":""}]
[null,null,{"$f":"'.calc_eva'!C178","v":"Reconnaître des mots sur des emballages alimentaires"},{"$f":"IF('.calc_eva'!E178=0,\"\",'.calc_eva'!E178)","v":""}]
[null,null,{"$f":"'.calc_eva'!C179","v":"Comprendre des consignes simples (relier, entourer, surligner, barrer, cocher)"},{"$f":"IF('.calc_eva'!E179=0,\"\",'.calc_eva'!E179)","v":""}]
[null,null,{"$f":"'.calc_eva'!C180","v":"Comprendre les consignes dans une règle de jeu "},{"$f":"IF('.calc_eva'!E180=0,\"\",'.calc_eva'!E180)","v":""}]
[null,null,{"$f":"'.calc_eva'!C181","v":"Comprendre les noms des sports "},{"$f":"IF('.calc_eva'!E181=0,\"\",'.calc_eva'!E181)","v":""}]
[null,null,{"$f":"'.calc_eva'!C182","v":"Comprendre des phrases courtes sur un anniversaire"},{"$f":"IF('.calc_eva'!E182=0,\"\",'.calc_eva'!E182)","v":""}]
[null,null,{"$f":"'.calc_eva'!C183","v":"Comprendre le texte d'une chanson"},{"$f":"IF('.calc_eva'!E183=0,\"\",'.calc_eva'!E183)","v":""}]
[null,null,{"$f":"'.calc_eva'!C184","v":"Chercher et trouver un mot dans un dictionnaire"},{"$f":"IF('.calc_eva'!E184=0,\"\",'.calc_eva'!E184)","v":""}]
[null,null,{"$f":"'.calc_eva'!C185","v":"Comprendre des phrases sur l'école"},{"$f":"IF('.calc_eva'!E185=0,\"\",'.calc_eva'!E185)","v":""}]
[null,null,{"$f":"'.calc_eva'!C186","v":"Comprendre un emploi du temps"},{"$f":"IF('.calc_eva'!E186=0,\"\",'.calc_eva'!E186)","v":""}]
[null,null,{"$f":"'.calc_eva'!C187","v":"desc_23"},{"$f":"IF('.calc_eva'!E187=0,\"\",'.calc_eva'!E187)","v":""}]
[null,null,{"$f":"'.calc_eva'!C188","v":"desc_24"},{"$f":"IF('.calc_eva'!E188=0,\"\",'.calc_eva'!E188)","v":""}]
[]
[{"$f":"'.calc_eva'!B189","v":"Se faire une idée du contenu d'un texte informatif simple, accompagné éventuellement d'un document visuel "}]
[null,null,{"$f":"'.calc_eva'!C189","v":"Comprendre un menu, une recette, une liste de courses"},{"$f":"IF('.calc_eva'!E189=0,\"\",'.calc_eva'!E189)","v":""}]
[null,null,{"$f":"'.calc_eva'!C190","v":"Comprendre une enquête, un tableau à double entrée"},{"$f":"IF('.calc_eva'!E190=0,\"\",'.calc_eva'!E190)","v":""}]
[null,null,{"$f":"'.calc_eva'!C191","v":"Comprendre une carte, un plan, des panneaux"},{"$f":"IF('.calc_eva'!E191=0,\"\",'.calc_eva'!E191)","v":""}]
[null,null,{"$f":"'.calc_eva'!C192","v":"Comprendre une description physique d'un animal, d'une personne"},{"$f":"IF('.calc_eva'!E192=0,\"\",'.calc_eva'!E192)","v":""}]
[null,null,{"$f":"'.calc_eva'!C193","v":"Comprendre un bulletin météorologique"},{"$f":"IF('.calc_eva'!E193=0,\"\",'.calc_eva'!E193)","v":""}]
[null,null,{"$f":"'.calc_eva'!C194","v":"Comprendre un programme de voyage, de séjour (réel ou virtuel)"},{"$f":"IF('.calc_eva'!E194=0,\"\",'.calc_eva'!E194)","v":""}]
[null,null,{"$f":"'.calc_eva'!C195","v":"Comprendre des horaires, des tarifs sur une brochure, un site web"},{"$f":"IF('.calc_eva'!E195=0,\"\",'.calc_eva'!E195)","v":""}]
[null,null,{"$f":"'.calc_eva'!C196","v":"Comprendre un mode d'emploi"},{"$f":"IF('.calc_eva'!E196=0,\"\",'.calc_eva'!E196)","v":""}]
[null,null,{"$f":"'.calc_eva'!C197","v":"Cocher un choix de  petit déjeuner (continental ou English, d'un sandwich, d'une lunch box, d'un lunch, d'un dinner"},{"$f":"IF('.calc_eva'!E197=0,\"\",'.calc_eva'!E197)","v":""}]
[null,null,{"$f":"'.calc_eva'!C198","v":"Catégoriser des mots selon le sens (couleurs, parties du corps, vêtements)"},{"$f":"IF('.calc_eva'!E198=0,\"\",'.calc_eva'!E198)","v":""}]
[null,null,{"$f":"'.calc_eva'!C199","v":"Compléter une enquête de satisfaction "},{"$f":"IF('.calc_eva'!E199=0,\"\",'.calc_eva'!E199)","v":""}]
[null,null,{"$f":"'.calc_eva'!C200","v":"Comprendre le sens global d'une histoire drôle, d'un album, d'un texte documentaire, d'un dialogue"},{"$f":"IF('.calc_eva'!E200=0,\"\",'.calc_eva'!E200)","v":""}]
[null,null,{"$f":"'.calc_eva'!C201","v":"Comprendre les bulles d'une bande dessinée à l'aide des mots connus, des images"},{"$f":"IF('.calc_eva'!E201=0,\"\",'.calc_eva'!E201)","v":""}]
[null,null,{"$f":"'.calc_eva'!C202","v":"Connaître les onomatopées"},{"$f":"IF('.calc_eva'!E202=0,\"\",'.calc_eva'!E202)","v":""}]
[null,null,{"$f":"'.calc_eva'!C203","v":"Comprendre le texte  d'une comptine"},{"$f":"IF('.calc_eva'!E203=0,\"\",'.calc_eva'!E203)","v":""}]
[null,null,{"$f":"'.calc_eva'!C204","v":"desc_25"},{"$f":"IF('.calc_eva'!E204=0,\"\",'.calc_eva'!E204)","v":""}]
[null,null,{"$f":"'.calc_eva'!C205","v":"desc_26"},{"$f":"IF('.calc_eva'!E205=0,\"\",'.calc_eva'!E205)","v":""}]
[]
[null,"L'activité langagière \"Lire\" est-elle validée ?",null,{"$f":"IF(VLOOKUP(qui,commentaire,9,FALSE)=1,\"OUI, le \",\"NON\")","v":"OUI, le "}]
[null,null,null,{"$f":"IF(LEFT(D51,3)=\"OUI\",MAX(D8:D49),\"\")","v":"00:00:00"}]
[null,"Commentaire du professeur :"]
[null,null,{"$f":"VLOOKUP(qui,commentaire,8,FALSE)","v":0}]

{"sheet":"Dialoguer","index":14,"n_rows":78,"n_cols":4,"rows_kept":78,"cut":false,"hidden":false,"merged":[[6,0,6,2],[26,0,26,2],[41,0,41,2],[66,0,66,2],[77,1,77,2],[5,0,5,3]]}
[]
[null,"Nom et prénom de l'élève :",{"$f":"qui","v":"PICASSO Pablo"}]
[]
[null,"Langue :",{"$f":"VLOOKUP(qui,liste!$A$2:$B$31,2,FALSE)","v":"Espagnol"}]
[]
[{"$f":"'.calc_eva'!A206","v":"Réagir et dialoguer (interaction orale)"}]
[{"$f":"'.calc_eva'!B206","v":"Communiquer, au besoin avec des pauses pour chercher ses mots"}]
[null,null,{"$f":"'.calc_eva'!C206","v":"Parler du temps qu'il fait "},{"$f":"IF('.calc_eva'!E206=0,\"\",'.calc_eva'!E206)","v":""}]
[null,null,{"$f":"'.calc_eva'!C207","v":"Dire : \" Merci, s'il vous plaît, excusez-moi \" "},{"$f":"IF('.calc_eva'!E207=0,\"\",'.calc_eva'!E207)","v":""}]
[null,null,{"$f":"'.calc_eva'!C208","v":"Poser des questions sur des nombres, des quantités, le prix et l'heure et y répondre"},{"$f":"IF('.calc_eva'!E208=0,\"\",'.calc_eva'!E208)","v":""}]
[null,null,{"$f":"'.calc_eva'!C209","v":"Exprimer ses goûts et réagir à l'expression des goûts d'autrui "},{"$f":"IF('.calc_eva'!E209=0,\"\",'.calc_eva'!E209)","v":""}]
[null,null,{"$f":"'.calc_eva'!C210","v":"Exprimer son accord et son désaccord "},{"$f":"IF('.calc_eva'!E210=0,\"\",'.calc_eva'!E210)","v":""}]
[null,null,{"$f":"'.calc_eva'!C211","v":"Parler du temps avec des expressions telles que : la semaine dernière, vendredi prochain, en Novembre, à 3 heures "},{"$f":"IF('.calc_eva'!E211=0,\"\",'.calc_eva'!E211)","v":""}]
[null,null,{"$f":"'.calc_eva'!C212","v":"Demander son chemin et répéter les instructions pour vérifier qu'il a bien compris "},{"$f":"IF('.calc_eva'!E212=0,\"\",'.calc_eva'!E212)","v":""}]
[null,null,{"$f":"'.calc_eva'!C213","v":"Répondre et poser des questions sur la localisation, les couleurs, les formes "},{"$f":"IF('.calc_eva'!E213=0,\"\",'.calc_eva'!E213)","v":""}]
[null,null,{"$f":"'.calc_eva'!C214","v":"Se décrire et poser des questions sur la description d'autrui, ses vêtements"},{"$f":"IF('.calc_eva'!E214=0,\"\",'.calc_eva'!E214)","v":""}]
[null,null,{"$f":"'.calc_eva'!C215","v":"Répondre et poser des questions sur les disciplines scolaires"},{"$f":"IF('.calc_eva'!E215=0,\"\",'.calc_eva'!E215)","v":""}]
[null,null,{"$f":"'.calc_eva'!C216","v":"Dire son incompréhension ou son ignorance"},{"$f":"IF('.calc_eva'!E216=0,\"\",'.calc_eva'!E216)","v":""}]
[null,null,{"$f":"'.calc_eva'!C217","v":"Demander de répéter, d'expliquer sans traduire"},{"$f":"IF('.calc_eva'!E217=0,\"\",'.calc_eva'!E217)","v":""}]
[null,null,{"$f":"'.calc_eva'!C218","v":"Répondre et questionner sur ses vacances"},{"$f":"IF('.calc_eva'!E218=0,\"\",'.calc_eva'!E218)","v":""}]
[null,null,{"$f":"'.calc_eva'!C219","v":"Etre capable de parler plus lentement, de paraphraser ou de mimer pour être compris"},{"$f":"IF('.calc_eva'!E219=0,\"\",'.calc_eva'!E219)","v":""}]
[null,null,{"$f":"'.calc_eva'!C220","v":"Répondre et questionner pour jouer aux cartes"},{"$f":"IF('.calc_eva'!E220=0,\"\",'.calc_eva'!E220)","v":""}]
[null,null,{"$f":"'.calc_eva'!C221","v":"Demander à son interlocuteur de parler moins vite, plus fort ..."},{"$f":"IF('.calc_eva'!E221=0,\"\",'.calc_eva'!E221)","v":""}]
[null,null,{"$f":"'.calc_eva'!C222","v":"desc_27"},{"$f":"IF('.calc_eva'!E222=0,\"\",'.calc_eva'!E222)","v":""}]
[null,null,{"$f":"'.calc_eva'!C223","v":"desc_28"},{"$f":"IF('.calc_eva'!E223=0,\"\",'.calc_eva'!E223)","v":""}]
[]
[{"$f":"'.calc_eva'!B224","v":"Se présenter, présenter quelqu'un, demander à quelqu'un de ses nouvelles en utilisant les formes de politesse les plus élémentaires, accueil et prise de congé"}]
[null,null,{"$f":"'.calc_eva'!C224","v":"Saluer quelqu'un à plusieurs périodes dans la journée "},{"$f":"IF('.calc_eva'!E224=0,\"\",'.calc_eva'!E224)","v":""}]
[null,null,{"$f":"'.calc_eva'!C225","v":"Demander des nouvelles de quelqu'un et y réagir "},{"$f":"IF('.calc_eva'!E225=0,\"\",'.calc_eva'!E225)","v":""}]
[null,null,{"$f":"'.calc_eva'!C226","v":"Prendre congé "},{"$f":"IF('.calc_eva'!E226=0,\"\",'.calc_eva'!E226)","v":""}]
[null,null,{"$f":"'.calc_eva'!C227","v":"Se présenter en répondant à des questions simples sur son identité "},{"$f":"IF('.calc_eva'!E227=0,\"\",'.calc_eva'!E227)","v":""}]
[null,null,{"$f":"'.calc_eva'!C228","v":"Présenter quelqu'un et réagir de façon appropriée quand on lui présente quelqu'un "},{"$f":"IF('.calc_eva'!E228=0,\"\",'.calc_eva'!E228)","v":""}]
[null,null,{"$f":"'.calc_eva'!C229","v":"Indiquer un itinéraire simple à quelqu'un, avec des supports appropriés (carte, plan, …)"},{"$f":"IF('.calc_eva'!E229=0,\"\",'.calc_eva'!E229)","v":""}]
[null,null,{"$f":"'.calc_eva'!C230","v":"Remercier et répondre \" pas de quoi \""},{"$f":"IF('.calc_eva'!E230=0,\"\",'.calc_eva'!E230)","v":""}]
[null,null,{"$f":"'.calc_eva'!C231","v":"Demander poliment une permission"},{"$f":"IF('.calc_eva'!E231=0,\"\",'.calc_eva'!E231)","v":""}]
[null,null,{"$f":"'.calc_eva'!C232","v":"Présenter des excuses"},{"$f":"IF('.calc_eva'!E232=0,\"\",'.calc_eva'!E232)","v":""}]
[null,null,{"$f":"'.calc_eva'!C233","v":"Féliciter quelqu'un"},{"$f":"IF('.calc_eva'!E233=0,\"\",'.calc_eva'!E233)","v":""}]
[null,null,{"$f":"'.calc_eva'!C234","v":"Souhaiter bon anniversaire, une fête..."},{"$f":"IF('.calc_eva'!E234=0,\"\",'.calc_eva'!E234)","v":""}]
[null,null,{"$f":"'.calc_eva'!C235","v":"desc_29"},{"$f":"IF('.calc_eva'!E235=0,\"\",'.calc_eva'!E235)","v":""}]
[null,null,{"$f":"'.calc_eva'!C236","v":"desc_30"},{"$f":"IF('.calc_eva'!E236=0,\"\",'.calc_eva'!E236)","v":""}]
[]
[{"$f":"'.calc_eva'!B237","v":"Répondre à des questions et en poser (sujets familiers ou besoins immédiats)"}]
[null,null,{"$f":"'.calc_eva'!C237","v":"Demander des objets à autrui et lui en donner "},{"$f":"IF('.calc_eva'!E237=0,\"\",'.calc_eva'!E237)","v":""}]
[null,null,{"$f":"'.calc_eva'!C238","v":"Réagir à des questions simples qui lui sont adressées "},{"$f":"IF('.calc_eva'!E238=0,\"\",'.calc_eva'!E238)","v":""}]
[null,null,{"$f":"'.calc_eva'!C239","v":"Proposer quelque chose et réagir à une proposition "},{"$f":"IF('.calc_eva'!E239=0,\"\",'.calc_eva'!E239)","v":""}]
[null,null,{"$f":"'.calc_eva'!C240","v":"Réagir à des instructions simples et brèves, énoncées lentement"},{"$f":"IF('.calc_eva'!E240=0,\"\",'.calc_eva'!E240)","v":""}]
[null,null,{"$f":"'.calc_eva'!C241","v":"Demander à son interlocuteur de répéter ses propos, en s'aidant éventuellement de gestes ou de mimiques"},{"$f":"IF('.calc_eva'!E241=0,\"\",'.calc_eva'!E241)","v":""}]
[null,null,{"$f":"'.calc_eva'!C242","v":"Répondre à des questions concernant ses nom, prénom, âge, adresse, nationalité, famille, animaux, numéro de téléphone, humeur/sentiment, date d'anniversaire..."},{"$f":"IF('.calc_eva'!E242=0,\"\",'.calc_eva'!E242)","v":""}]
[null,null,{"$f":"'.calc_eva'!C243","v":"Poser des questions concernant l'identité et l'entourage d'un interlocuteur"},{"$f":"IF('.calc_eva'!E243=0,\"\",'.calc_eva'!E243)","v":""}]
[null,null,{"$f":"'.calc_eva'!C244","v":"Demander et donner des informations sur une tierce personne"},{"$f":"IF('.calc_eva'!E244=0,\"\",'.calc_eva'!E244)","v":""}]
[null,null,{"$f":"'.calc_eva'!C245","v":"Répondre et questionner sur les descriptions et activités animales"},{"$f":"IF('.calc_eva'!E245=0,\"\",'.calc_eva'!E245)","v":""}]
[null,null,{"$f":"'.calc_eva'!C246","v":"Répondre et poser des questions sur les pièces d'une habitation"},{"$f":"IF('.calc_eva'!E246=0,\"\",'.calc_eva'!E246)","v":""}]
[null,null,{"$f":"'.calc_eva'!C247","v":"Répondre et poser des questions sur ce que l'on prend ou pas aux trois repas"},{"$f":"IF('.calc_eva'!E247=0,\"\",'.calc_eva'!E247)","v":""}]
[null,null,{"$f":"'.calc_eva'!C248","v":"Proposer et refuser des aliments"},{"$f":"IF('.calc_eva'!E248=0,\"\",'.calc_eva'!E248)","v":""}]
[null,null,{"$f":"'.calc_eva'!C249","v":"Exprimer sa faim, sa soif"},{"$f":"IF('.calc_eva'!E249=0,\"\",'.calc_eva'!E249)","v":""}]
[null,null,{"$f":"'.calc_eva'!C250","v":"Demander un objet à quelqu'un"},{"$f":"IF('.calc_eva'!E250=0,\"\",'.calc_eva'!E250)","v":""}]
[null,null,{"$f":"'.calc_eva'!C251","v":"Dire et demander à son interlocuteur ce qu'il aime ou pas : manger, boire, faire"},{"$f":"IF('.calc_eva'!E251=0,\"\",'.calc_eva'!E251)","v":""}]
[null,null,{"$f":"'.calc_eva'!C252","v":"Demander et donner une date, heure, lieu de rendez-vous"},{"$f":"IF('.calc_eva'!E252=0,\"\",'.calc_eva'!E252)","v":""}]
[null,null,{"$f":"'.calc_eva'!C253","v":"Indiquer et demander le temps qu'il fait "},{"$f":"IF('.calc_eva'!E253=0,\"\",'.calc_eva'!E253)","v":""}]
[null,null,{"$f":"'.calc_eva'!C254","v":"Exprimer et comprendre une envie, un besoin"},{"$f":"IF('.calc_eva'!E254=0,\"\",'.calc_eva'!E254)","v":""}]
[null,null,{"$f":"'.calc_eva'!C255","v":"Indiquer et demander une quantité "},{"$f":"IF('.calc_eva'!E255=0,\"\",'.calc_eva'!E255)","v":""}]
[null,null,{"$f":"'.calc_eva'!C256","v":"Questionner et répondre à la description d'un paysage"},{"$f":"IF('.calc_eva'!E256=0,\"\",'.calc_eva'!E256)","v":""}]
[null,null,{"$f":"'.calc_eva'!C257","v":"Interroger et répondre au sujet des pratiques sportives"},{"$f":"IF('.calc_eva'!E257=0,\"\",'.calc_eva'!E257)","v":""}]
[null,null,{"$f":"'.calc_eva'!C258","v":"desc_31"},{"$f":"IF('.calc_eva'!E258=0,\"\",'.calc_eva'!E258)","v":""}]
[null,null,{"$f":"'.calc_eva'!C259","v":"desc_32"},{"$f":"IF('.calc_eva'!E259=0,\"\",'.calc_eva'!E259)","v":""}]
[]
[{"$f":"'.calc_eva'!B260","v":"Epeler des mots familiers"}]
[null,null,{"$f":"'.calc_eva'!C260","v":"En situation de communication dans le cadre d'un jeu de rôle par exemple, épeler son nom, son prénom, sa nationalité, son adresse, numéro de téléphone…"},{"$f":"IF('.calc_eva'!E260=0,\"\",'.calc_eva'!E260)","v":""}]
[null,null,{"$f":"'.calc_eva'!C261","v":"Demander d'épeler et comprendre la réponse"},{"$f":"IF('.calc_eva'!E261=0,\"\",'.calc_eva'!E261)","v":""}]
[null,null,{"$f":"'.calc_eva'!C262","v":"desc_33"},{"$f":"IF('.calc_eva'!E262=0,\"\",'.calc_eva'!E262)","v":""}]
[null,null,{"$f":"'.calc_eva'!C263","v":"desc_34"},{"$f":"IF('.calc_eva'!E263=0,\"\",'.calc_eva'!E263)","v":""}]
[]
[null,"L'activité langagière \"Réagir et dialoguer\" est-elle validée ?",null,{"$f":"IF(VLOOKUP(qui,commentaire,11,FALSE)=1,\"OUI, le \",\"NON\")","v":"OUI, le "}]
[null,null,null,{"$f":"IF(LEFT(D73,3)=\"OUI\",MAX(D28:D71),\"\")","v":"00:00:00"}]
[null,"Commentaire du professeur :"]
[null,null,{"$f":"VLOOKUP(qui,commentaire,10,FALSE)","v":0}]
[]
[null,{"$f":"IF(VLOOKUP(qui,commentaire,12,FALSE),\"LE PALIER A1 EST VALIDÉ.\",\"LE PALIER A1 N'EST PAS VALIDÉ.\")","v":"LE PALIER A1 EST VALIDÉ."}]

{"sheet":"synthese classe","index":15,"n_rows":163,"n_cols":3,"rows_kept":163,"cut":false,"hidden":false,"merged":[]}
["Nombre d'élèves de la classe :",{"$f":"30-COUNTIF(nomPrenom,\"NOM*\")","v":4}]
["Nombre d'élèves ayant validé le palier A1 :",{"$f":"SUM(commentaires!L2:L31)","v":2},{"$f":"B2/B1","v":0.5}]
["Parmi les élèves n'ayant pas validé le palier A1 :"]
["Nombre d'élèves ayant validé la compétence \"Ecrire\" :",{"$f":"SUM(commentaires!M2:M31)","v":2},{"$f":"B4/$B$2","v":1}]
["Liste des élèves n'ayant pas validé la compétence \"Ecrire\" :"]
[{"$f":"IF(commentaires!M2=0,commentaires!$A2,\"\")","v":"PICASSO Pablo"}]
[{"$f":"IF(commentaires!M3=0,commentaires!$A3,\"\")","v":"FREUD Sigmund"}]
[{"$f":"IF(commentaires!M4=0,commentaires!$A4,\"\")","v":""}]
[{"$f":"IF(commentaires!M5=0,commentaires!$A5,\"\")","v":""}]
[{"$f":"IF(commentaires!M6=0,commentaires!$A6,\"\")","v":"NOM5"}]
[{"$f":"IF(commentaires!M7=0,commentaires!$A7,\"\")","v":"NOM6"}]
[{"$f":"IF(commentaires!M8=0,commentaires!$A8,\"\")","v":"NOM7"}]
[{"$f":"IF(commentaires!M9=0,commentaires!$A9,\"\")","v":"NOM8"}]
[{"$f":"IF(commentaires!M10=0,commentaires!$A10,\"\")","v":"NOM9"}]
[{"$f":"IF(commentaires!M11=0,commentaires!$A11,\"\")","v":"NOM10"}]
[{"$f":"IF(commentaires!M12=0,commentaires!$A12,\"\")","v":"NOM11"}]
[{"$f":"IF(commentaires!M13=0,commentaires!$A13,\"\")","v":"NOM12"}]
[{"$f":"IF(commentaires!M14=0,commentaires!$A14,\"\")","v":"NOM13"}]
[{"$f":"IF(commentaires!M15=0,commentaires!$A15,\"\")","v":"NOM14"}]
[{"$f":"IF(commentaires!M16=0,commentaires!$A16,\"\")","v":"NOM15"}]
[{"$f":"IF(commentaires!M17=0,commentaires!$A17,\"\")","v":"NOM16"}]
[{"$f":"IF(commentaires!M18=0,commentaires!$A18,\"\")","v":"NOM17"}]
[{"$f":"IF(commentaires!M19=0,commentaires!$A19,\"\")","v":"NOM18"}]
[{"$f":"IF(commentaires!M20=0,commentaires!$A20,\"\")","v":"NOM19"}]
[{"$f":"IF(commentaires!M21=0,commentaires!$A21,\"\")","v":"NOM20"}]
[{"$f":"IF(commentaires!M22=0,commentaires!$A22,\"\")","v":"NOM21"}]
[{"$f":"IF(commentaires!M23=0,commentaires!$A23,\"\")","v":"NOM22"}]
[{"$f":"IF(commentaires!M24=0,commentaires!$A24,\"\")","v":"NOM23"}]
[{"$f":"IF(commentaires!M25=0,commentaires!$A25,\"\")","v":"NOM24"}]
[{"$f":"IF(commentaires!M26=0,commentaires!$A26,\"\")","v":"NOM25"}]
[{"$f":"IF(commentaires!M27=0,commentaires!$A27,\"\")","v":"NOM26"}]
[{"$f":"IF(commentaires!M28=0,commentaires!$A28,\"\")","v":"NOM27"}]
[{"$f":"IF(commentaires!M29=0,commentaires!$A29,\"\")","v":"NOM28"}]
[{"$f":"IF(commentaires!M30=0,commentaires!$A30,\"\")","v":"NOM29"}]
[{"$f":"IF(commentaires!M31=0,commentaires!$A31,\"\")","v":"NOM30"}]
["Nombre d'élèves ayant validé la compétence \"Comprendre à l'oral\" :",{"$f":"SUM(commentaires!N2:N49)","v":1},{"$f":"B36/$B$2","v":0.5}]
["Liste des élèves n'ayant pas validé la compétence \"Comprendre à l'oral\" :"]
[{"$f":"IF(commentaires!N2=0,commentaires!$A2,\"\")","v":"PICASSO Pablo"}]
[{"$f":"IF(commentaires!N3=0,commentaires!$A3,\"\")","v":"FREUD Sigmund"}]
[{"$f":"IF(commentaires!N4=0,commentaires!$A4,\"\")","v":"HOLMES Sherlock"}]
[{"$f":"IF(commentaires!N5=0,commentaires!$A5,\"\")","v":""}]
[{"$f":"IF(commentaires!N6=0,commentaires!$A6,\"\")","v":"NOM5"}]
[{"$f":"IF(commentaires!N7=0,commentaires!$A7,\"\")","v":"NOM6"}]
[{"$f":"IF(commentaires!N8=0,commentaires!$A8,\"\")","v":"NOM7"}]
[{"$f":"IF(commentaires!N9=0,commentaires!$A9,\"\")","v":"NOM8"}]
[{"$f":"IF(commentaires!N10=0,commentaires!$A10,\"\")","v":"NOM9"}]
[{"$f":"IF(commentaires!N11=0,commentaires!$A11,\"\")","v":"NOM10"}]
[{"$f":"IF(commentaires!N12=0,commentaires!$A12,\"\")","v":"NOM11"}]
[{"$f":"IF(commentaires!N13=0,commentaires!$A13,\"\")","v":"NOM12"}]
[{"$f":"IF(commentaires!N14=0,commentaires!$A14,\"\")","v":"NOM13"}]
[{"$f":"IF(commentaires!N15=0,commentaires!$A15,\"\")","v":"NOM14"}]
[{"$f":"IF(commentaires!N16=0,commentaires!$A16,\"\")","v":"NOM15"}]
[{"$f":"IF(commentaires!N17=0,commentaires!$A17,\"\")","v":"NOM16"}]
[{"$f":"IF(commentaires!N18=0,commentaires!$A18,\"\")","v":"NOM17"}]
[{"$f":"IF(commentaires!N19=0,commentaires!$A19,\"\")","v":"NOM18"}]
[{"$f":"IF(commentaires!N20=0,commentaires!$A20,\"\")","v":"NOM19"}]
[{"$f":"IF(commentaires!N21=0,commentaires!$A21,\"\")","v":"NOM20"}]
[{"$f":"IF(commentaires!N22=0,commentaires!$A22,\"\")","v":"NOM21"}]
[{"$f":"IF(commentaires!N23=0,commentaires!$A23,\"\")","v":"NOM22"}]
[{"$f":"IF(commentaires!N24=0,commentaires!$A24,\"\")","v":"NOM23"}]
[{"$f":"IF(commentaires!N25=0,commentaires!$A25,\"\")","v":"NOM24"}]
[{"$f":"IF(commentaires!N26=0,commentaires!$A26,\"\")","v":"NOM25"}]
[{"$f":"IF(commentaires!N27=0,commentaires!$A27,\"\")","v":"NOM26"}]
[{"$f":"IF(commentaires!N28=0,commentaires!$A28,\"\")","v":"NOM27"}]
[{"$f":"IF(commentaires!N29=0,commentaires!$A29,\"\")","v":"NOM28"}]
[{"$f":"IF(commentaires!N30=0,commentaires!$A30,\"\")","v":"NOM29"}]
[{"$f":"IF(commentaires!N31=0,commentaires!$A31,\"\")","v":"NOM30"}]
["Nombre d'élèves ayant validé la compétence \"Parler en continu\" :",{"$f":"SUM(commentaires!O2:O49)","v":1},{"$f":"B68/$B$2","v":0.5}]
["Liste des élèves n'ayant pas validé la compétence \"Parler en continu\" :"]
[{"$f":"IF(commentaires!O2=0,commentaires!$A2,\"\")","v":"PICASSO Pablo"}]
[{"$f":"IF(commentaires!O3=0,commentaires!$A3,\"\")","v":"FREUD Sigmund"}]
[{"$f":"IF(commentaires!O4=0,commentaires!$A4,\"\")","v":"HOLMES Sherlock"}]
[{"$f":"IF(commentaires!O5=0,commentaires!$A5,\"\")","v":""}]
[{"$f":"IF(commentaires!O6=0,commentaires!$A6,\"\")","v":"NOM5"}]
[{"$f":"IF(commentaires!O7=0,commentaires!$A7,\"\")","v":"NOM6"}]
[{"$f":"IF(commentaires!O8=0,commentaires!$A8,\"\")","v":"NOM7"}]
[{"$f":"IF(commentaires!O9=0,commentaires!$A9,\"\")","v":"NOM8"}]
[{"$f":"IF(commentaires!O10=0,commentaires!$A10,\"\")","v":"NOM9"}]
[{"$f":"IF(commentaires!O11=0,commentaires!$A11,\"\")","v":"NOM10"}]
[{"$f":"IF(commentaires!O12=0,commentaires!$A12,\"\")","v":"NOM11"}]
[{"$f":"IF(commentaires!O13=0,commentaires!$A13,\"\")","v":"NOM12"}]
[{"$f":"IF(commentaires!O14=0,commentaires!$A14,\"\")","v":"NOM13"}]
[{"$f":"IF(commentaires!O15=0,commentaires!$A15,\"\")","v":"NOM14"}]
[{"$f":"IF(commentaires!O16=0,commentaires!$A16,\"\")","v":"NOM15"}]
[{"$f":"IF(commentaires!O17=0,commentaires!$A17,\"\")","v":"NOM16"}]
[{"$f":"IF(commentaires!O18=0,commentaires!$A18,\"\")","v":"NOM17"}]
[{"$f":"IF(commentaires!O19=0,commentaires!$A19,\"\")","v":"NOM18"}]
[{"$f":"IF(commentaires!O20=0,commentaires!$A20,\"\")","v":"NOM19"}]
[{"$f":"IF(commentaires!O21=0,commentaires!$A21,\"\")","v":"NOM20"}]
[{"$f":"IF(commentaires!O22=0,commentaires!$A22,\"\")","v":"NOM21"}]
[{"$f":"IF(commentaires!O23=0,commentaires!$A23,\"\")","v":"NOM22"}]
[{"$f":"IF(commentaires!O24=0,commentaires!$A24,\"\")","v":"NOM23"}]
[{"$f":"IF(commentaires!O25=0,commentaires!$A25,\"\")","v":"NOM24"}]
[{"$f":"IF(commentaires!O26=0,commentaires!$A26,\"\")","v":"NOM25"}]
[{"$f":"IF(commentaires!O27=0,commentaires!$A27,\"\")","v":"NOM26"}]
[{"$f":"IF(commentaires!O28=0,commentaires!$A28,\"\")","v":"NOM27"}]
[{"$f":"IF(commentaires!O29=0,commentaires!$A29,\"\")","v":"NOM28"}]
[{"$f":"IF(commentaires!O30=0,commentaires!$A30,\"\")","v":"NOM29"}]
[{"$f":"IF(commentaires!O31=0,commentaires!$A31,\"\")","v":"NOM30"}]
["Nombre d'élèves ayant validé la compétence \"Lire\" :",{"$f":"SUM(commentaires!P2:P49)","v":0},{"$f":"B100/$B$2","v":0}]
["Liste des élèves n'ayant pas validé la compétence \"Lire\" :"]
[{"$f":"IF(commentaires!P2=0,commentaires!$A2,\"\")","v":"PICASSO Pablo"}]
[{"$f":"IF(commentaires!P3=0,commentaires!$A3,\"\")","v":"FREUD Sigmund"}]
[{"$f":"IF(commentaires!P4=0,commentaires!$A4,\"\")","v":"HOLMES Sherlock"}]
[{"$f":"IF(commentaires!P5=0,commentaires!$A5,\"\")","v":"CHAHINE Youcef"}]
[{"$f":"IF(commentaires!P6=0,commentaires!$A6,\"\")","v":"NOM5"}]
[{"$f":"IF(commentaires!P7=0,commentaires!$A7,\"\")","v":"NOM6"}]
[{"$f":"IF(commentaires!P8=0,commentaires!$A8,\"\")","v":"NOM7"}]
[{"$f":"IF(commentaires!P9=0,commentaires!$A9,\"\")","v":"NOM8"}]
[{"$f":"IF(commentaires!P10=0,commentaires!$A10,\"\")","v":"NOM9"}]
[{"$f":"IF(commentaires!P11=0,commentaires!$A11,\"\")","v":"NOM10"}]
[{"$f":"IF(commentaires!P12=0,commentaires!$A12,\"\")","v":"NOM11"}]
[{"$f":"IF(commentaires!P13=0,commentaires!$A13,\"\")","v":"NOM12"}]
[{"$f":"IF(commentaires!P14=0,commentaires!$A14,\"\")","v":"NOM13"}]
[{"$f":"IF(commentaires!P15=0,commentaires!$A15,\"\")","v":"NOM14"}]
[{"$f":"IF(commentaires!P16=0,commentaires!$A16,\"\")","v":"NOM15"}]
[{"$f":"IF(commentaires!P17=0,commentaires!$A17,\"\")","v":"NOM16"}]
[{"$f":"IF(commentaires!P18=0,commentaires!$A18,\"\")","v":"NOM17"}]
[{"$f":"IF(commentaires!P19=0,commentaires!$A19,\"\")","v":"NOM18"}]
[{"$f":"IF(commentaires!P20=0,commentaires!$A20,\"\")","v":"NOM19"}]
[{"$f":"IF(commentaires!P21=0,commentaires!$A21,\"\")","v":"NOM20"}]
[{"$f":"IF(commentaires!P22=0,commentaires!$A22,\"\")","v":"NOM21"}]
[{"$f":"IF(commentaires!P23=0,commentaires!$A23,\"\")","v":"NOM22"}]
[{"$f":"IF(commentaires!P24=0,commentaires!$A24,\"\")","v":"NOM23"}]
[{"$f":"IF(commentaires!P25=0,commentaires!$A25,\"\")","v":"NOM24"}]
[{"$f":"IF(commentaires!P26=0,commentaires!$A26,\"\")","v":"NOM25"}]
[{"$f":"IF(commentaires!P27=0,commentaires!$A27,\"\")","v":"NOM26"}]
[{"$f":"IF(commentaires!P28=0,commentaires!$A28,\"\")","v":"NOM27"}]
[{"$f":"IF(commentaires!P29=0,commentaires!$A29,\"\")","v":"NOM28"}]
[{"$f":"IF(commentaires!P30=0,commentaires!$A30,\"\")","v":"NOM29"}]
[{"$f":"IF(commentaires!P31=0,commentaires!$A31,\"\")","v":"NOM30"}]
["Nombre d'élèves ayant validé la compétence \"Réagir et dialoguer\" :",{"$f":"SUM(commentaires!Q2:Q49)","v":0},{"$f":"B132/$B$2","v":0}]
["Liste des élèves n'ayant pas validé la compétence \"Réagir et dialoguer\" :"]
[{"$f":"IF(commentaires!Q2=0,commentaires!$A2,\"\")","v":"PICASSO Pablo"}]
[{"$f":"IF(commentaires!Q3=0,commentaires!$A3,\"\")","v":"FREUD Sigmund"}]
[{"$f":"IF(commentaires!Q4=0,commentaires!$A4,\"\")","v":"HOLMES Sherlock"}]
[{"$f":"IF(commentaires!Q5=0,commentaires!$A5,\"\")","v":"CHAHINE Youcef"}]
[{"$f":"IF(commentaires!Q6=0,commentaires!$A6,\"\")","v":"NOM5"}]
[{"$f":"IF(commentaires!Q7=0,commentaires!$A7,\"\")","v":"NOM6"}]
[{"$f":"IF(commentaires!Q8=0,commentaires!$A8,\"\")","v":"NOM7"}]
[{"$f":"IF(commentaires!Q9=0,commentaires!$A9,\"\")","v":"NOM8"}]
[{"$f":"IF(commentaires!Q10=0,commentaires!$A10,\"\")","v":"NOM9"}]
[{"$f":"IF(commentaires!Q11=0,commentaires!$A11,\"\")","v":"NOM10"}]
[{"$f":"IF(commentaires!Q12=0,commentaires!$A12,\"\")","v":"NOM11"}]
[{"$f":"IF(commentaires!Q13=0,commentaires!$A13,\"\")","v":"NOM12"}]
[{"$f":"IF(commentaires!Q14=0,commentaires!$A14,\"\")","v":"NOM13"}]
[{"$f":"IF(commentaires!Q15=0,commentaires!$A15,\"\")","v":"NOM14"}]
[{"$f":"IF(commentaires!Q16=0,commentaires!$A16,\"\")","v":"NOM15"}]
[{"$f":"IF(commentaires!Q17=0,commentaires!$A17,\"\")","v":"NOM16"}]
[{"$f":"IF(commentaires!Q18=0,commentaires!$A18,\"\")","v":"NOM17"}]
[{"$f":"IF(commentaires!Q19=0,commentaires!$A19,\"\")","v":"NOM18"}]
[{"$f":"IF(commentaires!Q20=0,commentaires!$A20,\"\")","v":"NOM19"}]
[{"$f":"IF(commentaires!Q21=0,commentaires!$A21,\"\")","v":"NOM20"}]
[{"$f":"IF(commentaires!Q22=0,commentaires!$A22,\"\")","v":"NOM21"}]
[{"$f":"IF(commentaires!Q23=0,commentaires!$A23,\"\")","v":"NOM22"}]
[{"$f":"IF(commentaires!Q24=0,commentaires!$A24,\"\")","v":"NOM23"}]
[{"$f":"IF(commentaires!Q25=0,commentaires!$A25,\"\")","v":"NOM24"}]
[{"$f":"IF(commentaires!Q26=0,commentaires!$A26,\"\")","v":"NOM25"}]
[{"$f":"IF(commentaires!Q27=0,commentaires!$A27,\"\")","v":"NOM26"}]
[{"$f":"IF(commentaires!Q28=0,commentaires!$A28,\"\")","v":"NOM27"}]
[{"$f":"IF(commentaires!Q29=0,commentaires!$A29,\"\")","v":"NOM28"}]
[{"$f":"IF(commentaires!Q30=0,commentaires!$A30,\"\")","v":"NOM29"}]
[{"$f":"IF(commentaires!Q31=0,commentaires!$A31,\"\")","v":"NOM30"}]